Workbook

Sheet RawSFMRFLP
A1: Instance | B1: Algorithm | C1: Repetition | D1: Score | E1: MinScoreForInstance | F1: %Gap | G1: isBest | L1: Minimum values
A2: AKV_60_05_2.txt | B2: auto | C2: 0 | D2: 159667 | E2: =VLOOKUP(A2,L:M,2,FALSE) -> 159635 | F2: =(D2-E2)/E2 -> 0.02% | G2: =IF(D2<=E2,1,0) -> 0 | L2: =_xlfn.UNIQUE(A:A) -> Instance | M2: Score
A3: AKV_60_05_2.txt | B3: auto | C3: 1 | D3: 159661 | E3: =VLOOKUP(A3,L:M,2,FALSE) -> 159635 | F3: =(D3-E3)/E3 -> 0.02% | G3: =IF(D3<=E3,1,0) -> 0 | L3: AKV_60_05_2.txt | M3: =_xlfn.MINIFS(D:D,A:A,L3) -> 159635
A4: AKV_60_05_2.txt | B4: auto | C4: 2 | D4: 159641 | E4: 159635 | F4: 0.00% | G4: 0 | L4: AKV_60_05_3.txt | M4: =_xlfn.MINIFS(D:D,A:A,L4) -> 106589
A5: AKV_60_05_2.txt | B5: auto | C5: 3 | D5: 159689 | E5: 159635 | F5: 0.03% | G5: 0 | L5: AKV_60_05_4.txt | M5: 80167
A6: AKV_60_05_2.txt | B6: auto | C6: 4 | D6: 159641 | E6: 159635 | F6: 0.00% | G6: 0 | L6: AKV_60_05_5.txt | M6: 64323
A7: AKV_60_05_2.txt | B7: auto | C7: 5 | D7: 159703 | E7: 159635 | F7: 0.04% | G7: 0 | L7: AKV_70_05_2.txt | M7: 2109701.5
A8: AKV_60_05_2.txt | B8: auto | C8: 6 | D8: 159652 | E8: 159635 | F8: 0.01% | G8: 0 | L8: AKV_70_05_3.txt | M8: 1407753.5
A9: AKV_60_05_2.txt | B9: auto | C9: 7 | D9: 159659 | E9: 159635 | F9: 0.02% | G9: 0 | L9: AKV_70_05_4.txt | M9: 1057026.5
A10: AKV_60_05_2.txt | B10: auto | C10: 8 | D10: 159645 | E10: 159635 | F10: 0.01% | G10: 0 | L10: AKV_70_05_5.txt | M10: 846208.5
A11: AKV_60_05_2.txt | B11: auto | C11: 9 | D11: 159642 | E11: 159635 | F11: 0.00% | G11: 0 | L11: Am12a_2.txt | M11: 1529
A12: AKV_60_05_2.txt | B12: auto | C12: 10 | D12: 159662 | E12: 159635 | F12: 0.02% | G12: 0 | L12: Am12a_3.txt | M12: 1028
A13: AKV_60_05_2.txt | B13: auto | C13: 11 | D13: 159701 | E13: 159635 | F13: 0.04% | G13: 0 | L13: Am12a_4.txt | M13: 785
A14: AKV_60_05_2.txt | B14: auto | C14: 12 | D14: 159647 | E14: 159635 | F14: 0.01% | G14: 0 | L14: Am12a_5.txt | M14: 629
A15: AKV_60_05_2.txt | B15: auto | C15: 13 | D15: 159641 | E15: 159635 | F15: 0.00% | G15: 0 | L15: Am12b_2.txt | M15: 1609.5
A16: AKV_60_05_2.txt | B16: auto | C16: 14 | D16: 159672 | E16: 159635 | F16: 0.02% | G16: 0 | L16: Am12b_3.txt | M16: 1117.5
A17: AKV_60_05_2.txt | B17: auto | C17: 15 | D17: 159670 | E17: 159635 | F17: 0.02% | G17: 0 | L17: Am12b_4.txt | M17: 855.5
A18: AKV_60_05_2.txt | B18: auto | C18: 16 | D18: 159679 | E18: 159635 | F18: 0.03% | G18: 0 | L18: Am12b_5.txt | M18: 617.5
A19: AKV_60_05_2.txt | B19: auto | C19: 17 | D19: 159676 | E19: 159635 | F19: 0.03% | G19: 0 | L19: Am13a_2.txt | M19: 2467.5
A20: AKV_60_05_2.txt | B20: auto | C20: 18 | D20: 159680 | E20: 159635 | F20: 0.03% | G20: 0 | L20: Am13a_3.txt | M20: 1569.5
A21: AKV_60_05_2.txt | B21: auto | C21: 19 | D21: 159688 | E21: 159635 | F21: 0.03% | G21: 0 | L21: Am13a_4.txt | M21: 1145.5
A22: AKV_60_05_2.txt | B22: auto | C22: 20 | D22: 159692 | E22: 159635 | F22: 0.04% | G22: 0 | L22: Am13a_5.txt | M22: 882.5
A23: AKV_60_05_2.txt | B23: auto | C23: 21 | D23: 159675 | E23: 159635 | F23: 0.03% | G23: 0 | L23: Am13b_2.txt | M23: 2870
A24: AKV_60_05_2.txt | B24: auto | C24: 22 | D24: 159650 | E24: 159635 | F24: 0.01% | G24: 0 | L24: Am13b_3.txt | M24: 1904
A25: AKV_60_05_2.txt | B25: auto | C25: 23 | D25: 159644 | E25: 159635 | F25: 0.01% | G25: 0 | L25: Am13b_4.txt | M25: 1372
A26: AKV_60_05_2.txt | B26: auto | C26: 24 | D26: 159691 | E26: 159635 | F26: 0.04% | G26: 0 | L26: Am13b_5.txt | M26: 1085
A27: AKV_60_05_2.txt | B27: auto | C27: 25 | D27: 159648 | E27: 159635 | F27: 0.01% | G27: 0 | L27: Am15_2.txt | M27: 3195
A28: AKV_60_05_2.txt | B28: auto | C28: 26 | D28: 159696 | E28: 159635 | F28: 0.04% | G28: 0 | L28: Am15_3.txt | M28: 2167
A29: AKV_60_05_2.txt | B29: auto | C29: 27 | D29: 159647 | E29: 159635 | F29: 0.01% | G29: 0 | L29: Am15_4.txt | M29: 1656
A30: AKV_60_05_2.txt | B30: auto | C30: 28 | D30: 159642 | E30: 159635 | F30: 0.00% | G30: 0 | L30: Am15_5.txt | M30: 1289
A31: AKV_60_05_2.txt | B31: auto | C31: 29 | D31: 159642 | E31: 159635 | F31: 0.00% | G31: 0 | L31: CAP_n60_p30_s30_1_2.txt | M31: 204089
A32: AKV_60_05_2.txt | B32: SOTA | C32: 0 | D32: 159658 | E32: 159635 | F32: 0.01% | G32: 0 | L32: CAP_n60_p30_s30_1_3.txt | M32: 136256
A33: AKV_60_05_2.txt | B33: SOTA | C33: 1 | D33: 159674 | E33: 159635 | F33: 0.02% | G33: 0 | L33: CAP_n60_p30_s30_1_4.txt | M33: 102208
A34: AKV_60_05_2.txt | B34: SOTA | C34: 2 | D34: 159678 | E34: 159635 | F34: 0.03% | G34: 0 | L34: CAP_n60_p30_s30_1_5.txt | M34: 81523
A35: AKV_60_05_2.txt | B35: SOTA | C35: 3 | D35: 159727 | E35: 159635 | F35: 0.06% | G35: 0 | L35: CAP_n60_p30_s30_2_2.txt | M35: 193177.5
A36: AKV_60_05_2.txt | B36: SOTA | C36: 4 | D36: 159685 | E36: 159635 | F36: 0.03% | G36: 0 | L36: CAP_n60_p30_s30_2_3.txt | M36: 128798.5
A37: AKV_60_05_2.txt | B37: SOTA | C37: 5 | D37: 159695 | E37: 159635 | F37: 0.04% | G37: 0 | L37: CAP_n60_p30_s30_2_4.txt | M37: 96634.5
A38: AKV_60_05_2.txt | B38: SOTA | C38: 6 | D38: 159710 | E38: 159635 | F38: 0.05% | G38: 0 | L38: CAP_n60_p30_s30_2_5.txt | M38: 77274.5
A39: AKV_60_05_2.txt | B39: SOTA | C39: 7 | D39: 159642 | E39: 159635 | F39: 0.00% | G39: 0 | L39: CAP_n60_p30_s30_3_2.txt | M39: 161466.5
A40: AKV_60_05_2.txt | B40: SOTA | C40: 8 | D40: 159696 | E40: 159635 | F40: 0.04% | G40: 0 | L40: CAP_n60_p30_s30_3_3.txt | M40: 107739.5
A41: AKV_60_05_2.txt | B41: SOTA | C41: 9 | D41: 159721 | E41: 159635 | F41: 0.05% | G41: 0 | L41: CAP_n60_p30_s30_3_4.txt | M41: 80647.5
A42: AKV_60_05_2.txt | B42: SOTA | C42: 10 | D42: 159635 | E42: 159635 | F42: 0.00% | G42: 1 | L42: CAP_n60_p30_s30_3_5.txt | M42: 64603.5
A43: AKV_60_05_2.txt | B43: SOTA | C43: 11 | D43: 159674 | E43: 159635 | F43: 0.02% | G43: 0 | L43: CAP_n60_p30_s40_1_2.txt | M43: 135125.5
A44: AKV_60_05_2.txt | B44: SOTA | C44: 12 | D44: 159685 | E44: 159635 | F44: 0.03% | G44: 0 | L44: CAP_n60_p30_s40_1_3.txt | M44: 90070.5
A45: AKV_60_05_2.txt | B45: SOTA | C45: 13 | D45: 159699 | E45: 159635 | F45: 0.04% | G45: 0 | L45: CAP_n60_p30_s40_1_4.txt | M45: 67421.5
A46: AKV_60_05_2.txt | B46: SOTA | C46: 14 | D46: 159701 | E46: 159635 | F46: 0.04% | G46: 0 | L46: CAP_n60_p30_s40_1_5.txt | M46: 54017.5
A47: AKV_60_05_2.txt | B47: SOTA | C47: 15 | D47: 159693 | E47: 159635 | F47: 0.04% | G47: 0 | L47: CAP_n60_p30_s40_2_2.txt | M47: 159114
A48: AKV_60_05_2.txt | B48: SOTA | C48: 16 | D48: 159657 | E48: 159635 | F48: 0.01% | G48: 0 | L48: CAP_n60_p30_s40_2_3.txt | M48: 106070
A49: AKV_60_05_2.txt | B49: SOTA | C49: 17 | D49: 159705 | E49: 159635 | F49: 0.04% | G49: 0 | L49: CAP_n60_p30_s40_2_4.txt | M49: 79566
A50: AKV_60_05_2.txt | B50: SOTA | C50: 18 | D50: 159710 | E50: 159635 | F50: 0.05% | G50: 0 | L50: CAP_n60_p30_s40_2_5.txt | M50: 63750
A51: AKV_60_05_2.txt | B51: SOTA | C51: 19 | D51: 159676 | E51: 159635 | F51: 0.03% | G51: 0 | L51: CAP_n60_p30_s40_3_2.txt | M51: 158953.5
A52: AKV_60_05_2.txt | B52: SOTA | C52: 20 | D52: 159667 | E52: 159635 | F52: 0.02% | G52: 0 | L52: CAP_n60_p30_s40_3_3.txt | M52: 105976.5
A53: AKV_60_05_2.txt | B53: SOTA | C53: 21 | D53: 159698 | E53: 159635 | F53: 0.04% | G53: 0 | L53: CAP_n60_p30_s40_3_4.txt | M53: 79500.5
A54: AKV_60_05_2.txt | B54: SOTA | C54: 22 | D54: 159691 | E54: 159635 | F54: 0.04% | G54: 0 | L54: CAP_n60_p30_s40_3_5.txt | M54: 63828.5
A55: AKV_60_05_2.txt | B55: SOTA | C55: 23 | D55: 159679 | E55: 159635 | F55: 0.03% | G55: 0 | L55: CAP_n60_p30_s50_1_2.txt | M55: 110478.5
A56: AKV_60_05_2.txt | B56: SOTA | C56: 24 | D56: 159704 | E56: 159635 | F56: 0.04% | G56: 0 | L56: CAP_n60_p30_s50_1_3.txt | M56: 73593.5
A57: AKV_60_05_2.txt | B57: SOTA | C57: 25 | D57: 159663 | E57: 159635 | F57: 0.02% | G57: 0 | L57: CAP_n60_p30_s50_1_4.txt | M57: 55347.5
A58: AKV_60_05_2.txt | B58: SOTA | C58: 26 | D58: 159654 | E58: 159635 | F58: 0.01% | G58: 0 | L58: CAP_n60_p30_s50_1_5.txt | M58: 44460.5
A59: AKV_60_05_2.txt | B59: SOTA | C59: 27 | D59: 159711 | E59: 159635 | F59: 0.05% | G59: 0 | L59: CAP_n60_p30_s50_2_2.txt | M59: 115299
A60: AKV_60_05_2.txt | B60: SOTA | C60: 28 | D60: 159662 | E60: 159635 | F60: 0.02% | G60: 0 | L60: CAP_n60_p30_s50_2_3.txt | M60: 76977
A61: AKV_60_05_2.txt | B61: SOTA | C61: 29 | D61: 159705 | E61: 159635 | F61: 0.04% | G61: 0 | L61: CAP_n60_p30_s50_2_4.txt | M61: 58062
A62: AKV_60_05_3.txt | B62: auto | C62: 0 | D62: 106643 | E62: 106589 | F62: 0.05% | G62: 0 | L62: CAP_n60_p30_s50_2_5.txt | M62: 46737
A63: AKV_60_05_3.txt | B63: auto | C63: 1 | D63: 106687 | E63: 106589 | F63: 0.09% | G63: 0 | L63: CAP_n60_p30_s50_3_2.txt | M63: 114135
A64: AKV_60_05_3.txt | B64: auto | C64: 2 | D64: 106621 | E64: 106589 | F64: 0.03% | G64: 0 | L64: CAP_n60_p30_s50_3_3.txt | M64: 76057
A65: AKV_60_05_3.txt | B65: auto | C65: 3 | D65: 106627 | E65: 106589 | F65: 0.04% | G65: 0 | L65: CAP_n60_p30_s50_3_4.txt | M65: 57162
A66: AKV_60_05_3.txt | B66: auto | C66: 4 | D66: 106639 | E66: 106589 | F66: 0.05% | G66: 0 | L66: CAP_n60_p30_s50_3_5.txt | M66: 45747
A67: AKV_60_05_3.txt | B67: auto | C67: 5 | D67: 106625 | E67: =VLOOKUP(A67,L:M,2,FALSE) -> 106589 | F67: =(D67-E67)/E67 -> 0.03% | G67: =IF(D67<=E67,1,0) -> 0 | L67: CAP_n60_p30_s60_1_2.txt | M67: 108113
A68: AKV_60_05_3.txt | B68: auto | C68: 6 | D68: 106612 | E68: 106589 | F68: 0.02% | G68: 0 | L68: CAP_n60_p30_s60_1_3.txt | M68: =_xlfn.MINIFS(D:D,A:A,L68) -> 72077
A69: AKV_60_05_3.txt | B69: auto | C69: 7 | D69: 106633 | E69: 106589 | F69: 0.04% | G69: 0 | L69: CAP_n60_p30_s60_1_4.txt | M69: 53940
A70: AKV_60_05_3.txt | B70: auto | C70: 8 | D70: 106654 | E70: 106589 | F70: 0.06% | G70: 0 | L70: CAP_n60_p30_s60_1_5.txt | M70: 43150
A71: AKV_60_05_3.txt | B71: auto | C71: 9 | D71: 106603 | E71: 106589 | F71: 0.01% | G71: 0 | L71: CAP_n60_p30_s60_2_2.txt | M71: 109908.5
A72: AKV_60_05_3.txt | B72: auto | C72: 10 | D72: 106611 | E72: 106589 | F72: 0.02% | G72: 0 | L72: CAP_n60_p30_s60_2_3.txt | M72: 73218.5
A73: AKV_60_05_3.txt | B73: auto | C73: 11 | D73: 106627 | E73: 106589 | F73: 0.04% | G73: 0 | L73: CAP_n60_p30_s60_2_4.txt | M73: 54884.5
A74: AKV_60_05_3.txt | B74: auto | C74: 12 | D74: 106626 | E74: 106589 | F74: 0.03% | G74: 0 | L74: CAP_n60_p30_s60_2_5.txt | M74: 43882.5
A75: AKV_60_05_3.txt | B75: auto | C75: 13 | D75: 106620 | E75: 106589 | F75: 0.03% | G75: 0 | L75: CAP_n60_p30_s60_3_2.txt | M75: 91619
A76: AKV_60_05_3.txt | B76: auto | C76: 14 | D76: 106615 | E76: 106589 | F76: 0.02% | G76: 0 | L76: CAP_n60_p30_s60_3_3.txt | M76: 61134
A77: AKV_60_05_3.txt | B77: auto | C77: 15 | D77: 106617 | E77: 106589 | F77: 0.03% | G77: 0 | L77: CAP_n60_p30_s60_3_4.txt | M77: 45759
A78: AKV_60_05_3.txt | B78: auto | C78: 16 | D78: 106636 | E78: 106589 | F78: 0.04% | G78: 0 | L78: CAP_n60_p30_s60_3_5.txt | M78: 36546
A79: AKV_60_05_3.txt | B79: auto | C79: 17 | D79: 106659 | E79: 106589 | F79: 0.07% | G79: 0 | L79: CAP_n60_p60_s30_1_2.txt | M79: 445377.5
A80: AKV_60_05_3.txt | B80: auto | C80: 18 | D80: 106619 | E80: 106589 | F80: 0.03% | G80: 0 | L80: CAP_n60_p60_s30_1_3.txt | M80: 297028.5
A81: AKV_60_05_3.txt | B81: auto | C81: 19 | D81: 106643 | E81: 106589 | F81: 0.05% | G81: 0 | L81: CAP_n60_p60_s30_1_4.txt | M81: 222834.5
A82: AKV_60_05_3.txt | B82: auto | C82: 20 | D82: 106602 | E82: 106589 | F82: 0.01% | G82: 0 | L82: CAP_n60_p60_s30_1_5.txt | M82: 178367.5
A83: AKV_60_05_3.txt | B83: auto | C83: 21 | D83: 106663 | E83: 106589 | F83: 0.07% | G83: 0 | L83: CAP_n60_p60_s30_2_2.txt | M83: 407886.5
A84: AKV_60_05_3.txt | B84: auto | C84: 22 | D84: 106629 | E84: 106589 | F84: 0.04% | G84: 0 | L84: CAP_n60_p60_s30_2_3.txt | M84: 271914.5
A85: AKV_60_05_3.txt | B85: auto | C85: 23 | D85: 106633 | E85: 106589 | F85: 0.04% | G85: 0 | L85: CAP_n60_p60_s30_2_4.txt | M85: 203952.5
A86: AKV_60_05_3.txt | B86: auto | C86: 24 | D86: 106629 | E86: 106589 | F86: 0.04% | G86: 0 | L86: CAP_n60_p60_s30_2_5.txt | M86: 163126.5
A87: AKV_60_05_3.txt | B87: auto | C87: 25 | D87: 106629 | E87: 106589 | F87: 0.04% | G87: 0 | L87: CAP_n60_p60_s30_3_2.txt | M87: 416912.5
A88: AKV_60_05_3.txt | B88: auto | C88: 26 | D88: 106611 | E88: 106589 | F88: 0.02% | G88: 0 | L88: CAP_n60_p60_s30_3_3.txt | M88: 277988.5
A89: AKV_60_05_3.txt | B89: auto | C89: 27 | D89: 106631 | E89: 106589 | F89: 0.04% | G89: 0 | L89: CAP_n60_p60_s30_3_4.txt | M89: 208394.5
A90: AKV_60_05_3.txt | B90: auto | C90: 28 | D90: 106658 | E90: 106589 | F90: 0.06% | G90: 0 | L90: CAP_n60_p60_s30_3_5.txt | M90: 166648.5
A91: AKV_60_05_3.txt | B91: auto | C91: 29 | D91: 106624 | E91: 106589 | F91: 0.03% | G91: 0 | L91: CAP_n60_p60_s40_1_2.txt | M91: 313304
A92: AKV_60_05_3.txt | B92: SOTA | C92: 0 | D92: 106596 | E92: 106589 | F92: 0.01% | G92: 0 | L92: CAP_n60_p60_s40_1_3.txt | M92: 209280
A93: AKV_60_05_3.txt | B93: SOTA | C93: 1 | D93: 106589 | E93: 106589 | F93: 0.00% | G93: 1 | L93: CAP_n60_p60_s40_1_4.txt | M93: 157162
A94: AKV_60_05_3.txt | B94: SOTA | C94: 2 | D94: 106671 | E94: 106589 | F94: 0.08% | G94: 0 | L94: CAP_n60_p60_s40_1_5.txt | M94: 125849
A95: AKV_60_05_3.txt | B95: SOTA | C95: 3 | D95: 106635 | E95: 106589 | F95: 0.04% | G95: 0 | L95: CAP_n60_p60_s40_2_2.txt | M95: 320758.5
A96: AKV_60_05_3.txt | B96: SOTA | C96: 4 | D96: 106679 | E96: 106589 | F96: 0.08% | G96: 0 | L96: CAP_n60_p60_s40_2_3.txt | M96: 213797.5
A97: AKV_60_05_3.txt | B97: SOTA | C97: 5 | D97: 106669 | E97: 106589 | F97: 0.08% | G97: 0 | L97: CAP_n60_p60_s40_2_4.txt | M97: 160711.5
A98: AKV_60_05_3.txt | B98: SOTA | C98: 6 | D98: 106616 | E98: 106589 | F98: 0.03% | G98: 0 | L98: CAP_n60_p60_s40_2_5.txt | M98: 129140.5
A99: AKV_60_05_3.txt | B99: SOTA | C99: 7 | D99: 106835 | E99: 106589 | F99: 0.23% | G99: 0 | L99: CAP_n60_p60_s40_3_2.txt | M99: 363020.5
A100: AKV_60_05_3.txt | B100: SOTA | C100: 8 | D100: 106850 | E100: 106589 | F100: 0.24% | G100: 0 | L100: CAP_n60_p60_s40_3_3.txt | M100: 242411.5
A101: AKV_60_05_3.txt | B101: SOTA | C101: 9 | D101: 106631 | E101: 106589 | F101: 0.04% | G101: 0 | L101: CAP_n60_p60_s40_3_4.txt | M101: 182009.5
A102: AKV_60_05_3.txt | B102: SOTA | C102: 10 | D102: 106653 | E102: 106589 | F102: 0.06% | G102: 0 | L102: CAP_n60_p60_s40_3_5.txt | M102: 145672.5
A103: AKV_60_05_3.txt | B103: SOTA | C103: 11 | D103: 106603 | E103: 106589 | F103: 0.01% | G103: 0 | L103: CAP_n60_p60_s50_1_2.txt | M103: 273420
A104: AKV_60_05_3.txt | B104: SOTA | C104: 12 | D104: 106612 | E104: 106589 | F104: 0.02% | G104: 0 | L104: CAP_n60_p60_s50_1_3.txt | M104: 182448
A105: AKV_60_05_3.txt | B105: SOTA | C105: 13 | D105: 106878 | E105: 106589 | F105: 0.27% | G105: 0 | L105: CAP_n60_p60_s50_1_4.txt | M105: 137135
A106: AKV_60_05_3.txt | B106: SOTA | C106: 14 | D106: 106603 | E106: 106589 | F106: 0.01% | G106: 0 | L106: CAP_n60_p60_s50_1_5.txt | M106: 110313
A107: AKV_60_05_3.txt | B107: SOTA | C107: 15 | D107: 106608 | E107: 106589 | F107: 0.02% | G107: 0 | L107: CAP_n60_p60_s50_2_2.txt | M107: 269680.5
A108: AKV_60_05_3.txt | B108: SOTA | C108: 16 | D108: 106616 | E108: 106589 | F108: 0.03% | G108: 0 | L108: CAP_n60_p60_s50_2_3.txt | M108: 180047.5
A109: AKV_60_05_3.txt | B109: SOTA | C109: 17 | D109: 106872 | E109: 106589 | F109: 0.27% | G109: 0 | L109: CAP_n60_p60_s50_2_4.txt | M109: 135417.5
A110: AKV_60_05_3.txt | B110: SOTA | C110: 18 | D110: 106644 | E110: 106589 | F110: 0.05% | G110: 0 | L110: CAP_n60_p60_s50_2_5.txt | M110: 108708.5
A111: AKV_60_05_3.txt | B111: SOTA | C111: 19 | D111: 106656 | E111: 106589 | F111: 0.06% | G111: 0 | L111: CAP_n60_p60_s50_3_2.txt | M111: 295408
A112: AKV_60_05_3.txt | B112: SOTA | C112: 20 | D112: 106815 | E112: 106589 | F112: 0.21% | G112: 0 | L112: CAP_n60_p60_s50_3_3.txt | M112: 197005
A113: AKV_60_05_3.txt | B113: SOTA | C113: 21 | D113: 106624 | E113: 106589 | F113: 0.03% | G113: 0 | L113: CAP_n60_p60_s50_3_4.txt | M113: 147855
A114: AKV_60_05_3.txt | B114: SOTA | C114: 22 | D114: 106672 | E114: 106589 | F114: 0.08% | G114: 0 | L114: CAP_n60_p60_s50_3_5.txt | M114: 118519
A115: AKV_60_05_3.txt | B115: SOTA | C115: 23 | D115: 106892 | E115: 106589 | F115: 0.28% | G115: 0 | L115: CAP_n60_p60_s60_1_2.txt | M115: 227896
A116: AKV_60_05_3.txt | B116: SOTA | C116: 24 | D116: 106650 | E116: 106589 | F116: 0.06% | G116: 0 | L116: CAP_n60_p60_s60_1_3.txt | M116: 151791
A117: AKV_60_05_3.txt | B117: SOTA | C117: 25 | D117: 106640 | E117: 106589 | F117: 0.05% | G117: 0 | L117: CAP_n60_p60_s60_1_4.txt | M117: 113823
A118: AKV_60_05_3.txt | B118: SOTA | C118: 26 | D118: 106655 | E118: 106589 | F118: 0.06% | G118: 0 | L118: CAP_n60_p60_s60_1_5.txt | M118: 91053
A119: AKV_60_05_3.txt | B119: SOTA | C119: 27 | D119: 106666 | E119: 106589 | F119: 0.07% | G119: 0 | L119: CAP_n60_p60_s60_2_2.txt | M119: 246523
A120: AKV_60_05_3.txt | B120: SOTA | C120: 28 | D120: 106646 | E120: 106589 | F120: 0.05% | G120: 0 | L120: CAP_n60_p60_s60_2_3.txt | M120: 164228
A121: AKV_60_05_3.txt | B121: SOTA | C121: 29 | D121: 106811 | E121: 106589 | F121: 0.21% | G121: 0 | L121: CAP_n60_p60_s60_2_4.txt | M121: 123182
A122: AKV_60_05_4.txt | B122: auto | C122: 0 | D122: 80195 | E122: 80167 | F122: 0.03% | G122: 0 | L122: CAP_n60_p60_s60_2_5.txt | M122: 98397
A123: AKV_60_05_4.txt | B123: auto | C123: 1 | D123: 80195 | E123: 80167 | F123: 0.03% | G123: 0 | L123: CAP_n60_p60_s60_3_2.txt | M123: 206482.5
A124: AKV_60_05_4.txt | B124: auto | C124: 2 | D124: 80184 | E124: 80167 | F124: 0.02% | G124: 0 | L124: CAP_n60_p60_s60_3_3.txt | M124: 137661.5
A125: AKV_60_05_4.txt | B125: auto | C125: 3 | D125: 80187 | E125: 80167 | F125: 0.02% | G125: 0 | L125: CAP_n60_p60_s60_3_4.txt | M125: 103278.5
A126: AKV_60_05_4.txt | B126: auto | C126: 4 | D126: 80209 | E126: 80167 | F126: 0.05% | G126: 0 | L126: CAP_n60_p60_s60_3_5.txt | M126: 82651.5
A127: AKV_60_05_4.txt | B127: auto | C127: 5 | D127: 80193 | E127: 80167 | F127: 0.03% | G127: 0 | L127: CAP_n60_p90_s30_1_2.txt | M127: 628850
A128: AKV_60_05_4.txt | B128: auto | C128: 6 | D128: 80193 | E128: 80167 | F128: 0.03% | G128: 0 | L128: CAP_n60_p90_s30_1_3.txt | M128: 419046
A129: AKV_60_05_4.txt | B129: auto | C129: 7 | D129: 80197 | E129: 80167 | F129: 0.04% | G129: 0 | L129: CAP_n60_p90_s30_1_4.txt | M129: 314451
A130: AKV_60_05_4.txt | B130: auto | C130: 8 | D130: 80214 | E130: 80167 | F130: 0.06% | G130: 0 | L130: CAP_n60_p90_s30_1_5.txt | M130: 251598
A131: AKV_60_05_4.txt | B131: auto | C131: 9 | D131: 80188 | E131: =VLOOKUP(A131,L:M,2,FALSE) -> 80167 | F131: =(D131-E131)/E131 -> 0.03% | G131: =IF(D131<=E131,1,0) -> 0 | L131: CAP_n60_p90_s30_2_2.txt | M131: 561170.5
A132: AKV_60_05_4.txt | B132: auto | C132: 10 | D132: 80197 | E132: 80167 | F132: 0.04% | G132: 0 | L132: CAP_n60_p90_s30_2_3.txt | M132: =_xlfn.MINIFS(D:D,A:A,L132) -> 374113.5
A133: AKV_60_05_4.txt | B133: auto | C133: 11 | D133: 80196 | E133: 80167 | F133: 0.04% | G133: 0 | L133: CAP_n60_p90_s30_2_4.txt | M133: 281065.5
A134: AKV_60_05_4.txt | B134: auto | C134: 12 | D134: 80196 | E134: 80167 | F134: 0.04% | G134: 0 | L134: CAP_n60_p90_s30_2_5.txt | M134: 225092.5
A135: AKV_60_05_4.txt | B135: auto | C135: 13 | D135: 80174 | E135: 80167 | F135: 0.01% | G135: 0 | L135: CAP_n60_p90_s30_3_2.txt | M135: 587816.5
A136: AKV_60_05_4.txt | B136: auto | C136: 14 | D136: 80186 | E136: 80167 | F136: 0.02% | G136: 0 | L136: CAP_n60_p90_s30_3_3.txt | M136: 392101.5
A137: AKV_60_05_4.txt | B137: auto | C137: 15 | D137: 80213 | E137: 80167 | F137: 0.06% | G137: 0 | L137: CAP_n60_p90_s30_3_4.txt | M137: 294245.5
A138: AKV_60_05_4.txt | B138: auto | C138: 16 | D138: 80193 | E138: 80167 | F138: 0.03% | G138: 0 | L138: CAP_n60_p90_s30_3_5.txt | M138: 235765.5
A139: AKV_60_05_4.txt | B139: auto | C139: 17 | D139: 80230 | E139: 80167 | F139: 0.08% | G139: 0 | L139: CAP_n60_p90_s40_1_2.txt | M139: 474046
A140: AKV_60_05_4.txt | B140: auto | C140: 18 | D140: 80179 | E140: 80167 | F140: 0.01% | G140: 0 | L140: CAP_n60_p90_s40_1_3.txt | M140: 316473
A141: AKV_60_05_4.txt | B141: auto | C141: 19 | D141: 80187 | E141: 80167 | F141: 0.02% | G141: 0 | L141: CAP_n60_p90_s40_1_4.txt | M141: 237072
A142: AKV_60_05_4.txt | B142: auto | C142: 20 | D142: 80196 | E142: 80167 | F142: 0.04% | G142: 0 | L142: CAP_n60_p90_s40_1_5.txt | M142: 190176
A143: AKV_60_05_4.txt | B143: auto | C143: 21 | D143: 80201 | E143: 80167 | F143: 0.04% | G143: 0 | L143: CAP_n60_p90_s40_2_2.txt | M143: 479963
A144: AKV_60_05_4.txt | B144: auto | C144: 22 | D144: 80173 | E144: 80167 | F144: 0.01% | G144: 0 | L144: CAP_n60_p90_s40_2_3.txt | M144: 319977
A145: AKV_60_05_4.txt | B145: auto | C145: 23 | D145: 80205 | E145: 80167 | F145: 0.05% | G145: 0 | L145: CAP_n60_p90_s40_2_4.txt | M145: 240429
A146: AKV_60_05_4.txt | B146: auto | C146: 24 | D146: 80199 | E146: 80167 | F146: 0.04% | G146: 0 | L146: CAP_n60_p90_s40_2_5.txt | M146: 192612
A147: AKV_60_05_4.txt | B147: auto | C147: 25 | D147: 80200 | E147: 80167 | F147: 0.04% | G147: 0 | L147: CAP_n60_p90_s40_3_2.txt | M147: 512452
A148: AKV_60_05_4.txt | B148: auto | C148: 26 | D148: 80186 | E148: 80167 | F148: 0.02% | G148: 0 | L148: CAP_n60_p90_s40_3_3.txt | M148: 341951
A149: AKV_60_05_4.txt | B149: auto | C149: 27 | D149: 80171 | E149: 80167 | F149: 0.00% | G149: 0 | L149: CAP_n60_p90_s40_3_4.txt | M149: 256637
A150: AKV_60_05_4.txt | B150: auto | C150: 28 | D150: 80208 | E150: 80167 | F150: 0.05% | G150: 0 | L150: CAP_n60_p90_s40_3_5.txt | M150: 206020
A151: AKV_60_05_4.txt | B151: auto | C151: 29 | D151: 80207 | E151: 80167 | F151: 0.05% | G151: 0 | L151: CAP_n60_p90_s50_1_2.txt | M151: 479683
A152: AKV_60_05_4.txt | B152: SOTA | C152: 0 | D152: 80221 | E152: 80167 | F152: 0.07% | G152: 0 | L152: CAP_n60_p90_s50_1_3.txt | M152: 320160
A153: AKV_60_05_4.txt | B153: SOTA | C153: 1 | D153: 80210 | E153: 80167 | F153: 0.05% | G153: 0 | L153: CAP_n60_p90_s50_1_4.txt | M153: 240309
A154: AKV_60_05_4.txt | B154: SOTA | C154: 2 | D154: 80184 | E154: 80167 | F154: 0.02% | G154: 0 | L154: CAP_n60_p90_s50_1_5.txt | M154: 192970
A155: AKV_60_05_4.txt | B155: SOTA | C155: 3 | D155: 80173 | E155: 80167 | F155: 0.01% | G155: 0 | L155: CAP_n60_p90_s50_2_2.txt | M155: 445030
A156: AKV_60_05_4.txt | B156: SOTA | C156: 4 | D156: 80177 | E156: 80167 | F156: 0.01% | G156: 0 | L156: CAP_n60_p90_s50_2_3.txt | M156: 297176
A157: AKV_60_05_4.txt | B157: SOTA | C157: 5 | D157: 80334 | E157: 80167 | F157: 0.21% | G157: 0 | L157: CAP_n60_p90_s50_2_4.txt | M157: 223672
A158: AKV_60_05_4.txt | B158: SOTA | C158: 6 | D158: 80225 | E158: 80167 | F158: 0.07% | G158: 0 | L158: CAP_n60_p90_s50_2_5.txt | M158: 179930
A159: AKV_60_05_4.txt | B159: SOTA | C159: 7 | D159: 80168 | E159: 80167 | F159: 0.00% | G159: 0 | L159: CAP_n60_p90_s50_3_2.txt | M159: 495052.5
A160: AKV_60_05_4.txt | B160: SOTA | C160: 8 | D160: 80267 | E160: 80167 | F160: 0.12% | G160: 0 | L160: CAP_n60_p90_s50_3_3.txt | M160: 330279.5
A161: AKV_60_05_4.txt | B161: SOTA | C161: 9 | D161: 80180 | E161: 80167 | F161: 0.02% | G161: 0 | L161: CAP_n60_p90_s50_3_4.txt | M161: 248428.5
A162: AKV_60_05_4.txt | B162: SOTA | C162: 10 | D162: 80346 | E162: 80167 | F162: 0.22% | G162: 0 | L162: CAP_n60_p90_s50_3_5.txt | M162: 199820.5
A163: AKV_60_05_4.txt | B163: SOTA | C163: 11 | D163: 80177 | E163: 80167 | F163: 0.01% | G163: 0 | L163: CAP_n60_p90_s60_1_2.txt | M163: 385430.5
A164: AKV_60_05_4.txt | B164: SOTA | C164: 12 | D164: 80187 | E164: 80167 | F164: 0.02% | G164: 0 | L164: CAP_n60_p90_s60_1_3.txt | M164: 256986.5
A165: AKV_60_05_4.txt | B165: SOTA | C165: 13 | D165: 80167 | E165: 80167 | F165: 0.00% | G165: 1 | L165: CAP_n60_p90_s60_1_4.txt | M165: 192646.5
A166: AKV_60_05_4.txt | B166: SOTA | C166: 14 | D166: 80181 | E166: 80167 | F166: 0.02% | G166: 0 | L166: CAP_n60_p90_s60_1_5.txt | M166: 154033.5
A167: AKV_60_05_4.txt | B167: SOTA | C167: 15 | D167: 80197 | E167: 80167 | F167: 0.04% | G167: 0 | L167: CAP_n60_p90_s60_2_2.txt | M167: 344775
A168: AKV_60_05_4.txt | B168: SOTA | C168: 16 | D168: 80224 | E168: 80167 | F168: 0.07% | G168: 0 | L168: CAP_n60_p90_s60_2_3.txt | M168: 229964
A169: AKV_60_05_4.txt | B169: SOTA | C169: 17 | D169: 80194 | E169: 80167 | F169: 0.03% | G169: 0 | L169: CAP_n60_p90_s60_2_4.txt | M169: 172473
A170: AKV_60_05_4.txt | B170: SOTA | C170: 18 | D170: 80295 | E170: 80167 | F170: 0.16% | G170: 0 | L170: CAP_n60_p90_s60_2_5.txt | M170: 137793
A171: AKV_60_05_4.txt | B171: SOTA | C171: 19 | D171: 80260 | E171: 80167 | F171: 0.12% | G171: 0 | L171: CAP_n60_p90_s60_3_2.txt | M171: 411205
A172: AKV_60_05_4.txt | B172: SOTA | C172: 20 | D172: 80357 | E172: 80167 | F172: 0.24% | G172: 0 | L172: CAP_n60_p90_s60_3_3.txt | M172: 273884
A173: AKV_60_05_4.txt | B173: SOTA | C173: 21 | D173: 80186 | E173: 80167 | F173: 0.02% | G173: 0 | L173: CAP_n60_p90_s60_3_4.txt | M173: 205255
A174: AKV_60_05_4.txt | B174: SOTA | C174: 22 | D174: 80291 | E174: 80167 | F174: 0.15% | G174: 0 | L174: CAP_n60_p90_s60_3_5.txt | M174: 164013
A175: AKV_60_05_4.txt | B175: SOTA | C175: 23 | D175: 80206 | E175: 80167 | F175: 0.05% | G175: 0 | L175: N25_01_2.txt | M175: 2302
A176: AKV_60_05_4.txt | B176: SOTA | C176: 24 | D176: 80311 | E176: 80167 | F176: 0.18% | G176: 0 | L176: N25_01_3.txt | M176: 1531
A177: AKV_60_05_4.txt | B177: SOTA | C177: 25 | D177: 80191 | E177: 80167 | F177: 0.03% | G177: 0 | L177: N25_01_4.txt | M177: 1137
A178: AKV_60_05_4.txt | B178: SOTA | C178: 26 | D178: 80208 | E178: 80167 | F178: 0.05% | G178: 0 | L178: N25_01_5.txt | M178: 898
A179: AKV_60_05_4.txt | B179: SOTA | C179: 27 | D179: 80338 | E179: 80167 | F179: 0.21% | G179: 0 | L179: N25_02_2.txt | M179: 18595.5
A180: AKV_60_05_4.txt | B180: SOTA | C180: 28 | D180: 80212 | E180: 80167 | F180: 0.06% | G180: 0 | L180: N25_02_3.txt | M180: 12383.5
A181: AKV_60_05_4.txt | B181: SOTA | C181: 29 | D181: 80185 | E181: 80167 | F181: 0.02% | G181: 0 | L181: N25_02_4.txt | M181: 9249.5
A182: AKV_60_05_5.txt | B182: auto | C182: 0 | D182: 64336 | E182: 64323 | F182: 0.02% | G182: 0 | L182: N25_02_5.txt | M182: 7513.5
A183: AKV_60_05_5.txt | B183: auto | C183: 1 | D183: 64424 | E183: 64323 | F183: 0.16% | G183: 0 | L183: N25_03_2.txt | M183: 12114
A184: AKV_60_05_5.txt | B184: auto | C184: 2 | D184: 64353 | E184: 64323 | F184: 0.05% | G184: 0 | L184: N25_03_3.txt | M184: 8102
A185: AKV_60_05_5.txt | B185: auto | C185: 3 | D185: 64349 | E185: 64323 | F185: 0.04% | G185: 0 | L185: N25_03_4.txt | M185: 5984
A186: AKV_60_05_5.txt | B186: auto | C186: 4 | D186: 64388 | E186: 64323 | F186: 0.10% | G186: 0 | L186: N25_03_5.txt | M186: 4826
A187: AKV_60_05_5.txt | B187: auto | C187: 5 | D187: 64375 | E187: 64323 | F187: 0.08% | G187: 0 | L187: N25_04_2.txt | M187: 24192.5
A188: AKV_60_05_5.txt | B188: auto | C188: 6 | D188: 64368 | E188: 64323 | F188: 0.07% | G188: 0 | L188: N25_04_3.txt | M188: 16115.5
A189: AKV_60_05_5.txt | B189: auto | C189: 7 | D189: 64345 | E189: 64323 | F189: 0.03% | G189: 0 | L189: N25_04_4.txt | M189: 12028.5
A190: AKV_60_05_5.txt | B190: auto | C190: 8 | D190: 64350 | E190: 64323 | F190: 0.04% | G190: 0 | L190: N25_04_5.txt | M190: 9787.5
A191: AKV_60_05_5.txt | B191: auto | C191: 9 | D191: 64347 | E191: 64323 | F191: 0.04% | G191: 0 | L191: N25_05_2.txt | M191: 7819
A192: AKV_60_05_5.txt | B192: auto | C192: 10 | D192: 64366 | E192: 64323 | F192: 0.07% | G192: 0 | L192: N25_05_3.txt | M192: 5210
A193: AKV_60_05_5.txt | B193: auto | C193: 11 | D193: 64407 | E193: 64323 | F193: 0.13% | G193: 0 | L193: N25_05_4.txt | M193: 3908
A194: AKV_60_05_5.txt | B194: auto | C194: 12 | D194: 64355 | E194: 64323 | F194: 0.05% | G194: 0 | L194: N25_05_5.txt | M194: 3148
A195: AKV_60_05_5.txt | B195: auto | C195: 13 | D195: 64351 | E195: =VLOOKUP(A195,L:M,2,FALSE) -> 64323 | F195: =(D195-E195)/E195 -> 0.04% | G195: =IF(D195<=E195,1,0) -> 0 | L195: N30_01_2.txt | M195: 4115
A196: AKV_60_05_5.txt | B196: auto | C196: 14 | D196: 64372 | E196: 64323 | F196: 0.08% | G196: 0 | L196: N30_01_3.txt | M196: =_xlfn.MINIFS(D:D,A:A,L196) -> 2721
A197: AKV_60_05_5.txt | B197: auto | C197: 15 | D197: 64323 | E197: 64323 | F197: 0.00% | G197: 1 | L197: N30_01_4.txt | M197: 2043
A198: AKV_60_05_5.txt | B198: auto | C198: 16 | D198: 64491 | E198: 64323 | F198: 0.26% | G198: 0 | L198: N30_01_5.txt | M198: 1616
A199: AKV_60_05_5.txt | B199: auto | C199: 17 | D199: 64372 | E199: 64323 | F199: 0.08% | G199: 0 | L199: N30_02_2.txt | M199: 10779.5
A200: AKV_60_05_5.txt | B200: auto | C200: 18 | D200: 64375 | E200: 64323 | F200: 0.08% | G200: 0 | L200: N30_02_3.txt | M200: 7162.5
... 4300 more rows

Sheet PivotSFMRFLP
B1: Column Labels | L1: All instances removing Tuning instances
B2: auto | F2: SOTA | M2: sum #best | O2: sum hasBest | Q2: Avg %Gap | R2: Min %Gap | U2: Tuning instances
A3: Row Labels | B3: #best | C3: hasBest | D3: Avg %Gap | E3: Min %Gap | F3: #best | G3: hasBest | H3: Avg %Gap | I3: Min %Gap | L3: auto | M3: =SUM(B4:B359) -> 3049 | N3: =M3/$M$8 -> 33.65% | O3: =SUM(C4:C359) -> 239 | P3: =O3/$M$6 -> 79.14% | Q3: =AVERAGE(D4:D359) -> 0.06% | R3: =AVERAGE(E4:E359) -> 0.00% | U3: AKV_60_05_2.txt
A4: Am12a_2.txt | B4: 30 | C4: 1 | D4: 0.00% | E4: 0.00% | F4: 30 | G4: 1 | H4: 0.00% | I4: 0.00% | L4: sota | M4: =SUM(F4:F359) -> 2623 | N4: =M4/$M$8 -> 28.95% | O4: =SUM(G4:G359) -> 261 | P4: =O4/$M$6 -> 86.42% | Q4: =AVERAGE(H4:H359) -> 0.10% | R4: =AVERAGE(I4:I359) -> 0.00% | U4: AKV_60_05_3.txt
A5: Am12a_5.txt | B5: 30 | C5: 1 | D5: 0.00% | E5: 0.00% | F5: 30 | G5: 1 | H5: 0.00% | I5: 0.00% | U5: AKV_60_05_4.txt
A6: Am12b_2.txt | B6: 30 | C6: 1 | D6: 0.00% | E6: 0.00% | F6: 30 | G6: 1 | H6: 0.00% | I6: 0.00% | L6: NInstances | M6: 302 | U6: AKV_60_05_5.txt
A7: Am12b_5.txt | B7: 30 | C7: 1 | D7: 0.00% | E7: 0.00% | F7: 30 | G7: 1 | H7: 0.00% | I7: 0.00% | L7: Reps | M7: 30 | U7: AKV_70_05_2.txt
A8: Am13a_2.txt | B8: 30 | C8: 1 | D8: 0.00% | E8: 0.00% | F8: 30 | G8: 1 | H8: 0.00% | I8: 0.00% | L8: Iters Per Alg | M8: =M7*M6 -> 9060 | U8: AKV_70_05_3.txt
A9: Am13a_5.txt | B9: 30 | C9: 1 | D9: 0.00% | E9: 0.00% | F9: 30 | G9: 1 | H9: 0.00% | I9: 0.00% | U9: AKV_70_05_4.txt
A10: Am13b_2.txt | B10: 30 | C10: 1 | D10: 0.00% | E10: 0.00% | F10: 30 | G10: 1 | H10: 0.00% | I10: 0.00% | U10: AKV_70_05_5.txt
A11: Am13b_3.txt | B11: 30 | C11: 1 | D11: 0.00% | E11: 0.00% | F11: 30 | G11: 1 | H11: 0.00% | I11: 0.00% | L11: Takes into account all instances | U11: Am12a_3.txt
A12: Am13b_4.txt | B12: 30 | C12: 1 | D12: 0.00% | E12: 0.00% | F12: 30 | G12: 1 | H12: 0.00% | I12: 0.00% | M12: sum #best | O12: sum hasBest | Q12: Avg %Gap | R12: Min %Gap | U12: Am12a_4.txt
A13: Am13b_5.txt | B13: 30 | C13: 1 | D13: 0.00% | E13: 0.00% | F13: 30 | G13: 1 | H13: 0.00% | I13: 0.00% | L13: auto | M13: 3557 | N13: 33.31% | O13: 281 | P13: 78.93% | Q13: 0.07% | R13: 0.00% | U13: Am12b_3.txt
A14: Am15_2.txt | B14: 30 | C14: 1 | D14: 0.00% | E14: 0.00% | F14: 30 | G14: 1 | H14: 0.00% | I14: 0.00% | L14: sota | M14: 3134 | N14: 29.34% | O14: 303 | P14: 85.11% | Q14: 0.11% | R14: 0.00% | U14: Am12b_4.txt
A15: Am15_5.txt | B15: 30 | C15: 1 | D15: 0.00% | E15: 0.00% | F15: 30 | G15: 1 | H15: 0.00% | I15: 0.00% | U15: Am13a_3.txt
A16: CAP_n60_p30_s30_1_2.txt | B16: 1 | C16: 1 | D16: 0.01% | E16: 0.00% | F16: 0 | G16: 0 | H16: 0.02% | I16: 0.00% | L16: NInstances | M16: 356 | U16: Am13a_4.txt
A17: CAP_n60_p30_s30_1_3.txt | B17: 0 | C17: 0 | D17: 0.05% | E17: 0.01% | F17: 1 | G17: 1 | H17: 0.04% | I17: 0.00% | L17: Reps | M17: 30 | U17: Am15_3.txt
A18: CAP_n60_p30_s30_1_4.txt | B18: 0 | C18: 0 | D18: 0.10% | E18: 0.02% | F18: 1 | G18: 1 | H18: 0.11% | I18: 0.00% | L18: Iters Per Alg | M18: 10680 | U18: Am15_4.txt
A19: CAP_n60_p30_s30_1_5.txt | B19: 1 | C19: 1 | D19: 0.16% | E19: 0.00% | F19: 0 | G19: 0 | H19: 0.17% | I19: 0.03% | U19: CAP_n60_p60_s40_1_3.txt
A20: CAP_n60_p30_s30_2_2.txt | B20: 0 | C20: 0 | D20: 0.02% | E20: 0.01% | F20: 3 | G20: 1 | H20: 0.06% | I20: 0.00% | U20: CAP_n60_p60_s40_1_4.txt
A21: CAP_n60_p30_s30_2_3.txt | B21: 1 | C21: 1 | D21: 0.05% | E21: 0.00% | F21: 0 | G21: 0 | H21: 0.11% | I21: 0.00% | U21: CAP_n60_p60_s50_1_3.txt
A22: CAP_n60_p30_s30_2_4.txt | B22: 0 | C22: 0 | D22: 0.07% | E22: 0.02% | F22: 1 | G22: 1 | H22: 0.16% | I22: 0.00% | U22: CAP_n60_p60_s50_1_4.txt
A23: CAP_n60_p30_s30_2_5.txt | B23: 1 | C23: 1 | D23: 0.11% | E23: 0.00% | F23: 0 | G23: 0 | H23: 0.17% | I23: 0.04% | U23: N30_03_3.txt
A24: CAP_n60_p30_s30_3_2.txt | B24: 1 | C24: 1 | D24: 0.02% | E24: 0.00% | F24: 1 | G24: 1 | H24: 0.13% | I24: 0.00% | U24: N30_03_4.txt
A25: CAP_n60_p30_s30_3_3.txt | B25: 0 | C25: 0 | D25: 0.07% | E25: 0.01% | F25: 1 | G25: 1 | H25: 0.10% | I25: 0.00% | U25: N30_04_3.txt
A26: CAP_n60_p30_s30_3_4.txt | B26: 1 | C26: 1 | D26: 0.07% | E26: 0.00% | F26: 0 | G26: 0 | H26: 0.28% | I26: 0.02% | U26: N30_04_4.txt
A27: CAP_n60_p30_s30_3_5.txt | B27: 0 | C27: 0 | D27: 0.16% | E27: 0.06% | F27: 1 | G27: 1 | H27: 0.37% | I27: 0.00% | U27: N40_01_3.txt
A28: CAP_n60_p30_s40_1_2.txt | B28: 1 | C28: 1 | D28: 0.02% | E28: 0.00% | F28: 0 | G28: 0 | H28: 0.07% | I28: 0.00% | U28: N40_01_4.txt
A29: CAP_n60_p30_s40_1_3.txt | B29: 0 | C29: 0 | D29: 0.09% | E29: 0.03% | F29: 1 | G29: 1 | H29: 0.14% | I29: 0.00% | U29: N40_02_3.txt
A30: CAP_n60_p30_s40_1_4.txt | B30: 0 | C30: 0 | D30: 0.11% | E30: 0.01% | F30: 2 | G30: 1 | H30: 0.28% | I30: 0.00% | U30: N40_02_4.txt
A31: CAP_n60_p30_s40_1_5.txt | B31: 0 | C31: 0 | D31: 0.15% | E31: 0.05% | F31: 1 | G31: 1 | H31: 0.33% | I31: 0.00% | U31: N40_04_3.txt
A32: CAP_n60_p30_s40_2_2.txt | B32: 3 | C32: 1 | D32: 0.03% | E32: 0.00% | F32: 3 | G32: 1 | H32: 0.10% | I32: 0.00% | U32: N40_04_4.txt
A33: CAP_n60_p30_s40_2_3.txt | B33: 0 | C33: 0 | D33: 0.09% | E33: 0.03% | F33: 1 | G33: 1 | H33: 0.21% | I33: 0.00% | U33: N40_05_3.txt
A34: CAP_n60_p30_s40_2_4.txt | B34: 0 | C34: 0 | D34: 0.09% | E34: 0.02% | F34: 1 | G34: 1 | H34: 0.15% | I34: 0.00% | U34: N40_05_4.txt
A35: CAP_n60_p30_s40_2_5.txt | B35: 0 | C35: 0 | D35: 0.07% | E35: 0.02% | F35: 1 | G35: 1 | H35: 0.22% | I35: 0.00% | U35: S9_3.txt
A36: CAP_n60_p30_s40_3_2.txt | B36: 0 | C36: 0 | D36: 0.04% | E36: 0.00% | F36: 1 | G36: 1 | H36: 0.12% | I36: 0.00% | U36: S11_3.txt
A37: CAP_n60_p30_s40_3_3.txt | B37: 0 | C37: 0 | D37: 0.13% | E37: 0.01% | F37: 1 | G37: 1 | H37: 0.25% | I37: 0.00% | U37: S11_4.txt
A38: CAP_n60_p30_s40_3_4.txt | B38: 0 | C38: 0 | D38: 0.13% | E38: 0.01% | F38: 1 | G38: 1 | H38: 0.24% | I38: 0.00% | U38: sko56_02_3.txt
A39: CAP_n60_p30_s40_3_5.txt | B39: 1 | C39: 1 | D39: 0.12% | E39: 0.00% | F39: 0 | G39: 0 | H39: 0.27% | I39: 0.03% | U39: sko56_02_4.txt
A40: CAP_n60_p30_s50_1_2.txt | B40: 1 | C40: 1 | D40: 0.05% | E40: 0.00% | F40: 0 | G40: 0 | H40: 0.19% | I40: 0.01% | U40: sko56_04_3.txt
A41: CAP_n60_p30_s50_1_3.txt | B41: 2 | C41: 1 | D41: 0.16% | E41: 0.00% | F41: 0 | G41: 0 | H41: 0.42% | I41: 0.01% | U41: sko56_04_4.txt
A42: CAP_n60_p30_s50_1_4.txt | B42: 1 | C42: 1 | D42: 0.51% | E42: 0.00% | F42: 0 | G42: 0 | H42: 0.56% | I42: 0.05% | U42: sko56_05_3.txt
A43: CAP_n60_p30_s50_1_5.txt | B43: 0 | C43: 0 | D43: 0.42% | E43: 0.05% | F43: 1 | G43: 1 | H43: 0.59% | I43: 0.00% | U43: sko56_05_4.txt
A44: CAP_n60_p30_s50_2_2.txt | B44: 1 | C44: 1 | D44: 0.04% | E44: 0.00% | F44: 0 | G44: 0 | H44: 0.07% | I44: 0.01% | U44: sko64_05_3.txt
A45: CAP_n60_p30_s50_2_3.txt | B45: 0 | C45: 0 | D45: 0.08% | E45: 0.01% | F45: 1 | G45: 1 | H45: 0.11% | I45: 0.00% | U45: sko64_05_4.txt
A46: CAP_n60_p30_s50_2_4.txt | B46: 0 | C46: 0 | D46: 0.16% | E46: 0.02% | F46: 1 | G46: 1 | H46: 0.20% | I46: 0.00% | U46: ste36_03_2.txt
A47: CAP_n60_p30_s50_2_5.txt | B47: 1 | C47: 1 | D47: 0.09% | E47: 0.00% | F47: 0 | G47: 0 | H47: 0.10% | I47: 0.01% | U47: ste36_03_3.txt
A48: CAP_n60_p30_s50_3_2.txt | B48: 2 | C48: 1 | D48: 0.01% | E48: 0.00% | F48: 0 | G48: 0 | H48: 0.04% | I48: 0.00% | U48: ste36_03_4.txt
A49: CAP_n60_p30_s50_3_3.txt | B49: 1 | C49: 1 | D49: 0.10% | E49: 0.00% | F49: 0 | G49: 0 | H49: 0.14% | I49: 0.00% | U49: ste36_03_5.txt
A50: CAP_n60_p30_s50_3_4.txt | B50: 0 | C50: 0 | D50: 0.14% | E50: 0.01% | F50: 1 | G50: 1 | H50: 0.19% | I50: 0.00% | U50: ste36_04_2.txt
A51: CAP_n60_p30_s50_3_5.txt | B51: 1 | C51: 1 | D51: 0.12% | E51: 0.00% | F51: 0 | G51: 0 | H51: 0.17% | I51: 0.02% | U51: ste36_04_3.txt
A52: CAP_n60_p30_s60_1_2.txt | B52: 1 | C52: 1 | D52: 0.01% | E52: 0.00% | F52: 1 | G52: 1 | H52: 0.02% | I52: 0.00% | U52: ste36_04_4.txt
A53: CAP_n60_p30_s60_1_3.txt | B53: 0 | C53: 0 | D53: 0.04% | E53: 0.01% | F53: 1 | G53: 1 | H53: 0.06% | I53: 0.00% | U53: ste36_04_5.txt
A54: CAP_n60_p30_s60_1_4.txt | B54: 1 | C54: 1 | D54: 0.09% | E54: 0.00% | F54: 0 | G54: 0 | H54: 0.08% | I54: 0.01% | U54: ste36_05_3.txt
A55: CAP_n60_p30_s60_1_5.txt | B55: 0 | C55: 0 | D55: 0.13% | E55: 0.07% | F55: 1 | G55: 1 | H55: 0.13% | I55: 0.00% | U55: ste36_05_4.txt
A56: CAP_n60_p30_s60_2_2.txt | B56: 0 | C56: 0 | D56: 0.03% | E56: 0.00% | F56: 1 | G56: 1 | H56: 0.10% | I56: 0.00% | U56: ste36_05_5.txt
A57: CAP_n60_p30_s60_2_3.txt | B57: 0 | C57: 0 | D57: 0.10% | E57: 0.02% | F57: 2 | G57: 1 | H57: 0.20% | I57: 0.00%
A58: CAP_n60_p30_s60_2_4.txt | B58: 0 | C58: 0 | D58: 0.14% | E58: 0.01% | F58: 1 | G58: 1 | H58: 0.20% | I58: 0.00%
A59: CAP_n60_p30_s60_2_5.txt | B59: 1 | C59: 1 | D59: 0.10% | E59: 0.00% | F59: 0 | G59: 0 | H59: 0.23% | I59: 0.05%
A60: CAP_n60_p30_s60_3_2.txt | B60: 1 | C60: 1 | D60: 0.08% | E60: 0.00% | F60: 0 | G60: 0 | H60: 0.29% | I60: 0.02%
A61: CAP_n60_p30_s60_3_3.txt | B61: 1 | C61: 1 | D61: 0.07% | E61: 0.00% | F61: 0 | G61: 0 | H61: 0.27% | I61: 0.00%
A62: CAP_n60_p30_s60_3_4.txt | B62: 0 | C62: 0 | D62: 0.13% | E62: 0.02% | F62: 1 | G62: 1 | H62: 0.36% | I62: 0.00%
A63: CAP_n60_p30_s60_3_5.txt | B63: 1 | C63: 1 | D63: 0.12% | E63: 0.00% | F63: 0 | G63: 0 | H63: 0.37% | I63: 0.01%
A64: CAP_n60_p60_s30_1_2.txt | B64: 10 | C64: 1 | D64: 0.00% | E64: 0.00% | F64: 10 | G64: 1 | H64: 0.02% | I64: 0.00%
A65: CAP_n60_p60_s30_1_3.txt | B65: 2 | C65: 1 | D65: 0.01% | E65: 0.00% | F65: 2 | G65: 1 | H65: 0.03% | I65: 0.00%
A66: CAP_n60_p60_s30_1_4.txt | B66: 0 | C66: 0 | D66: 0.02% | E66: 0.00% | F66: 1 | G66: 1 | H66: 0.04% | I66: 0.00%
A67: CAP_n60_p60_s30_1_5.txt | B67: 1 | C67: 1 | D67: 0.04% | E67: 0.00% | F67: 0 | G67: 0 | H67: 0.05% | I67: 0.01%
A68: CAP_n60_p60_s30_2_2.txt | B68: 1 | C68: 1 | D68: 0.01% | E68: 0.00% | F68: 3 | G68: 1 | H68: 0.01% | I68: 0.00%
A69: CAP_n60_p60_s30_2_3.txt | B69: 0 | C69: 0 | D69: 0.02% | E69: 0.01% | F69: 1 | G69: 1 | H69: 0.04% | I69: 0.00%
A70: CAP_n60_p60_s30_2_4.txt | B70: 1 | C70: 1 | D70: 0.04% | E70: 0.00% | F70: 1 | G70: 1 | H70: 0.04% | I70: 0.00%
A71: CAP_n60_p60_s30_2_5.txt | B71: 0 | C71: 0 | D71: 0.04% | E71: 0.00% | F71: 1 | G71: 1 | H71: 0.11% | I71: 0.00%
A72: CAP_n60_p60_s30_3_2.txt | B72: 1 | C72: 1 | D72: 0.00% | E72: 0.00% | F72: 3 | G72: 1 | H72: 0.01% | I72: 0.00%
A73: CAP_n60_p60_s30_3_3.txt | B73: 1 | C73: 1 | D73: 0.01% | E73: 0.00% | F73: 0 | G73: 0 | H73: 0.02% | I73: 0.00%
A74: CAP_n60_p60_s30_3_4.txt | B74: 0 | C74: 0 | D74: 0.03% | E74: 0.00% | F74: 1 | G74: 1 | H74: 0.03% | I74: 0.00%
A75: CAP_n60_p60_s30_3_5.txt | B75: 1 | C75: 1 | D75: 0.05% | E75: 0.00% | F75: 1 | G75: 1 | H75: 0.05% | I75: 0.00%
A76: CAP_n60_p60_s40_1_2.txt | B76: 0 | C76: 0 | D76: 0.01% | E76: 0.00% | F76: 1 | G76: 1 | H76: 0.01% | I76: 0.00%
A77: CAP_n60_p60_s40_1_5.txt | B77: 0 | C77: 0 | D77: 0.11% | E77: 0.01% | F77: 1 | G77: 1 | H77: 0.13% | I77: 0.00%
A78: CAP_n60_p60_s40_2_2.txt | B78: 7 | C78: 1 | D78: 0.00% | E78: 0.00% | F78: 9 | G78: 1 | H78: 0.00% | I78: 0.00%
A79: CAP_n60_p60_s40_2_3.txt | B79: 0 | C79: 0 | D79: 0.02% | E79: 0.00% | F79: 1 | G79: 1 | H79: 0.04% | I79: 0.00%
A80: CAP_n60_p60_s40_2_4.txt | B80: 0 | C80: 0 | D80: 0.03% | E80: 0.00% | F80: 2 | G80: 1 | H80: 0.04% | I80: 0.00%
A81: CAP_n60_p60_s40_2_5.txt | B81: 0 | C81: 0 | D81: 0.04% | E81: 0.01% | F81: 1 | G81: 1 | H81: 0.06% | I81: 0.00%
A82: CAP_n60_p60_s40_3_2.txt | B82: 8 | C82: 1 | D82: 0.01% | E82: 0.00% | F82: 4 | G82: 1 | H82: 0.06% | I82: 0.00%
A83: CAP_n60_p60_s40_3_3.txt | B83: 1 | C83: 1 | D83: 0.02% | E83: 0.00% | F83: 0 | G83: 0 | H83: 0.04% | I83: 0.00%
A84: CAP_n60_p60_s40_3_4.txt | B84: 0 | C84: 0 | D84: 0.07% | E84: 0.00% | F84: 1 | G84: 1 | H84: 0.09% | I84: 0.00%
A85: CAP_n60_p60_s40_3_5.txt | B85: 1 | C85: 1 | D85: 0.07% | E85: 0.00% | F85: 0 | G85: 0 | H85: 0.18% | I85: 0.01%
A86: CAP_n60_p60_s50_1_2.txt | B86: 6 | C86: 1 | D86: 0.01% | E86: 0.00% | F86: 7 | G86: 1 | H86: 0.03% | I86: 0.00%
A87: CAP_n60_p60_s50_1_5.txt | B87: 1 | C87: 1 | D87: 0.02% | E87: 0.00% | F87: 1 | G87: 1 | H87: 0.05% | I87: 0.00%
A88: CAP_n60_p60_s50_2_2.txt | B88: 1 | C88: 1 | D88: 0.01% | E88: 0.00% | F88: 9 | G88: 1 | H88: 0.04% | I88: 0.00%
A89: CAP_n60_p60_s50_2_3.txt | B89: 0 | C89: 0 | D89: 0.07% | E89: 0.02% | F89: 3 | G89: 1 | H89: 0.07% | I89: 0.00%
A90: CAP_n60_p60_s50_2_4.txt | B90: 0 | C90: 0 | D90: 0.05% | E90: 0.00% | F90: 1 | G90: 1 | H90: 0.10% | I90: 0.00%
A91: CAP_n60_p60_s50_2_5.txt | B91: 0 | C91: 0 | D91: 0.10% | E91: 0.01% | F91: 1 | G91: 1 | H91: 0.26% | I91: 0.00%
A92: CAP_n60_p60_s50_3_2.txt | B92: 1 | C92: 1 | D92: 0.01% | E92: 0.00% | F92: 0 | G92: 0 | H92: 0.01% | I92: 0.00%
A93: CAP_n60_p60_s50_3_3.txt | B93: 1 | C93: 1 | D93: 0.03% | E93: 0.00% | F93: 2 | G93: 1 | H93: 0.04% | I93: 0.00%
A94: CAP_n60_p60_s50_3_4.txt | B94: 1 | C94: 1 | D94: 0.02% | E94: 0.00% | F94: 2 | G94: 1 | H94: 0.04% | I94: 0.00%
A95: CAP_n60_p60_s50_3_5.txt | B95: 0 | C95: 0 | D95: 0.03% | E95: 0.00% | F95: 1 | G95: 1 | H95: 0.05% | I95: 0.00%
A96: CAP_n60_p60_s60_1_2.txt | B96: 9 | C96: 1 | D96: 0.00% | E96: 0.00% | F96: 9 | G96: 1 | H96: 0.00% | I96: 0.00%
A97: CAP_n60_p60_s60_1_3.txt | B97: 1 | C97: 1 | D97: 0.02% | E97: 0.00% | F97: 1 | G97: 1 | H97: 0.03% | I97: 0.00%
A98: CAP_n60_p60_s60_1_4.txt | B98: 1 | C98: 1 | D98: 0.03% | E98: 0.00% | F98: 0 | G98: 0 | H98: 0.03% | I98: 0.01%
A99: CAP_n60_p60_s60_1_5.txt | B99: 4 | C99: 1 | D99: 0.03% | E99: 0.00% | F99: 3 | G99: 1 | H99: 0.04% | I99: 0.00%
A100: CAP_n60_p60_s60_2_2.txt | B100: 4 | C100: 1 | D100: 0.01% | E100: 0.00% | F100: 3 | G100: 1 | H100: 0.09% | I100: 0.00%
A101: CAP_n60_p60_s60_2_3.txt | B101: 3 | C101: 1 | D101: 0.01% | E101: 0.00% | F101: 3 | G101: 1 | H101: 0.09% | I101: 0.00%
A102: CAP_n60_p60_s60_2_4.txt | B102: 0 | C102: 0 | D102: 0.03% | E102: 0.00% | F102: 1 | G102: 1 | H102: 0.08% | I102: 0.00%
A103: CAP_n60_p60_s60_2_5.txt | B103: 0 | C103: 0 | D103: 0.02% | E103: 0.01% | F103: 1 | G103: 1 | H103: 0.12% | I103: 0.00%
A104: CAP_n60_p60_s60_3_2.txt | B104: 3 | C104: 1 | D104: 0.01% | E104: 0.00% | F104: 1 | G104: 1 | H104: 0.03% | I104: 0.00%
A105: CAP_n60_p60_s60_3_3.txt | B105: 1 | C105: 1 | D105: 0.06% | E105: 0.00% | F105: 1 | G105: 1 | H105: 0.09% | I105: 0.00%
A106: CAP_n60_p60_s60_3_4.txt | B106: 1 | C106: 1 | D106: 0.08% | E106: 0.00% | F106: 0 | G106: 0 | H106: 0.11% | I106: 0.00%
A107: CAP_n60_p60_s60_3_5.txt | B107: 2 | C107: 1 | D107: 0.05% | E107: 0.00% | F107: 0 | G107: 0 | H107: 0.16% | I107: 0.00%
A108: CAP_n60_p90_s30_1_2.txt | B108: 10 | C108: 1 | D108: 0.00% | E108: 0.00% | F108: 6 | G108: 1 | H108: 0.00% | I108: 0.00%
A109: CAP_n60_p90_s30_1_3.txt | B109: 1 | C109: 1 | D109: 0.01% | E109: 0.00% | F109: 2 | G109: 1 | H109: 0.01% | I109: 0.00%
A110: CAP_n60_p90_s30_1_4.txt | B110: 1 | C110: 1 | D110: 0.01% | E110: 0.00% | F110: 0 | G110: 0 | H110: 0.02% | I110: 0.00%
A111: CAP_n60_p90_s30_1_5.txt | B111: 0 | C111: 0 | D111: 0.02% | E111: 0.00% | F111: 1 | G111: 1 | H111: 0.04% | I111: 0.00%
A112: CAP_n60_p90_s30_2_2.txt | B112: 16 | C112: 1 | D112: 0.00% | E112: 0.00% | F112: 9 | G112: 1 | H112: 0.00% | I112: 0.00%
A113: CAP_n60_p90_s30_2_3.txt | B113: 3 | C113: 1 | D113: 0.01% | E113: 0.00% | F113: 5 | G113: 1 | H113: 0.01% | I113: 0.00%
A114: CAP_n60_p90_s30_2_4.txt | B114: 1 | C114: 1 | D114: 0.02% | E114: 0.00% | F114: 0 | G114: 0 | H114: 0.03% | I114: 0.00%
A115: CAP_n60_p90_s30_2_5.txt | B115: 0 | C115: 0 | D115: 0.01% | E115: 0.00% | F115: 1 | G115: 1 | H115: 0.02% | I115: 0.00%
A116: CAP_n60_p90_s30_3_2.txt | B116: 7 | C116: 1 | D116: 0.00% | E116: 0.00% | F116: 6 | G116: 1 | H116: 0.00% | I116: 0.00%
A117: CAP_n60_p90_s30_3_3.txt | B117: 7 | C117: 1 | D117: 0.00% | E117: 0.00% | F117: 4 | G117: 1 | H117: 0.01% | I117: 0.00%
A118: CAP_n60_p90_s30_3_4.txt | B118: 0 | C118: 0 | D118: 0.01% | E118: 0.00% | F118: 3 | G118: 1 | H118: 0.01% | I118: 0.00%
A119: CAP_n60_p90_s30_3_5.txt | B119: 0 | C119: 0 | D119: 0.01% | E119: 0.00% | F119: 1 | G119: 1 | H119: 0.02% | I119: 0.00%
A120: CAP_n60_p90_s40_1_2.txt | B120: 8 | C120: 1 | D120: 0.00% | E120: 0.00% | F120: 11 | G120: 1 | H120: 0.00% | I120: 0.00%
A121: CAP_n60_p90_s40_1_3.txt | B121: 4 | C121: 1 | D121: 0.01% | E121: 0.00% | F121: 5 | G121: 1 | H121: 0.01% | I121: 0.00%
A122: CAP_n60_p90_s40_1_4.txt | B122: 7 | C122: 1 | D122: 0.00% | E122: 0.00% | F122: 5 | G122: 1 | H122: 0.00% | I122: 0.00%
A123: CAP_n60_p90_s40_1_5.txt | B123: 1 | C123: 1 | D123: 0.01% | E123: 0.00% | F123: 0 | G123: 0 | H123: 0.01% | I123: 0.00%
A124: CAP_n60_p90_s40_2_2.txt | B124: 12 | C124: 1 | D124: 0.00% | E124: 0.00% | F124: 11 | G124: 1 | H124: 0.00% | I124: 0.00%
A125: CAP_n60_p90_s40_2_3.txt | B125: 3 | C125: 1 | D125: 0.01% | E125: 0.00% | F125: 2 | G125: 1 | H125: 0.02% | I125: 0.00%
A126: CAP_n60_p90_s40_2_4.txt | B126: 0 | C126: 0 | D126: 0.03% | E126: 0.00% | F126: 1 | G126: 1 | H126: 0.03% | I126: 0.00%
A127: CAP_n60_p90_s40_2_5.txt | B127: 1 | C127: 1 | D127: 0.02% | E127: 0.00% | F127: 2 | G127: 1 | H127: 0.02% | I127: 0.00%
A128: CAP_n60_p90_s40_3_2.txt | B128: 28 | C128: 1 | D128: 0.00% | E128: 0.00% | F128: 17 | G128: 1 | H128: 0.00% | I128: 0.00%
A129: CAP_n60_p90_s40_3_3.txt | B129: 0 | C129: 0 | D129: 0.01% | E129: 0.00% | F129: 2 | G129: 1 | H129: 0.01% | I129: 0.00%
A130: CAP_n60_p90_s40_3_4.txt | B130: 11 | C130: 1 | D130: 0.00% | E130: 0.00% | F130: 4 | G130: 1 | H130: 0.01% | I130: 0.00%
A131: CAP_n60_p90_s40_3_5.txt | B131: 7 | C131: 1 | D131: 0.01% | E131: 0.00% | F131: 12 | G131: 1 | H131: 0.02% | I131: 0.00%
A132: CAP_n60_p90_s50_1_2.txt | B132: 14 | C132: 1 | D132: 0.00% | E132: 0.00% | F132: 9 | G132: 1 | H132: 0.00% | I132: 0.00%
A133: CAP_n60_p90_s50_1_3.txt | B133: 2 | C133: 1 | D133: 0.02% | E133: 0.00% | F133: 1 | G133: 1 | H133: 0.02% | I133: 0.00%
A134: CAP_n60_p90_s50_1_4.txt | B134: 1 | C134: 1 | D134: 0.06% | E134: 0.00% | F134: 6 | G134: 1 | H134: 0.04% | I134: 0.00%
A135: CAP_n60_p90_s50_1_5.txt | B135: 0 | C135: 0 | D135: 0.03% | E135: 0.00% | F135: 2 | G135: 1 | H135: 0.03% | I135: 0.00%
A136: CAP_n60_p90_s50_2_2.txt | B136: 14 | C136: 1 | D136: 0.01% | E136: 0.00% | F136: 3 | G136: 1 | H136: 0.04% | I136: 0.00%
A137: CAP_n60_p90_s50_2_3.txt | B137: 0 | C137: 0 | D137: 0.02% | E137: 0.01% | F137: 1 | G137: 1 | H137: 0.03% | I137: 0.00%
A138: CAP_n60_p90_s50_2_4.txt | B138: 0 | C138: 0 | D138: 0.07% | E138: 0.02% | F138: 1 | G138: 1 | H138: 0.11% | I138: 0.00%
A139: CAP_n60_p90_s50_2_5.txt | B139: 0 | C139: 0 | D139: 0.02% | E139: 0.00% | F139: 1 | G139: 1 | H139: 0.07% | I139: 0.00%
A140: CAP_n60_p90_s50_3_2.txt | B140: 11 | C140: 1 | D140: 0.00% | E140: 0.00% | F140: 3 | G140: 1 | H140: 0.04% | I140: 0.00%
A141: CAP_n60_p90_s50_3_3.txt | B141: 12 | C141: 1 | D141: 0.00% | E141: 0.00% | F141: 4 | G141: 1 | H141: 0.03% | I141: 0.00%
A142: CAP_n60_p90_s50_3_4.txt | B142: 1 | C142: 1 | D142: 0.02% | E142: 0.00% | F142: 2 | G142: 1 | H142: 0.02% | I142: 0.00%
A143: CAP_n60_p90_s50_3_5.txt | B143: 0 | C143: 0 | D143: 0.01% | E143: 0.00% | F143: 2 | G143: 1 | H143: 0.02% | I143: 0.00%
A144: CAP_n60_p90_s60_1_2.txt | B144: 12 | C144: 1 | D144: 0.00% | E144: 0.00% | F144: 10 | G144: 1 | H144: 0.00% | I144: 0.00%
A145: CAP_n60_p90_s60_1_3.txt | B145: 4 | C145: 1 | D145: 0.01% | E145: 0.00% | F145: 5 | G145: 1 | H145: 0.01% | I145: 0.00%
A146: CAP_n60_p90_s60_1_4.txt | B146: 6 | C146: 1 | D146: 0.00% | E146: 0.00% | F146: 6 | G146: 1 | H146: 0.00% | I146: 0.00%
A147: CAP_n60_p90_s60_1_5.txt | B147: 1 | C147: 1 | D147: 0.02% | E147: 0.00% | F147: 0 | G147: 0 | H147: 0.01% | I147: 0.00%
A148: CAP_n60_p90_s60_2_2.txt | B148: 18 | C148: 1 | D148: 0.00% | E148: 0.00% | F148: 23 | G148: 1 | H148: 0.00% | I148: 0.00%
A149: CAP_n60_p90_s60_2_3.txt | B149: 4 | C149: 1 | D149: 0.00% | E149: 0.00% | F149: 6 | G149: 1 | H149: 0.00% | I149: 0.00%
A150: CAP_n60_p90_s60_2_4.txt | B150: 5 | C150: 1 | D150: 0.02% | E150: 0.00% | F150: 0 | G150: 0 | H150: 0.03% | I150: 0.02%
A151: CAP_n60_p90_s60_2_5.txt | B151: 2 | C151: 1 | D151: 0.05% | E151: 0.00% | F151: 2 | G151: 1 | H151: 0.06% | I151: 0.00%
A152: CAP_n60_p90_s60_3_2.txt | B152: 9 | C152: 1 | D152: 0.00% | E152: 0.00% | F152: 11 | G152: 1 | H152: 0.01% | I152: 0.00%
A153: CAP_n60_p90_s60_3_3.txt | B153: 6 | C153: 1 | D153: 0.00% | E153: 0.00% | F153: 5 | G153: 1 | H153: 0.02% | I153: 0.00%
A154: CAP_n60_p90_s60_3_4.txt | B154: 3 | C154: 1 | D154: 0.01% | E154: 0.00% | F154: 5 | G154: 1 | H154: 0.04% | I154: 0.00%
A155: CAP_n60_p90_s60_3_5.txt | B155: 1 | C155: 1 | D155: 0.01% | E155: 0.00% | F155: 0 | G155: 0 | H155: 0.02% | I155: 0.00%
A156: N25_01_2.txt | B156: 30 | C156: 1 | D156: 0.00% | E156: 0.00% | F156: 28 | G156: 1 | H156: 0.03% | I156: 0.00%
A157: N25_01_3.txt | B157: 30 | C157: 1 | D157: 0.00% | E157: 0.00% | F157: 24 | G157: 1 | H157: 0.03% | I157: 0.00%
A158: N25_01_4.txt | B158: 30 | C158: 1 | D158: 0.00% | E158: 0.00% | F158: 27 | G158: 1 | H158: 0.05% | I158: 0.00%
A159: N25_01_5.txt | B159: 30 | C159: 1 | D159: 0.00% | E159: 0.00% | F159: 30 | G159: 1 | H159: 0.00% | I159: 0.00%
A160: N25_02_2.txt | B160: 29 | C160: 1 | D160: 0.00% | E160: 0.00% | F160: 17 | G160: 1 | H160: 0.03% | I160: 0.00%
A161: N25_02_3.txt | B161: 7 | C161: 1 | D161: 0.03% | E161: 0.00% | F161: 5 | G161: 1 | H161: 0.03% | I161: 0.00%
A162: N25_02_4.txt | B162: 28 | C162: 1 | D162: 0.06% | E162: 0.00% | F162: 16 | G162: 1 | H162: 0.38% | I162: 0.00%
A163: N25_02_5.txt | B163: 30 | C163: 1 | D163: 0.00% | E163: 0.00% | F163: 27 | G163: 1 | H163: 0.05% | I163: 0.00%
A164: N25_03_2.txt | B164: 21 | C164: 1 | D164: 0.05% | E164: 0.00% | F164: 10 | G164: 1 | H164: 0.12% | I164: 0.00%
A165: N25_03_3.txt | B165: 15 | C165: 1 | D165: 0.04% | E165: 0.00% | F165: 2 | G165: 1 | H165: 0.12% | I165: 0.00%
A166: N25_03_4.txt | B166: 23 | C166: 1 | D166: 0.08% | E166: 0.00% | F166: 7 | G166: 1 | H166: 0.42% | I166: 0.00%
A167: N25_03_5.txt | B167: 14 | C167: 1 | D167: 0.10% | E167: 0.00% | F167: 6 | G167: 1 | H167: 0.15% | I167: 0.00%
A168: N25_04_2.txt | B168: 30 | C168: 1 | D168: 0.00% | E168: 0.00% | F168: 20 | G168: 1 | H168: 0.10% | I168: 0.00%
A169: N25_04_3.txt | B169: 16 | C169: 1 | D169: 0.08% | E169: 0.00% | F169: 4 | G169: 1 | H169: 0.15% | I169: 0.00%
A170: N25_04_4.txt | B170: 27 | C170: 1 | D170: 0.11% | E170: 0.00% | F170: 19 | G170: 1 | H170: 0.37% | I170: 0.00%
A171: N25_04_5.txt | B171: 30 | C171: 1 | D171: 0.00% | E171: 0.00% | F171: 30 | G171: 1 | H171: 0.00% | I171: 0.00%
A172: N25_05_2.txt | B172: 30 | C172: 1 | D172: 0.00% | E172: 0.00% | F172: 27 | G172: 1 | H172: 0.02% | I172: 0.00%
A173: N25_05_3.txt | B173: 17 | C173: 1 | D173: 0.01% | E173: 0.00% | F173: 8 | G173: 1 | H173: 0.01% | I173: 0.00%
A174: N25_05_4.txt | B174: 20 | C174: 1 | D174: 0.15% | E174: 0.00% | F174: 13 | G174: 1 | H174: 0.26% | I174: 0.00%
A175: N25_05_5.txt | B175: 24 | C175: 1 | D175: 0.02% | E175: 0.00% | F175: 23 | G175: 1 | H175: 0.02% | I175: 0.00%
A176: N30_01_2.txt | B176: 30 | C176: 1 | D176: 0.00% | E176: 0.00% | F176: 30 | G176: 1 | H176: 0.00% | I176: 0.00%
A177: N30_01_3.txt | B177: 30 | C177: 1 | D177: 0.00% | E177: 0.00% | F177: 30 | G177: 1 | H177: 0.00% | I177: 0.00%
A178: N30_01_4.txt | B178: 30 | C178: 1 | D178: 0.00% | E178: 0.00% | F178: 30 | G178: 1 | H178: 0.00% | I178: 0.00%
A179: N30_01_5.txt | B179: 30 | C179: 1 | D179: 0.00% | E179: 0.00% | F179: 30 | G179: 1 | H179: 0.00% | I179: 0.00%
A180: N30_02_2.txt | B180: 29 | C180: 1 | D180: 0.00% | E180: 0.00% | F180: 24 | G180: 1 | H180: 0.02% | I180: 0.00%
A181: N30_02_3.txt | B181: 28 | C181: 1 | D181: 0.01% | E181: 0.00% | F181: 11 | G181: 1 | H181: 0.11% | I181: 0.00%
A182: N30_02_4.txt | B182: 29 | C182: 1 | D182: 0.01% | E182: 0.00% | F182: 10 | G182: 1 | H182: 0.29% | I182: 0.00%
A183: N30_02_5.txt | B183: 29 | C183: 1 | D183: 0.01% | E183: 0.00% | F183: 10 | G183: 1 | H183: 0.24% | I183: 0.00%
A184: N30_03_2.txt | B184: 30 | C184: 1 | D184: 0.00% | E184: 0.00% | F184: 30 | G184: 1 | H184: 0.00% | I184: 0.00%
A185: N30_03_5.txt | B185: 30 | C185: 1 | D185: 0.00% | E185: 0.00% | F185: 27 | G185: 1 | H185: 0.02% | I185: 0.00%
A186: N30_04_2.txt | B186: 28 | C186: 1 | D186: 0.00% | E186: 0.00% | F186: 25 | G186: 1 | H186: 0.01% | I186: 0.00%
A187: N30_04_5.txt | B187: 26 | C187: 1 | D187: 0.02% | E187: 0.00% | F187: 16 | G187: 1 | H187: 0.09% | I187: 0.00%
A188: N30_05_2.txt | B188: 9 | C188: 1 | D188: 0.02% | E188: 0.00% | F188: 5 | G188: 1 | H188: 0.02% | I188: 0.00%
A189: N30_05_3.txt | B189: 20 | C189: 1 | D189: 0.02% | E189: 0.00% | F189: 18 | G189: 1 | H189: 0.03% | I189: 0.00%
A190: N30_05_4.txt | B190: 9 | C190: 1 | D190: 0.08% | E190: 0.00% | F190: 4 | G190: 1 | H190: 0.11% | I190: 0.00%
A191: N30_05_5.txt | B191: 8 | C191: 1 | D191: 0.10% | E191: 0.00% | F191: 4 | G191: 1 | H191: 0.15% | I191: 0.00%
A192: N40_01_2.txt | B192: 4 | C192: 1 | D192: 0.01% | E192: 0.00% | F192: 7 | G192: 1 | H192: 0.03% | I192: 0.00%
A193: N40_01_5.txt | B193: 5 | C193: 1 | D193: 0.13% | E193: 0.00% | F193: 2 | G193: 1 | H193: 0.19% | I193: 0.00%
A194: N40_02_2.txt | B194: 30 | C194: 1 | D194: 0.00% | E194: 0.00% | F194: 29 | G194: 1 | H194: 0.00% | I194: 0.00%
A195: N40_02_5.txt | B195: 6 | C195: 1 | D195: 0.02% | E195: 0.00% | F195: 1 | G195: 1 | H195: 0.05% | I195: 0.00%
A196: N40_03_2.txt | B196: 3 | C196: 1 | D196: 0.02% | E196: 0.00% | F196: 7 | G196: 1 | H196: 0.02% | I196: 0.00%
A197: N40_03_3.txt | B197: 4 | C197: 1 | D197: 0.06% | E197: 0.00% | F197: 3 | G197: 1 | H197: 0.08% | I197: 0.00%
A198: N40_03_4.txt | B198: 0 | C198: 0 | D198: 0.09% | E198: 0.02% | F198: 1 | G198: 1 | H198: 0.10% | I198: 0.00%
A199: N40_03_5.txt | B199: 15 | C199: 1 | D199: 0.02% | E199: 0.00% | F199: 18 | G199: 1 | H199: 0.04% | I199: 0.00%
A200: N40_04_2.txt | B200: 17 | C200: 1 | D200: 0.01% | E200: 0.00% | F200: 8 | G200: 1 | H200: 0.03% | I200: 0.00%
... 105 more rows

Sheet AnnexSFMRFLP
B1: Column Labels
B2: auto | D2: SOTA | I2: Auto | K2: SOTA
A3: Row Labels | B3: Avg o.f. | C3: Min of Score | D3: Avg o.f. | E3: Min of Score | H3: Instance | I3: Avg o.f. | J3: Min o.f. | K3: Avg o.f. | L3: Min o.f.
A4: AKV_60_05_2 | B4: 159664.77 | C4: 159641.00 | D4: 159685.17 | E4: 159635.00 | H4: AKV_60_05_2 | I4: 159664.8 | J4: 159641.0 | K4: 159685.2 | L4: 159635.0
A5: AKV_60_05_3 | B5: 106630.87 | C5: 106602.00 | D5: 106686.23 | E5: 106589.00 | H5: AKV_60_05_3 | I5: 106630.9 | J5: 106602.0 | K5: 106686.2 | L5: 106589.0
A6: AKV_60_05_4 | B6: 80195.07 | C6: 80171.00 | D6: 80228.40 | E6: 80167.00 | H6: AKV_60_05_4 | I6: 80195.1 | J6: 80171.0 | K6: 80228.4 | L6: 80167.0
A7: AKV_60_05_5 | B7: 64372.77 | C7: 64323.00 | D7: 64397.70 | E7: 64333.00 | H7: AKV_60_05_5 | I7: 64372.8 | J7: 64323.0 | K7: 64397.7 | L7: 64333.0
A8: AKV_70_05_2 | B8: 2109806.63 | C8: 2109701.50 | D8: 2109818.67 | E8: 2109702.50 | H8: AKV_70_05_2 | I8: 2109806.6 | J8: 2109701.5 | K8: 2109818.7 | L8: 2109702.5
A9: AKV_70_05_3 | B9: 1408109.10 | C9: 1407822.50 | D9: 1408111.00 | E9: 1407753.50 | H9: AKV_70_05_3 | I9: 1408109.1 | J9: 1407822.5 | K9: 1408111.0 | L9: 1407753.5
A10: AKV_70_05_4 | B10: 1057303.43 | C10: 1057033.50 | D10: 1057655.40 | E10: 1057026.50 | H10: AKV_70_05_4 | I10: 1057303.4 | J10: 1057033.5 | K10: 1057655.4 | L10: 1057026.5
A11: AKV_70_05_5 | B11: 846568.63 | C11: 846208.50 | D11: 846863.00 | E11: 846300.50 | H11: AKV_70_05_5 | I11: 846568.6 | J11: 846208.5 | K11: 846863.0 | L11: 846300.5
A12: Am12a_2 | B12: 1529.00 | C12: 1529.00 | D12: 1529.00 | E12: 1529.00 | H12: Am12a_2 | I12: 1529.0 | J12: 1529.0 | K12: 1529.0 | L12: 1529.0
A13: Am12a_3 | B13: 1028.00 | C13: 1028.00 | D13: 1028.00 | E13: 1028.00 | H13: Am12a_3 | I13: 1028.0 | J13: 1028.0 | K13: 1028.0 | L13: 1028.0
A14: Am12a_4 | B14: 785.00 | C14: 785.00 | D14: 785.00 | E14: 785.00 | H14: Am12a_4 | I14: 785.0 | J14: 785.0 | K14: 785.0 | L14: 785.0
A15: Am12a_5 | B15: 629.00 | C15: 629.00 | D15: 629.00 | E15: 629.00 | H15: Am12a_5 | I15: 629.0 | J15: 629.0 | K15: 629.0 | L15: 629.0
A16: Am12b_2 | B16: 1609.50 | C16: 1609.50 | D16: 1609.50 | E16: 1609.50 | H16: Am12b_2 | I16: 1609.5 | J16: 1609.5 | K16: 1609.5 | L16: 1609.5
A17: Am12b_3 | B17: 1117.50 | C17: 1117.50 | D17: 1117.50 | E17: 1117.50 | H17: Am12b_3 | I17: 1117.5 | J17: 1117.5 | K17: 1117.5 | L17: 1117.5
A18: Am12b_4 | B18: 855.50 | C18: 855.50 | D18: 855.50 | E18: 855.50 | H18: Am12b_4 | I18: 855.5 | J18: 855.5 | K18: 855.5 | L18: 855.5
A19: Am12b_5 | B19: 617.50 | C19: 617.50 | D19: 617.50 | E19: 617.50 | H19: Am12b_5 | I19: 617.5 | J19: 617.5 | K19: 617.5 | L19: 617.5
A20: Am13a_2 | B20: 2467.50 | C20: 2467.50 | D20: 2467.50 | E20: 2467.50 | H20: Am13a_2 | I20: 2467.5 | J20: 2467.5 | K20: 2467.5 | L20: 2467.5
A21: Am13a_3 | B21: 1569.50 | C21: 1569.50 | D21: 1569.50 | E21: 1569.50 | H21: Am13a_3 | I21: 1569.5 | J21: 1569.5 | K21: 1569.5 | L21: 1569.5
A22: Am13a_4 | B22: 1145.50 | C22: 1145.50 | D22: 1145.50 | E22: 1145.50 | H22: Am13a_4 | I22: 1145.5 | J22: 1145.5 | K22: 1145.5 | L22: 1145.5
A23: Am13a_5 | B23: 882.50 | C23: 882.50 | D23: 882.50 | E23: 882.50 | H23: Am13a_5 | I23: 882.5 | J23: 882.5 | K23: 882.5 | L23: 882.5
A24: Am13b_2 | B24: 2870.00 | C24: 2870.00 | D24: 2870.00 | E24: 2870.00 | H24: Am13b_2 | I24: 2870.0 | J24: 2870.0 | K24: 2870.0 | L24: 2870.0
A25: Am13b_3 | B25: 1904.00 | C25: 1904.00 | D25: 1904.00 | E25: 1904.00 | H25: Am13b_3 | I25: 1904.0 | J25: 1904.0 | K25: 1904.0 | L25: 1904.0
A26: Am13b_4 | B26: 1372.00 | C26: 1372.00 | D26: 1372.00 | E26: 1372.00 | H26: Am13b_4 | I26: 1372.0 | J26: 1372.0 | K26: 1372.0 | L26: 1372.0
A27: Am13b_5 | B27: 1085.00 | C27: 1085.00 | D27: 1085.00 | E27: 1085.00 | H27: Am13b_5 | I27: 1085.0 | J27: 1085.0 | K27: 1085.0 | L27: 1085.0
A28: Am15_2 | B28: 3195.00 | C28: 3195.00 | D28: 3195.00 | E28: 3195.00 | H28: Am15_2 | I28: 3195.0 | J28: 3195.0 | K28: 3195.0 | L28: 3195.0
A29: Am15_3 | B29: 2167.00 | C29: 2167.00 | D29: 2167.00 | E29: 2167.00 | H29: Am15_3 | I29: 2167.0 | J29: 2167.0 | K29: 2167.0 | L29: 2167.0
A30: Am15_4 | B30: 1656.00 | C30: 1656.00 | D30: 1656.00 | E30: 1656.00 | H30: Am15_4 | I30: 1656.0 | J30: 1656.0 | K30: 1656.0 | L30: 1656.0
A31: Am15_5 | B31: 1289.00 | C31: 1289.00 | D31: 1289.00 | E31: 1289.00 | H31: Am15_5 | I31: 1289.0 | J31: 1289.0 | K31: 1289.0 | L31: 1289.0
A32: CAP_n60_p30_s30_1_2 | B32: 204112.63 | C32: 204089.00 | D32: 204136.90 | E32: 204093.00 | H32: CAP_n60_p30_s30_1_2 | I32: 204112.6 | J32: 204089.0 | K32: 204136.9 | L32: 204093.0
A33: CAP_n60_p30_s30_1_3 | B33: 136324.77 | C33: 136263.00 | D33: 136313.03 | E33: 136256.00 | H33: CAP_n60_p30_s30_1_3 | I33: 136324.8 | J33: 136263.0 | K33: 136313.0 | L33: 136256.0
A34: CAP_n60_p30_s30_1_4 | B34: 102310.30 | C34: 102231.00 | D34: 102316.60 | E34: 102208.00 | H34: CAP_n60_p30_s30_1_4 | I34: 102310.3 | J34: 102231.0 | K34: 102316.6 | L34: 102208.0
A35: CAP_n60_p30_s30_1_5 | B35: 81650.13 | C35: 81523.00 | D35: 81665.30 | E35: 81549.00 | H35: CAP_n60_p30_s30_1_5 | I35: 81650.1 | J35: 81523.0 | K35: 81665.3 | L35: 81549.0
A36: CAP_n60_p30_s30_2_2 | B36: 193219.60 | C36: 193188.50 | D36: 193291.63 | E36: 193177.50 | H36: CAP_n60_p30_s30_2_2 | I36: 193219.6 | J36: 193188.5 | K36: 193291.6 | L36: 193177.5
A37: CAP_n60_p30_s30_2_3 | B37: 128857.73 | C37: 128798.50 | D37: 128935.23 | E37: 128802.50 | H37: CAP_n60_p30_s30_2_3 | I37: 128857.7 | J37: 128798.5 | K37: 128935.2 | L37: 128802.5
A38: CAP_n60_p30_s30_2_4 | B38: 96702.80 | C38: 96650.50 | D38: 96789.20 | E38: 96634.50 | H38: CAP_n60_p30_s30_2_4 | I38: 96702.8 | J38: 96650.5 | K38: 96789.2 | L38: 96634.5
A39: CAP_n60_p30_s30_2_5 | B39: 77359.97 | C39: 77274.50 | D39: 77407.90 | E39: 77305.50 | H39: CAP_n60_p30_s30_2_5 | I39: 77360.0 | J39: 77274.5 | K39: 77407.9 | L39: 77305.5
A40: CAP_n60_p30_s30_3_2 | B40: 161502.27 | C40: 161466.50 | D40: 161679.07 | E40: 161466.50 | H40: CAP_n60_p30_s30_3_2 | I40: 161502.3 | J40: 161466.5 | K40: 161679.1 | L40: 161466.5
A41: CAP_n60_p30_s30_3_3 | B41: 107812.03 | C41: 107745.50 | D41: 107851.53 | E41: 107739.50 | H41: CAP_n60_p30_s30_3_3 | I41: 107812.0 | J41: 107745.5 | K41: 107851.5 | L41: 107739.5
A42: CAP_n60_p30_s30_3_4 | B42: 80705.90 | C42: 80647.50 | D42: 80873.73 | E42: 80661.50 | H42: CAP_n60_p30_s30_3_4 | I42: 80705.9 | J42: 80647.5 | K42: 80873.7 | L42: 80661.5
A43: CAP_n60_p30_s30_3_5 | B43: 64709.80 | C43: 64641.50 | D43: 64842.63 | E43: 64603.50 | H43: CAP_n60_p30_s30_3_5 | I43: 64709.8 | J43: 64641.5 | K43: 64842.6 | L43: 64603.5
A44: CAP_n60_p30_s40_1_2 | B44: 135156.57 | C44: 135125.50 | D44: 135219.30 | E44: 135129.50 | H44: CAP_n60_p30_s40_1_2 | I44: 135156.6 | J44: 135125.5 | K44: 135219.3 | L44: 135129.5
A45: CAP_n60_p30_s40_1_3 | B45: 90154.97 | C45: 90097.50 | D45: 90193.73 | E45: 90070.50 | H45: CAP_n60_p30_s40_1_3 | I45: 90155.0 | J45: 90097.5 | K45: 90193.7 | L45: 90070.5
A46: CAP_n60_p30_s40_1_4 | B46: 67495.87 | C46: 67426.50 | D46: 67611.37 | E46: 67421.50 | H46: CAP_n60_p30_s40_1_4 | I46: 67495.9 | J46: 67426.5 | K46: 67611.4 | L46: 67421.5
A47: CAP_n60_p30_s40_1_5 | B47: 54096.50 | C47: 54043.50 | D47: 54197.43 | E47: 54017.50 | H47: CAP_n60_p30_s40_1_5 | I47: 54096.5 | J47: 54043.5 | K47: 54197.4 | L47: 54017.5
A48: CAP_n60_p30_s40_2_2 | B48: 159158.83 | C48: 159114.00 | D48: 159278.57 | E48: 159114.00 | H48: CAP_n60_p30_s40_2_2 | I48: 159158.8 | J48: 159114.0 | K48: 159278.6 | L48: 159114.0
A49: CAP_n60_p30_s40_2_3 | B49: 106160.63 | C49: 106104.00 | D49: 106292.47 | E49: 106070.00 | H49: CAP_n60_p30_s40_2_3 | I49: 106160.6 | J49: 106104.0 | K49: 106292.5 | L49: 106070.0
A50: CAP_n60_p30_s40_2_4 | B50: 79637.33 | C50: 79578.00 | D50: 79684.97 | E50: 79566.00 | H50: CAP_n60_p30_s40_2_4 | I50: 79637.3 | J50: 79578.0 | K50: 79685.0 | L50: 79566.0
A51: CAP_n60_p30_s40_2_5 | B51: 63797.37 | C51: 63762.00 | D51: 63889.03 | E51: 63750.00 | H51: CAP_n60_p30_s40_2_5 | I51: 63797.4 | J51: 63762.0 | K51: 63889.0 | L51: 63750.0
A52: CAP_n60_p30_s40_3_2 | B52: 159015.23 | C52: 158955.50 | D52: 159136.37 | E52: 158953.50 | H52: CAP_n60_p30_s40_3_2 | I52: 159015.2 | J52: 158955.5 | K52: 159136.4 | L52: 158953.5
A53: CAP_n60_p30_s40_3_3 | B53: 106109.83 | C53: 105986.50 | D53: 106242.23 | E53: 105976.50 | H53: CAP_n60_p30_s40_3_3 | I53: 106109.8 | J53: 105986.5 | K53: 106242.2 | L53: 105976.5
A54: CAP_n60_p30_s40_3_4 | B54: 79607.00 | C54: 79507.50 | D54: 79687.43 | E54: 79500.50 | H54: CAP_n60_p30_s40_3_4 | I54: 79607.0 | J54: 79507.5 | K54: 79687.4 | L54: 79500.5
A55: CAP_n60_p30_s40_3_5 | B55: 63903.37 | C55: 63828.50 | D55: 64000.97 | E55: 63846.50 | H55: CAP_n60_p30_s40_3_5 | I55: 63903.4 | J55: 63828.5 | K55: 64001.0 | L55: 63846.5
A56: CAP_n60_p30_s50_1_2 | B56: 110536.90 | C56: 110478.50 | D56: 110689.50 | E56: 110490.50 | H56: CAP_n60_p30_s50_1_2 | I56: 110536.9 | J56: 110478.5 | K56: 110689.5 | L56: 110490.5
A57: CAP_n60_p30_s50_1_3 | B57: 73712.23 | C57: 73593.50 | D57: 73902.40 | E57: 73602.50 | H57: CAP_n60_p30_s50_1_3 | I57: 73712.2 | J57: 73593.5 | K57: 73902.4 | L57: 73602.5
A58: CAP_n60_p30_s50_1_4 | B58: 55631.13 | C58: 55347.50 | D58: 55657.63 | E58: 55372.50 | H58: CAP_n60_p30_s50_1_4 | I58: 55631.1 | J58: 55347.5 | K58: 55657.6 | L58: 55372.5
A59: CAP_n60_p30_s50_1_5 | B59: 44645.97 | C59: 44481.50 | D59: 44722.53 | E59: 44460.50 | H59: CAP_n60_p30_s50_1_5 | I59: 44646.0 | J59: 44481.5 | K59: 44722.5 | L59: 44460.5
A60: CAP_n60_p30_s50_2_2 | B60: 115348.83 | C60: 115299.00 | D60: 115378.87 | E60: 115305.00 | H60: CAP_n60_p30_s50_2_2 | I60: 115348.8 | J60: 115299.0 | K60: 115378.9 | L60: 115305.0
A61: CAP_n60_p30_s50_2_3 | B61: 77040.03 | C61: 76983.00 | D61: 77061.20 | E61: 76977.00 | H61: CAP_n60_p30_s50_2_3 | I61: 77040.0 | J61: 76983.0 | K61: 77061.2 | L61: 76977.0
A62: CAP_n60_p30_s50_2_4 | B62: 58154.90 | C62: 58075.00 | D62: 58176.13 | E62: 58062.00 | H62: CAP_n60_p30_s50_2_4 | I62: 58154.9 | J62: 58075.0 | K62: 58176.1 | L62: 58062.0
A63: CAP_n60_p30_s50_2_5 | B63: 46779.90 | C63: 46737.00 | D63: 46782.23 | E63: 46742.00 | H63: CAP_n60_p30_s50_2_5 | I63: 46779.9 | J63: 46737.0 | K63: 46782.2 | L63: 46742.0
A64: CAP_n60_p30_s50_3_2 | B64: 114148.57 | C64: 114135.00 | D64: 114181.70 | E64: 114136.00 | H64: CAP_n60_p30_s50_3_2 | I64: 114148.6 | J64: 114135.0 | K64: 114181.7 | L64: 114136.0
A65: CAP_n60_p30_s50_3_3 | B65: 76133.43 | C65: 76057.00 | D65: 76165.60 | E65: 76059.00 | H65: CAP_n60_p30_s50_3_3 | I65: 76133.4 | J65: 76057.0 | K65: 76165.6 | L65: 76059.0
A66: CAP_n60_p30_s50_3_4 | B66: 57239.60 | C66: 57165.00 | D66: 57273.10 | E66: 57162.00 | H66: CAP_n60_p30_s50_3_4 | I66: 57239.6 | J66: 57165.0 | K66: 57273.1 | L66: 57162.0
A67: CAP_n60_p30_s50_3_5 | B67: 45803.73 | C67: 45747.00 | D67: 45825.43 | E67: 45755.00 | H67: CAP_n60_p30_s50_3_5 | I67: 45803.7 | J67: 45747.0 | K67: 45825.4 | L67: 45755.0
A68: CAP_n60_p30_s60_1_2 | B68: 108126.97 | C68: 108113.00 | D68: 108135.87 | E68: 108113.00 | H68: CAP_n60_p30_s60_1_2 | I68: 108127.0 | J68: 108113.0 | K68: 108135.9 | L68: 108113.0
A69: CAP_n60_p30_s60_1_3 | B69: 72105.93 | C69: 72082.00 | D69: 72120.17 | E69: 72077.00 | H69: CAP_n60_p30_s60_1_3 | I69: 72105.9 | J69: 72082.0 | K69: 72120.2 | L69: 72077.0
A70: CAP_n60_p30_s60_1_4 | B70: 53991.23 | C70: 53940.00 | D70: 53980.70 | E70: 53943.00 | H70: CAP_n60_p30_s60_1_4 | I70: 53991.2 | J70: 53940.0 | K70: 53980.7 | L70: 53943.0
A71: CAP_n60_p30_s60_1_5 | B71: 43205.97 | C71: 43179.00 | D71: 43206.37 | E71: 43150.00 | H71: CAP_n60_p30_s60_1_5 | I71: 43206.0 | J71: 43179.0 | K71: 43206.4 | L71: 43150.0
A72: CAP_n60_p30_s60_2_2 | B72: 109943.10 | C72: 109913.50 | D72: 110018.67 | E72: 109908.50 | H72: CAP_n60_p30_s60_2_2 | I72: 109943.1 | J72: 109913.5 | K72: 110018.7 | L72: 109908.5
A73: CAP_n60_p30_s60_2_3 | B73: 73292.37 | C73: 73236.50 | D73: 73366.10 | E73: 73218.50 | H73: CAP_n60_p30_s60_2_3 | I73: 73292.4 | J73: 73236.5 | K73: 73366.1 | L73: 73218.5
A74: CAP_n60_p30_s60_2_4 | B74: 54963.50 | C74: 54892.50 | D74: 54994.03 | E74: 54884.50 | H74: CAP_n60_p30_s60_2_4 | I74: 54963.5 | J74: 54892.5 | K74: 54994.0 | L74: 54884.5
A75: CAP_n60_p30_s60_2_5 | B75: 43927.80 | C75: 43882.50 | D75: 43983.10 | E75: 43902.50 | H75: CAP_n60_p30_s60_2_5 | I75: 43927.8 | J75: 43882.5 | K75: 43983.1 | L75: 43902.5
A76: CAP_n60_p30_s60_3_2 | B76: 91690.07 | C76: 91619.00 | D76: 91887.13 | E76: 91634.00 | H76: CAP_n60_p30_s60_3_2 | I76: 91690.1 | J76: 91619.0 | K76: 91887.1 | L76: 91634.0
A77: CAP_n60_p30_s60_3_3 | B77: 61173.87 | C77: 61134.00 | D77: 61300.83 | E77: 61136.00 | H77: CAP_n60_p30_s60_3_3 | I77: 61173.9 | J77: 61134.0 | K77: 61300.8 | L77: 61136.0
A78: CAP_n60_p30_s60_3_4 | B78: 45817.47 | C78: 45767.00 | D78: 45922.07 | E78: 45759.00 | H78: CAP_n60_p30_s60_3_4 | I78: 45817.5 | J78: 45767.0 | K78: 45922.1 | L78: 45759.0
A79: CAP_n60_p30_s60_3_5 | B79: 36589.47 | C79: 36546.00 | D79: 36680.60 | E79: 36550.00 | H79: CAP_n60_p30_s60_3_5 | I79: 36589.5 | J79: 36546.0 | K79: 36680.6 | L79: 36550.0
A80: CAP_n60_p60_s30_1_2 | B80: 445385.23 | C80: 445377.50 | D80: 445484.90 | E80: 445377.50 | H80: CAP_n60_p60_s30_1_2 | I80: 445385.2 | J80: 445377.5 | K80: 445484.9 | L80: 445377.5
A81: CAP_n60_p60_s30_1_3 | B81: 297064.13 | C81: 297028.50 | D81: 297119.13 | E81: 297028.50 | H81: CAP_n60_p60_s30_1_3 | I81: 297064.1 | J81: 297028.5 | K81: 297119.1 | L81: 297028.5
A82: CAP_n60_p60_s30_1_4 | B82: 222873.47 | C82: 222836.50 | D82: 222926.67 | E82: 222834.50 | H82: CAP_n60_p60_s30_1_4 | I82: 222873.5 | J82: 222836.5 | K82: 222926.7 | L82: 222834.5
A83: CAP_n60_p60_s30_1_5 | B83: 178432.53 | C83: 178367.50 | D83: 178447.93 | E83: 178383.50 | H83: CAP_n60_p60_s30_1_5 | I83: 178432.5 | J83: 178367.5 | K83: 178447.9 | L83: 178383.5
A84: CAP_n60_p60_s30_2_2 | B84: 407912.03 | C84: 407886.50 | D84: 407914.57 | E84: 407886.50 | H84: CAP_n60_p60_s30_2_2 | I84: 407912.0 | J84: 407886.5 | K84: 407914.6 | L84: 407886.5
A85: CAP_n60_p60_s30_2_3 | B85: 271977.93 | C85: 271936.50 | D85: 272035.93 | E85: 271914.50 | H85: CAP_n60_p60_s30_2_3 | I85: 271977.9 | J85: 271936.5 | K85: 272035.9 | L85: 271914.5
A86: CAP_n60_p60_s30_2_4 | B86: 204027.90 | C86: 203952.50 | D86: 204033.57 | E86: 203952.50 | H86: CAP_n60_p60_s30_2_4 | I86: 204027.9 | J86: 203952.5 | K86: 204033.6 | L86: 203952.5
A87: CAP_n60_p60_s30_2_5 | B87: 163187.13 | C87: 163129.50 | D87: 163301.33 | E87: 163126.50 | H87: CAP_n60_p60_s30_2_5 | I87: 163187.1 | J87: 163129.5 | K87: 163301.3 | L87: 163126.5
A88: CAP_n60_p60_s30_3_2 | B88: 416933.00 | C88: 416912.50 | D88: 416934.87 | E88: 416912.50 | H88: CAP_n60_p60_s30_3_2 | I88: 416933.0 | J88: 416912.5 | K88: 416934.9 | L88: 416912.5
A89: CAP_n60_p60_s30_3_3 | B89: 278023.93 | C89: 277988.50 | D89: 278053.73 | E89: 277999.50 | H89: CAP_n60_p60_s30_3_3 | I89: 278023.9 | J89: 277988.5 | K89: 278053.7 | L89: 277999.5
A90: CAP_n60_p60_s30_3_4 | B90: 208459.37 | C90: 208395.50 | D90: 208465.00 | E90: 208394.50 | H90: CAP_n60_p60_s30_3_4 | I90: 208459.4 | J90: 208395.5 | K90: 208465.0 | L90: 208394.5
A91: CAP_n60_p60_s30_3_5 | B91: 166729.93 | C91: 166648.50 | D91: 166734.60 | E91: 166648.50 | H91: CAP_n60_p60_s30_3_5 | I91: 166729.9 | J91: 166648.5 | K91: 166734.6 | L91: 166648.5
A92: CAP_n60_p60_s40_1_2 | B92: 313325.30 | C92: 313310.00 | D92: 313337.93 | E92: 313304.00 | H92: CAP_n60_p60_s40_1_2 | I92: 313325.3 | J92: 313310.0 | K92: 313337.9 | L92: 313304.0
A93: CAP_n60_p60_s40_1_3 | B93: 209335.90 | C93: 209280.00 | D93: 209345.37 | E93: 209293.00 | H93: CAP_n60_p60_s40_1_3 | I93: 209335.9 | J93: 209280.0 | K93: 209345.4 | L93: 209293.0
A94: CAP_n60_p60_s40_1_4 | B94: 157218.67 | C94: 157162.00 | D94: 157224.47 | E94: 157171.00 | H94: CAP_n60_p60_s40_1_4 | I94: 157218.7 | J94: 157162.0 | K94: 157224.5 | L94: 157171.0
A95: CAP_n60_p60_s40_1_5 | B95: 125985.27 | C95: 125861.00 | D95: 126007.00 | E95: 125849.00 | H95: CAP_n60_p60_s40_1_5 | I95: 125985.3 | J95: 125861.0 | K95: 126007.0 | L95: 125849.0
A96: CAP_n60_p60_s40_2_2 | B96: 320768.80 | C96: 320758.50 | D96: 320769.00 | E96: 320758.50 | H96: CAP_n60_p60_s40_2_2 | I96: 320768.8 | J96: 320758.5 | K96: 320769.0 | L96: 320758.5
A97: CAP_n60_p60_s40_2_3 | B97: 213834.30 | C97: 213799.50 | D97: 213875.83 | E97: 213797.50 | H97: CAP_n60_p60_s40_2_3 | I97: 213834.3 | J97: 213799.5 | K97: 213875.8 | L97: 213797.5
A98: CAP_n60_p60_s40_2_4 | B98: 160763.77 | C98: 160718.50 | D98: 160776.80 | E98: 160711.50 | H98: CAP_n60_p60_s40_2_4 | I98: 160763.8 | J98: 160718.5 | K98: 160776.8 | L98: 160711.5
A99: CAP_n60_p60_s40_2_5 | B99: 129196.50 | C99: 129148.50 | D99: 129216.87 | E99: 129140.50 | H99: CAP_n60_p60_s40_2_5 | I99: 129196.5 | J99: 129148.5 | K99: 129216.9 | L99: 129140.5
A100: CAP_n60_p60_s40_3_2 | B100: 363059.90 | C100: 363020.50 | D100: 363224.10 | E100: 363020.50 | H100: CAP_n60_p60_s40_3_2 | I100: 363059.9 | J100: 363020.5 | K100: 363224.1 | L100: 363020.5
A101: CAP_n60_p60_s40_3_3 | B101: 242469.37 | C101: 242411.50 | D101: 242515.33 | E101: 242414.50 | H101: CAP_n60_p60_s40_3_3 | I101: 242469.4 | J101: 242411.5 | K101: 242515.3 | L101: 242414.5
A102: CAP_n60_p60_s40_3_4 | B102: 182128.37 | C102: 182016.50 | D102: 182172.10 | E102: 182009.50 | H102: CAP_n60_p60_s40_3_4 | I102: 182128.4 | J102: 182016.5 | K102: 182172.1 | L102: 182009.5
A103: CAP_n60_p60_s40_3_5 | B103: 145768.33 | C103: 145672.50 | D103: 145929.57 | E103: 145686.50 | H103: CAP_n60_p60_s40_3_5 | I103: 145768.3 | J103: 145672.5 | K103: 145929.6 | L103: 145686.5
A104: CAP_n60_p60_s50_1_2 | B104: 273455.10 | C104: 273420.00 | D104: 273502.37 | E104: 273420.00 | H104: CAP_n60_p60_s50_1_2 | I104: 273455.1 | J104: 273420.0 | K104: 273502.4 | L104: 273420.0
A105: CAP_n60_p60_s50_1_3 | B105: 182490.53 | C105: 182448.00 | D105: 182487.07 | E105: 182454.00 | H105: CAP_n60_p60_s50_1_3 | I105: 182490.5 | J105: 182448.0 | K105: 182487.1 | L105: 182454.0
A106: CAP_n60_p60_s50_1_4 | B106: 137171.73 | C106: 137135.00 | D106: 137183.10 | E106: 137135.00 | H106: CAP_n60_p60_s50_1_4 | I106: 137171.7 | J106: 137135.0 | K106: 137183.1 | L106: 137135.0
A107: CAP_n60_p60_s50_1_5 | B107: 110335.03 | C107: 110313.00 | D107: 110373.40 | E107: 110313.00 | H107: CAP_n60_p60_s50_1_5 | I107: 110335.0 | J107: 110313.0 | K107: 110373.4 | L107: 110313.0
A108: CAP_n60_p60_s50_2_2 | B108: 269714.13 | C108: 269680.50 | D108: 269798.07 | E108: 269680.50 | H108: CAP_n60_p60_s50_2_2 | I108: 269714.1 | J108: 269680.5 | K108: 269798.1 | L108: 269680.5
A109: CAP_n60_p60_s50_2_3 | B109: 180170.90 | C109: 180082.50 | D109: 180173.13 | E109: 180047.50 | H109: CAP_n60_p60_s50_2_3 | I109: 180170.9 | J109: 180082.5 | K109: 180173.1 | L109: 180047.5
A110: CAP_n60_p60_s50_2_4 | B110: 135480.77 | C110: 135418.50 | D110: 135549.23 | E110: 135417.50 | H110: CAP_n60_p60_s50_2_4 | I110: 135480.8 | J110: 135418.5 | K110: 135549.2 | L110: 135417.5
A111: CAP_n60_p60_s50_2_5 | B111: 108817.67 | C111: 108714.50 | D111: 108996.03 | E111: 108708.50 | H111: CAP_n60_p60_s50_2_5 | I111: 108817.7 | J111: 108714.5 | K111: 108996.0 | L111: 108708.5
A112: CAP_n60_p60_s50_3_2 | B112: 295431.63 | C112: 295408.00 | D112: 295449.87 | E112: 295414.00 | H112: CAP_n60_p60_s50_3_2 | I112: 295431.6 | J112: 295408.0 | K112: 295449.9 | L112: 295414.0
A113: CAP_n60_p60_s50_3_3 | B113: 197060.30 | C113: 197005.00 | D113: 197077.80 | E113: 197005.00 | H113: CAP_n60_p60_s50_3_3 | I113: 197060.3 | J113: 197005.0 | K113: 197077.8 | L113: 197005.0
A114: CAP_n60_p60_s50_3_4 | B114: 147880.50 | C114: 147855.00 | D114: 147919.20 | E114: 147855.00 | H114: CAP_n60_p60_s50_3_4 | I114: 147880.5 | J114: 147855.0 | K114: 147919.2 | L114: 147855.0
A115: CAP_n60_p60_s50_3_5 | B115: 118557.83 | C115: 118522.00 | D115: 118574.50 | E115: 118519.00 | H115: CAP_n60_p60_s50_3_5 | I115: 118557.8 | J115: 118522.0 | K115: 118574.5 | L115: 118519.0
A116: CAP_n60_p60_s60_1_2 | B116: 227901.83 | C116: 227896.00 | D116: 227904.87 | E116: 227896.00 | H116: CAP_n60_p60_s60_1_2 | I116: 227901.8 | J116: 227896.0 | K116: 227904.9 | L116: 227896.0
A117: CAP_n60_p60_s60_1_3 | B117: 151827.87 | C117: 151791.00 | D117: 151832.63 | E117: 151791.00 | H117: CAP_n60_p60_s60_1_3 | I117: 151827.9 | J117: 151791.0 | K117: 151832.6 | L117: 151791.0
A118: CAP_n60_p60_s60_1_4 | B118: 113852.87 | C118: 113823.00 | D118: 113853.47 | E118: 113831.00 | H118: CAP_n60_p60_s60_1_4 | I118: 113852.9 | J118: 113823.0 | K118: 113853.5 | L118: 113831.0
A119: CAP_n60_p60_s60_1_5 | B119: 91084.83 | C119: 91053.00 | D119: 91088.80 | E119: 91053.00 | H119: CAP_n60_p60_s60_1_5 | I119: 91084.8 | J119: 91053.0 | K119: 91088.8 | L119: 91053.0
A120: CAP_n60_p60_s60_2_2 | B120: 246555.77 | C120: 246523.00 | D120: 246733.73 | E120: 246523.00 | H120: CAP_n60_p60_s60_2_2 | I120: 246555.8 | J120: 246523.0 | K120: 246733.7 | L120: 246523.0
A121: CAP_n60_p60_s60_2_3 | B121: 164247.43 | C121: 164228.00 | D121: 164374.80 | E121: 164228.00 | H121: CAP_n60_p60_s60_2_3 | I121: 164247.4 | J121: 164228.0 | K121: 164374.8 | L121: 164228.0
A122: CAP_n60_p60_s60_2_4 | B122: 123224.40 | C122: 123188.00 | D122: 123278.07 | E122: 123182.00 | H122: CAP_n60_p60_s60_2_4 | I122: 123224.4 | J122: 123188.0 | K122: 123278.1 | L122: 123182.0
A123: CAP_n60_p60_s60_2_5 | B123: 98414.47 | C123: 98403.00 | D123: 98514.87 | E123: 98397.00 | H123: CAP_n60_p60_s60_2_5 | I123: 98414.5 | J123: 98403.0 | K123: 98514.9 | L123: 98397.0
A124: CAP_n60_p60_s60_3_2 | B124: 206509.23 | C124: 206482.50 | D124: 206547.07 | E124: 206482.50 | H124: CAP_n60_p60_s60_3_2 | I124: 206509.2 | J124: 206482.5 | K124: 206547.1 | L124: 206482.5
A125: CAP_n60_p60_s60_3_3 | B125: 137738.03 | C125: 137661.50 | D125: 137784.70 | E125: 137661.50 | H125: CAP_n60_p60_s60_3_3 | I125: 137738.0 | J125: 137661.5 | K125: 137784.7 | L125: 137661.5
A126: CAP_n60_p60_s60_3_4 | B126: 103364.33 | C126: 103278.50 | D126: 103388.17 | E126: 103280.50 | H126: CAP_n60_p60_s60_3_4 | I126: 103364.3 | J126: 103278.5 | K126: 103388.2 | L126: 103280.5
A127: CAP_n60_p60_s60_3_5 | B127: 82694.57 | C127: 82651.50 | D127: 82786.20 | E127: 82653.50 | H127: CAP_n60_p60_s60_3_5 | I127: 82694.6 | J127: 82651.5 | K127: 82786.2 | L127: 82653.5
A128: CAP_n60_p90_s30_1_2 | B128: 628870.50 | C128: 628850.00 | D128: 628877.40 | E128: 628850.00 | H128: CAP_n60_p90_s30_1_2 | I128: 628870.5 | J128: 628850.0 | K128: 628877.4 | L128: 628850.0
A129: CAP_n60_p90_s30_1_3 | B129: 419082.13 | C129: 419046.00 | D129: 419080.50 | E129: 419046.00 | H129: CAP_n60_p90_s30_1_3 | I129: 419082.1 | J129: 419046.0 | K129: 419080.5 | L129: 419046.0
A130: CAP_n60_p90_s30_1_4 | B130: 314488.50 | C130: 314451.00 | D130: 314512.27 | E130: 314459.00 | H130: CAP_n60_p90_s30_1_4 | I130: 314488.5 | J130: 314451.0 | K130: 314512.3 | L130: 314459.0
A131: CAP_n60_p90_s30_1_5 | B131: 251652.67 | C131: 251603.00 | D131: 251689.43 | E131: 251598.00 | H131: CAP_n60_p90_s30_1_5 | I131: 251652.7 | J131: 251603.0 | K131: 251689.4 | L131: 251598.0
A132: CAP_n60_p90_s30_2_2 | B132: 561180.20 | C132: 561170.50 | D132: 561185.30 | E132: 561170.50 | H132: CAP_n60_p90_s30_2_2 | I132: 561180.2 | J132: 561170.5 | K132: 561185.3 | L132: 561170.5
A133: CAP_n60_p90_s30_2_3 | B133: 374136.97 | C133: 374113.50 | D133: 374136.63 | E133: 374113.50 | H133: CAP_n60_p90_s30_2_3 | I133: 374137.0 | J133: 374113.5 | K133: 374136.6 | L133: 374113.5
A134: CAP_n60_p90_s30_2_4 | B134: 281124.07 | C134: 281065.50 | D134: 281158.23 | E134: 281067.50 | H134: CAP_n60_p90_s30_2_4 | I134: 281124.1 | J134: 281065.5 | K134: 281158.2 | L134: 281067.5
A135: CAP_n60_p90_s30_2_5 | B135: 225112.03 | C135: 225094.50 | D135: 225126.77 | E135: 225092.50 | H135: CAP_n60_p90_s30_2_5 | I135: 225112.0 | J135: 225094.5 | K135: 225126.8 | L135: 225092.5
A136: CAP_n60_p90_s30_3_2 | B136: 587828.27 | C136: 587816.50 | D136: 587829.73 | E136: 587816.50 | H136: CAP_n60_p90_s30_3_2 | I136: 587828.3 | J136: 587816.5 | K136: 587829.7 | L136: 587816.5
A137: CAP_n60_p90_s30_3_3 | B137: 392114.80 | C137: 392101.50 | D137: 392135.00 | E137: 392101.50 | H137: CAP_n60_p90_s30_3_3 | I137: 392114.8 | J137: 392101.5 | K137: 392135.0 | L137: 392101.5
A138: CAP_n60_p90_s30_3_4 | B138: 294266.67 | C138: 294252.50 | D138: 294287.17 | E138: 294245.50 | H138: CAP_n60_p90_s30_3_4 | I138: 294266.7 | J138: 294252.5 | K138: 294287.2 | L138: 294245.5
A139: CAP_n60_p90_s30_3_5 | B139: 235786.27 | C139: 235766.50 | D139: 235803.80 | E139: 235765.50 | H139: CAP_n60_p90_s30_3_5 | I139: 235786.3 | J139: 235766.5 | K139: 235803.8 | L139: 235765.5
A140: CAP_n60_p90_s40_1_2 | B140: 474054.10 | C140: 474046.00 | D140: 474052.70 | E140: 474046.00 | H140: CAP_n60_p90_s40_1_2 | I140: 474054.1 | J140: 474046.0 | K140: 474052.7 | L140: 474046.0
A141: CAP_n60_p90_s40_1_3 | B141: 316503.97 | C141: 316473.00 | D141: 316510.73 | E141: 316473.00 | H141: CAP_n60_p90_s40_1_3 | I141: 316504.0 | J141: 316473.0 | K141: 316510.7 | L141: 316473.0
A142: CAP_n60_p90_s40_1_4 | B142: 237079.27 | C142: 237072.00 | D142: 237083.60 | E142: 237072.00 | H142: CAP_n60_p90_s40_1_4 | I142: 237079.3 | J142: 237072.0 | K142: 237083.6 | L142: 237072.0
A143: CAP_n60_p90_s40_1_5 | B143: 190191.83 | C143: 190176.00 | D143: 190192.00 | E143: 190179.00 | H143: CAP_n60_p90_s40_1_5 | I143: 190191.8 | J143: 190176.0 | K143: 190192.0 | L143: 190179.0
A144: CAP_n60_p90_s40_2_2 | B144: 479965.80 | C144: 479963.00 | D144: 479967.10 | E144: 479963.00 | H144: CAP_n60_p90_s40_2_2 | I144: 479965.8 | J144: 479963.0 | K144: 479967.1 | L144: 479963.0
A145: CAP_n60_p90_s40_2_3 | B145: 320000.23 | C145: 319977.00 | D145: 320036.87 | E145: 319977.00 | H145: CAP_n60_p90_s40_2_3 | I145: 320000.2 | J145: 319977.0 | K145: 320036.9 | L145: 319977.0
A146: CAP_n60_p90_s40_2_4 | B146: 240504.37 | C146: 240433.00 | D146: 240510.60 | E146: 240429.00 | H146: CAP_n60_p90_s40_2_4 | I146: 240504.4 | J146: 240433.0 | K146: 240510.6 | L146: 240429.0
A147: CAP_n60_p90_s40_2_5 | B147: 192654.57 | C147: 192612.00 | D147: 192650.70 | E147: 192612.00 | H147: CAP_n60_p90_s40_2_5 | I147: 192654.6 | J147: 192612.0 | K147: 192650.7 | L147: 192612.0
A148: CAP_n60_p90_s40_3_2 | B148: 512452.17 | C148: 512452.00 | D148: 512461.00 | E148: 512452.00 | H148: CAP_n60_p90_s40_3_2 | I148: 512452.2 | J148: 512452.0 | K148: 512461.0 | L148: 512452.0
A149: CAP_n60_p90_s40_3_3 | B149: 341974.03 | C149: 341952.00 | D149: 341986.43 | E149: 341951.00 | H149: CAP_n60_p90_s40_3_3 | I149: 341974.0 | J149: 341952.0 | K149: 341986.4 | L149: 341951.0
A150: CAP_n60_p90_s40_3_4 | B150: 256646.87 | C150: 256637.00 | D150: 256652.63 | E150: 256637.00 | H150: CAP_n60_p90_s40_3_4 | I150: 256646.9 | J150: 256637.0 | K150: 256652.6 | L150: 256637.0
A151: CAP_n60_p90_s40_3_5 | B151: 206040.07 | C151: 206020.00 | D151: 206062.23 | E151: 206020.00 | H151: CAP_n60_p90_s40_3_5 | I151: 206040.1 | J151: 206020.0 | K151: 206062.2 | L151: 206020.0
A152: CAP_n60_p90_s50_1_2 | B152: 479686.27 | C152: 479683.00 | D152: 479693.80 | E152: 479683.00 | H152: CAP_n60_p90_s50_1_2 | I152: 479686.3 | J152: 479683.0 | K152: 479693.8 | L152: 479683.0
A153: CAP_n60_p90_s50_1_3 | B153: 320215.60 | C153: 320160.00 | D153: 320216.03 | E153: 320160.00 | H153: CAP_n60_p90_s50_1_3 | I153: 320215.6 | J153: 320160.0 | K153: 320216.0 | L153: 320160.0
A154: CAP_n60_p90_s50_1_4 | B154: 240450.77 | C154: 240309.00 | D154: 240410.60 | E154: 240309.00 | H154: CAP_n60_p90_s50_1_4 | I154: 240450.8 | J154: 240309.0 | K154: 240410.6 | L154: 240309.0
A155: CAP_n60_p90_s50_1_5 | B155: 193028.27 | C155: 192971.00 | D155: 193036.77 | E155: 192970.00 | H155: CAP_n60_p90_s50_1_5 | I155: 193028.3 | J155: 192971.0 | K155: 193036.8 | L155: 192970.0
A156: CAP_n60_p90_s50_2_2 | B156: 445057.90 | C156: 445030.00 | D156: 445197.47 | E156: 445030.00 | H156: CAP_n60_p90_s50_2_2 | I156: 445057.9 | J156: 445030.0 | K156: 445197.5 | L156: 445030.0
A157: CAP_n60_p90_s50_2_3 | B157: 297241.73 | C157: 297211.00 | D157: 297256.67 | E157: 297176.00 | H157: CAP_n60_p90_s50_2_3 | I157: 297241.7 | J157: 297211.0 | K157: 297256.7 | L157: 297176.0
A158: CAP_n60_p90_s50_2_4 | B158: 223829.50 | C158: 223713.00 | D158: 223923.40 | E158: 223672.00 | H158: CAP_n60_p90_s50_2_4 | I158: 223829.5 | J158: 223713.0 | K158: 223923.4 | L158: 223672.0
A159: CAP_n60_p90_s50_2_5 | B159: 179961.40 | C159: 179935.00 | D159: 180051.63 | E159: 179930.00 | H159: CAP_n60_p90_s50_2_5 | I159: 179961.4 | J159: 179935.0 | K159: 180051.6 | L159: 179930.0
A160: CAP_n60_p90_s50_3_2 | B160: 495055.73 | C160: 495052.50 | D160: 495226.30 | E160: 495052.50 | H160: CAP_n60_p90_s50_3_2 | I160: 495055.7 | J160: 495052.5 | K160: 495226.3 | L160: 495052.5
A161: CAP_n60_p90_s50_3_3 | B161: 330289.23 | C161: 330279.50 | D161: 330376.30 | E161: 330279.50 | H161: CAP_n60_p90_s50_3_3 | I161: 330289.2 | J161: 330279.5 | K161: 330376.3 | L161: 330279.5
A162: CAP_n60_p90_s50_3_4 | B162: 248489.93 | C162: 248428.50 | D162: 248486.37 | E162: 248428.50 | H162: CAP_n60_p90_s50_3_4 | I162: 248489.9 | J162: 248428.5 | K162: 248486.4 | L162: 248428.5
A163: CAP_n60_p90_s50_3_5 | B163: 199848.97 | C163: 199821.50 | D163: 199861.93 | E163: 199820.50 | H163: CAP_n60_p90_s50_3_5 | I163: 199849.0 | J163: 199821.5 | K163: 199861.9 | L163: 199820.5
A164: CAP_n60_p90_s60_1_2 | B164: 385432.83 | C164: 385430.50 | D164: 385434.57 | E164: 385430.50 | H164: CAP_n60_p90_s60_1_2 | I164: 385432.8 | J164: 385430.5 | K164: 385434.6 | L164: 385430.5
A165: CAP_n60_p90_s60_1_3 | B165: 257001.53 | C165: 256986.50 | D165: 257006.03 | E165: 256986.50 | H165: CAP_n60_p90_s60_1_3 | I165: 257001.5 | J165: 256986.5 | K165: 257006.0 | L165: 256986.5
A166: CAP_n60_p90_s60_1_4 | B166: 192651.77 | C166: 192646.50 | D166: 192655.73 | E166: 192646.50 | H166: CAP_n60_p90_s60_1_4 | I166: 192651.8 | J166: 192646.5 | K166: 192655.7 | L166: 192646.5
A167: CAP_n60_p90_s60_1_5 | B167: 154060.63 | C167: 154033.50 | D167: 154056.00 | E167: 154034.50 | H167: CAP_n60_p90_s60_1_5 | I167: 154060.6 | J167: 154033.5 | K167: 154056.0 | L167: 154034.5
A168: CAP_n60_p90_s60_2_2 | B168: 344777.53 | C168: 344775.00 | D168: 344776.73 | E168: 344775.00 | H168: CAP_n60_p90_s60_2_2 | I168: 344777.5 | J168: 344775.0 | K168: 344776.7 | L168: 344775.0
A169: CAP_n60_p90_s60_2_3 | B169: 229971.47 | C169: 229964.00 | D169: 229971.03 | E169: 229964.00 | H169: CAP_n60_p90_s60_2_3 | I169: 229971.5 | J169: 229964.0 | K169: 229971.0 | L169: 229964.0
A170: CAP_n60_p90_s60_2_4 | B170: 172510.60 | C170: 172473.00 | D170: 172517.47 | E170: 172502.00 | H170: CAP_n60_p90_s60_2_4 | I170: 172510.6 | J170: 172473.0 | K170: 172517.5 | L170: 172502.0
A171: CAP_n60_p90_s60_2_5 | B171: 137855.57 | C171: 137793.00 | D171: 137876.43 | E171: 137793.00 | H171: CAP_n60_p90_s60_2_5 | I171: 137855.6 | J171: 137793.0 | K171: 137876.4 | L171: 137793.0
A172: CAP_n60_p90_s60_3_2 | B172: 411209.90 | C172: 411205.00 | D172: 411241.60 | E172: 411205.00 | H172: CAP_n60_p90_s60_3_2 | I172: 411209.9 | J172: 411205.0 | K172: 411241.6 | L172: 411205.0
A173: CAP_n60_p90_s60_3_3 | B173: 273894.03 | C173: 273884.00 | D173: 273951.37 | E173: 273884.00 | H173: CAP_n60_p90_s60_3_3 | I173: 273894.0 | J173: 273884.0 | K173: 273951.4 | L173: 273884.0
A174: CAP_n60_p90_s60_3_4 | B174: 205283.23 | C174: 205255.00 | D174: 205338.07 | E174: 205255.00 | H174: CAP_n60_p90_s60_3_4 | I174: 205283.2 | J174: 205255.0 | K174: 205338.1 | L174: 205255.0
A175: CAP_n60_p90_s60_3_5 | B175: 164029.93 | C175: 164013.00 | D175: 164039.50 | E175: 164018.00 | H175: CAP_n60_p90_s60_3_5 | I175: 164029.9 | J175: 164013.0 | K175: 164039.5 | L175: 164018.0
A176: N25_01_2 | B176: 2302.00 | C176: 2302.00 | D176: 2302.60 | E176: 2302.00 | H176: N25_01_2 | I176: 2302.0 | J176: 2302.0 | K176: 2302.6 | L176: 2302.0
A177: N25_01_3 | B177: 1531.00 | C177: 1531.00 | D177: 1531.40 | E177: 1531.00 | H177: N25_01_3 | I177: 1531.0 | J177: 1531.0 | K177: 1531.4 | L177: 1531.0
A178: N25_01_4 | B178: 1137.00 | C178: 1137.00 | D178: 1137.60 | E178: 1137.00 | H178: N25_01_4 | I178: 1137.0 | J178: 1137.0 | K178: 1137.6 | L178: 1137.0
A179: N25_01_5 | B179: 898.00 | C179: 898.00 | D179: 898.00 | E179: 898.00 | H179: N25_01_5 | I179: 898.0 | J179: 898.0 | K179: 898.0 | L179: 898.0
A180: N25_02_2 | B180: 18595.90 | C180: 18595.50 | D180: 18600.70 | E180: 18595.50 | H180: N25_02_2 | I180: 18595.9 | J180: 18595.5 | K180: 18600.7 | L180: 18595.5
A181: N25_02_3 | B181: 12387.40 | C181: 12383.50 | D181: 12387.23 | E181: 12383.50 | H181: N25_02_3 | I181: 12387.4 | J181: 12383.5 | K181: 12387.2 | L181: 12383.5
A182: N25_02_4 | B182: 9254.83 | C182: 9249.50 | D182: 9285.03 | E182: 9249.50 | H182: N25_02_4 | I182: 9254.8 | J182: 9249.5 | K182: 9285.0 | L182: 9249.5
A183: N25_02_5 | B183: 7513.50 | C183: 7513.50 | D183: 7517.60 | E183: 7513.50 | H183: N25_02_5 | I183: 7513.5 | J183: 7513.5 | K183: 7517.6 | L183: 7513.5
A184: N25_03_2 | B184: 12120.30 | C184: 12114.00 | D184: 12128.00 | E184: 12114.00 | H184: N25_03_2 | I184: 12120.3 | J184: 12114.0 | K184: 12128.0 | L184: 12114.0
A185: N25_03_3 | B185: 8105.37 | C185: 8102.00 | D185: 8111.93 | E185: 8102.00 | H185: N25_03_3 | I185: 8105.4 | J185: 8102.0 | K185: 8111.9 | L185: 8102.0
A186: N25_03_4 | B186: 5988.83 | C186: 5984.00 | D186: 6009.10 | E186: 5984.00 | H186: N25_03_4 | I186: 5988.8 | J186: 5984.0 | K186: 6009.1 | L186: 5984.0
A187: N25_03_5 | B187: 4830.90 | C187: 4826.00 | D187: 4833.30 | E187: 4826.00 | H187: N25_03_5 | I187: 4830.9 | J187: 4826.0 | K187: 4833.3 | L187: 4826.0
A188: N25_04_2 | B188: 24192.50 | C188: 24192.50 | D188: 24216.03 | E188: 24192.50 | H188: N25_04_2 | I188: 24192.5 | J188: 24192.5 | K188: 24216.0 | L188: 24192.5
A189: N25_04_3 | B189: 16128.43 | C189: 16115.50 | D189: 16139.23 | E189: 16115.50 | H189: N25_04_3 | I189: 16128.4 | J189: 16115.5 | K189: 16139.2 | L189: 16115.5
A190: N25_04_4 | B190: 12041.40 | C190: 12028.50 | D190: 12072.70 | E190: 12028.50 | H190: N25_04_4 | I190: 12041.4 | J190: 12028.5 | K190: 12072.7 | L190: 12028.5
A191: N25_04_5 | B191: 9787.50 | C191: 9787.50 | D191: 9787.50 | E191: 9787.50 | H191: N25_04_5 | I191: 9787.5 | J191: 9787.5 | K191: 9787.5 | L191: 9787.5
A192: N25_05_2 | B192: 7819.00 | C192: 7819.00 | D192: 7820.20 | E192: 7819.00 | H192: N25_05_2 | I192: 7819.0 | J192: 7819.0 | K192: 7820.2 | L192: 7819.0
A193: N25_05_3 | B193: 5210.43 | C193: 5210.00 | D193: 5210.73 | E193: 5210.00 | H193: N25_05_3 | I193: 5210.4 | J193: 5210.0 | K193: 5210.7 | L193: 5210.0
A194: N25_05_4 | B194: 3914.00 | C194: 3908.00 | D194: 3918.20 | E194: 3908.00 | H194: N25_05_4 | I194: 3914.0 | J194: 3908.0 | K194: 3918.2 | L194: 3908.0
A195: N25_05_5 | B195: 3148.60 | C195: 3148.00 | D195: 3148.70 | E195: 3148.00 | H195: N25_05_5 | I195: 3148.6 | J195: 3148.0 | K195: 3148.7 | L195: 3148.0
A196: N30_01_2 | B196: 4115.00 | C196: 4115.00 | D196: 4115.00 | E196: 4115.00 | H196: N30_01_2 | I196: 4115.0 | J196: 4115.0 | K196: 4115.0 | L196: 4115.0
A197: N30_01_3 | B197: 2721.00 | C197: 2721.00 | D197: 2721.00 | E197: 2721.00 | H197: N30_01_3 | I197: 2721.0 | J197: 2721.0 | K197: 2721.0 | L197: 2721.0
A198: N30_01_4 | B198: 2043.00 | C198: 2043.00 | D198: 2043.00 | E198: 2043.00 | H198: N30_01_4 | I198: 2043.0 | J198: 2043.0 | K198: 2043.0 | L198: 2043.0
A199: N30_01_5 | B199: 1616.00 | C199: 1616.00 | D199: 1616.00 | E199: 1616.00 | H199: N30_01_5 | I199: 1616.0 | J199: 1616.0 | K199: 1616.0 | L199: 1616.0
A200: N30_02_2 | B200: 10779.80 | C200: 10779.50 | D200: 10781.30 | E200: 10779.50 | H200: N30_02_2 | I200: 10779.8 | J200: 10779.5 | K200: 10781.3 | L200: 10779.5
... 159 more rows

Sheet ProfileSFMRFLP
A1: Auto | C1: SOTA | G1: Config: solo carpeta de instancias 50 y 100
A2: 3.5 | B2: 0.26% | C2: 1 | D2: 0.38%
A3: 4 | B3: 0.25% | C3: 1.5 | D3: 0.32%
A4: 4.5 | B4: 0.24% | C4: 2 | D4: 0.26%
A5: 5 | B5: 0.22% | C5: 2.5 | D5: 0.23%
A6: 5.5 | B6: 0.20% | C6: 3 | D6: 0.20%
A7: 6 | B7: 0.19% | C7: 3.5 | D7: 0.19%
A8: 6.5 | B8: 0.18% | C8: 4 | D8: 0.17%
A9: 7 | B9: 0.17% | C9: 4.5 | D9: 0.16%
A10: 7.5 | B10: 0.16% | C10: 5 | D10: 0.15%
A11: 8 | B11: 0.15% | C11: 5.5 | D11: 0.15%
A12: 8.5 | B12: 0.14% | C12: 6 | D12: 0.14%
A13: 9 | B13: 0.14% | C13: 6.5 | D13: 0.14%
A14: 9.5 | B14: 0.13% | C14: 7 | D14: 0.14%
A15: 10 | B15: 0.13% | C15: 7.5 | D15: 0.13%
A16: 10.5 | B16: 0.12% | C16: 8 | D16: 0.13%
A17: 11 | B17: 0.12% | C17: 8.5 | D17: 0.13%
A18: 11.5 | B18: 0.11% | C18: 9 | D18: 0.13%
A19: 12 | B19: 0.11% | C19: 9.5 | D19: 0.12%
A20: 12.5 | B20: 0.10% | C20: 10 | D20: 0.12%
A21: 13 | B21: 0.10% | C21: 10.5 | D21: 0.12%
A22: 13.5 | B22: 0.10% | C22: 11 | D22: 0.12%
A23: 14 | B23: 0.10% | C23: 11.5 | D23: 0.12%
A24: 14.5 | B24: 0.09% | C24: 12 | D24: 0.12%
A25: 15 | B25: 0.09% | C25: 12.5 | D25: 0.12%
A26: 15.5 | B26: 0.09% | C26: 13 | D26: 0.12%
A27: 16 | B27: 0.09% | C27: 13.5 | D27: 0.12%
A28: 16.5 | B28: 0.09% | C28: 14 | D28: 0.11%
A29: 17 | B29: 0.08% | C29: 14.5 | D29: 0.11%
A30: 17.5 | B30: 0.08% | C30: 15 | D30: 0.11%
A31: 18 | B31: 0.08% | C31: 15.5 | D31: 0.11%
A32: 18.5 | B32: 0.08% | C32: 16 | D32: 0.11%
A33: 19 | B33: 0.08% | C33: 16.5 | D33: 0.11%
A34: 19.5 | B34: 0.08% | C34: 17 | D34: 0.11%
A35: 20 | B35: 0.08% | C35: 17.5 | D35: 0.11%
A36: 20.5 | B36: 0.07% | C36: 18 | D36: 0.11%
A37: 21 | B37: 0.07% | C37: 18.5 | D37: 0.11%
A38: 21.5 | B38: 0.07% | C38: 19 | D38: 0.11%
A39: 22 | B39: 0.07% | C39: 19.5 | D39: 0.11%
A40: 22.5 | B40: 0.07% | C40: 20 | D40: 0.11%
A41: 23 | B41: 0.07% | C41: 20.5 | D41: 0.11%
A42: 23.5 | B42: 0.07% | C42: 21 | D42: 0.11%
A43: 24 | B43: 0.07% | C43: 21.5 | D43: 0.11%
A44: 24.5 | B44: 0.07% | C44: 22 | D44: 0.11%
A45: 25 | B45: 0.07% | C45: 22.5 | D45: 0.11%
A46: 25.5 | B46: 0.07% | C46: 23 | D46: 0.11%
A47: 26 | B47: 0.07% | C47: 23.5 | D47: 0.11%
A48: 26.5 | B48: 0.06% | C48: 24 | D48: 0.11%
A49: 27 | B49: 0.06% | C49: 24.5 | D49: 0.11%
A50: 27.5 | B50: 0.06% | C50: 25 | D50: 0.10%
A51: 28 | B51: 0.06% | C51: 25.5 | D51: 0.10%
A52: 28.5 | B52: 0.06% | C52: 26 | D52: 0.10%
A53: 29 | B53: 0.06% | C53: 26.5 | D53: 0.10%
A54: 29.5 | B54: 0.06% | C54: 27 | D54: 0.10%
A55: 30 | B55: 0.06% | C55: 27.5 | D55: 0.10%
A56: 30.5 | B56: 0.06% | C56: 28 | D56: 0.10%
A57: 31 | B57: 0.06% | C57: 28.5 | D57: 0.10%
A58: 31.5 | B58: 0.06% | C58: 29 | D58: 0.10%
A59: 32 | B59: 0.06% | C59: 29.5 | D59: 0.10%
A60: 32.5 | B60: 0.06% | C60: 30 | D60: 0.10%
A61: 33 | B61: 0.06% | C61: 30.5 | D61: 0.10%
A62: 33.5 | B62: 0.06% | C62: 31 | D62: 0.10%
A63: 34 | B63: 0.06% | C63: 31.5 | D63: 0.10%
A64: 34.5 | B64: 0.06% | C64: 32 | D64: 0.10%
A65: 35 | B65: 0.06% | C65: 32.5 | D65: 0.10%
A66: 35.5 | B66: 0.06% | C66: 33 | D66: 0.10%
A67: 36 | B67: 0.06% | C67: 33.5 | D67: 0.10%
A68: 36.5 | B68: 0.06% | C68: 34 | D68: 0.10%
A69: 37 | B69: 0.06% | C69: 34.5 | D69: 0.10%
A70: 37.5 | B70: 0.06% | C70: 35 | D70: 0.10%
A71: 38 | B71: 0.06% | C71: 35.5 | D71: 0.10%
A72: 38.5 | B72: 0.06% | C72: 36 | D72: 0.10%
A73: 39 | B73: 0.06% | C73: 36.5 | D73: 0.10%
A74: 39.5 | B74: 0.06% | C74: 37 | D74: 0.10%
A75: 40 | B75: 0.06% | C75: 37.5 | D75: 0.10%
A76: 40.5 | B76: 0.06% | C76: 38 | D76: 0.10%
A77: 41 | B77: 0.06% | C77: 38.5 | D77: 0.10%
A78: 41.5 | B78: 0.05% | C78: 39 | D78: 0.10%
A79: 42 | B79: 0.05% | C79: 39.5 | D79: 0.10%
A80: 42.5 | B80: 0.05% | C80: 40 | D80: 0.10%
A81: 43 | B81: 0.05% | C81: 40.5 | D81: 0.10%
A82: 43.5 | B82: 0.05% | C82: 41 | D82: 0.10%
A83: 44 | B83: 0.05% | C83: 41.5 | D83: 0.10%
A84: 44.5 | B84: 0.05% | C84: 42 | D84: 0.10%
A85: 45 | B85: 0.05% | C85: 42.5 | D85: 0.10%
A86: 45.5 | B86: 0.05% | C86: 43 | D86: 0.10%
A87: 46 | B87: 0.05% | C87: 43.5 | D87: 0.10%
A88: 46.5 | B88: 0.05% | C88: 44 | D88: 0.10%
A89: 47 | B89: 0.05% | C89: 44.5 | D89: 0.10%
A90: 47.5 | B90: 0.05% | C90: 45 | D90: 0.10%
A91: 48 | B91: 0.05% | C91: 45.5 | D91: 0.10%
A92: 48.5 | B92: 0.05% | C92: 46 | D92: 0.10%
A93: 49 | B93: 0.05% | C93: 46.5 | D93: 0.10%
A94: 49.5 | B94: 0.05% | C94: 47 | D94: 0.10%
A95: 50 | B95: 0.05% | C95: 47.5 | D95: 0.10%
A96: 50.5 | B96: 0.05% | C96: 48 | D96: 0.10%
A97: 51 | B97: 0.05% | C97: 48.5 | D97: 0.10%
A98: 51.5 | B98: 0.05% | C98: 49 | D98: 0.10%
A99: 52 | B99: 0.05% | C99: 49.5 | D99: 0.10%
A100: 52.5 | B100: 0.05% | C100: 50 | D100: 0.10%
A101: 53 | B101: 0.05% | C101: 50.5 | D101: 0.10%
A102: 53.5 | B102: 0.05% | C102: 51 | D102: 0.10%
A103: 54 | B103: 0.05% | C103: 51.5 | D103: 0.10%
A104: 54.5 | B104: 0.05% | C104: 52 | D104: 0.10%
A105: 55 | B105: 0.05% | C105: 52.5 | D105: 0.10%
A106: 55.5 | B106: 0.05% | C106: 53 | D106: 0.10%
A107: 56 | B107: 0.05% | C107: 53.5 | D107: 0.10%
A108: 56.5 | B108: 0.05% | C108: 54 | D108: 0.10%
A109: 57 | B109: 0.05% | C109: 54.5 | D109: 0.10%
A110: 57.5 | B110: 0.05% | C110: 55 | D110: 0.10%
A111: 58 | B111: 0.05% | C111: 55.5 | D111: 0.10%
A112: 58.5 | B112: 0.05% | C112: 56 | D112: 0.10%
A113: 59 | B113: 0.05% | C113: 56.5 | D113: 0.10%
A114: 59.5 | B114: 0.05% | C114: 57 | D114: 0.10%
A115: 60 | B115: 0.05% | C115: 57.5 | D115: 0.10%
A116: 60.5 | B116: 0.05% | C116: 58 | D116: 0.10%
A117: 61 | B117: 0.05% | C117: 58.5 | D117: 0.10%
A118: 61.5 | B118: 0.05% | C118: 59 | D118: 0.10%
A119: 62 | B119: 0.05% | C119: 59.5 | D119: 0.10%
A120: 62.5 | B120: 0.05% | C120: 60 | D120: 0.10%
A121: 63 | B121: 0.05% | C121: 60.5 | D121: 0.10%
A122: 63.5 | B122: 0.05% | C122: 61 | D122: 0.10%
A123: 64 | B123: 0.05% | C123: 61.5 | D123: 0.10%
A124: 64.5 | B124: 0.05% | C124: 62 | D124: 0.10%
A125: 65 | B125: 0.05% | C125: 62.5 | D125: 0.10%
A126: 65.5 | B126: 0.05% | C126: 63 | D126: 0.10%
A127: 66 | B127: 0.05% | C127: 63.5 | D127: 0.10%
A128: 66.5 | B128: 0.05% | C128: 64 | D128: 0.10%
A129: 67 | B129: 0.05% | C129: 64.5 | D129: 0.10%
A130: 67.5 | B130: 0.05% | C130: 65 | D130: 0.10%
A131: 68 | B131: 0.05% | C131: 65.5 | D131: 0.10%
A132: 68.5 | B132: 0.05% | C132: 66 | D132: 0.10%
A133: 69 | B133: 0.05% | C133: 66.5 | D133: 0.10%
A134: 69.5 | B134: 0.05% | C134: 67 | D134: 0.10%
A135: 70 | B135: 0.05% | C135: 67.5 | D135: 0.10%
A136: 70.5 | B136: 0.05% | C136: 68 | D136: 0.10%
A137: 71 | B137: 0.05% | C137: 68.5 | D137: 0.10%
A138: 71.5 | B138: 0.05% | C138: 69 | D138: 0.10%
A139: 72 | B139: 0.05% | C139: 69.5 | D139: 0.10%
A140: 72.5 | B140: 0.05% | C140: 70 | D140: 0.10%
A141: 73 | B141: 0.05% | C141: 70.5 | D141: 0.10%
A142: 73.5 | B142: 0.05% | C142: 71 | D142: 0.10%
A143: 74 | B143: 0.05% | C143: 71.5 | D143: 0.10%
A144: 74.5 | B144: 0.05% | C144: 72 | D144: 0.10%
A145: 75 | B145: 0.05% | C145: 72.5 | D145: 0.10%
A146: 75.5 | B146: 0.05% | C146: 73 | D146: 0.10%
A147: 76 | B147: 0.05% | C147: 73.5 | D147: 0.10%
A148: 76.5 | B148: 0.05% | C148: 74 | D148: 0.10%
A149: 77 | B149: 0.05% | C149: 74.5 | D149: 0.10%
A150: 77.5 | B150: 0.05% | C150: 75 | D150: 0.10%
A151: 78 | B151: 0.05% | C151: 75.5 | D151: 0.10%
A152: 78.5 | B152: 0.05% | C152: 76 | D152: 0.10%
A153: 79 | B153: 0.05% | C153: 76.5 | D153: 0.10%
A154: 79.5 | B154: 0.05% | C154: 77 | D154: 0.10%
A155: 80 | B155: 0.05% | C155: 77.5 | D155: 0.10%
A156: 80.5 | B156: 0.05% | C156: 78 | D156: 0.10%
A157: 81 | B157: 0.05% | C157: 78.5 | D157: 0.10%
A158: 81.5 | B158: 0.05% | C158: 79 | D158: 0.10%
A159: 82 | B159: 0.05% | C159: 79.5 | D159: 0.10%
A160: 82.5 | B160: 0.05% | C160: 80 | D160: 0.10%
A161: 83 | B161: 0.05% | C161: 80.5 | D161: 0.10%
A162: 83.5 | B162: 0.05% | C162: 81 | D162: 0.10%
A163: 84 | B163: 0.05% | C163: 81.5 | D163: 0.10%
A164: 84.5 | B164: 0.05% | C164: 82 | D164: 0.10%
A165: 85 | B165: 0.05% | C165: 82.5 | D165: 0.10%
A166: 85.5 | B166: 0.05% | C166: 83 | D166: 0.10%
A167: 86 | B167: 0.05% | C167: 83.5 | D167: 0.10%
A168: 86.5 | B168: 0.05% | C168: 84 | D168: 0.10%
A169: 87 | B169: 0.05% | C169: 84.5 | D169: 0.10%
A170: 87.5 | B170: 0.05% | C170: 85 | D170: 0.10%
A171: 88 | B171: 0.05% | C171: 85.5 | D171: 0.10%
A172: 88.5 | B172: 0.05% | C172: 86 | D172: 0.10%
A173: 89 | B173: 0.05% | C173: 86.5 | D173: 0.10%
A174: 89.5 | B174: 0.05% | C174: 87 | D174: 0.10%
A175: 90 | B175: 0.05% | C175: 87.5 | D175: 0.10%
A176: 90.5 | B176: 0.05% | C176: 88 | D176: 0.10%
A177: 91 | B177: 0.05% | C177: 88.5 | D177: 0.10%
A178: 91.5 | B178: 0.05% | C178: 89 | D178: 0.10%
A179: 92 | B179: 0.05% | C179: 89.5 | D179: 0.10%
A180: 92.5 | B180: 0.05% | C180: 90 | D180: 0.10%
A181: 93 | B181: 0.05% | C181: 90.5 | D181: 0.10%
A182: 93.5 | B182: 0.05% | C182: 91 | D182: 0.10%
A183: 94 | B183: 0.05% | C183: 91.5 | D183: 0.10%
A184: 94.5 | B184: 0.05% | C184: 92 | D184: 0.10%
A185: 95 | B185: 0.05% | C185: 92.5 | D185: 0.10%
A186: 95.5 | B186: 0.05% | C186: 93 | D186: 0.10%
A187: 96 | B187: 0.05% | C187: 93.5 | D187: 0.10%
A188: 96.5 | B188: 0.05% | C188: 94 | D188: 0.10%
A189: 97 | B189: 0.05% | C189: 94.5 | D189: 0.10%
A190: 97.5 | B190: 0.05% | C190: 95 | D190: 0.10%
A191: 98 | B191: 0.05% | C191: 95.5 | D191: 0.10%
A192: 98.5 | B192: 0.05% | C192: 96 | D192: 0.10%
A193: 99 | B193: 0.05% | C193: 96.5 | D193: 0.10%
A194: 99.5 | B194: 0.05% | C194: 97 | D194: 0.10%
A195: 100 | B195: 0.05% | C195: 97.5 | D195: 0.10%
A196: 100.5 | B196: 0.05% | C196: 98 | D196: 0.10%
A197: 101 | B197: 0.05% | C197: 98.5 | D197: 0.10%
A198: 101.5 | B198: 0.05% | C198: 99 | D198: 0.10%
A199: 102 | B199: 0.05% | C199: 99.5 | D199: 0.10%
A200: 102.5 | B200: 0.05% | C200: 100 | D200: 0.10%
... 39 more rows

Sheet BayesianSFMRFLP
A1: Instance | B1: Auto | C1: SOTA
A2: Am12a_2.txt | B2: 0.00% | C2: 0.00%
A3: Am12a_5.txt | B3: 0.00% | C3: 0.00%
A4: Am12b_2.txt | B4: 0.00% | C4: 0.00%
A5: Am12b_5.txt | B5: 0.00% | C5: 0.00%
A6: Am13a_2.txt | B6: 0.00% | C6: 0.00%
A7: Am13a_5.txt | B7: 0.00% | C7: 0.00%
A8: Am13b_2.txt | B8: 0.00% | C8: 0.00%
A9: Am13b_3.txt | B9: 0.00% | C9: 0.00%
A10: Am13b_4.txt | B10: 0.00% | C10: 0.00%
A11: Am13b_5.txt | B11: 0.00% | C11: 0.00%
A12: Am15_2.txt | B12: 0.00% | C12: 0.00%
A13: Am15_5.txt | B13: 0.00% | C13: 0.00%
A14: CAP_n60_p30_s30_1_2.txt | B14: 0.01% | C14: 0.02%
A15: CAP_n60_p30_s30_1_3.txt | B15: 0.05% | C15: 0.04%
A16: CAP_n60_p30_s30_1_4.txt | B16: 0.10% | C16: 0.11%
A17: CAP_n60_p30_s30_1_5.txt | B17: 0.16% | C17: 0.17%
A18: CAP_n60_p30_s30_2_2.txt | B18: 0.02% | C18: 0.06%
A19: CAP_n60_p30_s30_2_3.txt | B19: 0.05% | C19: 0.11%
A20: CAP_n60_p30_s30_2_4.txt | B20: 0.07% | C20: 0.16%
A21: CAP_n60_p30_s30_2_5.txt | B21: 0.11% | C21: 0.17%
A22: CAP_n60_p30_s30_3_2.txt | B22: 0.02% | C22: 0.13%
A23: CAP_n60_p30_s30_3_3.txt | B23: 0.07% | C23: 0.10%
A24: CAP_n60_p30_s30_3_4.txt | B24: 0.07% | C24: 0.28%
A25: CAP_n60_p30_s30_3_5.txt | B25: 0.16% | C25: 0.37%
A26: CAP_n60_p30_s40_1_2.txt | B26: 0.02% | C26: 0.07%
A27: CAP_n60_p30_s40_1_3.txt | B27: 0.09% | C27: 0.14%
A28: CAP_n60_p30_s40_1_4.txt | B28: 0.11% | C28: 0.28%
A29: CAP_n60_p30_s40_1_5.txt | B29: 0.15% | C29: 0.33%
A30: CAP_n60_p30_s40_2_2.txt | B30: 0.03% | C30: 0.10%
A31: CAP_n60_p30_s40_2_3.txt | B31: 0.09% | C31: 0.21%
A32: CAP_n60_p30_s40_2_4.txt | B32: 0.09% | C32: 0.15%
A33: CAP_n60_p30_s40_2_5.txt | B33: 0.07% | C33: 0.22%
A34: CAP_n60_p30_s40_3_2.txt | B34: 0.04% | C34: 0.12%
A35: CAP_n60_p30_s40_3_3.txt | B35: 0.13% | C35: 0.25%
A36: CAP_n60_p30_s40_3_4.txt | B36: 0.13% | C36: 0.24%
A37: CAP_n60_p30_s40_3_5.txt | B37: 0.12% | C37: 0.27%
A38: CAP_n60_p30_s50_1_2.txt | B38: 0.05% | C38: 0.19%
A39: CAP_n60_p30_s50_1_3.txt | B39: 0.16% | C39: 0.42%
A40: CAP_n60_p30_s50_1_4.txt | B40: 0.51% | C40: 0.56%
A41: CAP_n60_p30_s50_1_5.txt | B41: 0.42% | C41: 0.59%
A42: CAP_n60_p30_s50_2_2.txt | B42: 0.04% | C42: 0.07%
A43: CAP_n60_p30_s50_2_3.txt | B43: 0.08% | C43: 0.11%
A44: CAP_n60_p30_s50_2_4.txt | B44: 0.16% | C44: 0.20%
A45: CAP_n60_p30_s50_2_5.txt | B45: 0.09% | C45: 0.10%
A46: CAP_n60_p30_s50_3_2.txt | B46: 0.01% | C46: 0.04%
A47: CAP_n60_p30_s50_3_3.txt | B47: 0.10% | C47: 0.14%
A48: CAP_n60_p30_s50_3_4.txt | B48: 0.14% | C48: 0.19%
A49: CAP_n60_p30_s50_3_5.txt | B49: 0.12% | C49: 0.17%
A50: CAP_n60_p30_s60_1_2.txt | B50: 0.01% | C50: 0.02%
A51: CAP_n60_p30_s60_1_3.txt | B51: 0.04% | C51: 0.06%
A52: CAP_n60_p30_s60_1_4.txt | B52: 0.09% | C52: 0.08%
A53: CAP_n60_p30_s60_1_5.txt | B53: 0.13% | C53: 0.13%
A54: CAP_n60_p30_s60_2_2.txt | B54: 0.03% | C54: 0.10%
A55: CAP_n60_p30_s60_2_3.txt | B55: 0.10% | C55: 0.20%
A56: CAP_n60_p30_s60_2_4.txt | B56: 0.14% | C56: 0.20%
A57: CAP_n60_p30_s60_2_5.txt | B57: 0.10% | C57: 0.23%
A58: CAP_n60_p30_s60_3_2.txt | B58: 0.08% | C58: 0.29%
A59: CAP_n60_p30_s60_3_3.txt | B59: 0.07% | C59: 0.27%
A60: CAP_n60_p30_s60_3_4.txt | B60: 0.13% | C60: 0.36%
A61: CAP_n60_p30_s60_3_5.txt | B61: 0.12% | C61: 0.37%
A62: CAP_n60_p60_s30_1_2.txt | B62: 0.00% | C62: 0.02%
A63: CAP_n60_p60_s30_1_3.txt | B63: 0.01% | C63: 0.03%
A64: CAP_n60_p60_s30_1_4.txt | B64: 0.02% | C64: 0.04%
A65: CAP_n60_p60_s30_1_5.txt | B65: 0.04% | C65: 0.05%
A66: CAP_n60_p60_s30_2_2.txt | B66: 0.01% | C66: 0.01%
A67: CAP_n60_p60_s30_2_3.txt | B67: 0.02% | C67: 0.04%
A68: CAP_n60_p60_s30_2_4.txt | B68: 0.04% | C68: 0.04%
A69: CAP_n60_p60_s30_2_5.txt | B69: 0.04% | C69: 0.11%
A70: CAP_n60_p60_s30_3_2.txt | B70: 0.00% | C70: 0.01%
A71: CAP_n60_p60_s30_3_3.txt | B71: 0.01% | C71: 0.02%
A72: CAP_n60_p60_s30_3_4.txt | B72: 0.03% | C72: 0.03%
A73: CAP_n60_p60_s30_3_5.txt | B73: 0.05% | C73: 0.05%
A74: CAP_n60_p60_s40_1_2.txt | B74: 0.01% | C74: 0.01%
A75: CAP_n60_p60_s40_1_5.txt | B75: 0.11% | C75: 0.13%
A76: CAP_n60_p60_s40_2_2.txt | B76: 0.00% | C76: 0.00%
A77: CAP_n60_p60_s40_2_3.txt | B77: 0.02% | C77: 0.04%
A78: CAP_n60_p60_s40_2_4.txt | B78: 0.03% | C78: 0.04%
A79: CAP_n60_p60_s40_2_5.txt | B79: 0.04% | C79: 0.06%
A80: CAP_n60_p60_s40_3_2.txt | B80: 0.01% | C80: 0.06%
A81: CAP_n60_p60_s40_3_3.txt | B81: 0.02% | C81: 0.04%
A82: CAP_n60_p60_s40_3_4.txt | B82: 0.07% | C82: 0.09%
A83: CAP_n60_p60_s40_3_5.txt | B83: 0.07% | C83: 0.18%
A84: CAP_n60_p60_s50_1_2.txt | B84: 0.01% | C84: 0.03%
A85: CAP_n60_p60_s50_1_5.txt | B85: 0.02% | C85: 0.05%
A86: CAP_n60_p60_s50_2_2.txt | B86: 0.01% | C86: 0.04%
A87: CAP_n60_p60_s50_2_3.txt | B87: 0.07% | C87: 0.07%
A88: CAP_n60_p60_s50_2_4.txt | B88: 0.05% | C88: 0.10%
A89: CAP_n60_p60_s50_2_5.txt | B89: 0.10% | C89: 0.26%
A90: CAP_n60_p60_s50_3_2.txt | B90: 0.01% | C90: 0.01%
A91: CAP_n60_p60_s50_3_3.txt | B91: 0.03% | C91: 0.04%
A92: CAP_n60_p60_s50_3_4.txt | B92: 0.02% | C92: 0.04%
A93: CAP_n60_p60_s50_3_5.txt | B93: 0.03% | C93: 0.05%
A94: CAP_n60_p60_s60_1_2.txt | B94: 0.00% | C94: 0.00%
A95: CAP_n60_p60_s60_1_3.txt | B95: 0.02% | C95: 0.03%
A96: CAP_n60_p60_s60_1_4.txt | B96: 0.03% | C96: 0.03%
A97: CAP_n60_p60_s60_1_5.txt | B97: 0.03% | C97: 0.04%
A98: CAP_n60_p60_s60_2_2.txt | B98: 0.01% | C98: 0.09%
A99: CAP_n60_p60_s60_2_3.txt | B99: 0.01% | C99: 0.09%
A100: CAP_n60_p60_s60_2_4.txt | B100: 0.03% | C100: 0.08%
A101: CAP_n60_p60_s60_2_5.txt | B101: 0.02% | C101: 0.12%
A102: CAP_n60_p60_s60_3_2.txt | B102: 0.01% | C102: 0.03%
A103: CAP_n60_p60_s60_3_3.txt | B103: 0.06% | C103: 0.09%
A104: CAP_n60_p60_s60_3_4.txt | B104: 0.08% | C104: 0.11%
A105: CAP_n60_p60_s60_3_5.txt | B105: 0.05% | C105: 0.16%
A106: CAP_n60_p90_s30_1_2.txt | B106: 0.00% | C106: 0.00%
A107: CAP_n60_p90_s30_1_3.txt | B107: 0.01% | C107: 0.01%
A108: CAP_n60_p90_s30_1_4.txt | B108: 0.01% | C108: 0.02%
A109: CAP_n60_p90_s30_1_5.txt | B109: 0.02% | C109: 0.04%
A110: CAP_n60_p90_s30_2_2.txt | B110: 0.00% | C110: 0.00%
A111: CAP_n60_p90_s30_2_3.txt | B111: 0.01% | C111: 0.01%
A112: CAP_n60_p90_s30_2_4.txt | B112: 0.02% | C112: 0.03%
A113: CAP_n60_p90_s30_2_5.txt | B113: 0.01% | C113: 0.02%
A114: CAP_n60_p90_s30_3_2.txt | B114: 0.00% | C114: 0.00%
A115: CAP_n60_p90_s30_3_3.txt | B115: 0.00% | C115: 0.01%
A116: CAP_n60_p90_s30_3_4.txt | B116: 0.01% | C116: 0.01%
A117: CAP_n60_p90_s30_3_5.txt | B117: 0.01% | C117: 0.02%
A118: CAP_n60_p90_s40_1_2.txt | B118: 0.00% | C118: 0.00%
A119: CAP_n60_p90_s40_1_3.txt | B119: 0.01% | C119: 0.01%
A120: CAP_n60_p90_s40_1_4.txt | B120: 0.00% | C120: 0.00%
A121: CAP_n60_p90_s40_1_5.txt | B121: 0.01% | C121: 0.01%
A122: CAP_n60_p90_s40_2_2.txt | B122: 0.00% | C122: 0.00%
A123: CAP_n60_p90_s40_2_3.txt | B123: 0.01% | C123: 0.02%
A124: CAP_n60_p90_s40_2_4.txt | B124: 0.03% | C124: 0.03%
A125: CAP_n60_p90_s40_2_5.txt | B125: 0.02% | C125: 0.02%
A126: CAP_n60_p90_s40_3_2.txt | B126: 0.00% | C126: 0.00%
A127: CAP_n60_p90_s40_3_3.txt | B127: 0.01% | C127: 0.01%
A128: CAP_n60_p90_s40_3_4.txt | B128: 0.00% | C128: 0.01%
A129: CAP_n60_p90_s40_3_5.txt | B129: 0.01% | C129: 0.02%
A130: CAP_n60_p90_s50_1_2.txt | B130: 0.00% | C130: 0.00%
A131: CAP_n60_p90_s50_1_3.txt | B131: 0.02% | C131: 0.02%
A132: CAP_n60_p90_s50_1_4.txt | B132: 0.06% | C132: 0.04%
A133: CAP_n60_p90_s50_1_5.txt | B133: 0.03% | C133: 0.03%
A134: CAP_n60_p90_s50_2_2.txt | B134: 0.01% | C134: 0.04%
A135: CAP_n60_p90_s50_2_3.txt | B135: 0.02% | C135: 0.03%
A136: CAP_n60_p90_s50_2_4.txt | B136: 0.07% | C136: 0.11%
A137: CAP_n60_p90_s50_2_5.txt | B137: 0.02% | C137: 0.07%
A138: CAP_n60_p90_s50_3_2.txt | B138: 0.00% | C138: 0.04%
A139: CAP_n60_p90_s50_3_3.txt | B139: 0.00% | C139: 0.03%
A140: CAP_n60_p90_s50_3_4.txt | B140: 0.02% | C140: 0.02%
A141: CAP_n60_p90_s50_3_5.txt | B141: 0.01% | C141: 0.02%
A142: CAP_n60_p90_s60_1_2.txt | B142: 0.00% | C142: 0.00%
A143: CAP_n60_p90_s60_1_3.txt | B143: 0.01% | C143: 0.01%
A144: CAP_n60_p90_s60_1_4.txt | B144: 0.00% | C144: 0.00%
A145: CAP_n60_p90_s60_1_5.txt | B145: 0.02% | C145: 0.01%
A146: CAP_n60_p90_s60_2_2.txt | B146: 0.00% | C146: 0.00%
A147: CAP_n60_p90_s60_2_3.txt | B147: 0.00% | C147: 0.00%
A148: CAP_n60_p90_s60_2_4.txt | B148: 0.02% | C148: 0.03%
A149: CAP_n60_p90_s60_2_5.txt | B149: 0.05% | C149: 0.06%
A150: CAP_n60_p90_s60_3_2.txt | B150: 0.00% | C150: 0.01%
A151: CAP_n60_p90_s60_3_3.txt | B151: 0.00% | C151: 0.02%
A152: CAP_n60_p90_s60_3_4.txt | B152: 0.01% | C152: 0.04%
A153: CAP_n60_p90_s60_3_5.txt | B153: 0.01% | C153: 0.02%
A154: N25_01_2.txt | B154: 0.00% | C154: 0.03%
A155: N25_01_3.txt | B155: 0.00% | C155: 0.03%
A156: N25_01_4.txt | B156: 0.00% | C156: 0.05%
A157: N25_01_5.txt | B157: 0.00% | C157: 0.00%
A158: N25_02_2.txt | B158: 0.00% | C158: 0.03%
A159: N25_02_3.txt | B159: 0.03% | C159: 0.03%
A160: N25_02_4.txt | B160: 0.06% | C160: 0.38%
A161: N25_02_5.txt | B161: 0.00% | C161: 0.05%
A162: N25_03_2.txt | B162: 0.05% | C162: 0.12%
A163: N25_03_3.txt | B163: 0.04% | C163: 0.12%
A164: N25_03_4.txt | B164: 0.08% | C164: 0.42%
A165: N25_03_5.txt | B165: 0.10% | C165: 0.15%
A166: N25_04_2.txt | B166: 0.00% | C166: 0.10%
A167: N25_04_3.txt | B167: 0.08% | C167: 0.15%
A168: N25_04_4.txt | B168: 0.11% | C168: 0.37%
A169: N25_04_5.txt | B169: 0.00% | C169: 0.00%
A170: N25_05_2.txt | B170: 0.00% | C170: 0.02%
A171: N25_05_3.txt | B171: 0.01% | C171: 0.01%
A172: N25_05_4.txt | B172: 0.15% | C172: 0.26%
A173: N25_05_5.txt | B173: 0.02% | C173: 0.02%
A174: N30_01_2.txt | B174: 0.00% | C174: 0.00%
A175: N30_01_3.txt | B175: 0.00% | C175: 0.00%
A176: N30_01_4.txt | B176: 0.00% | C176: 0.00%
A177: N30_01_5.txt | B177: 0.00% | C177: 0.00%
A178: N30_02_2.txt | B178: 0.00% | C178: 0.02%
A179: N30_02_3.txt | B179: 0.01% | C179: 0.11%
A180: N30_02_4.txt | B180: 0.01% | C180: 0.29%
A181: N30_02_5.txt | B181: 0.01% | C181: 0.24%
A182: N30_03_2.txt | B182: 0.00% | C182: 0.00%
A183: N30_03_5.txt | B183: 0.00% | C183: 0.02%
A184: N30_04_2.txt | B184: 0.00% | C184: 0.01%
A185: N30_04_5.txt | B185: 0.02% | C185: 0.09%
A186: N30_05_2.txt | B186: 0.02% | C186: 0.02%
A187: N30_05_3.txt | B187: 0.02% | C187: 0.03%
A188: N30_05_4.txt | B188: 0.08% | C188: 0.11%
A189: N30_05_5.txt | B189: 0.10% | C189: 0.15%
A190: N40_01_2.txt | B190: 0.01% | C190: 0.03%
A191: N40_01_5.txt | B191: 0.13% | C191: 0.19%
A192: N40_02_2.txt | B192: 0.00% | C192: 0.00%
A193: N40_02_5.txt | B193: 0.02% | C193: 0.05%
A194: N40_03_2.txt | B194: 0.02% | C194: 0.02%
A195: N40_03_3.txt | B195: 0.06% | C195: 0.08%
A196: N40_03_4.txt | B196: 0.09% | C196: 0.10%
A197: N40_03_5.txt | B197: 0.02% | C197: 0.04%
A198: N40_04_2.txt | B198: 0.01% | C198: 0.03%
A199: N40_04_5.txt | B199: 0.01% | C199: 0.07%
A200: N40_05_2.txt | B200: 0.01% | C200: 0.01%
... 103 more rows

Sheet RawBMSSC
A1: Instance | B1: Algorithm | C1: Repetition | D1: Score | E1: MinScoreForInstance | F1: %Gap | G1: isBest | L1: Minimum values
A2: body.csv | B2: auto | C2: 0 | D2: 1.14E+05 | E2: =VLOOKUP(A2,L:M,2,FALSE) -> 1.14E+05 | F2: =(D2-E2)/E2 -> 0.00% | G2: =IF(D2<=E2,1,0) -> 1 | L2: =_xlfn.UNIQUE(A:A) -> Instance | M2: Score
A3: body.csv | B3: auto | C3: 1 | D3: 1.14E+05 | E3: 1.14E+05 | F3: 0.00% | G3: 1 | L3: body.csv | M3: =_xlfn.MINIFS(D:D,A:A,L3) -> 1.14E+05
A4: body.csv | B4: auto | C4: 2 | D4: 1.14E+05 | E4: 1.14E+05 | F4: 0.00% | G4: 1 | L4: breast_cancer.csv | M4: 1.38E+08
A5: body.csv | B5: auto | C5: 3 | D5: 1.14E+05 | E5: 1.14E+05 | F5: 0.00% | G5: 1 | L5: Cardiotopography.csv | M5: 8.48E+06
A6: body.csv | B6: auto | C6: 4 | D6: 1.14E+05 | E6: 1.14E+05 | F6: 0.00% | G6: 1 | L6: glass.csv | M6: 5.05E+02
A7: body.csv | B7: auto | C7: 5 | D7: 1.14E+05 | E7: 1.14E+05 | F7: 0.00% | G7: 1 | L7: image_segmentation.csv | M7: 2.11E+07
A8: body.csv | B8: auto | C8: 6 | D8: 1.14E+05 | E8: 1.14E+05 | F8: 0.00% | G8: 1 | L8: InternetAds.csv | M8: 3.73E+04
A9: body.csv | B9: auto | C9: 7 | D9: 1.14E+05 | E9: 1.14E+05 | F9: 0.00% | G9: 1 | L9: ionosphere.csv | M9: 2.43E+03
A10: body.csv | B10: auto | C10: 8 | D10: 1.14E+05 | E10: 1.14E+05 | F10: 0.00% | G10: 1 | L10: iris.csv | M10: 8.14E+01
A11: body.csv | B11: auto | C11: 9 | D11: 1.14E+05 | E11: 1.14E+05 | F11: 0.00% | G11: 1 | L11: libra.csv | M11: 6.39E+07
A12: body.csv | B12: auto | C12: 10 | D12: 1.14E+05 | E12: 1.14E+05 | F12: 0.00% | G12: 1 | L12: MobileKSD.csv | M12: 3.11E+10
A13: body.csv | B13: auto | C13: 11 | D13: 1.14E+05 | E13: 1.14E+05 | F13: 0.00% | G13: 1 | L13: multiple_features_reduced.csv | M13: 1.95E+06
A14: body.csv | B14: auto | C14: 12 | D14: 1.14E+05 | E14: 1.14E+05 | F14: 0.00% | G14: 1 | L14: ozone0.csv | M14: 2.46E+09
A15: body.csv | B15: auto | C15: 13 | D15: 1.14E+05 | E15: 1.14E+05 | F15: 0.00% | G15: 1 | L15: PhonesAcc.csv | M15: 2.62E+02
A16: body.csv | B16: auto | C16: 14 | D16: 1.14E+05 | E16: 1.14E+05 | F16: 0.00% | G16: 1 | L16: PhonesGyro.csv | M16: 3.37E+01
A17: body.csv | B17: auto | C17: 15 | D17: 1.14E+05 | E17: 1.14E+05 | F17: 0.00% | G17: 1 | L17: seismicBumps.csv | M17: 2.94E+13
A18: body.csv | B18: auto | C18: 16 | D18: 1.14E+05 | E18: 1.14E+05 | F18: 0.00% | G18: 1 | L18: synthetic_control.csv | M18: 1.00E+06
A19: body.csv | B19: auto | C19: 17 | D19: 1.14E+05 | E19: 1.14E+05 | F19: 0.00% | G19: 1 | L19: thyroid.csv | M19: 3.44E+04
A20: body.csv | B20: auto | C20: 18 | D20: 1.14E+05 | E20: 1.14E+05 | F20: 0.00% | G20: 1 | L20: user_knowledge.csv | M20: 7.02E+01
A21: body.csv | B21: auto | C21: 19 | D21: 1.14E+05 | E21: 1.14E+05 | F21: 0.00% | G21: 1 | L21: vehicle.csv | M21: 2.89E+06
A22: body.csv | B22: auto | C22: 20 | D22: 1.14E+05 | E22: 1.14E+05 | F22: 0.00% | G22: 1 | L22: vowel.csv | M22: 6.45E+07
A23: body.csv | B23: auto | C23: 21 | D23: 1.14E+05 | E23: 1.14E+05 | F23: 0.00% | G23: 1 | L23: WatchAcc.csv | M23: 1.68E+03
A24: body.csv | B24: auto | C24: 22 | D24: 1.14E+05 | E24: 1.14E+05 | F24: 0.00% | G24: 1 | L24: WatchGyro.csv | M24: 1.54E+01
A25: body.csv | B25: auto | C25: 23 | D25: 1.14E+05 | E25: 1.14E+05 | F25: 0.00% | G25: 1 | L25: water.csv | M25: 7.74E+09
A26: body.csv | B26: auto | C26: 24 | D26: 1.14E+05 | E26: 1.14E+05 | F26: 0.00% | G26: 1 | L26: wine.csv | M26: 3.77E+06
A27: body.csv | B27: auto | C27: 25 | D27: 1.14E+05 | E27: 1.14E+05 | F27: 0.00% | G27: 1 | L27: yeast.csv | M27: 5.33E+01
A28: body.csv | B28: auto | C28: 26 | D28: 1.14E+05 | E28: 1.14E+05 | F28: 0.00% | G28: 1 | L28: 0 | M28: 0.00E+00
A29: body.csv | B29: auto | C29: 27 | D29: 1.14E+05 | E29: 1.14E+05 | F29: 0.00% | G29: 1
A30: body.csv | B30: auto | C30: 28 | D30: 1.14E+05 | E30: 1.14E+05 | F30: 0.00% | G30: 1
A31: body.csv | B31: auto | C31: 29 | D31: 1.14E+05 | E31: 1.14E+05 | F31: 0.00% | G31: 1
A32: body.csv | B32: sota | C32: 0 | D32: 1.14E+05 | E32: 1.14E+05 | F32: 0.00% | G32: 1
A33: body.csv | B33: sota | C33: 1 | D33: 1.14E+05 | E33: 1.14E+05 | F33: 0.09% | G33: 0
A34: body.csv | B34: sota | C34: 2 | D34: 1.14E+05 | E34: 1.14E+05 | F34: 0.00% | G34: 1
A35: body.csv | B35: sota | C35: 3 | D35: 1.14E+05 | E35: 1.14E+05 | F35: 0.00% | G35: 1
A36: body.csv | B36: sota | C36: 4 | D36: 1.14E+05 | E36: 1.14E+05 | F36: 0.00% | G36: 1
A37: body.csv | B37: sota | C37: 5 | D37: 1.14E+05 | E37: 1.14E+05 | F37: 0.00% | G37: 1
A38: body.csv | B38: sota | C38: 6 | D38: 1.14E+05 | E38: 1.14E+05 | F38: 0.00% | G38: 1
A39: body.csv | B39: sota | C39: 7 | D39: 1.14E+05 | E39: 1.14E+05 | F39: 0.00% | G39: 1
A40: body.csv | B40: sota | C40: 8 | D40: 1.14E+05 | E40: 1.14E+05 | F40: 0.00% | G40: 1
A41: body.csv | B41: sota | C41: 9 | D41: 1.14E+05 | E41: 1.14E+05 | F41: 0.00% | G41: 1
A42: body.csv | B42: sota | C42: 10 | D42: 1.14E+05 | E42: 1.14E+05 | F42: 0.00% | G42: 1
A43: body.csv | B43: sota | C43: 11 | D43: 1.14E+05 | E43: 1.14E+05 | F43: 0.00% | G43: 1
A44: body.csv | B44: sota | C44: 12 | D44: 1.14E+05 | E44: 1.14E+05 | F44: 0.00% | G44: 1
A45: body.csv | B45: sota | C45: 13 | D45: 1.14E+05 | E45: 1.14E+05 | F45: 0.00% | G45: 1
A46: body.csv | B46: sota | C46: 14 | D46: 1.14E+05 | E46: 1.14E+05 | F46: 0.00% | G46: 1
A47: body.csv | B47: sota | C47: 15 | D47: 1.14E+05 | E47: 1.14E+05 | F47: 0.00% | G47: 1
A48: body.csv | B48: sota | C48: 16 | D48: 1.14E+05 | E48: 1.14E+05 | F48: 0.00% | G48: 1
A49: body.csv | B49: sota | C49: 17 | D49: 1.14E+05 | E49: 1.14E+05 | F49: 0.00% | G49: 1
A50: body.csv | B50: sota | C50: 18 | D50: 1.14E+05 | E50: 1.14E+05 | F50: 0.00% | G50: 1
A51: body.csv | B51: sota | C51: 19 | D51: 1.14E+05 | E51: 1.14E+05 | F51: 0.00% | G51: 1
A52: body.csv | B52: sota | C52: 20 | D52: 1.14E+05 | E52: 1.14E+05 | F52: 0.00% | G52: 1
A53: body.csv | B53: sota | C53: 21 | D53: 1.14E+05 | E53: 1.14E+05 | F53: 0.00% | G53: 1
A54: body.csv | B54: sota | C54: 22 | D54: 1.14E+05 | E54: 1.14E+05 | F54: 0.00% | G54: 1
A55: body.csv | B55: sota | C55: 23 | D55: 1.14E+05 | E55: 1.14E+05 | F55: 0.00% | G55: 1
A56: body.csv | B56: sota | C56: 24 | D56: 1.14E+05 | E56: 1.14E+05 | F56: 0.00% | G56: 1
A57: body.csv | B57: sota | C57: 25 | D57: 1.14E+05 | E57: 1.14E+05 | F57: 0.00% | G57: 1
A58: body.csv | B58: sota | C58: 26 | D58: 1.14E+05 | E58: 1.14E+05 | F58: 0.00% | G58: 1
A59: body.csv | B59: sota | C59: 27 | D59: 1.14E+05 | E59: 1.14E+05 | F59: 0.00% | G59: 1
A60: body.csv | B60: sota | C60: 28 | D60: 1.14E+05 | E60: 1.14E+05 | F60: 0.00% | G60: 1
A61: body.csv | B61: sota | C61: 29 | D61: 1.14E+05 | E61: 1.14E+05 | F61: 0.00% | G61: 1
A62: breast_cancer.csv | B62: auto | C62: 0 | D62: 1.38E+08 | E62: 1.38E+08 | F62: 0.00% | G62: 1
A63: breast_cancer.csv | B63: auto | C63: 1 | D63: 1.38E+08 | E63: 1.38E+08 | F63: 0.00% | G63: 1
A64: breast_cancer.csv | B64: auto | C64: 2 | D64: 1.38E+08 | E64: 1.38E+08 | F64: 0.00% | G64: 1
A65: breast_cancer.csv | B65: auto | C65: 3 | D65: 1.38E+08 | E65: 1.38E+08 | F65: 0.00% | G65: 1
A66: breast_cancer.csv | B66: auto | C66: 4 | D66: 1.38E+08 | E66: =VLOOKUP(A66,L:M,2,FALSE) -> 1.38E+08 | F66: =(D66-E66)/E66 -> 0.00% | G66: =IF(D66<=E66,1,0) -> 1
A67: breast_cancer.csv | B67: auto | C67: 5 | D67: 1.38E+08 | E67: 1.38E+08 | F67: 0.00% | G67: 1
A68: breast_cancer.csv | B68: auto | C68: 6 | D68: 1.38E+08 | E68: 1.38E+08 | F68: 0.00% | G68: 1
A69: breast_cancer.csv | B69: auto | C69: 7 | D69: 1.38E+08 | E69: 1.38E+08 | F69: 0.00% | G69: 1
A70: breast_cancer.csv | B70: auto | C70: 8 | D70: 1.38E+08 | E70: 1.38E+08 | F70: 0.00% | G70: 1
A71: breast_cancer.csv | B71: auto | C71: 9 | D71: 1.38E+08 | E71: 1.38E+08 | F71: 0.00% | G71: 1
A72: breast_cancer.csv | B72: auto | C72: 10 | D72: 1.38E+08 | E72: 1.38E+08 | F72: 0.00% | G72: 1
A73: breast_cancer.csv | B73: auto | C73: 11 | D73: 1.38E+08 | E73: 1.38E+08 | F73: 0.00% | G73: 1
A74: breast_cancer.csv | B74: auto | C74: 12 | D74: 1.38E+08 | E74: 1.38E+08 | F74: 0.00% | G74: 1
A75: breast_cancer.csv | B75: auto | C75: 13 | D75: 1.38E+08 | E75: 1.38E+08 | F75: 0.00% | G75: 1
A76: breast_cancer.csv | B76: auto | C76: 14 | D76: 1.38E+08 | E76: 1.38E+08 | F76: 0.00% | G76: 1
A77: breast_cancer.csv | B77: auto | C77: 15 | D77: 1.38E+08 | E77: 1.38E+08 | F77: 0.00% | G77: 1
A78: breast_cancer.csv | B78: auto | C78: 16 | D78: 1.38E+08 | E78: 1.38E+08 | F78: 0.00% | G78: 1
A79: breast_cancer.csv | B79: auto | C79: 17 | D79: 1.38E+08 | E79: 1.38E+08 | F79: 0.00% | G79: 1
A80: breast_cancer.csv | B80: auto | C80: 18 | D80: 1.38E+08 | E80: 1.38E+08 | F80: 0.00% | G80: 1
A81: breast_cancer.csv | B81: auto | C81: 19 | D81: 1.38E+08 | E81: 1.38E+08 | F81: 0.00% | G81: 1
A82: breast_cancer.csv | B82: auto | C82: 20 | D82: 1.38E+08 | E82: 1.38E+08 | F82: 0.00% | G82: 1
A83: breast_cancer.csv | B83: auto | C83: 21 | D83: 1.38E+08 | E83: 1.38E+08 | F83: 0.00% | G83: 1
A84: breast_cancer.csv | B84: auto | C84: 22 | D84: 1.38E+08 | E84: 1.38E+08 | F84: 0.00% | G84: 1
A85: breast_cancer.csv | B85: auto | C85: 23 | D85: 1.38E+08 | E85: 1.38E+08 | F85: 0.00% | G85: 1
A86: breast_cancer.csv | B86: auto | C86: 24 | D86: 1.38E+08 | E86: 1.38E+08 | F86: 0.00% | G86: 1
A87: breast_cancer.csv | B87: auto | C87: 25 | D87: 1.38E+08 | E87: 1.38E+08 | F87: 0.00% | G87: 1
A88: breast_cancer.csv | B88: auto | C88: 26 | D88: 1.38E+08 | E88: 1.38E+08 | F88: 0.00% | G88: 1
A89: breast_cancer.csv | B89: auto | C89: 27 | D89: 1.38E+08 | E89: 1.38E+08 | F89: 0.00% | G89: 1
A90: breast_cancer.csv | B90: auto | C90: 28 | D90: 1.38E+08 | E90: 1.38E+08 | F90: 0.00% | G90: 1
A91: breast_cancer.csv | B91: auto | C91: 29 | D91: 1.38E+08 | E91: 1.38E+08 | F91: 0.00% | G91: 1
A92: breast_cancer.csv | B92: sota | C92: 0 | D92: 1.38E+08 | E92: 1.38E+08 | F92: 0.00% | G92: 1
A93: breast_cancer.csv | B93: sota | C93: 1 | D93: 1.38E+08 | E93: 1.38E+08 | F93: 0.00% | G93: 1
A94: breast_cancer.csv | B94: sota | C94: 2 | D94: 1.38E+08 | E94: 1.38E+08 | F94: 0.00% | G94: 1
A95: breast_cancer.csv | B95: sota | C95: 3 | D95: 1.38E+08 | E95: 1.38E+08 | F95: 0.00% | G95: 1
A96: breast_cancer.csv | B96: sota | C96: 4 | D96: 1.38E+08 | E96: 1.38E+08 | F96: 0.00% | G96: 1
A97: breast_cancer.csv | B97: sota | C97: 5 | D97: 1.38E+08 | E97: 1.38E+08 | F97: 0.00% | G97: 1
A98: breast_cancer.csv | B98: sota | C98: 6 | D98: 1.38E+08 | E98: 1.38E+08 | F98: 0.00% | G98: 1
A99: breast_cancer.csv | B99: sota | C99: 7 | D99: 1.38E+08 | E99: 1.38E+08 | F99: 0.00% | G99: 1
A100: breast_cancer.csv | B100: sota | C100: 8 | D100: 1.38E+08 | E100: 1.38E+08 | F100: 0.00% | G100: 1
A101: breast_cancer.csv | B101: sota | C101: 9 | D101: 1.38E+08 | E101: 1.38E+08 | F101: 0.00% | G101: 1
A102: breast_cancer.csv | B102: sota | C102: 10 | D102: 1.38E+08 | E102: 1.38E+08 | F102: 0.00% | G102: 1
A103: breast_cancer.csv | B103: sota | C103: 11 | D103: 1.38E+08 | E103: 1.38E+08 | F103: 0.00% | G103: 1
A104: breast_cancer.csv | B104: sota | C104: 12 | D104: 1.38E+08 | E104: 1.38E+08 | F104: 0.00% | G104: 1
A105: breast_cancer.csv | B105: sota | C105: 13 | D105: 1.38E+08 | E105: 1.38E+08 | F105: 0.00% | G105: 1
A106: breast_cancer.csv | B106: sota | C106: 14 | D106: 1.38E+08 | E106: 1.38E+08 | F106: 0.00% | G106: 1
A107: breast_cancer.csv | B107: sota | C107: 15 | D107: 1.38E+08 | E107: 1.38E+08 | F107: 0.00% | G107: 1
A108: breast_cancer.csv | B108: sota | C108: 16 | D108: 1.38E+08 | E108: 1.38E+08 | F108: 0.00% | G108: 1
A109: breast_cancer.csv | B109: sota | C109: 17 | D109: 1.38E+08 | E109: 1.38E+08 | F109: 0.00% | G109: 1
A110: breast_cancer.csv | B110: sota | C110: 18 | D110: 1.38E+08 | E110: 1.38E+08 | F110: 0.00% | G110: 1
A111: breast_cancer.csv | B111: sota | C111: 19 | D111: 1.38E+08 | E111: 1.38E+08 | F111: 0.00% | G111: 1
A112: breast_cancer.csv | B112: sota | C112: 20 | D112: 1.38E+08 | E112: 1.38E+08 | F112: 0.00% | G112: 1
A113: breast_cancer.csv | B113: sota | C113: 21 | D113: 1.38E+08 | E113: 1.38E+08 | F113: 0.00% | G113: 1
A114: breast_cancer.csv | B114: sota | C114: 22 | D114: 1.38E+08 | E114: 1.38E+08 | F114: 0.00% | G114: 1
A115: breast_cancer.csv | B115: sota | C115: 23 | D115: 1.38E+08 | E115: 1.38E+08 | F115: 0.00% | G115: 1
A116: breast_cancer.csv | B116: sota | C116: 24 | D116: 1.38E+08 | E116: 1.38E+08 | F116: 0.00% | G116: 1
A117: breast_cancer.csv | B117: sota | C117: 25 | D117: 1.38E+08 | E117: 1.38E+08 | F117: 0.00% | G117: 1
A118: breast_cancer.csv | B118: sota | C118: 26 | D118: 1.38E+08 | E118: 1.38E+08 | F118: 0.00% | G118: 1
A119: breast_cancer.csv | B119: sota | C119: 27 | D119: 1.38E+08 | E119: 1.38E+08 | F119: 0.00% | G119: 1
A120: breast_cancer.csv | B120: sota | C120: 28 | D120: 1.38E+08 | E120: 1.38E+08 | F120: 0.00% | G120: 1
A121: breast_cancer.csv | B121: sota | C121: 29 | D121: 1.38E+08 | E121: 1.38E+08 | F121: 0.00% | G121: 1
A122: Cardiotopography.csv | B122: auto | C122: 0 | D122: 8.48E+06 | E122: 8.48E+06 | F122: 0.00% | G122: 1
A123: Cardiotopography.csv | B123: auto | C123: 1 | D123: 8.54E+06 | E123: 8.48E+06 | F123: 0.73% | G123: 0
A124: Cardiotopography.csv | B124: auto | C124: 2 | D124: 8.49E+06 | E124: 8.48E+06 | F124: 0.20% | G124: 0
A125: Cardiotopography.csv | B125: auto | C125: 3 | D125: 8.54E+06 | E125: 8.48E+06 | F125: 0.76% | G125: 0
A126: Cardiotopography.csv | B126: auto | C126: 4 | D126: 8.52E+06 | E126: 8.48E+06 | F126: 0.48% | G126: 0
A127: Cardiotopography.csv | B127: auto | C127: 5 | D127: 8.51E+06 | E127: 8.48E+06 | F127: 0.35% | G127: 0
A128: Cardiotopography.csv | B128: auto | C128: 6 | D128: 8.51E+06 | E128: 8.48E+06 | F128: 0.35% | G128: 0
A129: Cardiotopography.csv | B129: auto | C129: 7 | D129: 8.52E+06 | E129: 8.48E+06 | F129: 0.51% | G129: 0
A130: Cardiotopography.csv | B130: auto | C130: 8 | D130: 8.49E+06 | E130: =VLOOKUP(A130,L:M,2,FALSE) -> 8.48E+06 | F130: =(D130-E130)/E130 -> 0.16% | G130: =IF(D130<=E130,1,0) -> 0
A131: Cardiotopography.csv | B131: auto | C131: 9 | D131: 8.52E+06 | E131: 8.48E+06 | F131: 0.48% | G131: 0
A132: Cardiotopography.csv | B132: auto | C132: 10 | D132: 8.51E+06 | E132: 8.48E+06 | F132: 0.43% | G132: 0
A133: Cardiotopography.csv | B133: auto | C133: 11 | D133: 8.50E+06 | E133: 8.48E+06 | F133: 0.30% | G133: 0
A134: Cardiotopography.csv | B134: auto | C134: 12 | D134: 8.50E+06 | E134: 8.48E+06 | F134: 0.33% | G134: 0
A135: Cardiotopography.csv | B135: auto | C135: 13 | D135: 8.54E+06 | E135: 8.48E+06 | F135: 0.77% | G135: 0
A136: Cardiotopography.csv | B136: auto | C136: 14 | D136: 8.51E+06 | E136: 8.48E+06 | F136: 0.40% | G136: 0
A137: Cardiotopography.csv | B137: auto | C137: 15 | D137: 8.54E+06 | E137: 8.48E+06 | F137: 0.75% | G137: 0
A138: Cardiotopography.csv | B138: auto | C138: 16 | D138: 8.51E+06 | E138: 8.48E+06 | F138: 0.44% | G138: 0
A139: Cardiotopography.csv | B139: auto | C139: 17 | D139: 8.55E+06 | E139: 8.48E+06 | F139: 0.88% | G139: 0
A140: Cardiotopography.csv | B140: auto | C140: 18 | D140: 8.53E+06 | E140: 8.48E+06 | F140: 0.62% | G140: 0
A141: Cardiotopography.csv | B141: auto | C141: 19 | D141: 8.56E+06 | E141: 8.48E+06 | F141: 0.97% | G141: 0
A142: Cardiotopography.csv | B142: auto | C142: 20 | D142: 8.51E+06 | E142: 8.48E+06 | F142: 0.34% | G142: 0
A143: Cardiotopography.csv | B143: auto | C143: 21 | D143: 8.54E+06 | E143: 8.48E+06 | F143: 0.75% | G143: 0
A144: Cardiotopography.csv | B144: auto | C144: 22 | D144: 8.51E+06 | E144: 8.48E+06 | F144: 0.44% | G144: 0
A145: Cardiotopography.csv | B145: auto | C145: 23 | D145: 8.52E+06 | E145: 8.48E+06 | F145: 0.53% | G145: 0
A146: Cardiotopography.csv | B146: auto | C146: 24 | D146: 8.53E+06 | E146: 8.48E+06 | F146: 0.60% | G146: 0
A147: Cardiotopography.csv | B147: auto | C147: 25 | D147: 8.53E+06 | E147: 8.48E+06 | F147: 0.67% | G147: 0
A148: Cardiotopography.csv | B148: auto | C148: 26 | D148: 8.50E+06 | E148: 8.48E+06 | F148: 0.27% | G148: 0
A149: Cardiotopography.csv | B149: auto | C149: 27 | D149: 8.55E+06 | E149: 8.48E+06 | F149: 0.84% | G149: 0
A150: Cardiotopography.csv | B150: auto | C150: 28 | D150: 8.53E+06 | E150: 8.48E+06 | F150: 0.64% | G150: 0
A151: Cardiotopography.csv | B151: auto | C151: 29 | D151: 8.50E+06 | E151: 8.48E+06 | F151: 0.26% | G151: 0
A152: Cardiotopography.csv | B152: sota | C152: 0 | D152: 8.59E+06 | E152: 8.48E+06 | F152: 1.30% | G152: 0
A153: Cardiotopography.csv | B153: sota | C153: 1 | D153: 8.56E+06 | E153: 8.48E+06 | F153: 1.00% | G153: 0
A154: Cardiotopography.csv | B154: sota | C154: 2 | D154: 8.66E+06 | E154: 8.48E+06 | F154: 2.17% | G154: 0
A155: Cardiotopography.csv | B155: sota | C155: 3 | D155: 8.61E+06 | E155: 8.48E+06 | F155: 1.63% | G155: 0
A156: Cardiotopography.csv | B156: sota | C156: 4 | D156: 8.53E+06 | E156: 8.48E+06 | F156: 0.69% | G156: 0
A157: Cardiotopography.csv | B157: sota | C157: 5 | D157: 8.53E+06 | E157: 8.48E+06 | F157: 0.70% | G157: 0
A158: Cardiotopography.csv | B158: sota | C158: 6 | D158: 8.53E+06 | E158: 8.48E+06 | F158: 0.60% | G158: 0
A159: Cardiotopography.csv | B159: sota | C159: 7 | D159: 8.56E+06 | E159: 8.48E+06 | F159: 0.98% | G159: 0
A160: Cardiotopography.csv | B160: sota | C160: 8 | D160: 8.56E+06 | E160: 8.48E+06 | F160: 1.02% | G160: 0
A161: Cardiotopography.csv | B161: sota | C161: 9 | D161: 8.63E+06 | E161: 8.48E+06 | F161: 1.81% | G161: 0
A162: Cardiotopography.csv | B162: sota | C162: 10 | D162: 8.53E+06 | E162: 8.48E+06 | F162: 0.65% | G162: 0
A163: Cardiotopography.csv | B163: sota | C163: 11 | D163: 8.56E+06 | E163: 8.48E+06 | F163: 0.97% | G163: 0
A164: Cardiotopography.csv | B164: sota | C164: 12 | D164: 8.55E+06 | E164: 8.48E+06 | F164: 0.90% | G164: 0
A165: Cardiotopography.csv | B165: sota | C165: 13 | D165: 8.55E+06 | E165: 8.48E+06 | F165: 0.90% | G165: 0
A166: Cardiotopography.csv | B166: sota | C166: 14 | D166: 8.55E+06 | E166: 8.48E+06 | F166: 0.91% | G166: 0
A167: Cardiotopography.csv | B167: sota | C167: 15 | D167: 8.55E+06 | E167: 8.48E+06 | F167: 0.90% | G167: 0
A168: Cardiotopography.csv | B168: sota | C168: 16 | D168: 8.56E+06 | E168: 8.48E+06 | F168: 0.99% | G168: 0
A169: Cardiotopography.csv | B169: sota | C169: 17 | D169: 8.67E+06 | E169: 8.48E+06 | F169: 2.35% | G169: 0
A170: Cardiotopography.csv | B170: sota | C170: 18 | D170: 8.55E+06 | E170: 8.48E+06 | F170: 0.90% | G170: 0
A171: Cardiotopography.csv | B171: sota | C171: 19 | D171: 8.58E+06 | E171: 8.48E+06 | F171: 1.25% | G171: 0
A172: Cardiotopography.csv | B172: sota | C172: 20 | D172: 8.64E+06 | E172: 8.48E+06 | F172: 1.97% | G172: 0
A173: Cardiotopography.csv | B173: sota | C173: 21 | D173: 8.57E+06 | E173: 8.48E+06 | F173: 1.13% | G173: 0
A174: Cardiotopography.csv | B174: sota | C174: 22 | D174: 8.56E+06 | E174: 8.48E+06 | F174: 1.02% | G174: 0
A175: Cardiotopography.csv | B175: sota | C175: 23 | D175: 8.64E+06 | E175: 8.48E+06 | F175: 1.91% | G175: 0
A176: Cardiotopography.csv | B176: sota | C176: 24 | D176: 8.63E+06 | E176: 8.48E+06 | F176: 1.82% | G176: 0
A177: Cardiotopography.csv | B177: sota | C177: 25 | D177: 8.55E+06 | E177: 8.48E+06 | F177: 0.90% | G177: 0
A178: Cardiotopography.csv | B178: sota | C178: 26 | D178: 8.61E+06 | E178: 8.48E+06 | F178: 1.59% | G178: 0
A179: Cardiotopography.csv | B179: sota | C179: 27 | D179: 8.63E+06 | E179: 8.48E+06 | F179: 1.86% | G179: 0
A180: Cardiotopography.csv | B180: sota | C180: 28 | D180: 8.64E+06 | E180: 8.48E+06 | F180: 1.89% | G180: 0
A181: Cardiotopography.csv | B181: sota | C181: 29 | D181: 8.62E+06 | E181: 8.48E+06 | F181: 1.74% | G181: 0
A182: glass.csv | B182: auto | C182: 0 | D182: 5.05E+02 | E182: 5.05E+02 | F182: 0.02% | G182: 0
A183: glass.csv | B183: auto | C183: 1 | D183: 5.05E+02 | E183: 5.05E+02 | F183: 0.09% | G183: 0
A184: glass.csv | B184: auto | C184: 2 | D184: 5.05E+02 | E184: 5.05E+02 | F184: 0.01% | G184: 0
A185: glass.csv | B185: auto | C185: 3 | D185: 5.05E+02 | E185: 5.05E+02 | F185: 0.01% | G185: 0
A186: glass.csv | B186: auto | C186: 4 | D186: 5.05E+02 | E186: 5.05E+02 | F186: 0.02% | G186: 0
A187: glass.csv | B187: auto | C187: 5 | D187: 5.09E+02 | E187: 5.05E+02 | F187: 0.80% | G187: 0
A188: glass.csv | B188: auto | C188: 6 | D188: 5.05E+02 | E188: 5.05E+02 | F188: 0.02% | G188: 0
A189: glass.csv | B189: auto | C189: 7 | D189: 5.06E+02 | E189: 5.05E+02 | F189: 0.19% | G189: 0
A190: glass.csv | B190: auto | C190: 8 | D190: 5.05E+02 | E190: 5.05E+02 | F190: 0.01% | G190: 0
A191: glass.csv | B191: auto | C191: 9 | D191: 5.06E+02 | E191: 5.05E+02 | F191: 0.26% | G191: 0
A192: glass.csv | B192: auto | C192: 10 | D192: 5.05E+02 | E192: 5.05E+02 | F192: 0.02% | G192: 0
A193: glass.csv | B193: auto | C193: 11 | D193: 5.05E+02 | E193: 5.05E+02 | F193: 0.02% | G193: 0
A194: glass.csv | B194: auto | C194: 12 | D194: 5.05E+02 | E194: =VLOOKUP(A194,L:M,2,FALSE) -> 5.05E+02 | F194: =(D194-E194)/E194 -> 0.02% | G194: =IF(D194<=E194,1,0) -> 0
A195: glass.csv | B195: auto | C195: 13 | D195: 5.05E+02 | E195: 5.05E+02 | F195: 0.00% | G195: 1
A196: glass.csv | B196: auto | C196: 14 | D196: 5.08E+02 | E196: 5.05E+02 | F196: 0.74% | G196: 0
A197: glass.csv | B197: auto | C197: 15 | D197: 5.09E+02 | E197: 5.05E+02 | F197: 0.81% | G197: 0
A198: glass.csv | B198: auto | C198: 16 | D198: 5.05E+02 | E198: 5.05E+02 | F198: 0.01% | G198: 0
A199: glass.csv | B199: auto | C199: 17 | D199: 5.09E+02 | E199: 5.05E+02 | F199: 0.91% | G199: 0
A200: glass.csv | B200: auto | C200: 18 | D200: 5.05E+02 | E200: 5.05E+02 | F200: 0.02% | G200: 0
... 1301 more rows

Sheet PivotBMSSC
B1: Column Labels | L1: All instances removing Tuning instances
B2: auto | F2: sota | M2: sum #best | O2: sum hasBest | Q2: Avg %Gap | R2: Min %Gap | U2: Tuning instances
A3: Row Labels | B3: #best | C3: hasBest | D3: Avg %Gap | E3: Min %Gap | F3: #best | G3: hasBest | H3: Avg %Gap | I3: Min %Gap | L3: auto | M3: =SUM(B4:B28) -> 171 | N3: =M3/$M$8 -> 40.71% | O3: =SUM(C4:C28) -> 11 | P3: =O3/$M$6 -> 78.57% | Q3: =AVERAGE(D4:D28) -> 0.13% | R3: =AVERAGE(E4:E28) -> 0.01% | U3: body.csv
A4: libra.csv | B4: 0 | C4: 0 | D4: 0.27% | E4: 0.04% | F4: 1 | G4: 1 | H4: 0.32% | I4: 0.00% | L4: sota | M4: =SUM(F4:F28) -> 137 | N4: =M4/$M$8 -> 32.62% | O4: =SUM(G4:G28) -> 9 | P4: =O4/$M$6 -> 64.29% | Q4: =AVERAGE(H4:H28) -> 0.47% | R4: =AVERAGE(I4:I28) -> 0.29% | U4: breast_cancer.csv
A5: ozone0.csv | B5: 1 | C5: 1 | D5: 0.66% | E5: 0.00% | F5: 0 | G5: 0 | H5: 3.94% | I5: 3.94% | U5: Cardiotopography.csv
A6: image_segmentation.csv | B6: 0 | C6: 0 | D6: 0.42% | E6: 0.07% | F6: 1 | G6: 1 | H6: 0.88% | I6: 0.00% | L6: NInstances | M6: 14 | U6: InternetAds.csv
A7: user_knowledge.csv | B7: 1 | C7: 1 | D7: 0.09% | E7: 0.00% | F7: 0 | G7: 0 | H7: 0.37% | I7: 0.09% | L7: Reps | M7: 30 | U7: multiple_features_reduced.csv
A8: vowel.csv | B8: 30 | C8: 1 | D8: 0.00% | E8: 0.00% | F8: 15 | G8: 1 | H8: 0.03% | I8: 0.00% | L8: Iters Per Alg | M8: =M7*M6 -> 420 | U8: PhonesAcc.csv
A9: seismicBumps.csv | B9: 1 | C9: 1 | D9: 0.00% | E9: 0.00% | F9: 0 | G9: 0 | H9: 0.01% | I9: 0.00% | U9: WatchAcc.csv
A10: PhonesGyro.csv | B10: 30 | C10: 1 | D10: 0.00% | E10: 0.00% | F10: 30 | G10: 1 | H10: 0.00% | I10: 0.00% | U10: WatchGyro.csv
A11: synthetic_control.csv | B11: 12 | C11: 1 | D11: 0.01% | E11: 0.00% | F11: 2 | G11: 1 | H11: 0.02% | I11: 0.00% | L11: Takes into account all instances | U11: water.csv
A12: glass.csv | B12: 5 | C12: 1 | D12: 0.19% | E12: 0.00% | F12: 0 | G12: 0 | H12: 0.75% | I12: 0.02% | M12: sum #best | O12: sum hasBest | Q12: Avg %Gap | R12: Min %Gap | U12: wine.csv
A13: thyroid.csv | B13: 30 | C13: 1 | D13: 0.00% | E13: 0.00% | F13: 30 | G13: 1 | H13: 0.00% | I13: 0.00% | L13: auto | M13: 326 | N13: 43.47% | O13: 21 | P13: 84.00% | Q13: 0.11% | R13: 0.01% | U13: yeast.csv
A14: iris.csv | B14: 30 | C14: 1 | D14: 0.00% | E14: 0.00% | F14: 30 | G14: 1 | H14: 0.00% | I14: 0.00% | L14: sota | M14: 288 | N14: 38.40% | O14: 15 | P14: 60.00% | Q14: 0.44% | R14: 0.29%
A15: vehicle.csv | B15: 0 | C15: 0 | D15: 0.09% | E15: 0.09% | F15: 1 | G15: 1 | H15: 0.22% | I15: 0.00%
A16: ionosphere.csv | B16: 30 | C16: 1 | D16: 0.00% | E16: 0.00% | F16: 27 | G16: 1 | H16: 0.01% | I16: 0.00% | L16: NInstances | M16: 25
A17: MobileKSD.csv | B17: 1 | C17: 1 | D17: 0.06% | E17: 0.00% | F17: 0 | G17: 0 | H17: 0.10% | I17: 0.06% | L17: Reps | M17: 30
L18: Iters Per Alg | M18: 750

Sheet AnnexBMSSC
B1: Column Labels
B2: auto | D2: sota | I2: Auto | K2: SOTA
A3: Row Labels | B3: Avg o.f. | C3: Min o.f. | D3: Avg o.f. | E3: Min o.f. | H3: Instance | I3: Avg o.f. | J3: Min o.f. | K3: Avg o.f. | L3: Min o.f.
A4: libra | B4: 6.41E+07 | C4: 6.39E+07 | D4: 6.41E+07 | E4: 6.39E+07 | H4: libra | I4: 6.41E+07 | J4: 6.39E+07 | K4: 6.41E+07 | L4: 6.39E+07
A5: ozone0 | B5: 2.48E+09 | C5: 2.46E+09 | D5: 2.56E+09 | E5: 2.56E+09 | H5: ozone0 | I5: 2.48E+09 | J5: 2.46E+09 | K5: 2.56E+09 | L5: 2.56E+09
A6: WatchAcc | B6: 1.68E+03 | C6: 1.68E+03 | D6: 1.68E+03 | E6: 1.68E+03 | H6: WatchAcc | I6: 1.68E+03 | J6: 1.68E+03 | K6: 1.68E+03 | L6: 1.68E+03
A7: body | B7: 1.14E+05 | C7: 1.14E+05 | D7: 1.14E+05 | E7: 1.14E+05 | H7: body | I7: 1.14E+05 | J7: 1.14E+05 | K7: 1.14E+05 | L7: 1.14E+05
A8: image_segmentation | B8: 2.12E+07 | C8: 2.11E+07 | D8: 2.13E+07 | E8: 2.11E+07 | H8: image_segmentation | I8: 2.12E+07 | J8: 2.11E+07 | K8: 2.13E+07 | L8: 2.11E+07
A9: user_knowledge | B9: 7.03E+01 | C9: 7.02E+01 | D9: 7.05E+01 | E9: 7.03E+01 | H9: user_knowledge | I9: 7.03E+01 | J9: 7.02E+01 | K9: 7.05E+01 | L9: 7.03E+01
A10: vowel | B10: 6.45E+07 | C10: 6.45E+07 | D10: 6.46E+07 | E10: 6.45E+07 | H10: vowel | I10: 6.45E+07 | J10: 6.45E+07 | K10: 6.46E+07 | L10: 6.45E+07
A11: PhonesAcc | B11: 2.62E+02 | C11: 2.62E+02 | D11: 2.62E+02 | E11: 2.62E+02 | H11: PhonesAcc | I11: 2.62E+02 | J11: 2.62E+02 | K11: 2.62E+02 | L11: 2.62E+02
A12: yeast | B12: 5.33E+01 | C12: 5.33E+01 | D12: 5.33E+01 | E12: 5.33E+01 | H12: yeast | I12: 5.33E+01 | J12: 5.33E+01 | K12: 5.33E+01 | L12: 5.33E+01
A13: WatchGyro | B13: 1.54E+01 | C13: 1.54E+01 | D13: 1.54E+01 | E13: 1.54E+01 | H13: WatchGyro | I13: 1.54E+01 | J13: 1.54E+01 | K13: 1.54E+01 | L13: 1.54E+01
A14: seismicBumps | B14: 2.94E+13 | C14: 2.94E+13 | D14: 2.94E+13 | E14: 2.94E+13 | H14: seismicBumps | I14: 2.94E+13 | J14: 2.94E+13 | K14: 2.94E+13 | L14: 2.94E+13
A15: Cardiotopography | B15: 8.52E+06 | C15: 8.48E+06 | D15: 8.58E+06 | E15: 8.53E+06 | H15: Cardiotopography | I15: 8.52E+06 | J15: 8.48E+06 | K15: 8.58E+06 | L15: 8.53E+06
A16: breast_cancer | B16: 1.38E+08 | C16: 1.38E+08 | D16: 1.38E+08 | E16: 1.38E+08 | H16: breast_cancer | I16: 1.38E+08 | J16: 1.38E+08 | K16: 1.38E+08 | L16: 1.38E+08
A17: wine | B17: 3.77E+06 | C17: 3.77E+06 | D17: 3.77E+06 | E17: 3.77E+06 | H17: wine | I17: 3.77E+06 | J17: 3.77E+06 | K17: 3.77E+06 | L17: 3.77E+06
A18: InternetAds | B18: 3.74E+04 | C18: 3.73E+04 | D18: 3.74E+04 | E18: 3.74E+04 | H18: InternetAds | I18: 3.74E+04 | J18: 3.73E+04 | K18: 3.74E+04 | L18: 3.74E+04
A19: PhonesGyro | B19: 3.37E+01 | C19: 3.37E+01 | D19: 3.37E+01 | E19: 3.37E+01 | H19: PhonesGyro | I19: 3.37E+01 | J19: 3.37E+01 | K19: 3.37E+01 | L19: 3.37E+01
A20: synthetic_control | B20: 1.00E+06 | C20: 1.00E+06 | D20: 1.00E+06 | E20: 1.00E+06 | H20: synthetic_control | I20: 1.00E+06 | J20: 1.00E+06 | K20: 1.00E+06 | L20: 1.00E+06
A21: glass | B21: 5.06E+02 | C21: 5.05E+02 | D21: 5.08E+02 | E21: 5.05E+02 | H21: glass | I21: 5.06E+02 | J21: 5.05E+02 | K21: 5.08E+02 | L21: 5.05E+02
A22: multiple_features_reduced | B22: 1.95E+06 | C22: 1.95E+06 | D22: 1.95E+06 | E22: 1.95E+06 | H22: multiple_features | I22: 1.95E+06 | J22: 1.95E+06 | K22: 1.95E+06 | L22: 1.95E+06
A23: thyroid | B23: 3.44E+04 | C23: 3.44E+04 | D23: 3.44E+04 | E23: 3.44E+04 | H23: thyroid | I23: 3.44E+04 | J23: 3.44E+04 | K23: 3.44E+04 | L23: 3.44E+04
A24: iris | B24: 8.14E+01 | C24: 8.14E+01 | D24: 8.14E+01 | E24: 8.14E+01 | H24: iris | I24: 8.14E+01 | J24: 8.14E+01 | K24: 8.14E+01 | L24: 8.14E+01
A25: water | B25: 7.75E+09 | C25: 7.74E+09 | D25: 7.94E+09 | E25: 7.93E+09 | H25: water | I25: 7.75E+09 | J25: 7.74E+09 | K25: 7.94E+09 | L25: 7.93E+09
A26: vehicle | B26: 2.90E+06 | C26: 2.90E+06 | D26: 2.90E+06 | E26: 2.89E+06 | H26: vehicle | I26: 2.90E+06 | J26: 2.90E+06 | K26: 2.90E+06 | L26: 2.89E+06
A27: ionosphere | B27: 2.43E+03 | C27: 2.43E+03 | D27: 2.43E+03 | E27: 2.43E+03 | H27: ionosphere | I27: 2.43E+03 | J27: 2.43E+03 | K27: 2.43E+03 | L27: 2.43E+03
A28: MobileKSD | B28: 3.11E+10 | C28: 3.11E+10 | D28: 3.12E+10 | E28: 3.11E+10 | H28: MobileKSD | I28: 3.11E+10 | J28: 3.11E+10 | K28: 3.12E+10 | L28: 3.11E+10

Sheet ProfileBMSSC
A1: Auto | C1: SOTA
A2: 1.5 | B2: 55.23% | C2: 0.5 | D2: 66.17% | G2: Note: ac5 == auto == AutoConfig
A3: 2 | B3: 51.51% | C3: 1 | D3: 61.83%
A4: 2.5 | B4: 28.23% | C4: 1.5 | D4: 39.99%
A5: 3 | B5: 4.59% | C5: 2 | D5: 38.59%
A6: 5 | B6: 3.63% | C6: 2.5 | D6: 37.97%
A7: 5.5 | B7: 3.11% | C7: 3 | D7: 37.90%
A8: 6 | B8: 2.60% | C8: 3.5 | D8: 36.92%
A9: 6.5 | B9: 2.24% | C9: 4 | D9: 35.98%
A10: 7 | B10: 1.83% | C10: 4.5 | D10: 35.07%
A11: 7.5 | B11: 1.54% | C11: 5 | D11: 34.14%
A12: 8 | B12: 1.39% | C12: 5.5 | D12: 33.60%
A13: 8.5 | B13: 1.20% | C13: 6 | D13: 32.06%
A14: 9 | B14: 0.97% | C14: 6.5 | D14: 31.76%
A15: 9.5 | B15: 0.81% | C15: 7 | D15: 31.32%
A16: 10 | B16: 0.68% | C16: 7.5 | D16: 31.31%
A17: 10.5 | B17: 0.58% | C17: 8 | D17: 31.30%
A18: 11 | B18: 0.49% | C18: 8.5 | D18: 31.12%
A19: 11.5 | B19: 0.44% | C19: 9 | D19: 29.97%
A20: 12 | B20: 0.42% | C20: 9.5 | D20: 29.78%
A21: 12.5 | B21: 0.41% | C21: 10 | D21: 29.75%
A22: 13 | B22: 0.40% | C22: 10.5 | D22: 29.73%
A23: 13.5 | B23: 0.39% | C23: 11 | D23: 29.71%
A24: 14 | B24: 0.38% | C24: 11.5 | D24: 29.71%
A25: 14.5 | B25: 0.37% | C25: 12 | D25: 29.70%
A26: 15 | B26: 0.37% | C26: 12.5 | D26: 29.69%
A27: 15.5 | B27: 0.36% | C27: 13 | D27: 29.68%
A28: 16 | B28: 0.36% | C28: 13.5 | D28: 29.68%
A29: 16.5 | B29: 0.36% | C29: 14 | D29: 29.67%
A30: 17 | B30: 0.35% | C30: 14.5 | D30: 29.67%
A31: 17.5 | B31: 0.34% | C31: 15 | D31: 29.67%
A32: 18 | B32: 0.34% | C32: 15.5 | D32: 29.66%
A33: 18.5 | B33: 0.34% | C33: 16 | D33: 29.65%
A34: 19 | B34: 0.33% | C34: 16.5 | D34: 29.53%
A35: 19.5 | B35: 0.33% | C35: 17 | D35: 29.04%
A36: 20 | B36: 0.33% | C36: 17.5 | D36: 27.78%
A37: 20.5 | B37: 0.33% | C37: 18 | D37: 26.62%
A38: 21 | B38: 0.33% | C38: 18.5 | D38: 25.43%
A39: 21.5 | B39: 0.32% | C39: 19 | D39: 20.81%
A40: 22 | B40: 0.32% | C40: 19.5 | D40: 14.28%
A41: 22.5 | B41: 0.32% | C41: 20 | D41: 8.57%
A42: 23 | B42: 0.32% | C42: 20.5 | D42: 5.44%
A43: 23.5 | B43: 0.32% | C43: 21 | D43: 3.83%
A44: 24 | B44: 0.32% | C44: 21.5 | D44: 3.28%
A45: 24.5 | B45: 0.32% | C45: 22 | D45: 3.26%
A46: 25 | B46: 0.32% | C46: 22.5 | D46: 3.25%
A47: 25.5 | B47: 0.32% | C47: 23 | D47: 3.25%
A48: 26 | B48: 0.32% | C48: 23.5 | D48: 3.24%
A49: 26.5 | B49: 0.32% | C49: 24 | D49: 3.24%
A50: 27 | B50: 0.31% | C50: 24.5 | D50: 3.24%
A51: 27.5 | B51: 0.31% | C51: 25 | D51: 3.24%
A52: 28 | B52: 0.31% | C52: 25.5 | D52: 3.24%
A53: 28.5 | B53: 0.31% | C53: 26 | D53: 3.24%
A54: 29 | B54: 0.31% | C54: 26.5 | D54: 3.24%
A55: 29.5 | B55: 0.31% | C55: 27 | D55: 3.24%
A56: 30 | B56: 0.31% | C56: 27.5 | D56: 3.24%
A57: 30.5 | B57: 0.31% | C57: 28 | D57: 3.24%
A58: 31 | B58: 0.31% | C58: 28.5 | D58: 3.24%
A59: 31.5 | B59: 0.31% | C59: 29 | D59: 3.24%
A60: 32 | B60: 0.31% | C60: 29.5 | D60: 3.23%
A61: 32.5 | B61: 0.31% | C61: 30 | D61: 3.23%
A62: 33 | B62: 0.31% | C62: 30.5 | D62: 3.22%
A63: 33.5 | B63: 0.31% | C63: 31 | D63: 3.22%
A64: 34 | B64: 0.31% | C64: 31.5 | D64: 3.22%
A65: 34.5 | B65: 0.31% | C65: 32 | D65: 3.22%
A66: 35 | B66: 0.31% | C66: 32.5 | D66: 3.22%
A67: 35.5 | B67: 0.30% | C67: 33 | D67: 3.22%
A68: 36 | B68: 0.30% | C68: 33.5 | D68: 3.22%
A69: 36.5 | B69: 0.30% | C69: 34 | D69: 3.22%
A70: 37 | B70: 0.30% | C70: 34.5 | D70: 3.22%
A71: 37.5 | B71: 0.30% | C71: 35 | D71: 3.22%
A72: 38 | B72: 0.30% | C72: 35.5 | D72: 3.22%
A73: 38.5 | B73: 0.30% | C73: 36 | D73: 3.22%
A74: 39 | B74: 0.30% | C74: 36.5 | D74: 3.22%
A75: 39.5 | B75: 0.30% | C75: 37 | D75: 3.22%
A76: 40 | B76: 0.30% | C76: 37.5 | D76: 3.22%
A77: 40.5 | B77: 0.30% | C77: 38 | D77: 3.22%
A78: 41 | B78: 0.30% | C78: 38.5 | D78: 3.22%
A79: 41.5 | B79: 0.30% | C79: 39 | D79: 3.22%
A80: 42 | B80: 0.30% | C80: 39.5 | D80: 3.22%
A81: 42.5 | B81: 0.30% | C81: 40 | D81: 3.22%
A82: 43 | B82: 0.30% | C82: 40.5 | D82: 3.22%
A83: 43.5 | B83: 0.30% | C83: 41 | D83: 3.22%
A84: 44 | B84: 0.30% | C84: 41.5 | D84: 3.22%
A85: 44.5 | B85: 0.30% | C85: 42 | D85: 3.22%
A86: 45 | B86: 0.30% | C86: 42.5 | D86: 3.21%
A87: 45.5 | B87: 0.29% | C87: 43 | D87: 3.21%
A88: 46 | B88: 0.29% | C88: 43.5 | D88: 3.21%
A89: 46.5 | B89: 0.29% | C89: 44 | D89: 3.21%
A90: 47 | B90: 0.29% | C90: 44.5 | D90: 3.21%
A91: 47.5 | B91: 0.29% | C91: 45 | D91: 3.21%
A92: 48 | B92: 0.29% | C92: 45.5 | D92: 3.21%
A93: 48.5 | B93: 0.29% | C93: 46 | D93: 3.21%
A94: 49 | B94: 0.29% | C94: 46.5 | D94: 3.21%
A95: 49.5 | B95: 0.29% | C95: 47 | D95: 3.15%
A96: 50 | B96: 0.29% | C96: 47.5 | D96: 2.86%
A97: 50.5 | B97: 0.29% | C97: 48 | D97: 2.56%
A98: 51 | B98: 0.29% | C98: 48.5 | D98: 2.13%
A99: 51.5 | B99: 0.28% | C99: 49 | D99: 1.93%
A100: 52 | B100: 0.28% | C100: 49.5 | D100: 1.62%
A101: 52.5 | B101: 0.28% | C101: 50 | D101: 1.39%
A102: 53 | B102: 0.28% | C102: 50.5 | D102: 1.18%
A103: 53.5 | B103: 0.28% | C103: 51 | D103: 1.01%
A104: 54 | B104: 0.28% | C104: 51.5 | D104: 0.87%
A105: 54.5 | B105: 0.28% | C105: 52 | D105: 0.78%
A106: 55 | B106: 0.28% | C106: 52.5 | D106: 0.71%
A107: 55.5 | B107: 0.28% | C107: 53 | D107: 0.66%
A108: 56 | B108: 0.27% | C108: 53.5 | D108: 0.62%
A109: 56.5 | B109: 0.27% | C109: 54 | D109: 0.60%
A110: 57 | B110: 0.27% | C110: 54.5 | D110: 0.59%
A111: 57.5 | B111: 0.27% | C111: 55 | D111: 0.59%
A112: 58 | B112: 0.27% | C112: 55.5 | D112: 0.58%
A113: 58.5 | B113: 0.27% | C113: 56 | D113: 0.58%
A114: 59 | B114: 0.27% | C114: 56.5 | D114: 0.57%
A115: 59.5 | B115: 0.27% | C115: 57 | D115: 0.57%
A116: 60 | B116: 0.27% | C116: 57.5 | D116: 0.57%
A117: 60.5 | B117: 0.27% | C117: 58 | D117: 0.56%
A118: 61 | B118: 0.27% | C118: 58.5 | D118: 0.56%
A119: 61.5 | B119: 0.27% | C119: 59 | D119: 0.56%
A120: 62 | B120: 0.27% | C120: 59.5 | D120: 0.55%
A121: 62.5 | B121: 0.27% | C121: 60 | D121: 0.55%
A122: 63 | B122: 0.27% | C122: 60.5 | D122: 0.55%
A123: 63.5 | B123: 0.27% | C123: 61 | D123: 0.55%
A124: 64 | B124: 0.26% | C124: 61.5 | D124: 0.55%
A125: 64.5 | B125: 0.26% | C125: 62 | D125: 0.55%
A126: 65 | B126: 0.26% | C126: 62.5 | D126: 0.55%
A127: 65.5 | B127: 0.25% | C127: 63 | D127: 0.55%
A128: 66 | B128: 0.25% | C128: 63.5 | D128: 0.55%
A129: 66.5 | B129: 0.25% | C129: 64 | D129: 0.54%
A130: 67 | B130: 0.25% | C130: 64.5 | D130: 0.53%
A131: 67.5 | B131: 0.25% | C131: 65 | D131: 0.53%
A132: 68 | B132: 0.25% | C132: 65.5 | D132: 0.53%
A133: 68.5 | B133: 0.25% | C133: 66 | D133: 0.53%
A134: 69 | B134: 0.25% | C134: 66.5 | D134: 0.53%
A135: 69.5 | B135: 0.25% | C135: 67 | D135: 0.53%
A136: 70 | B136: 0.25% | C136: 67.5 | D136: 0.53%
A137: 70.5 | B137: 0.25% | C137: 68 | D137: 0.53%
A138: 71 | B138: 0.25% | C138: 68.5 | D138: 0.53%
A139: 71.5 | B139: 0.25% | C139: 69 | D139: 0.53%
A140: 72 | B140: 0.25% | C140: 69.5 | D140: 0.53%
A141: 72.5 | B141: 0.25% | C141: 70 | D141: 0.53%
A142: 73 | B142: 0.25% | C142: 70.5 | D142: 0.53%
A143: 73.5 | B143: 0.25% | C143: 71 | D143: 0.53%
A144: 74 | B144: 0.24% | C144: 71.5 | D144: 0.53%
A145: 74.5 | B145: 0.24% | C145: 72 | D145: 0.53%
A146: 75 | B146: 0.24% | C146: 72.5 | D146: 0.53%
A147: 75.5 | B147: 0.24% | C147: 73 | D147: 0.53%
A148: 76 | B148: 0.24% | C148: 73.5 | D148: 0.53%
A149: 76.5 | B149: 0.24% | C149: 74 | D149: 0.53%
A150: 77 | B150: 0.24% | C150: 74.5 | D150: 0.53%
A151: 77.5 | B151: 0.24% | C151: 75 | D151: 0.53%
A152: 78 | B152: 0.24% | C152: 75.5 | D152: 0.53%
A153: 78.5 | B153: 0.24% | C153: 76 | D153: 0.53%
A154: 79 | B154: 0.24% | C154: 76.5 | D154: 0.53%
A155: 79.5 | B155: 0.24% | C155: 77 | D155: 0.53%
A156: 80 | B156: 0.24% | C156: 77.5 | D156: 0.53%
A157: 80.5 | B157: 0.23% | C157: 78 | D157: 0.53%
A158: 81 | B158: 0.22% | C158: 78.5 | D158: 0.53%
A159: 81.5 | B159: 0.22% | C159: 79 | D159: 0.53%
A160: 82 | B160: 0.22% | C160: 79.5 | D160: 0.53%
A161: 82.5 | B161: 0.22% | C161: 80 | D161: 0.53%
A162: 83 | B162: 0.22% | C162: 80.5 | D162: 0.53%
A163: 83.5 | B163: 0.22% | C163: 81 | D163: 0.53%
A164: 84 | B164: 0.22% | C164: 81.5 | D164: 0.53%
A165: 84.5 | B165: 0.22% | C165: 82 | D165: 0.53%
A166: 85 | B166: 0.21% | C166: 82.5 | D166: 0.53%
A167: 85.5 | B167: 0.21% | C167: 83 | D167: 0.53%
A168: 86 | B168: 0.21% | C168: 83.5 | D168: 0.53%
A169: 86.5 | B169: 0.21% | C169: 84 | D169: 0.53%
A170: 87 | B170: 0.21% | C170: 84.5 | D170: 0.53%
A171: 87.5 | B171: 0.21% | C171: 85 | D171: 0.53%
A172: 88 | B172: 0.21% | C172: 85.5 | D172: 0.53%
A173: 88.5 | B173: 0.21% | C173: 86 | D173: 0.53%
A174: 89 | B174: 0.21% | C174: 86.5 | D174: 0.53%
A175: 89.5 | B175: 0.21% | C175: 87 | D175: 0.53%
A176: 90 | B176: 0.21% | C176: 87.5 | D176: 0.53%
A177: 90.5 | B177: 0.21% | C177: 88 | D177: 0.53%
A178: 91 | B178: 0.21% | C178: 88.5 | D178: 0.53%
A179: 91.5 | B179: 0.20% | C179: 89 | D179: 0.53%
A180: 92 | B180: 0.20% | C180: 89.5 | D180: 0.53%
A181: 92.5 | B181: 0.20% | C181: 90 | D181: 0.53%
A182: 93 | B182: 0.20% | C182: 90.5 | D182: 0.53%
A183: 93.5 | B183: 0.20% | C183: 91 | D183: 0.53%
A184: 94 | B184: 0.20% | C184: 91.5 | D184: 0.53%
A185: 94.5 | B185: 0.20% | C185: 92 | D185: 0.53%
A186: 95 | B186: 0.20% | C186: 92.5 | D186: 0.53%
A187: 95.5 | B187: 0.20% | C187: 93 | D187: 0.53%
A188: 96 | B188: 0.20% | C188: 93.5 | D188: 0.53%
A189: 96.5 | B189: 0.20% | C189: 94 | D189: 0.53%
A190: 97 | B190: 0.20% | C190: 94.5 | D190: 0.53%
A191: 97.5 | B191: 0.19% | C191: 95 | D191: 0.53%
A192: 98 | B192: 0.19% | C192: 95.5 | D192: 0.53%
A193: 98.5 | B193: 0.19% | C193: 96 | D193: 0.53%
A194: 99 | B194: 0.19% | C194: 96.5 | D194: 0.53%
A195: 99.5 | B195: 0.19% | C195: 97 | D195: 0.53%
A196: 100 | B196: 0.19% | C196: 97.5 | D196: 0.53%
A197: 100.5 | B197: 0.19% | C197: 98 | D197: 0.53%
A198: 101 | B198: 0.19% | C198: 98.5 | D198: 0.53%
A199: 101.5 | B199: 0.19% | C199: 99 | D199: 0.53%
A200: 102 | B200: 0.19% | C200: 99.5 | D200: 0.53%
... 40 more rows

Sheet BayesianBMSSC
A1: Instance | B1: Auto | C1: SOTA
A2: libra.csv | B2: 0.27% | C2: 0.32%
A3: ozone0.csv | B3: 0.66% | C3: 3.94%
A4: image_segmentation.csv | B4: 0.42% | C4: 0.88%
A5: user_knowledge.csv | B5: 0.09% | C5: 0.37%
A6: vowel.csv | B6: 0.00% | C6: 0.03%
A7: seismicBumps.csv | B7: 0.00% | C7: 0.01%
A8: PhonesGyro.csv | B8: 0.00% | C8: 0.00%
A9: synthetic_control.csv | B9: 0.01% | C9: 0.02%
A10: glass.csv | B10: 0.19% | C10: 0.75%
A11: thyroid.csv | B11: 0.00% | C11: 0.00%
A12: iris.csv | B12: 0.00% | C12: 0.00%
A13: vehicle.csv | B13: 0.09% | C13: 0.22%
A14: ionosphere.csv | B14: 0.00% | C14: 0.01%
A15: MobileKSD.csv | B15: 0.06% | C15: 0.10%

Sheet RawVRPOD
A1: Instance | B1: Algorithm | C1: Repetition | D1: Score | E1: MinScoreForInstance | F1: %Gap | G1: isBest | L1: Minimum values
A2: od100rho0.05zeta1.1_C101.txt | B2: auto | C2: 0 | D2: 394.8 | E2: =VLOOKUP(A2,L:M,2,FALSE) -> 394.8 | F2: =(D2-E2)/E2 -> 0.00% | G2: =IF(D2<=E2,1,0) -> 1 | L2: =_xlfn.UNIQUE(A:A) -> Instance | M2: Score
A3: od100rho0.05zeta1.1_C101.txt | B3: auto | C3: 1 | D3: 394.8 | E3: =VLOOKUP(A3,L:M,2,FALSE) -> 394.8 | F3: =(D3-E3)/E3 -> 0.00% | G3: =IF(D3<=E3,1,0) -> 1 | L3: od100rho0.05zeta1.1_C101.txt | M3: =_xlfn.MINIFS(D:D,A:A,L3) -> 394.8
A4: od100rho0.05zeta1.1_C101.txt | B4: auto | C4: 2 | D4: 394.8 | E4: =VLOOKUP(A4,L:M,2,FALSE) -> 394.8 | F4: =(D4-E4)/E4 -> 0.00% | G4: =IF(D4<=E4,1,0) -> 1 | L4: od100rho0.05zeta1.1_C201.txt | M4: =_xlfn.MINIFS(D:D,A:A,L4) -> 418.37
A5: od100rho0.05zeta1.1_C101.txt | B5: auto | C5: 3 | D5: 394.8 | E5: =VLOOKUP(A5,L:M,2,FALSE) -> 394.8 | F5: =(D5-E5)/E5 -> 0.00% | G5: =IF(D5<=E5,1,0) -> 1 | L5: od100rho0.05zeta1.1_R101.txt | M5: 427.12
A6: od100rho0.05zeta1.1_C101.txt | B6: auto | C6: 4 | D6: 404.98 | E6: 394.8 | F6: 2.58% | G6: 0 | L6: od100rho0.05zeta1.1_R201.txt | M6: 380.58
A7: od100rho0.05zeta1.1_C101.txt | B7: auto | C7: 5 | D7: 394.8 | E7: 394.8 | F7: 0.00% | G7: 1 | L7: od100rho0.05zeta1.1_RC101.txt | M7: 609.06
A8: od100rho0.05zeta1.1_C101.txt | B8: auto | C8: 6 | D8: 404.98 | E8: 394.8 | F8: 2.58% | G8: 0 | L8: od100rho0.05zeta1.1_RC201.txt | M8: 437.65
A9: od100rho0.05zeta1.1_C101.txt | B9: auto | C9: 7 | D9: 404.98 | E9: 394.8 | F9: 2.58% | G9: 0 | L9: od100rho0.05zeta1.2_C101.txt | M9: 303.53
A10: od100rho0.05zeta1.1_C101.txt | B10: auto | C10: 8 | D10: 404.98 | E10: 394.8 | F10: 2.58% | G10: 0 | L10: od100rho0.05zeta1.2_C201.txt | M10: 371.78
A11: od100rho0.05zeta1.1_C101.txt | B11: auto | C11: 9 | D11: 394.8 | E11: 394.8 | F11: 0.00% | G11: 1 | L11: od100rho0.05zeta1.2_R101.txt | M11: 371.52
A12: od100rho0.05zeta1.1_C101.txt | B12: auto | C12: 10 | D12: 394.8 | E12: 394.8 | F12: 0.00% | G12: 1 | L12: od100rho0.05zeta1.2_R201.txt | M12: 361
A13: od100rho0.05zeta1.1_C101.txt | B13: auto | C13: 11 | D13: 404.98 | E13: 394.8 | F13: 2.58% | G13: 0 | L13: od100rho0.05zeta1.2_RC101.txt | M13: 531.02
A14: od100rho0.05zeta1.1_C101.txt | B14: auto | C14: 12 | D14: 404.98 | E14: 394.8 | F14: 2.58% | G14: 0 | L14: od100rho0.05zeta1.2_RC201.txt | M14: 421.48
A15: od100rho0.05zeta1.1_C101.txt | B15: auto | C15: 13 | D15: 394.8 | E15: 394.8 | F15: 0.00% | G15: 1 | L15: od100rho0.05zeta1.3_C101.txt | M15: 222.85
A16: od100rho0.05zeta1.1_C101.txt | B16: auto | C16: 14 | D16: 394.8 | E16: 394.8 | F16: 0.00% | G16: 1 | L16: od100rho0.05zeta1.3_C201.txt | M16: 263.44
A17: od100rho0.05zeta1.1_C101.txt | B17: auto | C17: 15 | D17: 395.83 | E17: 394.8 | F17: 0.26% | G17: 0 | L17: od100rho0.05zeta1.3_R101.txt | M17: 298.17
A18: od100rho0.05zeta1.1_C101.txt | B18: auto | C18: 16 | D18: 439.88 | E18: 394.8 | F18: 11.42% | G18: 0 | L18: od100rho0.05zeta1.3_R201.txt | M18: 295.13
A19: od100rho0.05zeta1.1_C101.txt | B19: auto | C19: 17 | D19: 394.8 | E19: 394.8 | F19: 0.00% | G19: 1 | L19: od100rho0.05zeta1.3_RC101.txt | M19: 408
A20: od100rho0.05zeta1.1_C101.txt | B20: auto | C20: 18 | D20: 404.98 | E20: 394.8 | F20: 2.58% | G20: 0 | L20: od100rho0.05zeta1.3_RC201.txt | M20: 366.92
A21: od100rho0.05zeta1.1_C101.txt | B21: auto | C21: 19 | D21: 404.98 | E21: 394.8 | F21: 2.58% | G21: 0 | L21: od100rho0.05zeta1.4_C101.txt | M21: 222.85
A22: od100rho0.05zeta1.1_C101.txt | B22: auto | C22: 20 | D22: 394.8 | E22: 394.8 | F22: 0.00% | G22: 1 | L22: od100rho0.05zeta1.4_C201.txt | M22: 258.34
A23: od100rho0.05zeta1.1_C101.txt | B23: auto | C23: 21 | D23: 394.8 | E23: 394.8 | F23: 0.00% | G23: 1 | L23: od100rho0.05zeta1.4_R101.txt | M23: 264.25
A24: od100rho0.05zeta1.1_C101.txt | B24: auto | C24: 22 | D24: 394.8 | E24: 394.8 | F24: 0.00% | G24: 1 | L24: od100rho0.05zeta1.4_R201.txt | M24: 263.29
A25: od100rho0.05zeta1.1_C101.txt | B25: auto | C25: 23 | D25: 404.98 | E25: 394.8 | F25: 2.58% | G25: 0 | L25: od100rho0.05zeta1.4_RC101.txt | M25: 388.95
A26: od100rho0.05zeta1.1_C101.txt | B26: auto | C26: 24 | D26: 404.98 | E26: 394.8 | F26: 2.58% | G26: 0 | L26: od100rho0.05zeta1.4_RC201.txt | M26: 353.37
A27: od100rho0.05zeta1.1_C101.txt | B27: auto | C27: 25 | D27: 404.98 | E27: 394.8 | F27: 2.58% | G27: 0 | L27: od100rho0.05zeta1.5_C101.txt | M27: 222.85
A28: od100rho0.05zeta1.1_C101.txt | B28: auto | C28: 26 | D28: 404.98 | E28: 394.8 | F28: 2.58% | G28: 0 | L28: od100rho0.05zeta1.5_C201.txt | M28: 258.34
A29: od100rho0.05zeta1.1_C101.txt | B29: auto | C29: 27 | D29: 394.8 | E29: 394.8 | F29: 0.00% | G29: 1 | L29: od100rho0.05zeta1.5_R101.txt | M29: 197.51
A30: od100rho0.05zeta1.1_C101.txt | B30: auto | C30: 28 | D30: 394.8 | E30: 394.8 | F30: 0.00% | G30: 1 | L30: od100rho0.05zeta1.5_R201.txt | M30: 197.51
A31: od100rho0.05zeta1.1_C101.txt | B31: auto | C31: 29 | D31: 404.98 | E31: 394.8 | F31: 2.58% | G31: 0 | L31: od100rho0.05zeta1.5_RC101.txt | M31: 318.64
A32: od100rho0.05zeta1.1_C101.txt | B32: sota | C32: 0 | D32: 394.94 | E32: 394.8 | F32: 0.04% | G32: 0 | L32: od100rho0.05zeta1.5_RC201.txt | M32: 318.32
A33: od100rho0.05zeta1.1_C101.txt | B33: sota | C33: 1 | D33: 404.98 | E33: 394.8 | F33: 2.58% | G33: 0 | L33: od100rho0.1zeta1.1_C101.txt | M33: 498.82
A34: od100rho0.05zeta1.1_C101.txt | B34: sota | C34: 2 | D34: 404.98 | E34: 394.8 | F34: 2.58% | G34: 0 | L34: od100rho0.1zeta1.1_C201.txt | M34: 491.42
A35: od100rho0.05zeta1.1_C101.txt | B35: sota | C35: 3 | D35: 404.98 | E35: 394.8 | F35: 2.58% | G35: 0 | L35: od100rho0.1zeta1.1_R101.txt | M35: 498.59
A36: od100rho0.05zeta1.1_C101.txt | B36: sota | C36: 4 | D36: 404.98 | E36: 394.8 | F36: 2.58% | G36: 0 | L36: od100rho0.1zeta1.1_R201.txt | M36: 448.84
A37: od100rho0.05zeta1.1_C101.txt | B37: sota | C37: 5 | D37: 406.44 | E37: 394.8 | F37: 2.95% | G37: 0 | L37: od100rho0.1zeta1.1_RC101.txt | M37: 670.19
A38: od100rho0.05zeta1.1_C101.txt | B38: sota | C38: 6 | D38: 404.98 | E38: 394.8 | F38: 2.58% | G38: 0 | L38: od100rho0.1zeta1.1_RC201.txt | M38: 492.64
A39: od100rho0.05zeta1.1_C101.txt | B39: sota | C39: 7 | D39: 404.98 | E39: 394.8 | F39: 2.58% | G39: 0 | L39: od100rho0.1zeta1.2_C101.txt | M39: 414.28
A40: od100rho0.05zeta1.1_C101.txt | B40: sota | C40: 8 | D40: 404.98 | E40: 394.8 | F40: 2.58% | G40: 0 | L40: od100rho0.1zeta1.2_C201.txt | M40: 456.31
A41: od100rho0.05zeta1.1_C101.txt | B41: sota | C41: 9 | D41: 404.98 | E41: 394.8 | F41: 2.58% | G41: 0 | L41: od100rho0.1zeta1.2_R101.txt | M41: 461.97
A42: od100rho0.05zeta1.1_C101.txt | B42: sota | C42: 10 | D42: 427.15 | E42: 394.8 | F42: 8.19% | G42: 0 | L42: od100rho0.1zeta1.2_R201.txt | M42: 436.13
A43: od100rho0.05zeta1.1_C101.txt | B43: sota | C43: 11 | D43: 404.98 | E43: 394.8 | F43: 2.58% | G43: 0 | L43: od100rho0.1zeta1.2_RC101.txt | M43: 618.82
A44: od100rho0.05zeta1.1_C101.txt | B44: sota | C44: 12 | D44: 404.98 | E44: 394.8 | F44: 2.58% | G44: 0 | L44: od100rho0.1zeta1.2_RC201.txt | M44: 481.43
A45: od100rho0.05zeta1.1_C101.txt | B45: sota | C45: 13 | D45: 404.98 | E45: 394.8 | F45: 2.58% | G45: 0 | L45: od100rho0.1zeta1.3_C101.txt | M45: 349
A46: od100rho0.05zeta1.1_C101.txt | B46: sota | C46: 14 | D46: 404.98 | E46: 394.8 | F46: 2.58% | G46: 0 | L46: od100rho0.1zeta1.3_C201.txt | M46: 382.81
A47: od100rho0.05zeta1.1_C101.txt | B47: sota | C47: 15 | D47: 404.98 | E47: 394.8 | F47: 2.58% | G47: 0 | L47: od100rho0.1zeta1.3_R101.txt | M47: 391.39
A48: od100rho0.05zeta1.1_C101.txt | B48: sota | C48: 16 | D48: 404.98 | E48: 394.8 | F48: 2.58% | G48: 0 | L48: od100rho0.1zeta1.3_R201.txt | M48: 384.85
A49: od100rho0.05zeta1.1_C101.txt | B49: sota | C49: 17 | D49: 406.44 | E49: 394.8 | F49: 2.95% | G49: 0 | L49: od100rho0.1zeta1.3_RC101.txt | M49: 523.06
A50: od100rho0.05zeta1.1_C101.txt | B50: sota | C50: 18 | D50: 405.57 | E50: 394.8 | F50: 2.73% | G50: 0 | L50: od100rho0.1zeta1.3_RC201.txt | M50: 453.89
A51: od100rho0.05zeta1.1_C101.txt | B51: sota | C51: 19 | D51: 404.98 | E51: 394.8 | F51: 2.58% | G51: 0 | L51: od100rho0.1zeta1.4_C101.txt | M51: 349
A52: od100rho0.05zeta1.1_C101.txt | B52: sota | C52: 20 | D52: 528.52 | E52: 394.8 | F52: 33.87% | G52: 0 | L52: od100rho0.1zeta1.4_C201.txt | M52: 381.96
A53: od100rho0.05zeta1.1_C101.txt | B53: sota | C53: 21 | D53: 404.98 | E53: 394.8 | F53: 2.58% | G53: 0 | L53: od100rho0.1zeta1.4_R101.txt | M53: 366.38
A54: od100rho0.05zeta1.1_C101.txt | B54: sota | C54: 22 | D54: 404.98 | E54: 394.8 | F54: 2.58% | G54: 0 | L54: od100rho0.1zeta1.4_R201.txt | M54: 360.35
A55: od100rho0.05zeta1.1_C101.txt | B55: sota | C55: 23 | D55: 404.98 | E55: 394.8 | F55: 2.58% | G55: 0 | L55: od100rho0.1zeta1.4_RC101.txt | M55: 507.49
A56: od100rho0.05zeta1.1_C101.txt | B56: sota | C56: 24 | D56: 405.61 | E56: 394.8 | F56: 2.74% | G56: 0 | L56: od100rho0.1zeta1.4_RC201.txt | M56: 445.05
A57: od100rho0.05zeta1.1_C101.txt | B57: sota | C57: 25 | D57: 397.72 | E57: 394.8 | F57: 0.74% | G57: 0 | L57: od100rho0.1zeta1.5_C101.txt | M57: 349
A58: od100rho0.05zeta1.1_C101.txt | B58: sota | C58: 26 | D58: 394.8 | E58: 394.8 | F58: 0.00% | G58: 1 | L58: od100rho0.1zeta1.5_C201.txt | M58: 381.96
A59: od100rho0.05zeta1.1_C101.txt | B59: sota | C59: 27 | D59: 404.98 | E59: 394.8 | F59: 2.58% | G59: 0 | L59: od100rho0.1zeta1.5_R101.txt | M59: 309.78
A60: od100rho0.05zeta1.1_C101.txt | B60: sota | C60: 28 | D60: 404.98 | E60: 394.8 | F60: 2.58% | G60: 0 | L60: od100rho0.1zeta1.5_R201.txt | M60: 309.78
A61: od100rho0.05zeta1.1_C101.txt | B61: sota | C61: 29 | D61: 404.98 | E61: 394.8 | F61: 2.58% | G61: 0 | L61: od100rho0.1zeta1.5_RC101.txt | M61: 462.6
A62: od100rho0.05zeta1.1_C201.txt | B62: auto | C62: 0 | D62: 418.37 | E62: 418.37 | F62: 0.00% | G62: 1 | L62: od100rho0.1zeta1.5_RC201.txt | M62: 445.05
A63: od100rho0.05zeta1.1_C201.txt | B63: auto | C63: 1 | D63: 418.37 | E63: 418.37 | F63: 0.00% | G63: 1 | L63: od100rho0.2zeta1.1_C101.txt | M63: 678.67
A64: od100rho0.05zeta1.1_C201.txt | B64: auto | C64: 2 | D64: 418.37 | E64: 418.37 | F64: 0.00% | G64: 1 | L64: od100rho0.2zeta1.1_C201.txt | M64: 566.82
A65: od100rho0.05zeta1.1_C201.txt | B65: auto | C65: 3 | D65: 418.37 | E65: 418.37 | F65: 0.00% | G65: 1 | L65: od100rho0.2zeta1.1_R101.txt | M65: 645.42
A66: od100rho0.05zeta1.1_C201.txt | B66: auto | C66: 4 | D66: 418.37 | E66: 418.37 | F66: 0.00% | G66: 1 | L66: od100rho0.2zeta1.1_R201.txt | M66: 555.44
A67: od100rho0.05zeta1.1_C201.txt | B67: auto | C67: 5 | D67: 418.37 | E67: 418.37 | F67: 0.00% | G67: 1 | L67: od100rho0.2zeta1.1_RC101.txt | M67: 799.82
A68: od100rho0.05zeta1.1_C201.txt | B68: auto | C68: 6 | D68: 418.37 | E68: 418.37 | F68: 0.00% | G68: 1 | L68: od100rho0.2zeta1.1_RC201.txt | M68: =_xlfn.MINIFS(D:D,A:A,L68) -> 592.08
A69: od100rho0.05zeta1.1_C201.txt | B69: auto | C69: 7 | D69: 418.37 | E69: =VLOOKUP(A69,L:M,2,FALSE) -> 418.37 | F69: =(D69-E69)/E69 -> 0.00% | G69: =IF(D69<=E69,1,0) -> 1 | L69: od100rho0.2zeta1.2_C101.txt | M69: 629.94
A70: od100rho0.05zeta1.1_C201.txt | B70: auto | C70: 8 | D70: 418.37 | E70: 418.37 | F70: 0.00% | G70: 1 | L70: od100rho0.2zeta1.2_C201.txt | M70: 560.63
A71: od100rho0.05zeta1.1_C201.txt | B71: auto | C71: 9 | D71: 418.37 | E71: 418.37 | F71: 0.00% | G71: 1 | L71: od100rho0.2zeta1.2_R101.txt | M71: 622.49
A72: od100rho0.05zeta1.1_C201.txt | B72: auto | C72: 10 | D72: 418.37 | E72: 418.37 | F72: 0.00% | G72: 1 | L72: od100rho0.2zeta1.2_R201.txt | M72: 551.64
A73: od100rho0.05zeta1.1_C201.txt | B73: auto | C73: 11 | D73: 418.37 | E73: 418.37 | F73: 0.00% | G73: 1 | L73: od100rho0.2zeta1.2_RC101.txt | M73: 756.05
A74: od100rho0.05zeta1.1_C201.txt | B74: auto | C74: 12 | D74: 418.37 | E74: 418.37 | F74: 0.00% | G74: 1 | L74: od100rho0.2zeta1.2_RC201.txt | M74: 576.42
A75: od100rho0.05zeta1.1_C201.txt | B75: auto | C75: 13 | D75: 418.37 | E75: 418.37 | F75: 0.00% | G75: 1 | L75: od100rho0.2zeta1.3_C101.txt | M75: 601.3
A76: od100rho0.05zeta1.1_C201.txt | B76: auto | C76: 14 | D76: 418.37 | E76: 418.37 | F76: 0.00% | G76: 1 | L76: od100rho0.2zeta1.3_C201.txt | M76: 560.63
A77: od100rho0.05zeta1.1_C201.txt | B77: auto | C77: 15 | D77: 418.37 | E77: 418.37 | F77: 0.00% | G77: 1 | L77: od100rho0.2zeta1.3_R101.txt | M77: 565.28
A78: od100rho0.05zeta1.1_C201.txt | B78: auto | C78: 16 | D78: 418.37 | E78: 418.37 | F78: 0.00% | G78: 1 | L78: od100rho0.2zeta1.3_R201.txt | M78: 533.05
A79: od100rho0.05zeta1.1_C201.txt | B79: auto | C79: 17 | D79: 418.37 | E79: 418.37 | F79: 0.00% | G79: 1 | L79: od100rho0.2zeta1.3_RC101.txt | M79: 745.81
A80: od100rho0.05zeta1.1_C201.txt | B80: auto | C80: 18 | D80: 418.37 | E80: 418.37 | F80: 0.00% | G80: 1 | L80: od100rho0.2zeta1.3_RC201.txt | M80: 576.42
A81: od100rho0.05zeta1.1_C201.txt | B81: auto | C81: 19 | D81: 418.37 | E81: 418.37 | F81: 0.00% | G81: 1 | L81: od100rho0.2zeta1.4_C101.txt | M81: 601.3
A82: od100rho0.05zeta1.1_C201.txt | B82: auto | C82: 20 | D82: 418.37 | E82: 418.37 | F82: 0.00% | G82: 1 | L82: od100rho0.2zeta1.4_C201.txt | M82: 560.63
A83: od100rho0.05zeta1.1_C201.txt | B83: auto | C83: 21 | D83: 418.37 | E83: 418.37 | F83: 0.00% | G83: 1 | L83: od100rho0.2zeta1.4_R101.txt | M83: 549.57
A84: od100rho0.05zeta1.1_C201.txt | B84: auto | C84: 22 | D84: 418.37 | E84: 418.37 | F84: 0.00% | G84: 1 | L84: od100rho0.2zeta1.4_R201.txt | M84: 519.55
A85: od100rho0.05zeta1.1_C201.txt | B85: auto | C85: 23 | D85: 418.37 | E85: 418.37 | F85: 0.00% | G85: 1 | L85: od100rho0.2zeta1.4_RC101.txt | M85: 732.78
A86: od100rho0.05zeta1.1_C201.txt | B86: auto | C86: 24 | D86: 419.06 | E86: 418.37 | F86: 0.16% | G86: 0 | L86: od100rho0.2zeta1.4_RC201.txt | M86: 570.4
A87: od100rho0.05zeta1.1_C201.txt | B87: auto | C87: 25 | D87: 418.37 | E87: 418.37 | F87: 0.00% | G87: 1 | L87: od100rho0.2zeta1.5_C101.txt | M87: 620.83
A88: od100rho0.05zeta1.1_C201.txt | B88: auto | C88: 26 | D88: 418.37 | E88: 418.37 | F88: 0.00% | G88: 1 | L88: od100rho0.2zeta1.5_C201.txt | M88: 560.63
A89: od100rho0.05zeta1.1_C201.txt | B89: auto | C89: 27 | D89: 418.37 | E89: 418.37 | F89: 0.00% | G89: 1 | L89: od100rho0.2zeta1.5_R101.txt | M89: 536.7
A90: od100rho0.05zeta1.1_C201.txt | B90: auto | C90: 28 | D90: 418.37 | E90: 418.37 | F90: 0.00% | G90: 1 | L90: od100rho0.2zeta1.5_R201.txt | M90: 515.43
A91: od100rho0.05zeta1.1_C201.txt | B91: auto | C91: 29 | D91: 418.37 | E91: 418.37 | F91: 0.00% | G91: 1 | L91: od100rho0.2zeta1.5_RC101.txt | M91: 721.75
A92: od100rho0.05zeta1.1_C201.txt | B92: sota | C92: 0 | D92: 453.4 | E92: 418.37 | F92: 8.37% | G92: 0 | L92: od100rho0.2zeta1.5_RC201.txt | M92: 570.4
A93: od100rho0.05zeta1.1_C201.txt | B93: sota | C93: 1 | D93: 458.53 | E93: 418.37 | F93: 9.60% | G93: 0 | L93: od100rho1.2zeta1.1_C101.txt | M93: 401.26
A94: od100rho0.05zeta1.1_C201.txt | B94: sota | C94: 2 | D94: 418.37 | E94: 418.37 | F94: 0.00% | G94: 1 | L94: od100rho1.2zeta1.1_C201.txt | M94: 421.65
A95: od100rho0.05zeta1.1_C201.txt | B95: sota | C95: 3 | D95: 418.37 | E95: 418.37 | F95: 0.00% | G95: 1 | L95: od100rho1.2zeta1.1_R101.txt | M95: 441.46
A96: od100rho0.05zeta1.1_C201.txt | B96: sota | C96: 4 | D96: 418.37 | E96: 418.37 | F96: 0.00% | G96: 1 | L96: od100rho1.2zeta1.1_R201.txt | M96: 389.27
A97: od100rho0.05zeta1.1_C201.txt | B97: sota | C97: 5 | D97: 457.94 | E97: 418.37 | F97: 9.46% | G97: 0 | L97: od100rho1.2zeta1.1_RC101.txt | M97: 615.47
A98: od100rho0.05zeta1.1_C201.txt | B98: sota | C98: 6 | D98: 453.4 | E98: 418.37 | F98: 8.37% | G98: 0 | L98: od100rho1.2zeta1.1_RC201.txt | M98: 434.89
A99: od100rho0.05zeta1.1_C201.txt | B99: sota | C99: 7 | D99: 418.37 | E99: 418.37 | F99: 0.00% | G99: 1 | L99: od100rho1.2zeta1.2_C101.txt | M99: 354.9
A100: od100rho0.05zeta1.1_C201.txt | B100: sota | C100: 8 | D100: 418.37 | E100: 418.37 | F100: 0.00% | G100: 1 | L100: od100rho1.2zeta1.2_C201.txt | M100: 419.66
A101: od100rho0.05zeta1.1_C201.txt | B101: sota | C101: 9 | D101: 418.37 | E101: 418.37 | F101: 0.00% | G101: 1 | L101: od100rho1.2zeta1.2_R101.txt | M101: 430.6
A102: od100rho0.05zeta1.1_C201.txt | B102: sota | C102: 10 | D102: 418.37 | E102: 418.37 | F102: 0.00% | G102: 1 | L102: od100rho1.2zeta1.2_R201.txt | M102: 381.82
A103: od100rho0.05zeta1.1_C201.txt | B103: sota | C103: 11 | D103: 419.09 | E103: 418.37 | F103: 0.17% | G103: 0 | L103: od100rho1.2zeta1.2_RC101.txt | M103: 582.08
A104: od100rho0.05zeta1.1_C201.txt | B104: sota | C104: 12 | D104: 418.37 | E104: 418.37 | F104: 0.00% | G104: 1 | L104: od100rho1.2zeta1.2_RC201.txt | M104: 434.48
A105: od100rho0.05zeta1.1_C201.txt | B105: sota | C105: 13 | D105: 418.37 | E105: 418.37 | F105: 0.00% | G105: 1 | L105: od100rho1.2zeta1.3_C101.txt | M105: 295.81
A106: od100rho0.05zeta1.1_C201.txt | B106: sota | C106: 14 | D106: 418.37 | E106: 418.37 | F106: 0.00% | G106: 1 | L106: od100rho1.2zeta1.3_C201.txt | M106: 394.65
A107: od100rho0.05zeta1.1_C201.txt | B107: sota | C107: 15 | D107: 419.09 | E107: 418.37 | F107: 0.17% | G107: 0 | L107: od100rho1.2zeta1.3_R101.txt | M107: 385.95
A108: od100rho0.05zeta1.1_C201.txt | B108: sota | C108: 16 | D108: 458.53 | E108: 418.37 | F108: 9.60% | G108: 0 | L108: od100rho1.2zeta1.3_R201.txt | M108: 357.22
A109: od100rho0.05zeta1.1_C201.txt | B109: sota | C109: 17 | D109: 418.37 | E109: 418.37 | F109: 0.00% | G109: 1 | L109: od100rho1.2zeta1.3_RC101.txt | M109: 579.55
A110: od100rho0.05zeta1.1_C201.txt | B110: sota | C110: 18 | D110: 418.37 | E110: 418.37 | F110: 0.00% | G110: 1 | L110: od100rho1.2zeta1.3_RC201.txt | M110: 434.48
A111: od100rho0.05zeta1.1_C201.txt | B111: sota | C111: 19 | D111: 418.37 | E111: 418.37 | F111: 0.00% | G111: 1 | L111: od100rho1.2zeta1.4_C101.txt | M111: 296.92
A112: od100rho0.05zeta1.1_C201.txt | B112: sota | C112: 20 | D112: 418.37 | E112: 418.37 | F112: 0.00% | G112: 1 | L112: od100rho1.2zeta1.4_C201.txt | M112: 394.65
A113: od100rho0.05zeta1.1_C201.txt | B113: sota | C113: 21 | D113: 451.42 | E113: 418.37 | F113: 7.90% | G113: 0 | L113: od100rho1.2zeta1.4_R101.txt | M113: 386.36
A114: od100rho0.05zeta1.1_C201.txt | B114: sota | C114: 22 | D114: 457.94 | E114: 418.37 | F114: 9.46% | G114: 0 | L114: od100rho1.2zeta1.4_R201.txt | M114: 356.32
A115: od100rho0.05zeta1.1_C201.txt | B115: sota | C115: 23 | D115: 455.71 | E115: 418.37 | F115: 8.93% | G115: 0 | L115: od100rho1.2zeta1.4_RC101.txt | M115: 569.58
A116: od100rho0.05zeta1.1_C201.txt | B116: sota | C116: 24 | D116: 418.37 | E116: 418.37 | F116: 0.00% | G116: 1 | L116: od100rho1.2zeta1.4_RC201.txt | M116: 434.48
A117: od100rho0.05zeta1.1_C201.txt | B117: sota | C117: 25 | D117: 465 | E117: 418.37 | F117: 11.15% | G117: 0 | L117: od100rho1.2zeta1.5_C101.txt | M117: 295.72
A118: od100rho0.05zeta1.1_C201.txt | B118: sota | C118: 26 | D118: 452.01 | E118: 418.37 | F118: 8.04% | G118: 0 | L118: od100rho1.2zeta1.5_C201.txt | M118: 394.65
A119: od100rho0.05zeta1.1_C201.txt | B119: sota | C119: 27 | D119: 418.37 | E119: 418.37 | F119: 0.00% | G119: 1 | L119: od100rho1.2zeta1.5_R101.txt | M119: 385.08
A120: od100rho0.05zeta1.1_C201.txt | B120: sota | C120: 28 | D120: 418.37 | E120: 418.37 | F120: 0.00% | G120: 1 | L120: od100rho1.2zeta1.5_R201.txt | M120: 356.32
A121: od100rho0.05zeta1.1_C201.txt | B121: sota | C121: 29 | D121: 418.37 | E121: 418.37 | F121: 0.00% | G121: 1 | L121: od100rho1.2zeta1.5_RC101.txt | M121: 571.96
A122: od100rho0.05zeta1.1_R101.txt | B122: auto | C122: 0 | D122: 450.79 | E122: 427.12 | F122: 5.54% | G122: 0 | L122: od100rho1.2zeta1.5_RC201.txt | M122: 434.48
A123: od100rho0.05zeta1.1_R101.txt | B123: auto | C123: 1 | D123: 440.99 | E123: 427.12 | F123: 3.25% | G123: 0 | L123: od100rho1.4zeta1.1_C101.txt | M123: 412.46
A124: od100rho0.05zeta1.1_R101.txt | B124: auto | C124: 2 | D124: 430.73 | E124: 427.12 | F124: 0.85% | G124: 0 | L124: od100rho1.4zeta1.1_C201.txt | M124: 426.62
A125: od100rho0.05zeta1.1_R101.txt | B125: auto | C125: 3 | D125: 427.12 | E125: 427.12 | F125: 0.00% | G125: 1 | L125: od100rho1.4zeta1.1_R101.txt | M125: 444.14
A126: od100rho0.05zeta1.1_R101.txt | B126: auto | C126: 4 | D126: 451.3 | E126: 427.12 | F126: 5.66% | G126: 0 | L126: od100rho1.4zeta1.1_R201.txt | M126: 393.05
A127: od100rho0.05zeta1.1_R101.txt | B127: auto | C127: 5 | D127: 454.26 | E127: 427.12 | F127: 6.35% | G127: 0 | L127: od100rho1.4zeta1.1_RC101.txt | M127: 620.73
A128: od100rho0.05zeta1.1_R101.txt | B128: auto | C128: 6 | D128: 427.52 | E128: 427.12 | F128: 0.09% | G128: 0 | L128: od100rho1.4zeta1.1_RC201.txt | M128: 437.41
A129: od100rho0.05zeta1.1_R101.txt | B129: auto | C129: 7 | D129: 440.14 | E129: 427.12 | F129: 3.05% | G129: 0 | L129: od100rho1.4zeta1.2_C101.txt | M129: 371.94
A130: od100rho0.05zeta1.1_R101.txt | B130: auto | C130: 8 | D130: 429.56 | E130: 427.12 | F130: 0.57% | G130: 0 | L130: od100rho1.4zeta1.2_C201.txt | M130: 425.05
A131: od100rho0.05zeta1.1_R101.txt | B131: auto | C131: 9 | D131: 433.07 | E131: 427.12 | F131: 1.39% | G131: 0 | L131: od100rho1.4zeta1.2_R101.txt | M131: 437.66
A132: od100rho0.05zeta1.1_R101.txt | B132: auto | C132: 10 | D132: 462.22 | E132: 427.12 | F132: 8.22% | G132: 0 | L132: od100rho1.4zeta1.2_R201.txt | M132: =_xlfn.MINIFS(D:D,A:A,L132) -> 387.11
A133: od100rho0.05zeta1.1_R101.txt | B133: auto | C133: 11 | D133: 430.75 | E133: =VLOOKUP(A133,L:M,2,FALSE) -> 427.12 | F133: =(D133-E133)/E133 -> 0.85% | G133: =IF(D133<=E133,1,0) -> 0 | L133: od100rho1.4zeta1.2_RC101.txt | M133: 591.57
A134: od100rho0.05zeta1.1_R101.txt | B134: auto | C134: 12 | D134: 428.48 | E134: 427.12 | F134: 0.32% | G134: 0 | L134: od100rho1.4zeta1.2_RC201.txt | M134: 437.41
A135: od100rho0.05zeta1.1_R101.txt | B135: auto | C135: 13 | D135: 443.11 | E135: 427.12 | F135: 3.74% | G135: 0 | L135: od100rho1.4zeta1.3_C101.txt | M135: 321.4
A136: od100rho0.05zeta1.1_R101.txt | B136: auto | C136: 14 | D136: 427.12 | E136: 427.12 | F136: 0.00% | G136: 1 | L136: od100rho1.4zeta1.3_C201.txt | M136: 406.67
A137: od100rho0.05zeta1.1_R101.txt | B137: auto | C137: 15 | D137: 445.41 | E137: 427.12 | F137: 4.28% | G137: 0 | L137: od100rho1.4zeta1.3_R101.txt | M137: 402.6
A138: od100rho0.05zeta1.1_R101.txt | B138: auto | C138: 16 | D138: 428.08 | E138: 427.12 | F138: 0.22% | G138: 0 | L138: od100rho1.4zeta1.3_R201.txt | M138: 368.69
A139: od100rho0.05zeta1.1_R101.txt | B139: auto | C139: 17 | D139: 428.7 | E139: 427.12 | F139: 0.37% | G139: 0 | L139: od100rho1.4zeta1.3_RC101.txt | M139: 593.33
A140: od100rho0.05zeta1.1_R101.txt | B140: auto | C140: 18 | D140: 463.16 | E140: 427.12 | F140: 8.44% | G140: 0 | L140: od100rho1.4zeta1.3_RC201.txt | M140: 437.41
A141: od100rho0.05zeta1.1_R101.txt | B141: auto | C141: 19 | D141: 434.51 | E141: 427.12 | F141: 1.73% | G141: 0 | L141: od100rho1.4zeta1.4_C101.txt | M141: 321.57
A142: od100rho0.05zeta1.1_R101.txt | B142: auto | C142: 20 | D142: 462.22 | E142: 427.12 | F142: 8.22% | G142: 0 | L142: od100rho1.4zeta1.4_C201.txt | M142: 406.67
A143: od100rho0.05zeta1.1_R101.txt | B143: auto | C143: 21 | D143: 439.9 | E143: 427.12 | F143: 2.99% | G143: 0 | L143: od100rho1.4zeta1.4_R101.txt | M143: 401.55
A144: od100rho0.05zeta1.1_R101.txt | B144: auto | C144: 22 | D144: 427.52 | E144: 427.12 | F144: 0.09% | G144: 0 | L144: od100rho1.4zeta1.4_R201.txt | M144: 367.65
A145: od100rho0.05zeta1.1_R101.txt | B145: auto | C145: 23 | D145: 447.86 | E145: 427.12 | F145: 4.86% | G145: 0 | L145: od100rho1.4zeta1.4_RC101.txt | M145: 597.35
A146: od100rho0.05zeta1.1_R101.txt | B146: auto | C146: 24 | D146: 427.52 | E146: 427.12 | F146: 0.09% | G146: 0 | L146: od100rho1.4zeta1.4_RC201.txt | M146: 437.41
A147: od100rho0.05zeta1.1_R101.txt | B147: auto | C147: 25 | D147: 462.22 | E147: 427.12 | F147: 8.22% | G147: 0 | L147: od100rho1.4zeta1.5_C101.txt | M147: 321.4
A148: od100rho0.05zeta1.1_R101.txt | B148: auto | C148: 26 | D148: 443.31 | E148: 427.12 | F148: 3.79% | G148: 0 | L148: od100rho1.4zeta1.5_C201.txt | M148: 406.67
A149: od100rho0.05zeta1.1_R101.txt | B149: auto | C149: 27 | D149: 462.57 | E149: 427.12 | F149: 8.30% | G149: 0 | L149: od100rho1.4zeta1.5_R101.txt | M149: 401.55
A150: od100rho0.05zeta1.1_R101.txt | B150: auto | C150: 28 | D150: 442.91 | E150: 427.12 | F150: 3.70% | G150: 0 | L150: od100rho1.4zeta1.5_R201.txt | M150: 367.65
A151: od100rho0.05zeta1.1_R101.txt | B151: auto | C151: 29 | D151: 428.98 | E151: 427.12 | F151: 0.44% | G151: 0 | L151: od100rho1.4zeta1.5_RC101.txt | M151: 597.35
A152: od100rho0.05zeta1.1_R101.txt | B152: sota | C152: 0 | D152: 435.22 | E152: 427.12 | F152: 1.90% | G152: 0 | L152: od100rho1.4zeta1.5_RC201.txt | M152: 437.41
A153: od100rho0.05zeta1.1_R101.txt | B153: sota | C153: 1 | D153: 452.37 | E153: 427.12 | F153: 5.91% | G153: 0 | L153: od100rho1.6zeta1.1_C101.txt | M153: 423.54
A154: od100rho0.05zeta1.1_R101.txt | B154: sota | C154: 2 | D154: 430.94 | E154: 427.12 | F154: 0.89% | G154: 0 | L154: od100rho1.6zeta1.1_C201.txt | M154: 431.72
A155: od100rho0.05zeta1.1_R101.txt | B155: sota | C155: 3 | D155: 438.8 | E155: 427.12 | F155: 2.73% | G155: 0 | L155: od100rho1.6zeta1.1_R101.txt | M155: 451.39
A156: od100rho0.05zeta1.1_R101.txt | B156: sota | C156: 4 | D156: 431.23 | E156: 427.12 | F156: 0.96% | G156: 0 | L156: od100rho1.6zeta1.1_R201.txt | M156: 397.07
A157: od100rho0.05zeta1.1_R101.txt | B157: sota | C157: 5 | D157: 463.98 | E157: 427.12 | F157: 8.63% | G157: 0 | L157: od100rho1.6zeta1.1_RC101.txt | M157: 626.12
A158: od100rho0.05zeta1.1_R101.txt | B158: sota | C158: 6 | D158: 441.97 | E158: 427.12 | F158: 3.48% | G158: 0 | L158: od100rho1.6zeta1.1_RC201.txt | M158: 439.93
A159: od100rho0.05zeta1.1_R101.txt | B159: sota | C159: 7 | D159: 445.5 | E159: 427.12 | F159: 4.30% | G159: 0 | L159: od100rho1.6zeta1.2_C101.txt | M159: 394.6
A160: od100rho0.05zeta1.1_R101.txt | B160: sota | C160: 8 | D160: 464.24 | E160: 427.12 | F160: 8.69% | G160: 0 | L160: od100rho1.6zeta1.2_C201.txt | M160: 430.09
A161: od100rho0.05zeta1.1_R101.txt | B161: sota | C161: 9 | D161: 448.73 | E161: 427.12 | F161: 5.06% | G161: 0 | L161: od100rho1.6zeta1.2_R101.txt | M161: 443.58
A162: od100rho0.05zeta1.1_R101.txt | B162: sota | C162: 10 | D162: 435.19 | E162: 427.12 | F162: 1.89% | G162: 0 | L162: od100rho1.6zeta1.2_R201.txt | M162: 392.7
A163: od100rho0.05zeta1.1_R101.txt | B163: sota | C163: 11 | D163: 440.62 | E163: 427.12 | F163: 3.16% | G163: 0 | L163: od100rho1.6zeta1.2_RC101.txt | M163: 604.81
A164: od100rho0.05zeta1.1_R101.txt | B164: sota | C164: 12 | D164: 442.85 | E164: 427.12 | F164: 3.68% | G164: 0 | L164: od100rho1.6zeta1.2_RC201.txt | M164: 439.93
A165: od100rho0.05zeta1.1_R101.txt | B165: sota | C165: 13 | D165: 446.65 | E165: 427.12 | F165: 4.57% | G165: 0 | L165: od100rho1.6zeta1.3_C101.txt | M165: 364.25
A166: od100rho0.05zeta1.1_R101.txt | B166: sota | C166: 14 | D166: 435.74 | E166: 427.12 | F166: 2.02% | G166: 0 | L166: od100rho1.6zeta1.3_C201.txt | M166: 418.73
A167: od100rho0.05zeta1.1_R101.txt | B167: sota | C167: 15 | D167: 430.39 | E167: 427.12 | F167: 0.77% | G167: 0 | L167: od100rho1.6zeta1.3_R101.txt | M167: 421.12
A168: od100rho0.05zeta1.1_R101.txt | B168: sota | C168: 16 | D168: 431.81 | E168: 427.12 | F168: 1.10% | G168: 0 | L168: od100rho1.6zeta1.3_R201.txt | M168: 378.36
A169: od100rho0.05zeta1.1_R101.txt | B169: sota | C169: 17 | D169: 430.54 | E169: 427.12 | F169: 0.80% | G169: 0 | L169: od100rho1.6zeta1.3_RC101.txt | M169: 602.03
A170: od100rho0.05zeta1.1_R101.txt | B170: sota | C170: 18 | D170: 487.11 | E170: 427.12 | F170: 14.05% | G170: 0 | L170: od100rho1.6zeta1.3_RC201.txt | M170: 439.93
A171: od100rho0.05zeta1.1_R101.txt | B171: sota | C171: 19 | D171: 430.76 | E171: 427.12 | F171: 0.85% | G171: 0 | L171: od100rho1.6zeta1.4_C101.txt | M171: 354.75
A172: od100rho0.05zeta1.1_R101.txt | B172: sota | C172: 20 | D172: 432.1 | E172: 427.12 | F172: 1.17% | G172: 0 | L172: od100rho1.6zeta1.4_C201.txt | M172: 419.57
A173: od100rho0.05zeta1.1_R101.txt | B173: sota | C173: 21 | D173: 447.36 | E173: 427.12 | F173: 4.74% | G173: 0 | L173: od100rho1.6zeta1.4_R101.txt | M173: 418.16
A174: od100rho0.05zeta1.1_R101.txt | B174: sota | C174: 22 | D174: 464.13 | E174: 427.12 | F174: 8.67% | G174: 0 | L174: od100rho1.6zeta1.4_R201.txt | M174: 377.16
A175: od100rho0.05zeta1.1_R101.txt | B175: sota | C175: 23 | D175: 449.51 | E175: 427.12 | F175: 5.24% | G175: 0 | L175: od100rho1.6zeta1.4_RC101.txt | M175: 605.1
A176: od100rho0.05zeta1.1_R101.txt | B176: sota | C176: 24 | D176: 435.72 | E176: 427.12 | F176: 2.01% | G176: 0 | L176: od100rho1.6zeta1.4_RC201.txt | M176: 439.93
A177: od100rho0.05zeta1.1_R101.txt | B177: sota | C177: 25 | D177: 453.8 | E177: 427.12 | F177: 6.25% | G177: 0 | L177: od100rho1.6zeta1.5_C101.txt | M177: 352.15
A178: od100rho0.05zeta1.1_R101.txt | B178: sota | C178: 26 | D178: 437.17 | E178: 427.12 | F178: 2.35% | G178: 0 | L178: od100rho1.6zeta1.5_C201.txt | M178: 419.93
A179: od100rho0.05zeta1.1_R101.txt | B179: sota | C179: 27 | D179: 431.15 | E179: 427.12 | F179: 0.94% | G179: 0 | L179: od100rho1.6zeta1.5_R101.txt | M179: 419.15
A180: od100rho0.05zeta1.1_R101.txt | B180: sota | C180: 28 | D180: 434.7 | E180: 427.12 | F180: 1.77% | G180: 0 | L180: od100rho1.6zeta1.5_R201.txt | M180: 377.16
A181: od100rho0.05zeta1.1_R101.txt | B181: sota | C181: 29 | D181: 433.13 | E181: 427.12 | F181: 1.41% | G181: 0 | L181: od100rho1.6zeta1.5_RC101.txt | M181: 605.1
A182: od100rho0.05zeta1.1_R201.txt | B182: auto | C182: 0 | D182: 380.58 | E182: 380.58 | F182: 0.00% | G182: 1 | L182: od100rho1.6zeta1.5_RC201.txt | M182: 439.93
A183: od100rho0.05zeta1.1_R201.txt | B183: auto | C183: 1 | D183: 380.58 | E183: 380.58 | F183: 0.00% | G183: 1 | L183: od13rho0.2zeta1.1_C101.txt | M183: 166.67
A184: od100rho0.05zeta1.1_R201.txt | B184: auto | C184: 2 | D184: 380.58 | E184: 380.58 | F184: 0.00% | G184: 1 | L184: od13rho0.2zeta1.1_C201.txt | M184: 171.41
A185: od100rho0.05zeta1.1_R201.txt | B185: auto | C185: 3 | D185: 380.62 | E185: 380.58 | F185: 0.01% | G185: 0 | L185: od13rho0.2zeta1.1_R101.txt | M185: 312.66
A186: od100rho0.05zeta1.1_R201.txt | B186: auto | C186: 4 | D186: 380.58 | E186: 380.58 | F186: 0.00% | G186: 1 | L186: od13rho0.2zeta1.1_R201.txt | M186: 282.44
A187: od100rho0.05zeta1.1_R201.txt | B187: auto | C187: 5 | D187: 380.58 | E187: 380.58 | F187: 0.00% | G187: 1 | L187: od13rho0.2zeta1.1_RC101.txt | M187: 294.99
A188: od100rho0.05zeta1.1_R201.txt | B188: auto | C188: 6 | D188: 380.58 | E188: 380.58 | F188: 0.00% | G188: 1 | L188: od13rho0.2zeta1.1_RC201.txt | M188: 226.11
A189: od100rho0.05zeta1.1_R201.txt | B189: auto | C189: 7 | D189: 380.58 | E189: 380.58 | F189: 0.00% | G189: 1 | L189: od13rho0.2zeta1.2_C101.txt | M189: 165.7
A190: od100rho0.05zeta1.1_R201.txt | B190: auto | C190: 8 | D190: 380.58 | E190: 380.58 | F190: 0.00% | G190: 1 | L190: od13rho0.2zeta1.2_C201.txt | M190: 171.41
A191: od100rho0.05zeta1.1_R201.txt | B191: auto | C191: 9 | D191: 380.58 | E191: 380.58 | F191: 0.00% | G191: 1 | L191: od13rho0.2zeta1.2_R101.txt | M191: 274.64
A192: od100rho0.05zeta1.1_R201.txt | B192: auto | C192: 10 | D192: 380.58 | E192: 380.58 | F192: 0.00% | G192: 1 | L192: od13rho0.2zeta1.2_R201.txt | M192: 274.64
A193: od100rho0.05zeta1.1_R201.txt | B193: auto | C193: 11 | D193: 380.58 | E193: 380.58 | F193: 0.00% | G193: 1 | L193: od13rho0.2zeta1.2_RC101.txt | M193: 284.53
A194: od100rho0.05zeta1.1_R201.txt | B194: auto | C194: 12 | D194: 380.58 | E194: 380.58 | F194: 0.00% | G194: 1 | L194: od13rho0.2zeta1.2_RC201.txt | M194: 226.11
A195: od100rho0.05zeta1.1_R201.txt | B195: auto | C195: 13 | D195: 380.58 | E195: 380.58 | F195: 0.00% | G195: 1 | L195: od13rho0.2zeta1.3_C101.txt | M195: 165.42
A196: od100rho0.05zeta1.1_R201.txt | B196: auto | C196: 14 | D196: 380.58 | E196: 380.58 | F196: 0.00% | G196: 1 | L196: od13rho0.2zeta1.3_C201.txt | M196: =_xlfn.MINIFS(D:D,A:A,L196) -> 169.52
A197: od100rho0.05zeta1.1_R201.txt | B197: auto | C197: 15 | D197: 380.58 | E197: =VLOOKUP(A197,L:M,2,FALSE) -> 380.58 | F197: =(D197-E197)/E197 -> 0.00% | G197: =IF(D197<=E197,1,0) -> 1 | L197: od13rho0.2zeta1.3_R101.txt | M197: 268.06
A198: od100rho0.05zeta1.1_R201.txt | B198: auto | C198: 16 | D198: 380.58 | E198: 380.58 | F198: 0.00% | G198: 1 | L198: od13rho0.2zeta1.3_R201.txt | M198: 268.06
A199: od100rho0.05zeta1.1_R201.txt | B199: auto | C199: 17 | D199: 380.58 | E199: 380.58 | F199: 0.00% | G199: 1 | L199: od13rho0.2zeta1.3_RC101.txt | M199: 284.53
A200: od100rho0.05zeta1.1_R201.txt | B200: auto | C200: 18 | D200: 380.58 | E200: 380.58 | F200: 0.00% | G200: 1 | L200: od13rho0.2zeta1.3_RC201.txt | M200: 226.11
... 4300 more rows

Sheet PivotVRPOD
B1: Column Labels | L1: All instances removing Tuning instances
B2: auto | F2: sota | M2: sum #best | O2: sum hasBest | Q2: Avg %Gap | R2: Min %Gap | U2: Tuning instances
A3: Row Labels | B3: #best | C3: hasBest | D3: Avg %Gap | E3: Min %Gap | F3: #best | G3: hasBest | H3: Avg %Gap | I3: Min %Gap | L3: auto | M3: =SUM(B4:B423) -> 3135 | N3: =M3/$M$8 -> 29.27% | O3: =SUM(C4:C423) -> 354 | P3: =O3/$M$6 -> 99.16% | Q3: =AVERAGE(D4:D423) -> 1.96% | R3: =AVERAGE(E4:E423) -> 0.00% | U3: od100rho0.1zeta1.3_C101.txt
A4: od100rho0.05zeta1.1_C101.txt | B4: 15 | C4: 1 | D4: 1.51% | E4: 0.00% | F4: 1 | G4: 1 | H4: 3.61% | I4: 0.00% | L4: sota | M4: =SUM(F4:F423) -> 1925 | N4: =M4/$M$8 -> 17.97% | O4: =SUM(G4:G423) -> 133 | P4: =O4/$M$6 -> 37.25% | Q4: =AVERAGE(H4:H423) -> 4.33% | R4: =AVERAGE(I4:I423) -> 1.02% | U4: od100rho0.1zeta1.3_R201.txt
A5: od100rho0.05zeta1.1_C201.txt | B5: 29 | C5: 1 | D5: 0.01% | E5: 0.00% | F5: 18 | G5: 1 | H5: 3.04% | I5: 0.00% | U5: od100rho0.1zeta1.3_RC201.txt
A6: od100rho0.05zeta1.1_R101.txt | B6: 2 | C6: 1 | D6: 3.19% | E6: 0.00% | F6: 0 | G6: 0 | H6: 3.67% | I6: 0.77% | L6: NInstances | M6: 357 | U6: od100rho0.2zeta1.3_C101.txt
A7: od100rho0.05zeta1.1_R201.txt | B7: 28 | C7: 1 | D7: 0.02% | E7: 0.00% | F7: 21 | G7: 1 | H7: 0.41% | I7: 0.00% | L7: Reps | M7: 30 | U7: od100rho0.2zeta1.3_R101.txt
A8: od100rho0.05zeta1.1_RC101.txt | B8: 10 | C8: 1 | D8: 3.17% | E8: 0.00% | F8: 1 | G8: 1 | H8: 5.20% | I8: 0.00% | L8: Iters Per Alg | M8: =M7*M6 -> 10710 | U8: od100rho0.2zeta1.3_R201.txt
A9: od100rho0.05zeta1.1_RC201.txt | B9: 12 | C9: 1 | D9: 0.42% | E9: 0.00% | F9: 8 | G9: 1 | H9: 0.08% | I9: 0.00% | U9: od100rho0.2zeta1.3_RC101.txt
A10: od100rho0.05zeta1.2_C101.txt | B10: 30 | C10: 1 | D10: 0.00% | E10: 0.00% | F10: 23 | G10: 1 | H10: 3.62% | I10: 0.00% | U10: od100rho0.2zeta1.3_RC201.txt
A11: od100rho0.05zeta1.2_C201.txt | B11: 13 | C11: 1 | D11: 2.77% | E11: 0.00% | F11: 5 | G11: 1 | H11: 4.97% | I11: 0.00% | L11: Takes into account all instances | U11: od100rho1.2zeta1.2_C101.txt
A12: od100rho0.05zeta1.2_R101.txt | B12: 1 | C12: 1 | D12: 3.55% | E12: 0.00% | F12: 0 | G12: 0 | H12: 6.19% | I12: 0.12% | M12: sum #best | O12: sum hasBest | Q12: Avg %Gap | R12: Min %Gap | U12: od100rho1.2zeta1.3_C101.txt
A13: od100rho0.05zeta1.2_R201.txt | B13: 4 | C13: 1 | D13: 0.11% | E13: 0.00% | F13: 5 | G13: 1 | H13: 0.30% | I13: 0.00% | L13: auto | M13: 4095 | N13: 32.50% | O13: 416 | P13: 99.05% | Q13: 1.91% | R13: 0.00% | U13: od100rho1.2zeta1.3_R101.txt
A14: od100rho0.05zeta1.2_RC101.txt | B14: 6 | C14: 1 | D14: 0.59% | E14: 0.00% | F14: 0 | G14: 0 | H14: 4.21% | I14: 0.17% | L14: sota | M14: 2657 | N14: 21.09% | O14: 165 | P14: 39.29% | Q14: 4.24% | R14: 1.08% | U14: od100rho1.2zeta1.3_R201.txt
A15: od100rho0.05zeta1.2_RC201.txt | B15: 23 | C15: 1 | D15: 0.42% | E15: 0.00% | F15: 6 | G15: 1 | H15: 0.49% | I15: 0.00% | U15: od100rho1.2zeta1.3_RC101.txt
A16: od100rho0.05zeta1.3_C101.txt | B16: 30 | C16: 1 | D16: 0.00% | E16: 0.00% | F16: 27 | G16: 1 | H16: 11.11% | I16: 0.00% | L16: NInstances | M16: 420 | U16: od100rho1.2zeta1.3_RC201.txt
A17: od100rho0.05zeta1.3_C201.txt | B17: 9 | C17: 1 | D17: 1.94% | E17: 0.00% | F17: 5 | G17: 1 | H17: 2.67% | I17: 0.00% | L17: Reps | M17: 30 | U17: od100rho1.4zeta1.3_C101.txt
A18: od100rho0.05zeta1.3_R101.txt | B18: 0 | C18: 0 | D18: 0.39% | E18: 0.27% | F18: 1 | G18: 1 | H18: 0.74% | I18: 0.00% | L18: Iters Per Alg | M18: 12600 | U18: od100rho1.4zeta1.3_R101.txt
A19: od100rho0.05zeta1.3_R201.txt | B19: 13 | C19: 1 | D19: 0.32% | E19: 0.00% | F19: 9 | G19: 1 | H19: 0.93% | I19: 0.00% | U19: od100rho1.4zeta1.3_R201.txt
A20: od100rho0.05zeta1.3_RC101.txt | B20: 25 | C20: 1 | D20: 0.13% | E20: 0.00% | F20: 2 | G20: 1 | H20: 8.12% | I20: 0.00% | U20: od100rho1.4zeta1.3_RC101.txt
A21: od100rho0.05zeta1.3_RC201.txt | B21: 25 | C21: 1 | D21: 0.02% | E21: 0.00% | F21: 18 | G21: 1 | H21: 1.90% | I21: 0.00% | U21: od100rho1.4zeta1.3_RC201.txt
A22: od100rho0.05zeta1.4_C101.txt | B22: 30 | C22: 1 | D22: 0.00% | E22: 0.00% | F22: 28 | G22: 1 | H22: 6.07% | I22: 0.00% | U22: od13rho0.2zeta1.2_RC101.txt
A23: od100rho0.05zeta1.4_C201.txt | B23: 10 | C23: 1 | D23: 1.38% | E23: 0.00% | F23: 15 | G23: 1 | H23: 1.50% | I23: 0.00% | U23: od13rho0.2zeta1.2_RC201.txt
A24: od100rho0.05zeta1.4_R101.txt | B24: 14 | C24: 1 | D24: 0.14% | E24: 0.00% | F24: 12 | G24: 1 | H24: 0.27% | I24: 0.00% | U24: od13rho0.2zeta1.3_C201.txt
A25: od100rho0.05zeta1.4_R201.txt | B25: 27 | C25: 1 | D25: 0.01% | E25: 0.00% | F25: 24 | G25: 1 | H25: 0.21% | I25: 0.00% | U25: od13rho0.2zeta1.3_R101.txt
A26: od100rho0.05zeta1.4_RC101.txt | B26: 1 | C26: 1 | D26: 0.60% | E26: 0.00% | F26: 0 | G26: 0 | H26: 0.94% | I26: 0.01% | U26: od13rho0.2zeta1.3_R201.txt
A27: od100rho0.05zeta1.4_RC201.txt | B27: 23 | C27: 1 | D27: 0.19% | E27: 0.00% | F27: 17 | G27: 1 | H27: 0.89% | I27: 0.00% | U27: od13rho0.2zeta1.3_RC101.txt
A28: od100rho0.05zeta1.5_C101.txt | B28: 30 | C28: 1 | D28: 0.00% | E28: 0.00% | F28: 28 | G28: 1 | H28: 7.12% | I28: 0.00% | U28: od13rho0.2zeta1.3_RC201.txt
A29: od100rho0.05zeta1.5_C201.txt | B29: 30 | C29: 1 | D29: 0.00% | E29: 0.00% | F29: 27 | G29: 1 | H29: 2.39% | I29: 0.00% | U29: od13rho0.2zeta1.4_C201.txt
A30: od100rho0.05zeta1.5_R101.txt | B30: 18 | C30: 1 | D30: 0.41% | E30: 0.00% | F30: 17 | G30: 1 | H30: 4.98% | I30: 0.00% | U30: od13rho0.2zeta1.4_R101.txt
A31: od100rho0.05zeta1.5_R201.txt | B31: 21 | C31: 1 | D31: 0.31% | E31: 0.00% | F31: 16 | G31: 1 | H31: 5.60% | I31: 0.00% | U31: od13rho0.2zeta1.4_RC101.txt
A32: od100rho0.05zeta1.5_RC101.txt | B32: 16 | C32: 1 | D32: 3.40% | E32: 0.00% | F32: 1 | G32: 1 | H32: 11.73% | I32: 0.00% | U32: od13rho0.2zeta1.4_RC201.txt
A33: od100rho0.05zeta1.5_RC201.txt | B33: 1 | C33: 1 | D33: 7.61% | E33: 0.00% | F33: 0 | G33: 0 | H33: 9.23% | I33: 8.47% | U33: od13rho0.2zeta1.5_C201.txt
A34: od100rho0.1zeta1.1_C101.txt | B34: 1 | C34: 1 | D34: 0.36% | E34: 0.00% | F34: 1 | G34: 1 | H34: 11.21% | I34: 0.00% | U34: od25rho0.2zeta1.2_C101.txt
A35: od100rho0.1zeta1.1_C201.txt | B35: 1 | C35: 1 | D35: 2.22% | E35: 0.00% | F35: 0 | G35: 0 | H35: 3.00% | I35: 0.40% | U35: od25rho0.2zeta1.2_C201.txt
A36: od100rho0.1zeta1.1_R101.txt | B36: 1 | C36: 1 | D36: 3.24% | E36: 0.00% | F36: 0 | G36: 0 | H36: 5.90% | I36: 0.64% | U36: od25rho0.2zeta1.2_RC101.txt
A37: od100rho0.1zeta1.1_R201.txt | B37: 25 | C37: 1 | D37: 0.04% | E37: 0.00% | F37: 10 | G37: 1 | H37: 0.29% | I37: 0.00% | U37: od25rho0.2zeta1.2_RC201.txt
A38: od100rho0.1zeta1.1_RC101.txt | B38: 4 | C38: 1 | D38: 4.49% | E38: 0.00% | F38: 1 | G38: 1 | H38: 6.70% | I38: 0.00% | U38: od25rho0.2zeta1.3_C201.txt
A39: od100rho0.1zeta1.1_RC201.txt | B39: 26 | C39: 1 | D39: 0.30% | E39: 0.00% | F39: 13 | G39: 1 | H39: 0.42% | I39: 0.00% | U39: od25rho0.2zeta1.3_R201.txt
A40: od100rho0.1zeta1.2_C101.txt | B40: 22 | C40: 1 | D40: 2.80% | E40: 0.00% | F40: 4 | G40: 1 | H40: 14.62% | I40: 0.00% | U40: od25rho0.2zeta1.3_RC101.txt
A41: od100rho0.1zeta1.2_C201.txt | B41: 5 | C41: 1 | D41: 5.07% | E41: 0.00% | F41: 0 | G41: 0 | H41: 8.36% | I41: 0.13% | U41: od25rho0.2zeta1.3_RC201.txt
A42: od100rho0.1zeta1.2_R101.txt | B42: 2 | C42: 1 | D42: 3.89% | E42: 0.00% | F42: 0 | G42: 0 | H42: 5.61% | I42: 0.18% | U42: od25rho0.2zeta1.4_C201.txt
A43: od100rho0.1zeta1.2_R201.txt | B43: 17 | C43: 1 | D43: 0.05% | E43: 0.00% | F43: 19 | G43: 1 | H43: 1.28% | I43: 0.00% | U43: od25rho0.2zeta1.4_R201.txt
A44: od100rho0.1zeta1.2_RC101.txt | B44: 3 | C44: 1 | D44: 1.46% | E44: 0.00% | F44: 0 | G44: 0 | H44: 8.04% | I44: 1.88% | U44: od25rho0.2zeta1.4_RC101.txt
A45: od100rho0.1zeta1.2_RC201.txt | B45: 21 | C45: 1 | D45: 2.62% | E45: 0.00% | F45: 28 | G45: 1 | H45: 0.00% | I45: 0.00% | U45: od25rho0.2zeta1.4_RC201.txt
A46: od100rho0.1zeta1.3_C201.txt | B46: 5 | C46: 1 | D46: 3.67% | E46: 0.00% | F46: 0 | G46: 0 | H46: 16.21% | I46: 1.32% | U46: od50rho0.05zeta1.3_C101.txt
A47: od100rho0.1zeta1.3_R101.txt | B47: 11 | C47: 1 | D47: 0.10% | E47: 0.00% | F47: 5 | G47: 1 | H47: 0.29% | I47: 0.00% | U47: od50rho0.1zeta1.3_C101.txt
A48: od100rho0.1zeta1.3_RC101.txt | B48: 5 | C48: 1 | D48: 4.56% | E48: 0.00% | F48: 0 | G48: 0 | H48: 17.42% | I48: 5.40% | U48: od50rho0.1zeta1.3_R101.txt
A49: od100rho0.1zeta1.4_C101.txt | B49: 17 | C49: 1 | D49: 9.63% | E49: 0.00% | F49: 1 | G49: 1 | H49: 26.50% | I49: 0.00% | U49: od50rho0.1zeta1.3_RC101.txt
A50: od100rho0.1zeta1.4_C201.txt | B50: 3 | C50: 1 | D50: 0.87% | E50: 0.00% | F50: 0 | G50: 0 | H50: 10.46% | I50: 0.22% | U50: od50rho0.2zeta1.2_C101.txt
A51: od100rho0.1zeta1.4_R101.txt | B51: 25 | C51: 1 | D51: 0.11% | E51: 0.00% | F51: 18 | G51: 1 | H51: 0.59% | I51: 0.00% | U51: od50rho0.2zeta1.3_C101.txt
A52: od100rho0.1zeta1.4_R201.txt | B52: 27 | C52: 1 | D52: 0.02% | E52: 0.00% | F52: 20 | G52: 1 | H52: 0.07% | I52: 0.00% | U52: od50rho0.2zeta1.3_R101.txt
A53: od100rho0.1zeta1.4_RC101.txt | B53: 2 | C53: 1 | D53: 0.80% | E53: 0.00% | F53: 0 | G53: 0 | H53: 12.78% | I53: 0.68% | U53: od50rho0.2zeta1.3_R201.txt
A54: od100rho0.1zeta1.4_RC201.txt | B54: 30 | C54: 1 | D54: 0.00% | E54: 0.00% | F54: 1 | G54: 1 | H54: 5.79% | I54: 0.00% | U54: od50rho0.2zeta1.3_RC101.txt
A55: od100rho0.1zeta1.5_C101.txt | B55: 9 | C55: 1 | D55: 14.01% | E55: 0.00% | F55: 0 | G55: 0 | H55: 21.45% | I55: 16.42% | U55: od50rho0.2zeta1.3_RC201.txt
A56: od100rho0.1zeta1.5_C201.txt | B56: 29 | C56: 1 | D56: 0.01% | E56: 0.00% | F56: 18 | G56: 1 | H56: 3.29% | I56: 0.00% | U56: od50rho1.2zeta1.2_C101.txt
A57: od100rho0.1zeta1.5_R101.txt | B57: 14 | C57: 1 | D57: 5.31% | E57: 0.00% | F57: 5 | G57: 1 | H57: 8.90% | I57: 0.00% | U57: od50rho1.2zeta1.3_C101.txt
A58: od100rho0.1zeta1.5_R201.txt | B58: 17 | C58: 1 | D58: 4.33% | E58: 0.00% | F58: 2 | G58: 1 | H58: 9.71% | I58: 0.00% | U58: od50rho1.2zeta1.3_C201.txt
A59: od100rho0.1zeta1.5_RC101.txt | B59: 3 | C59: 1 | D59: 5.27% | E59: 0.00% | F59: 0 | G59: 0 | H59: 13.53% | I59: 2.89% | U59: od50rho1.2zeta1.3_R101.txt
A60: od100rho0.1zeta1.5_RC201.txt | B60: 29 | C60: 1 | D60: 0.20% | E60: 0.00% | F60: 2 | G60: 1 | H60: 5.59% | I60: 0.00% | U60: od50rho1.2zeta1.3_R201.txt
A61: od100rho0.2zeta1.1_C101.txt | B61: 1 | C61: 1 | D61: 3.89% | E61: 0.00% | F61: 0 | G61: 0 | H61: 7.11% | I61: 2.26% | U61: od50rho1.2zeta1.3_RC101.txt
A62: od100rho0.2zeta1.1_C201.txt | B62: 2 | C62: 1 | D62: 1.17% | E62: 0.00% | F62: 1 | G62: 1 | H62: 1.56% | I62: 0.00% | U62: od50rho1.2zeta1.3_RC201.txt
A63: od100rho0.2zeta1.1_R101.txt | B63: 2 | C63: 1 | D63: 0.79% | E63: 0.00% | F63: 0 | G63: 0 | H63: 1.69% | I63: 0.37% | U63: od50rho1.4zeta1.3_C101.txt
A64: od100rho0.2zeta1.1_R201.txt | B64: 26 | C64: 1 | D64: 0.32% | E64: 0.00% | F64: 18 | G64: 1 | H64: 0.08% | I64: 0.00% | U64: od50rho1.4zeta1.3_R101.txt
A65: od100rho0.2zeta1.1_RC101.txt | B65: 9 | C65: 1 | D65: 1.59% | E65: 0.00% | F65: 0 | G65: 0 | H65: 2.46% | I65: 0.08% | U65: od50rho1.4zeta1.3_RC101.txt
A66: od100rho0.2zeta1.1_RC201.txt | B66: 5 | C66: 1 | D66: 1.07% | E66: 0.00% | F66: 23 | G66: 1 | H66: 0.04% | I66: 0.00%
A67: od100rho0.2zeta1.2_C101.txt | B67: 1 | C67: 1 | D67: 5.78% | E67: 0.00% | F67: 0 | G67: 0 | H67: 10.62% | I67: 6.65%
A68: od100rho0.2zeta1.2_C201.txt | B68: 10 | C68: 1 | D68: 1.35% | E68: 0.00% | F68: 8 | G68: 1 | H68: 1.05% | I68: 0.00%
A69: od100rho0.2zeta1.2_R101.txt | B69: 1 | C69: 1 | D69: 1.24% | E69: 0.00% | F69: 0 | G69: 0 | H69: 2.69% | I69: 0.06%
A70: od100rho0.2zeta1.2_R201.txt | B70: 13 | C70: 1 | D70: 0.82% | E70: 0.00% | F70: 28 | G70: 1 | H70: 0.00% | I70: 0.00%
A71: od100rho0.2zeta1.2_RC101.txt | B71: 1 | C71: 1 | D71: 2.98% | E71: 0.00% | F71: 0 | G71: 0 | H71: 4.13% | I71: 0.46%
A72: od100rho0.2zeta1.2_RC201.txt | B72: 10 | C72: 1 | D72: 1.23% | E72: 0.00% | F72: 20 | G72: 1 | H72: 0.03% | I72: 0.00%
A73: od100rho0.2zeta1.3_C201.txt | B73: 9 | C73: 1 | D73: 1.35% | E73: 0.00% | F73: 15 | G73: 1 | H73: 0.83% | I73: 0.00%
A74: od100rho0.2zeta1.4_C101.txt | B74: 1 | C74: 1 | D74: 3.76% | E74: 0.00% | F74: 0 | G74: 0 | H74: 8.94% | I74: 3.28%
A75: od100rho0.2zeta1.4_C201.txt | B75: 12 | C75: 1 | D75: 0.93% | E75: 0.00% | F75: 12 | G75: 1 | H75: 1.07% | I75: 0.00%
A76: od100rho0.2zeta1.4_R101.txt | B76: 25 | C76: 1 | D76: 0.14% | E76: 0.00% | F76: 4 | G76: 1 | H76: 1.88% | I76: 0.00%
A77: od100rho0.2zeta1.4_R201.txt | B77: 14 | C77: 1 | D77: 0.01% | E77: 0.00% | F77: 6 | G77: 1 | H77: 0.72% | I77: 0.00%
A78: od100rho0.2zeta1.4_RC101.txt | B78: 2 | C78: 1 | D78: 1.66% | E78: 0.00% | F78: 0 | G78: 0 | H78: 3.28% | I78: 1.05%
A79: od100rho0.2zeta1.4_RC201.txt | B79: 2 | C79: 1 | D79: 2.02% | E79: 0.00% | F79: 27 | G79: 1 | H79: 0.00% | I79: 0.00%
A80: od100rho0.2zeta1.5_C101.txt | B80: 4 | C80: 1 | D80: 0.15% | E80: 0.00% | F80: 0 | G80: 0 | H80: 4.03% | I80: 0.03%
A81: od100rho0.2zeta1.5_C201.txt | B81: 9 | C81: 1 | D81: 1.41% | E81: 0.00% | F81: 7 | G81: 1 | H81: 2.64% | I81: 0.00%
A82: od100rho0.2zeta1.5_R101.txt | B82: 30 | C82: 1 | D82: 0.00% | E82: 0.00% | F82: 13 | G82: 1 | H82: 1.61% | I82: 0.00%
A83: od100rho0.2zeta1.5_R201.txt | B83: 18 | C83: 1 | D83: 0.23% | E83: 0.00% | F83: 27 | G83: 1 | H83: 0.13% | I83: 0.00%
A84: od100rho0.2zeta1.5_RC101.txt | B84: 1 | C84: 1 | D84: 2.43% | E84: 0.00% | F84: 0 | G84: 0 | H84: 4.41% | I84: 2.94%
A85: od100rho0.2zeta1.5_RC201.txt | B85: 4 | C85: 1 | D85: 2.01% | E85: 0.00% | F85: 26 | G85: 1 | H85: 0.04% | I85: 0.00%
A86: od100rho1.2zeta1.1_C101.txt | B86: 1 | C86: 1 | D86: 1.99% | E86: 0.00% | F86: 0 | G86: 0 | H86: 7.61% | I86: 1.62%
A87: od100rho1.2zeta1.1_C201.txt | B87: 14 | C87: 1 | D87: 0.82% | E87: 0.00% | F87: 1 | G87: 1 | H87: 4.98% | I87: 0.00%
A88: od100rho1.2zeta1.1_R101.txt | B88: 1 | C88: 1 | D88: 3.73% | E88: 0.00% | F88: 0 | G88: 0 | H88: 5.47% | I88: 0.96%
A89: od100rho1.2zeta1.1_R201.txt | B89: 14 | C89: 1 | D89: 0.20% | E89: 0.00% | F89: 1 | G89: 1 | H89: 0.79% | I89: 0.00%
A90: od100rho1.2zeta1.1_RC101.txt | B90: 1 | C90: 1 | D90: 4.47% | E90: 0.00% | F90: 0 | G90: 0 | H90: 5.83% | I90: 0.10%
A91: od100rho1.2zeta1.1_RC201.txt | B91: 30 | C91: 1 | D91: 0.00% | E91: 0.00% | F91: 7 | G91: 1 | H91: 0.30% | I91: 0.00%
A92: od100rho1.2zeta1.2_C201.txt | B92: 2 | C92: 1 | D92: 1.54% | E92: 0.00% | F92: 0 | G92: 0 | H92: 1.65% | I92: 0.41%
A93: od100rho1.2zeta1.2_R101.txt | B93: 1 | C93: 1 | D93: 2.30% | E93: 0.00% | F93: 0 | G93: 0 | H93: 4.22% | I93: 0.73%
A94: od100rho1.2zeta1.2_R201.txt | B94: 14 | C94: 1 | D94: 0.17% | E94: 0.00% | F94: 3 | G94: 1 | H94: 0.37% | I94: 0.00%
A95: od100rho1.2zeta1.2_RC101.txt | B95: 1 | C95: 1 | D95: 4.58% | E95: 0.00% | F95: 0 | G95: 0 | H95: 6.76% | I95: 1.32%
A96: od100rho1.2zeta1.2_RC201.txt | B96: 18 | C96: 1 | D96: 0.74% | E96: 0.00% | F96: 20 | G96: 1 | H96: 0.17% | I96: 0.00%
A97: od100rho1.2zeta1.3_C201.txt | B97: 17 | C97: 1 | D97: 1.36% | E97: 0.00% | F97: 0 | G97: 0 | H97: 8.32% | I97: 2.07%
A98: od100rho1.2zeta1.4_C101.txt | B98: 1 | C98: 1 | D98: 2.83% | E98: 0.00% | F98: 0 | G98: 0 | H98: 19.82% | I98: 5.95%
A99: od100rho1.2zeta1.4_C201.txt | B99: 6 | C99: 1 | D99: 2.68% | E99: 0.00% | F99: 0 | G99: 0 | H99: 6.22% | I99: 1.08%
A100: od100rho1.2zeta1.4_R101.txt | B100: 1 | C100: 1 | D100: 2.20% | E100: 0.00% | F100: 0 | G100: 0 | H100: 2.76% | I100: 0.61%
A101: od100rho1.2zeta1.4_R201.txt | B101: 8 | C101: 1 | D101: 0.14% | E101: 0.00% | F101: 0 | G101: 0 | H101: 0.49% | I101: 0.07%
A102: od100rho1.2zeta1.4_RC101.txt | B102: 1 | C102: 1 | D102: 4.29% | E102: 0.00% | F102: 0 | G102: 0 | H102: 8.74% | I102: 4.14%
A103: od100rho1.2zeta1.4_RC201.txt | B103: 23 | C103: 1 | D103: 0.65% | E103: 0.00% | F103: 19 | G103: 1 | H103: 0.15% | I103: 0.00%
A104: od100rho1.2zeta1.5_C101.txt | B104: 1 | C104: 1 | D104: 1.24% | E104: 0.00% | F104: 0 | G104: 0 | H104: 22.49% | I104: 8.26%
A105: od100rho1.2zeta1.5_C201.txt | B105: 11 | C105: 1 | D105: 2.51% | E105: 0.00% | F105: 0 | G105: 0 | H105: 7.07% | I105: 1.06%
A106: od100rho1.2zeta1.5_R101.txt | B106: 1 | C106: 1 | D106: 1.44% | E106: 0.00% | F106: 0 | G106: 0 | H106: 3.74% | I106: 0.65%
A107: od100rho1.2zeta1.5_R201.txt | B107: 14 | C107: 1 | D107: 0.14% | E107: 0.00% | F107: 0 | G107: 0 | H107: 0.51% | I107: 0.01%
A108: od100rho1.2zeta1.5_RC101.txt | B108: 1 | C108: 1 | D108: 3.12% | E108: 0.00% | F108: 0 | G108: 0 | H108: 9.21% | I108: 3.11%
A109: od100rho1.2zeta1.5_RC201.txt | B109: 19 | C109: 1 | D109: 0.69% | E109: 0.00% | F109: 17 | G109: 1 | H109: 0.09% | I109: 0.00%
A110: od100rho1.4zeta1.1_C101.txt | B110: 1 | C110: 1 | D110: 1.70% | E110: 0.00% | F110: 0 | G110: 0 | H110: 4.50% | I110: 0.98%
A111: od100rho1.4zeta1.1_C201.txt | B111: 12 | C111: 1 | D111: 1.60% | E111: 0.00% | F111: 0 | G111: 0 | H111: 4.56% | I111: 0.09%
A112: od100rho1.4zeta1.1_R101.txt | B112: 1 | C112: 1 | D112: 4.79% | E112: 0.00% | F112: 0 | G112: 0 | H112: 6.77% | I112: 2.19%
A113: od100rho1.4zeta1.1_R201.txt | B113: 7 | C113: 1 | D113: 0.41% | E113: 0.00% | F113: 0 | G113: 0 | H113: 0.40% | I113: 0.08%
A114: od100rho1.4zeta1.1_RC101.txt | B114: 2 | C114: 1 | D114: 3.92% | E114: 0.00% | F114: 0 | G114: 0 | H114: 4.86% | I114: 0.50%
A115: od100rho1.4zeta1.1_RC201.txt | B115: 28 | C115: 1 | D115: 0.61% | E115: 0.00% | F115: 12 | G115: 1 | H115: 0.18% | I115: 0.00%
A116: od100rho1.4zeta1.2_C101.txt | B116: 1 | C116: 1 | D116: 2.40% | E116: 0.00% | F116: 0 | G116: 0 | H116: 10.22% | I116: 5.89%
A117: od100rho1.4zeta1.2_C201.txt | B117: 9 | C117: 1 | D117: 0.36% | E117: 0.00% | F117: 0 | G117: 0 | H117: 4.75% | I117: 0.88%
A118: od100rho1.4zeta1.2_R101.txt | B118: 1 | C118: 1 | D118: 1.82% | E118: 0.00% | F118: 0 | G118: 0 | H118: 5.55% | I118: 2.04%
A119: od100rho1.4zeta1.2_R201.txt | B119: 1 | C119: 1 | D119: 0.60% | E119: 0.00% | F119: 6 | G119: 1 | H119: 0.38% | I119: 0.00%
A120: od100rho1.4zeta1.2_RC101.txt | B120: 1 | C120: 1 | D120: 5.15% | E120: 0.00% | F120: 0 | G120: 0 | H120: 7.90% | I120: 1.15%
A121: od100rho1.4zeta1.2_RC201.txt | B121: 22 | C121: 1 | D121: 1.06% | E121: 0.00% | F121: 16 | G121: 1 | H121: 0.10% | I121: 0.00%
A122: od100rho1.4zeta1.3_C201.txt | B122: 2 | C122: 1 | D122: 2.91% | E122: 0.00% | F122: 0 | G122: 0 | H122: 6.71% | I122: 4.55%
A123: od100rho1.4zeta1.4_C101.txt | B123: 1 | C123: 1 | D123: 1.39% | E123: 0.00% | F123: 0 | G123: 0 | H123: 17.58% | I123: 10.66%
A124: od100rho1.4zeta1.4_C201.txt | B124: 3 | C124: 1 | D124: 2.82% | E124: 0.00% | F124: 0 | G124: 0 | H124: 6.72% | I124: 4.02%
A125: od100rho1.4zeta1.4_R101.txt | B125: 1 | C125: 1 | D125: 1.08% | E125: 0.00% | F125: 0 | G125: 0 | H125: 4.97% | I125: 0.56%
A126: od100rho1.4zeta1.4_R201.txt | B126: 2 | C126: 1 | D126: 0.25% | E126: 0.00% | F126: 0 | G126: 0 | H126: 1.07% | I126: 0.07%
A127: od100rho1.4zeta1.4_RC101.txt | B127: 2 | C127: 1 | D127: 2.39% | E127: 0.00% | F127: 0 | G127: 0 | H127: 4.21% | I127: 0.40%
A128: od100rho1.4zeta1.4_RC201.txt | B128: 22 | C128: 1 | D128: 0.68% | E128: 0.00% | F128: 8 | G128: 1 | H128: 0.29% | I128: 0.00%
A129: od100rho1.4zeta1.5_C101.txt | B129: 2 | C129: 1 | D129: 2.05% | E129: 0.00% | F129: 0 | G129: 0 | H129: 19.96% | I129: 11.05%
A130: od100rho1.4zeta1.5_C201.txt | B130: 4 | C130: 1 | D130: 2.90% | E130: 0.00% | F130: 0 | G130: 0 | H130: 6.78% | I130: 1.63%
A131: od100rho1.4zeta1.5_R101.txt | B131: 1 | C131: 1 | D131: 1.78% | E131: 0.00% | F131: 0 | G131: 0 | H131: 5.01% | I131: 1.39%
A132: od100rho1.4zeta1.5_R201.txt | B132: 1 | C132: 1 | D132: 0.17% | E132: 0.00% | F132: 1 | G132: 1 | H132: 0.74% | I132: 0.00%
A133: od100rho1.4zeta1.5_RC101.txt | B133: 5 | C133: 1 | D133: 1.79% | E133: 0.00% | F133: 0 | G133: 0 | H133: 6.31% | I133: 0.40%
A134: od100rho1.4zeta1.5_RC201.txt | B134: 26 | C134: 1 | D134: 0.62% | E134: 0.00% | F134: 12 | G134: 1 | H134: 0.28% | I134: 0.00%
A135: od100rho1.6zeta1.1_C101.txt | B135: 3 | C135: 1 | D135: 0.18% | E135: 0.00% | F135: 0 | G135: 0 | H135: 5.30% | I135: 0.17%
A136: od100rho1.6zeta1.1_C201.txt | B136: 6 | C136: 1 | D136: 1.81% | E136: 0.00% | F136: 0 | G136: 0 | H136: 5.26% | I136: 0.25%
A137: od100rho1.6zeta1.1_R101.txt | B137: 1 | C137: 1 | D137: 3.44% | E137: 0.00% | F137: 0 | G137: 0 | H137: 6.23% | I137: 2.72%
A138: od100rho1.6zeta1.1_R201.txt | B138: 8 | C138: 1 | D138: 0.35% | E138: 0.00% | F138: 0 | G138: 0 | H138: 0.44% | I138: 0.11%
A139: od100rho1.6zeta1.1_RC101.txt | B139: 1 | C139: 1 | D139: 3.65% | E139: 0.00% | F139: 0 | G139: 0 | H139: 5.91% | I139: 1.14%
A140: od100rho1.6zeta1.1_RC201.txt | B140: 23 | C140: 1 | D140: 0.48% | E140: 0.00% | F140: 9 | G140: 1 | H140: 0.17% | I140: 0.00%
A141: od100rho1.6zeta1.2_C101.txt | B141: 1 | C141: 1 | D141: 2.05% | E141: 0.00% | F141: 0 | G141: 0 | H141: 4.82% | I141: 2.28%
A142: od100rho1.6zeta1.2_C201.txt | B142: 4 | C142: 1 | D142: 1.72% | E142: 0.00% | F142: 0 | G142: 0 | H142: 3.68% | I142: 0.59%
A143: od100rho1.6zeta1.2_R101.txt | B143: 1 | C143: 1 | D143: 2.60% | E143: 0.00% | F143: 0 | G143: 0 | H143: 5.67% | I143: 1.18%
A144: od100rho1.6zeta1.2_R201.txt | B144: 27 | C144: 1 | D144: 0.07% | E144: 0.00% | F144: 2 | G144: 1 | H144: 0.40% | I144: 0.00%
A145: od100rho1.6zeta1.2_RC101.txt | B145: 1 | C145: 1 | D145: 4.23% | E145: 0.00% | F145: 0 | G145: 0 | H145: 5.99% | I145: 1.12%
A146: od100rho1.6zeta1.2_RC201.txt | B146: 24 | C146: 1 | D146: 0.34% | E146: 0.00% | F146: 7 | G146: 1 | H146: 0.22% | I146: 0.00%
A147: od100rho1.6zeta1.3_C101.txt | B147: 1 | C147: 1 | D147: 1.98% | E147: 0.00% | F147: 0 | G147: 0 | H147: 14.30% | I147: 1.97%
A148: od100rho1.6zeta1.3_C201.txt | B148: 1 | C148: 1 | D148: 4.27% | E148: 0.00% | F148: 0 | G148: 0 | H148: 6.10% | I148: 3.28%
A149: od100rho1.6zeta1.3_R101.txt | B149: 1 | C149: 1 | D149: 1.74% | E149: 0.00% | F149: 0 | G149: 0 | H149: 7.09% | I149: 0.79%
A150: od100rho1.6zeta1.3_R201.txt | B150: 5 | C150: 1 | D150: 0.23% | E150: 0.00% | F150: 1 | G150: 1 | H150: 1.76% | I150: 0.00%
A151: od100rho1.6zeta1.3_RC101.txt | B151: 1 | C151: 1 | D151: 3.31% | E151: 0.00% | F151: 0 | G151: 0 | H151: 7.10% | I151: 0.84%
A152: od100rho1.6zeta1.3_RC201.txt | B152: 21 | C152: 1 | D152: 1.40% | E152: 0.00% | F152: 4 | G152: 1 | H152: 0.39% | I152: 0.00%
A153: od100rho1.6zeta1.4_C101.txt | B153: 1 | C153: 1 | D153: 4.07% | E153: 0.00% | F153: 0 | G153: 0 | H153: 16.73% | I153: 9.36%
A154: od100rho1.6zeta1.4_C201.txt | B154: 1 | C154: 1 | D154: 5.50% | E154: 0.00% | F154: 0 | G154: 0 | H154: 5.46% | I154: 3.40%
A155: od100rho1.6zeta1.4_R101.txt | B155: 1 | C155: 1 | D155: 1.69% | E155: 0.00% | F155: 0 | G155: 0 | H155: 4.91% | I155: 0.55%
A156: od100rho1.6zeta1.4_R201.txt | B156: 11 | C156: 1 | D156: 0.20% | E156: 0.00% | F156: 0 | G156: 0 | H156: 0.97% | I156: 0.03%
A157: od100rho1.6zeta1.4_RC101.txt | B157: 2 | C157: 1 | D157: 3.17% | E157: 0.00% | F157: 0 | G157: 0 | H157: 5.60% | I157: 0.99%
A158: od100rho1.6zeta1.4_RC201.txt | B158: 23 | C158: 1 | D158: 0.05% | E158: 0.00% | F158: 7 | G158: 1 | H158: 0.39% | I158: 0.00%
A159: od100rho1.6zeta1.5_C101.txt | B159: 1 | C159: 1 | D159: 4.77% | E159: 0.00% | F159: 0 | G159: 0 | H159: 18.86% | I159: 6.86%
A160: od100rho1.6zeta1.5_C201.txt | B160: 1 | C160: 1 | D160: 5.19% | E160: 0.00% | F160: 0 | G160: 0 | H160: 4.78% | I160: 2.57%
A161: od100rho1.6zeta1.5_R101.txt | B161: 1 | C161: 1 | D161: 1.94% | E161: 0.00% | F161: 0 | G161: 0 | H161: 4.33% | I161: 0.74%
A162: od100rho1.6zeta1.5_R201.txt | B162: 6 | C162: 1 | D162: 0.22% | E162: 0.00% | F162: 0 | G162: 0 | H162: 1.55% | I162: 0.05%
A163: od100rho1.6zeta1.5_RC101.txt | B163: 1 | C163: 1 | D163: 3.84% | E163: 0.00% | F163: 0 | G163: 0 | H163: 8.56% | I163: 2.08%
A164: od100rho1.6zeta1.5_RC201.txt | B164: 21 | C164: 1 | D164: 0.43% | E164: 0.00% | F164: 8 | G164: 1 | H164: 0.26% | I164: 0.00%
A165: od13rho0.2zeta1.1_C101.txt | B165: 22 | C165: 1 | D165: 0.04% | E165: 0.00% | F165: 7 | G165: 1 | H165: 0.70% | I165: 0.00%
A166: od13rho0.2zeta1.1_C201.txt | B166: 30 | C166: 1 | D166: 0.00% | E166: 0.00% | F166: 30 | G166: 1 | H166: 0.00% | I166: 0.00%
A167: od13rho0.2zeta1.1_R101.txt | B167: 30 | C167: 1 | D167: 0.00% | E167: 0.00% | F167: 26 | G167: 1 | H167: 0.08% | I167: 0.00%
A168: od13rho0.2zeta1.1_R201.txt | B168: 30 | C168: 1 | D168: 0.00% | E168: 0.00% | F168: 30 | G168: 1 | H168: 0.00% | I168: 0.00%
A169: od13rho0.2zeta1.1_RC101.txt | B169: 28 | C169: 1 | D169: 1.49% | E169: 0.00% | F169: 22 | G169: 1 | H169: 2.50% | I169: 0.00%
A170: od13rho0.2zeta1.1_RC201.txt | B170: 30 | C170: 1 | D170: 0.00% | E170: 0.00% | F170: 30 | G170: 1 | H170: 0.00% | I170: 0.00%
A171: od13rho0.2zeta1.2_C101.txt | B171: 30 | C171: 1 | D171: 0.00% | E171: 0.00% | F171: 24 | G171: 1 | H171: 0.13% | I171: 0.00%
A172: od13rho0.2zeta1.2_C201.txt | B172: 30 | C172: 1 | D172: 0.00% | E172: 0.00% | F172: 29 | G172: 1 | H172: 0.56% | I172: 0.00%
A173: od13rho0.2zeta1.2_R101.txt | B173: 30 | C173: 1 | D173: 0.00% | E173: 0.00% | F173: 28 | G173: 1 | H173: 0.26% | I173: 0.00%
A174: od13rho0.2zeta1.2_R201.txt | B174: 30 | C174: 1 | D174: 0.00% | E174: 0.00% | F174: 29 | G174: 1 | H174: 0.14% | I174: 0.00%
A175: od13rho0.2zeta1.3_C101.txt | B175: 30 | C175: 1 | D175: 0.00% | E175: 0.00% | F175: 19 | G175: 1 | H175: 0.15% | I175: 0.00%
A176: od13rho0.2zeta1.4_C101.txt | B176: 30 | C176: 1 | D176: 0.00% | E176: 0.00% | F176: 16 | G176: 1 | H176: 1.09% | I176: 0.00%
A177: od13rho0.2zeta1.4_R201.txt | B177: 30 | C177: 1 | D177: 0.00% | E177: 0.00% | F177: 19 | G177: 1 | H177: 0.50% | I177: 0.00%
A178: od13rho0.2zeta1.5_C101.txt | B178: 18 | C178: 1 | D178: 5.30% | E178: 0.00% | F178: 2 | G178: 1 | H178: 12.43% | I178: 0.00%
A179: od13rho0.2zeta1.5_R101.txt | B179: 30 | C179: 1 | D179: 0.00% | E179: 0.00% | F179: 21 | G179: 1 | H179: 1.31% | I179: 0.00%
A180: od13rho0.2zeta1.5_R201.txt | B180: 29 | C180: 1 | D180: 0.01% | E180: 0.00% | F180: 22 | G180: 1 | H180: 0.17% | I180: 0.00%
A181: od13rho0.2zeta1.5_RC101.txt | B181: 30 | C181: 1 | D181: 0.00% | E181: 0.00% | F181: 20 | G181: 1 | H181: 0.53% | I181: 0.00%
A182: od13rho0.2zeta1.5_RC201.txt | B182: 30 | C182: 1 | D182: 0.00% | E182: 0.00% | F182: 29 | G182: 1 | H182: 0.23% | I182: 0.00%
A183: od25rho0.2zeta1.1_C101.txt | B183: 30 | C183: 1 | D183: 0.00% | E183: 0.00% | F183: 25 | G183: 1 | H183: 0.03% | I183: 0.00%
A184: od25rho0.2zeta1.1_C201.txt | B184: 30 | C184: 1 | D184: 0.00% | E184: 0.00% | F184: 30 | G184: 1 | H184: 0.00% | I184: 0.00%
A185: od25rho0.2zeta1.1_R101.txt | B185: 30 | C185: 1 | D185: 0.00% | E185: 0.00% | F185: 30 | G185: 1 | H185: 0.00% | I185: 0.00%
A186: od25rho0.2zeta1.1_R201.txt | B186: 30 | C186: 1 | D186: 0.00% | E186: 0.00% | F186: 30 | G186: 1 | H186: 0.00% | I186: 0.00%
A187: od25rho0.2zeta1.1_RC101.txt | B187: 27 | C187: 1 | D187: 2.25% | E187: 0.00% | F187: 30 | G187: 1 | H187: 0.00% | I187: 0.00%
A188: od25rho0.2zeta1.1_RC201.txt | B188: 30 | C188: 1 | D188: 0.00% | E188: 0.00% | F188: 30 | G188: 1 | H188: 0.00% | I188: 0.00%
A189: od25rho0.2zeta1.2_R101.txt | B189: 30 | C189: 1 | D189: 0.00% | E189: 0.00% | F189: 30 | G189: 1 | H189: 0.00% | I189: 0.00%
A190: od25rho0.2zeta1.2_R201.txt | B190: 30 | C190: 1 | D190: 0.00% | E190: 0.00% | F190: 29 | G190: 1 | H190: 0.09% | I190: 0.00%
A191: od25rho0.2zeta1.3_C101.txt | B191: 30 | C191: 1 | D191: 0.00% | E191: 0.00% | F191: 25 | G191: 1 | H191: 0.05% | I191: 0.00%
A192: od25rho0.2zeta1.3_R101.txt | B192: 30 | C192: 1 | D192: 0.00% | E192: 0.00% | F192: 29 | G192: 1 | H192: 0.29% | I192: 0.00%
A193: od25rho0.2zeta1.4_C101.txt | B193: 30 | C193: 1 | D193: 0.00% | E193: 0.00% | F193: 20 | G193: 1 | H193: 2.78% | I193: 0.00%
A194: od25rho0.2zeta1.4_R101.txt | B194: 30 | C194: 1 | D194: 0.00% | E194: 0.00% | F194: 30 | G194: 1 | H194: 0.00% | I194: 0.00%
A195: od25rho0.2zeta1.5_C101.txt | B195: 29 | C195: 1 | D195: 0.11% | E195: 0.00% | F195: 24 | G195: 1 | H195: 1.10% | I195: 0.00%
A196: od25rho0.2zeta1.5_C201.txt | B196: 30 | C196: 1 | D196: 0.00% | E196: 0.00% | F196: 30 | G196: 1 | H196: 0.00% | I196: 0.00%
A197: od25rho0.2zeta1.5_R101.txt | B197: 30 | C197: 1 | D197: 0.00% | E197: 0.00% | F197: 29 | G197: 1 | H197: 0.18% | I197: 0.00%
A198: od25rho0.2zeta1.5_R201.txt | B198: 30 | C198: 1 | D198: 0.00% | E198: 0.00% | F198: 27 | G198: 1 | H198: 0.62% | I198: 0.00%
A199: od25rho0.2zeta1.5_RC101.txt | B199: 18 | C199: 1 | D199: 1.23% | E199: 0.00% | F199: 26 | G199: 1 | H199: 0.52% | I199: 0.00%
A200: od25rho0.2zeta1.5_RC201.txt | B200: 30 | C200: 1 | D200: 0.00% | E200: 0.00% | F200: 30 | G200: 1 | H200: 0.00% | I200: 0.00%
... 160 more rows

Sheet AnnexVRPOD
B1: Column Labels
B2: auto | D2: sota | I2: Auto | K2: SOTA
A3: Row Labels | B3: Avg o.f. | C3: Min o.f. | D3: Avg o.f. | E3: Min o.f. | H3: Instance | I3: Avg o.f. | J3: Min o.f. | K3: Avg o.f. | L3: Min o.f.
A4: od100rho0.05zeta1.1_C101.txt | B4: 400.75 | C4: 394.80 | D4: 409.06 | E4: 394.80 | H4: od100rho0.05zeta1.1_C101 | I4: 400.75 | J4: 394.80 | K4: 409.06 | L4: 394.80
A5: od100rho0.05zeta1.1_C201.txt | B5: 418.39 | C5: 418.37 | D5: 431.09 | E5: 418.37 | H5: od100rho0.05zeta1.1_C201 | I5: 418.39 | J5: 418.37 | K5: 431.09 | L5: 418.37
A6: od100rho0.05zeta1.1_R101.txt | B6: 440.73 | C6: 427.12 | D6: 442.78 | E6: 430.39 | H6: od100rho0.05zeta1.1_R101 | I6: 440.73 | J6: 427.12 | K6: 442.78 | L6: 430.39
A7: od100rho0.05zeta1.1_R201.txt | B7: 380.64 | C7: 380.58 | D7: 382.14 | E7: 380.58 | H7: od100rho0.05zeta1.1_R201 | I7: 380.64 | J7: 380.58 | K7: 382.14 | L7: 380.58
A8: od100rho0.05zeta1.1_RC101.txt | B8: 628.35 | C8: 609.06 | D8: 640.71 | E8: 609.06 | H8: od100rho0.05zeta1.1_RC101 | I8: 628.35 | J8: 609.06 | K8: 640.71 | L8: 609.06
A9: od100rho0.05zeta1.1_RC201.txt | B9: 439.47 | C9: 437.65 | D9: 438.02 | E9: 437.65 | H9: od100rho0.05zeta1.1_RC201 | I9: 439.47 | J9: 437.65 | K9: 438.02 | L9: 437.65
A10: od100rho0.05zeta1.2_C101.txt | B10: 303.53 | C10: 303.53 | D10: 314.52 | E10: 303.53 | H10: od100rho0.05zeta1.2_C101 | I10: 303.53 | J10: 303.53 | K10: 314.52 | L10: 303.53
A11: od100rho0.05zeta1.2_C201.txt | B11: 382.08 | C11: 371.78 | D11: 390.26 | E11: 371.78 | H11: od100rho0.05zeta1.2_C201 | I11: 382.08 | J11: 371.78 | K11: 390.26 | L11: 371.78
A12: od100rho0.05zeta1.2_R101.txt | B12: 384.72 | C12: 371.52 | D12: 394.51 | E12: 371.98 | H12: od100rho0.05zeta1.2_R101 | I12: 384.72 | J12: 371.52 | K12: 394.51 | L12: 371.98
A13: od100rho0.05zeta1.2_R201.txt | B13: 361.41 | C13: 361.00 | D13: 362.08 | E13: 361.00 | H13: od100rho0.05zeta1.2_R201 | I13: 361.41 | J13: 361.00 | K13: 362.08 | L13: 361.00
A14: od100rho0.05zeta1.2_RC101.txt | B14: 534.14 | C14: 531.02 | D14: 553.38 | E14: 531.92 | H14: od100rho0.05zeta1.2_RC101 | I14: 534.14 | J14: 531.02 | K14: 553.38 | L14: 531.92
A15: od100rho0.05zeta1.2_RC201.txt | B15: 423.25 | C15: 421.48 | D15: 423.55 | E15: 421.48 | H15: od100rho0.05zeta1.2_RC201 | I15: 423.25 | J15: 421.48 | K15: 423.55 | L15: 421.48
A16: od100rho0.05zeta1.3_C101.txt | B16: 222.85 | C16: 222.85 | D16: 247.62 | E16: 222.85 | H16: od100rho0.05zeta1.3_C101 | I16: 222.85 | J16: 222.85 | K16: 247.62 | L16: 222.85
A17: od100rho0.05zeta1.3_C201.txt | B17: 268.55 | C17: 263.44 | D17: 270.46 | E17: 263.44 | H17: od100rho0.05zeta1.3_C201 | I17: 268.55 | J17: 263.44 | K17: 270.46 | L17: 263.44
A18: od100rho0.05zeta1.3_R101.txt | B18: 299.33 | C18: 298.97 | D18: 300.37 | E18: 298.17 | H18: od100rho0.05zeta1.3_R101 | I18: 299.33 | J18: 298.97 | K18: 300.37 | L18: 298.17
A19: od100rho0.05zeta1.3_R201.txt | B19: 296.06 | C19: 295.13 | D19: 297.87 | E19: 295.13 | H19: od100rho0.05zeta1.3_R201 | I19: 296.06 | J19: 295.13 | K19: 297.87 | L19: 295.13
A20: od100rho0.05zeta1.3_RC101.txt | B20: 408.53 | C20: 408.00 | D20: 441.14 | E20: 408.00 | H20: od100rho0.05zeta1.3_RC101 | I20: 408.53 | J20: 408.00 | K20: 441.14 | L20: 408.00
A21: od100rho0.05zeta1.3_RC201.txt | B21: 367.00 | C21: 366.92 | D21: 373.87 | E21: 366.92 | H21: od100rho0.05zeta1.3_RC201 | I21: 367.00 | J21: 366.92 | K21: 373.87 | L21: 366.92
A22: od100rho0.05zeta1.4_C101.txt | B22: 222.85 | C22: 222.85 | D22: 236.38 | E22: 222.85 | H22: od100rho0.05zeta1.4_C101 | I22: 222.85 | J22: 222.85 | K22: 236.38 | L22: 222.85
A23: od100rho0.05zeta1.4_C201.txt | B23: 261.90 | C23: 258.34 | D23: 262.21 | E23: 258.34 | H23: od100rho0.05zeta1.4_C201 | I23: 261.90 | J23: 258.34 | K23: 262.21 | L23: 258.34
A24: od100rho0.05zeta1.4_R101.txt | B24: 264.61 | C24: 264.25 | D24: 264.96 | E24: 264.25 | H24: od100rho0.05zeta1.4_R101 | I24: 264.61 | J24: 264.25 | K24: 264.96 | L24: 264.25
A25: od100rho0.05zeta1.4_R201.txt | B25: 263.32 | C25: 263.29 | D25: 263.84 | E25: 263.29 | H25: od100rho0.05zeta1.4_R201 | I25: 263.32 | J25: 263.29 | K25: 263.84 | L25: 263.29
A26: od100rho0.05zeta1.4_RC101.txt | B26: 391.30 | C26: 388.95 | D26: 392.59 | E26: 388.98 | H26: od100rho0.05zeta1.4_RC101 | I26: 391.30 | J26: 388.95 | K26: 392.59 | L26: 388.98
A27: od100rho0.05zeta1.4_RC201.txt | B27: 354.05 | C27: 353.37 | D27: 356.53 | E27: 353.37 | H27: od100rho0.05zeta1.4_RC201 | I27: 354.05 | J27: 353.37 | K27: 356.53 | L27: 353.37
A28: od100rho0.05zeta1.5_C101.txt | B28: 222.85 | C28: 222.85 | D28: 238.72 | E28: 222.85 | H28: od100rho0.05zeta1.5_C101 | I28: 222.85 | J28: 222.85 | K28: 238.72 | L28: 222.85
A29: od100rho0.05zeta1.5_C201.txt | B29: 258.34 | C29: 258.34 | D29: 264.51 | E29: 258.34 | H29: od100rho0.05zeta1.5_C201 | I29: 258.34 | J29: 258.34 | K29: 264.51 | L29: 258.34
A30: od100rho0.05zeta1.5_R101.txt | B30: 198.31 | C30: 197.51 | D30: 207.34 | E30: 197.51 | H30: od100rho0.05zeta1.5_R101 | I30: 198.31 | J30: 197.51 | K30: 207.34 | L30: 197.51
A31: od100rho0.05zeta1.5_R201.txt | B31: 198.11 | C31: 197.51 | D31: 208.57 | E31: 197.51 | H31: od100rho0.05zeta1.5_R201 | I31: 198.11 | J31: 197.51 | K31: 208.57 | L31: 197.51
A32: od100rho0.05zeta1.5_RC101.txt | B32: 329.47 | C32: 318.64 | D32: 356.00 | E32: 318.64 | H32: od100rho0.05zeta1.5_RC101 | I32: 329.47 | J32: 318.64 | K32: 356.00 | L32: 318.64
A33: od100rho0.05zeta1.5_RC201.txt | B33: 342.54 | C33: 318.32 | D33: 347.69 | E33: 345.27 | H33: od100rho0.05zeta1.5_RC201 | I33: 342.54 | J33: 318.32 | K33: 347.69 | L33: 345.27
A34: od100rho0.1zeta1.1_C101.txt | B34: 500.62 | C34: 498.82 | D34: 554.74 | E34: 498.82 | H34: od100rho0.1zeta1.1_C101 | I34: 500.62 | J34: 498.82 | K34: 554.74 | L34: 498.82
A35: od100rho0.1zeta1.1_C201.txt | B35: 502.35 | C35: 491.42 | D35: 506.17 | E35: 493.37 | H35: od100rho0.1zeta1.1_C201 | I35: 502.35 | J35: 491.42 | K35: 506.17 | L35: 493.37
A36: od100rho0.1zeta1.1_R101.txt | B36: 514.74 | C36: 498.59 | D36: 528.01 | E36: 501.76 | H36: od100rho0.1zeta1.1_R101 | I36: 514.74 | J36: 498.59 | K36: 528.01 | L36: 501.76
A37: od100rho0.1zeta1.1_R201.txt | B37: 449.03 | C37: 448.84 | D37: 450.16 | E37: 448.84 | H37: od100rho0.1zeta1.1_R201 | I37: 449.03 | J37: 448.84 | K37: 450.16 | L37: 448.84
A38: od100rho0.1zeta1.1_RC101.txt | B38: 700.29 | C38: 670.19 | D38: 715.13 | E38: 670.19 | H38: od100rho0.1zeta1.1_RC101 | I38: 700.29 | J38: 670.19 | K38: 715.13 | L38: 670.19
A39: od100rho0.1zeta1.1_RC201.txt | B39: 494.11 | C39: 492.64 | D39: 494.69 | E39: 492.64 | H39: od100rho0.1zeta1.1_RC201 | I39: 494.11 | J39: 492.64 | K39: 494.69 | L39: 492.64
A40: od100rho0.1zeta1.2_C101.txt | B40: 425.87 | C40: 414.28 | D40: 474.85 | E40: 414.28 | H40: od100rho0.1zeta1.2_C101 | I40: 425.87 | J40: 414.28 | K40: 474.85 | L40: 414.28
A41: od100rho0.1zeta1.2_C201.txt | B41: 479.44 | C41: 456.31 | D41: 494.46 | E41: 456.91 | H41: od100rho0.1zeta1.2_C201 | I41: 479.44 | J41: 456.31 | K41: 494.46 | L41: 456.91
A42: od100rho0.1zeta1.2_R101.txt | B42: 479.94 | C42: 461.97 | D42: 487.90 | E42: 462.78 | H42: od100rho0.1zeta1.2_R101 | I42: 479.94 | J42: 461.97 | K42: 487.90 | L42: 462.78
A43: od100rho0.1zeta1.2_R201.txt | B43: 436.35 | C43: 436.13 | D43: 441.73 | E43: 436.13 | H43: od100rho0.1zeta1.2_R201 | I43: 436.35 | J43: 436.13 | K43: 441.73 | L43: 436.13
A44: od100rho0.1zeta1.2_RC101.txt | B44: 627.88 | C44: 618.82 | D44: 668.56 | E44: 630.46 | H44: od100rho0.1zeta1.2_RC101 | I44: 627.88 | J44: 618.82 | K44: 668.56 | L44: 630.46
A45: od100rho0.1zeta1.2_RC201.txt | B45: 494.05 | C45: 481.43 | D45: 481.45 | E45: 481.43 | H45: od100rho0.1zeta1.2_RC201 | I45: 494.05 | J45: 481.43 | K45: 481.45 | L45: 481.43
A46: od100rho0.1zeta1.3_C101.txt | B46: 387.77 | C46: 349.00 | D46: 430.70 | E46: 426.54 | H46: od100rho0.1zeta1.3_C101 | I46: 387.77 | J46: 349.00 | K46: 430.70 | L46: 426.54
A47: od100rho0.1zeta1.3_C201.txt | B47: 396.85 | C47: 382.81 | D47: 444.85 | E47: 387.87 | H47: od100rho0.1zeta1.3_C201 | I47: 396.85 | J47: 382.81 | K47: 444.85 | L47: 387.87
A48: od100rho0.1zeta1.3_R101.txt | B48: 391.77 | C48: 391.39 | D48: 392.54 | E48: 391.39 | H48: od100rho0.1zeta1.3_R101 | I48: 391.77 | J48: 391.39 | K48: 392.54 | L48: 391.39
A49: od100rho0.1zeta1.3_R201.txt | B49: 385.05 | C49: 384.85 | D49: 386.42 | E49: 384.85 | H49: od100rho0.1zeta1.3_R201 | I49: 385.05 | J49: 384.85 | K49: 386.42 | L49: 384.85
A50: od100rho0.1zeta1.3_RC101.txt | B50: 546.91 | C50: 523.06 | D50: 614.18 | E50: 551.29 | H50: od100rho0.1zeta1.3_RC101 | I50: 546.91 | J50: 523.06 | K50: 614.18 | L50: 551.29
A51: od100rho0.1zeta1.3_RC201.txt | B51: 462.15 | C51: 453.89 | D51: 481.44 | E51: 481.43 | H51: od100rho0.1zeta1.3_RC201 | I51: 462.15 | J51: 453.89 | K51: 481.44 | L51: 481.43
A52: od100rho0.1zeta1.4_C101.txt | B52: 382.60 | C52: 349.00 | D52: 441.50 | E52: 349.00 | H52: od100rho0.1zeta1.4_C101 | I52: 382.60 | J52: 349.00 | K52: 441.50 | L52: 349.00
A53: od100rho0.1zeta1.4_C201.txt | B53: 385.28 | C53: 381.96 | D53: 421.91 | E53: 382.81 | H53: od100rho0.1zeta1.4_C201 | I53: 385.28 | J53: 381.96 | K53: 421.91 | L53: 382.81
A54: od100rho0.1zeta1.4_R101.txt | B54: 366.80 | C54: 366.38 | D54: 368.55 | E54: 366.38 | H54: od100rho0.1zeta1.4_R101 | I54: 366.80 | J54: 366.38 | K54: 368.55 | L54: 366.38
A55: od100rho0.1zeta1.4_R201.txt | B55: 360.42 | C55: 360.35 | D55: 360.62 | E55: 360.35 | H55: od100rho0.1zeta1.4_R201 | I55: 360.42 | J55: 360.35 | K55: 360.62 | L55: 360.35
A56: od100rho0.1zeta1.4_RC101.txt | B56: 511.55 | C56: 507.49 | D56: 572.36 | E56: 510.92 | H56: od100rho0.1zeta1.4_RC101 | I56: 511.55 | J56: 507.49 | K56: 572.36 | L56: 510.92
A57: od100rho0.1zeta1.4_RC201.txt | B57: 445.05 | C57: 445.05 | D57: 470.82 | E57: 445.05 | H57: od100rho0.1zeta1.4_RC201 | I57: 445.05 | J57: 445.05 | K57: 470.82 | L57: 445.05
A58: od100rho0.1zeta1.5_C101.txt | B58: 397.89 | C58: 349.00 | D58: 423.84 | E58: 406.32 | H58: od100rho0.1zeta1.5_C101 | I58: 397.89 | J58: 349.00 | K58: 423.84 | L58: 406.32
A59: od100rho0.1zeta1.5_C201.txt | B59: 381.99 | C59: 381.96 | D59: 394.51 | E59: 381.96 | H59: od100rho0.1zeta1.5_C201 | I59: 381.99 | J59: 381.96 | K59: 394.51 | L59: 381.96
A60: od100rho0.1zeta1.5_R101.txt | B60: 326.22 | C60: 309.78 | D60: 337.35 | E60: 309.78 | H60: od100rho0.1zeta1.5_R101 | I60: 326.22 | J60: 309.78 | K60: 337.35 | L60: 309.78
A61: od100rho0.1zeta1.5_R201.txt | B61: 323.20 | C61: 309.78 | D61: 339.86 | E61: 309.78 | H61: od100rho0.1zeta1.5_R201 | I61: 323.20 | J61: 309.78 | K61: 339.86 | L61: 309.78
A62: od100rho0.1zeta1.5_RC101.txt | B62: 486.98 | C62: 462.60 | D62: 525.20 | E62: 475.96 | H62: od100rho0.1zeta1.5_RC101 | I62: 486.98 | J62: 462.60 | K62: 525.20 | L62: 475.96
A63: od100rho0.1zeta1.5_RC201.txt | B63: 445.94 | C63: 445.05 | D63: 469.92 | E63: 445.05 | H63: od100rho0.1zeta1.5_RC201 | I63: 445.94 | J63: 445.05 | K63: 469.92 | L63: 445.05
A64: od100rho0.2zeta1.1_C101.txt | B64: 705.08 | C64: 678.67 | D64: 726.95 | E64: 694.04 | H64: od100rho0.2zeta1.1_C101 | I64: 705.08 | J64: 678.67 | K64: 726.95 | L64: 694.04
A65: od100rho0.2zeta1.1_C201.txt | B65: 573.43 | C65: 566.82 | D65: 575.65 | E65: 566.82 | H65: od100rho0.2zeta1.1_C201 | I65: 573.43 | J65: 566.82 | K65: 575.65 | L65: 566.82
A66: od100rho0.2zeta1.1_R101.txt | B66: 650.54 | C66: 645.42 | D66: 656.34 | E66: 647.80 | H66: od100rho0.2zeta1.1_R101 | I66: 650.54 | J66: 645.42 | K66: 656.34 | L66: 647.80
A67: od100rho0.2zeta1.1_R201.txt | B67: 557.21 | C67: 555.44 | D67: 555.88 | E67: 555.44 | H67: od100rho0.2zeta1.1_R201 | I67: 557.21 | J67: 555.44 | K67: 555.88 | L67: 555.44
A68: od100rho0.2zeta1.1_RC101.txt | B68: 812.54 | C68: 799.82 | D68: 819.47 | E68: 800.45 | H68: od100rho0.2zeta1.1_RC101 | I68: 812.54 | J68: 799.82 | K68: 819.47 | L68: 800.45
A69: od100rho0.2zeta1.1_RC201.txt | B69: 598.39 | C69: 592.08 | D69: 592.31 | E69: 592.08 | H69: od100rho0.2zeta1.1_RC201 | I69: 598.39 | J69: 592.08 | K69: 592.31 | L69: 592.08
A70: od100rho0.2zeta1.2_C101.txt | B70: 666.36 | C70: 629.94 | D70: 696.86 | E70: 671.80 | H70: od100rho0.2zeta1.2_C101 | I70: 666.36 | J70: 629.94 | K70: 696.86 | L70: 671.80
A71: od100rho0.2zeta1.2_C201.txt | B71: 568.18 | C71: 560.63 | D71: 566.53 | E71: 560.63 | H71: od100rho0.2zeta1.2_C201 | I71: 568.18 | J71: 560.63 | K71: 566.53 | L71: 560.63
A72: od100rho0.2zeta1.2_R101.txt | B72: 630.21 | C72: 622.49 | D72: 639.21 | E72: 622.86 | H72: od100rho0.2zeta1.2_R101 | I72: 630.21 | J72: 622.49 | K72: 639.21 | L72: 622.86
A73: od100rho0.2zeta1.2_R201.txt | B73: 556.16 | C73: 551.64 | D73: 551.65 | E73: 551.64 | H73: od100rho0.2zeta1.2_R201 | I73: 556.16 | J73: 551.64 | K73: 551.65 | L73: 551.64
A74: od100rho0.2zeta1.2_RC101.txt | B74: 778.60 | C74: 756.05 | D74: 787.30 | E74: 759.52 | H74: od100rho0.2zeta1.2_RC101 | I74: 778.60 | J74: 756.05 | K74: 787.30 | L74: 759.52
A75: od100rho0.2zeta1.2_RC201.txt | B75: 583.49 | C75: 576.42 | D75: 576.59 | E75: 576.42 | H75: od100rho0.2zeta1.2_RC201 | I75: 583.49 | J75: 576.42 | K75: 576.59 | L75: 576.42
A76: od100rho0.2zeta1.3_C101.txt | B76: 635.31 | C76: 601.30 | D76: 673.71 | E76: 643.17 | H76: od100rho0.2zeta1.3_C101 | I76: 635.31 | J76: 601.30 | K76: 673.71 | L76: 643.17
A77: od100rho0.2zeta1.3_C201.txt | B77: 568.18 | C77: 560.63 | D77: 565.30 | E77: 560.63 | H77: od100rho0.2zeta1.3_C201 | I77: 568.18 | J77: 560.63 | K77: 565.30 | L77: 560.63
A78: od100rho0.2zeta1.3_R101.txt | B78: 566.54 | C78: 565.28 | D78: 586.89 | E78: 565.28 | H78: od100rho0.2zeta1.3_R101 | I78: 566.54 | J78: 565.28 | K78: 586.89 | L78: 565.28
A79: od100rho0.2zeta1.3_R201.txt | B79: 534.01 | C79: 533.05 | D79: 536.19 | E79: 533.05 | H79: od100rho0.2zeta1.3_R201 | I79: 534.01 | J79: 533.05 | K79: 536.19 | L79: 533.05
A80: od100rho0.2zeta1.3_RC101.txt | B80: 763.55 | C80: 745.81 | D80: 777.31 | E80: 755.97 | H80: od100rho0.2zeta1.3_RC101 | I80: 763.55 | J80: 745.81 | K80: 777.31 | L80: 755.97
A81: od100rho0.2zeta1.3_RC201.txt | B81: 583.19 | C81: 576.42 | D81: 576.46 | E81: 576.42 | H81: od100rho0.2zeta1.3_RC201 | I81: 583.19 | J81: 576.42 | K81: 576.46 | L81: 576.42
A82: od100rho0.2zeta1.4_C101.txt | B82: 623.89 | C82: 601.30 | D82: 655.05 | E82: 621.03 | H82: od100rho0.2zeta1.4_C101 | I82: 623.89 | J82: 601.30 | K82: 655.05 | L82: 621.03
A83: od100rho0.2zeta1.4_C201.txt | B83: 565.87 | C83: 560.63 | D83: 566.63 | E83: 560.63 | H83: od100rho0.2zeta1.4_C201 | I83: 565.87 | J83: 560.63 | K83: 566.63 | L83: 560.63
A84: od100rho0.2zeta1.4_R101.txt | B84: 550.31 | C84: 549.57 | D84: 559.91 | E84: 549.57 | H84: od100rho0.2zeta1.4_R101 | I84: 550.31 | J84: 549.57 | K84: 559.91 | L84: 549.57
A85: od100rho0.2zeta1.4_R201.txt | B85: 519.62 | C85: 519.55 | D85: 523.31 | E85: 519.55 | H85: od100rho0.2zeta1.4_R201 | I85: 519.62 | J85: 519.55 | K85: 523.31 | L85: 519.55
A86: od100rho0.2zeta1.4_RC101.txt | B86: 744.97 | C86: 732.78 | D86: 756.79 | E86: 740.47 | H86: od100rho0.2zeta1.4_RC101 | I86: 744.97 | J86: 732.78 | K86: 756.79 | L86: 740.47
A87: od100rho0.2zeta1.4_RC201.txt | B87: 581.92 | C87: 570.40 | D87: 570.41 | E87: 570.40 | H87: od100rho0.2zeta1.4_RC201 | I87: 581.92 | J87: 570.40 | K87: 570.41 | L87: 570.40
A88: od100rho0.2zeta1.5_C101.txt | B88: 621.74 | C88: 620.83 | D88: 645.87 | E88: 621.03 | H88: od100rho0.2zeta1.5_C101 | I88: 621.74 | J88: 620.83 | K88: 645.87 | L88: 621.03
A89: od100rho0.2zeta1.5_C201.txt | B89: 568.51 | C89: 560.63 | D89: 575.46 | E89: 560.63 | H89: od100rho0.2zeta1.5_C201 | I89: 568.51 | J89: 560.63 | K89: 575.46 | L89: 560.63
A90: od100rho0.2zeta1.5_R101.txt | B90: 536.70 | C90: 536.70 | D90: 545.36 | E90: 536.70 | H90: od100rho0.2zeta1.5_R101 | I90: 536.70 | J90: 536.70 | K90: 545.36 | L90: 536.70
A91: od100rho0.2zeta1.5_R201.txt | B91: 516.60 | C91: 515.43 | D91: 516.08 | E91: 515.43 | H91: od100rho0.2zeta1.5_R201 | I91: 516.60 | J91: 515.43 | K91: 516.08 | L91: 515.43
A92: od100rho0.2zeta1.5_RC101.txt | B92: 739.32 | C92: 721.75 | D92: 753.61 | E92: 742.94 | H92: od100rho0.2zeta1.5_RC101 | I92: 739.32 | J92: 721.75 | K92: 753.61 | L92: 742.94
A93: od100rho0.2zeta1.5_RC201.txt | B93: 581.84 | C93: 570.40 | D93: 570.62 | E93: 570.40 | H93: od100rho0.2zeta1.5_RC201 | I93: 581.84 | J93: 570.40 | K93: 570.62 | L93: 570.40
A94: od100rho1.2zeta1.1_C101.txt | B94: 409.26 | C94: 401.26 | D94: 431.80 | E94: 407.76 | H94: od100rho1.2zeta1.1_C101 | I94: 409.26 | J94: 401.26 | K94: 431.80 | L94: 407.76
A95: od100rho1.2zeta1.1_C201.txt | B95: 425.11 | C95: 421.65 | D95: 442.66 | E95: 421.65 | H95: od100rho1.2zeta1.1_C201 | I95: 425.11 | J95: 421.65 | K95: 442.66 | L95: 421.65
A96: od100rho1.2zeta1.1_R101.txt | B96: 457.93 | C96: 441.46 | D96: 465.63 | E96: 445.71 | H96: od100rho1.2zeta1.1_R101 | I96: 457.93 | J96: 441.46 | K96: 465.63 | L96: 445.71
A97: od100rho1.2zeta1.1_R201.txt | B97: 390.06 | C97: 389.27 | D97: 392.33 | E97: 389.27 | H97: od100rho1.2zeta1.1_R201 | I97: 390.06 | J97: 389.27 | K97: 392.33 | L97: 389.27
A98: od100rho1.2zeta1.1_RC101.txt | B98: 643.00 | C98: 615.47 | D98: 651.32 | E98: 616.10 | H98: od100rho1.2zeta1.1_RC101 | I98: 643.00 | J98: 615.47 | K98: 651.32 | L98: 616.10
A99: od100rho1.2zeta1.1_RC201.txt | B99: 434.89 | C99: 434.89 | D99: 436.17 | E99: 434.89 | H99: od100rho1.2zeta1.1_RC201 | I99: 434.89 | J99: 434.89 | K99: 436.17 | L99: 434.89
A100: od100rho1.2zeta1.2_C101.txt | B100: 359.11 | C100: 354.90 | D100: 384.02 | E100: 361.95 | H100: od100rho1.2zeta1.2_C101 | I100: 359.11 | J100: 354.90 | K100: 384.02 | L100: 361.95
A101: od100rho1.2zeta1.2_C201.txt | B101: 426.13 | C101: 419.66 | D101: 426.59 | E101: 421.36 | H101: od100rho1.2zeta1.2_C201 | I101: 426.13 | J101: 419.66 | K101: 426.59 | L101: 421.36
A102: od100rho1.2zeta1.2_R101.txt | B102: 440.52 | C102: 430.60 | D102: 448.78 | E102: 433.75 | H102: od100rho1.2zeta1.2_R101 | I102: 440.52 | J102: 430.60 | K102: 448.78 | L102: 433.75
A103: od100rho1.2zeta1.2_R201.txt | B103: 382.47 | C103: 381.82 | D103: 383.24 | E103: 381.82 | H103: od100rho1.2zeta1.2_R201 | I103: 382.47 | J103: 381.82 | K103: 383.24 | L103: 381.82
A104: od100rho1.2zeta1.2_RC101.txt | B104: 608.72 | C104: 582.08 | D104: 621.46 | E104: 589.76 | H104: od100rho1.2zeta1.2_RC101 | I104: 608.72 | J104: 582.08 | K104: 621.46 | L104: 589.76
A105: od100rho1.2zeta1.2_RC201.txt | B105: 437.71 | C105: 434.48 | D105: 435.23 | E105: 434.48 | H105: od100rho1.2zeta1.2_RC201 | I105: 437.71 | J105: 434.48 | K105: 435.23 | L105: 434.48
A106: od100rho1.2zeta1.3_C101.txt | B106: 301.28 | C106: 295.81 | D106: 341.48 | E106: 311.71 | H106: od100rho1.2zeta1.3_C101 | I106: 301.28 | J106: 295.81 | K106: 341.48 | L106: 311.71
A107: od100rho1.2zeta1.3_C201.txt | B107: 400.03 | C107: 394.65 | D107: 427.47 | E107: 402.82 | H107: od100rho1.2zeta1.3_C201 | I107: 400.03 | J107: 394.65 | K107: 427.47 | L107: 402.82
A108: od100rho1.2zeta1.3_R101.txt | B108: 388.72 | C108: 385.95 | D108: 398.42 | E108: 387.16 | H108: od100rho1.2zeta1.3_R101 | I108: 388.72 | J108: 385.95 | K108: 398.42 | L108: 387.16
A109: od100rho1.2zeta1.3_R201.txt | B109: 357.84 | C109: 357.22 | D109: 360.97 | E109: 357.46 | H109: od100rho1.2zeta1.3_R201 | I109: 357.84 | J109: 357.22 | K109: 360.97 | L109: 357.46
A110: od100rho1.2zeta1.3_RC101.txt | B110: 599.86 | C110: 579.55 | D110: 616.26 | E110: 592.91 | H110: od100rho1.2zeta1.3_RC101 | I110: 599.86 | J110: 579.55 | K110: 616.26 | L110: 592.91
A111: od100rho1.2zeta1.3_RC201.txt | B111: 434.66 | C111: 434.48 | D111: 435.16 | E111: 434.48 | H111: od100rho1.2zeta1.3_RC201 | I111: 434.66 | J111: 434.48 | K111: 435.16 | L111: 434.48
A112: od100rho1.2zeta1.4_C101.txt | B112: 305.31 | C112: 296.92 | D112: 355.78 | E112: 314.60 | H112: od100rho1.2zeta1.4_C101 | I112: 305.31 | J112: 296.92 | K112: 355.78 | L112: 314.60
A113: od100rho1.2zeta1.4_C201.txt | B113: 405.21 | C113: 394.65 | D113: 419.19 | E113: 398.92 | H113: od100rho1.2zeta1.4_C201 | I113: 405.21 | J113: 394.65 | K113: 419.19 | L113: 398.92
A114: od100rho1.2zeta1.4_R101.txt | B114: 394.85 | C114: 386.36 | D114: 397.01 | E114: 388.73 | H114: od100rho1.2zeta1.4_R101 | I114: 394.85 | J114: 386.36 | K114: 397.01 | L114: 388.73
A115: od100rho1.2zeta1.4_R201.txt | B115: 356.83 | C115: 356.32 | D115: 358.07 | E115: 356.56 | H115: od100rho1.2zeta1.4_R201 | I115: 356.83 | J115: 356.32 | K115: 358.07 | L115: 356.56
A116: od100rho1.2zeta1.4_RC101.txt | B116: 594.00 | C116: 569.58 | D116: 619.34 | E116: 593.16 | H116: od100rho1.2zeta1.4_RC101 | I116: 594.00 | J116: 569.58 | K116: 619.34 | L116: 593.16
A117: od100rho1.2zeta1.4_RC201.txt | B117: 437.29 | C117: 434.48 | D117: 435.12 | E117: 434.48 | H117: od100rho1.2zeta1.4_RC201 | I117: 437.29 | J117: 434.48 | K117: 435.12 | L117: 434.48
A118: od100rho1.2zeta1.5_C101.txt | B118: 299.39 | C118: 295.72 | D118: 362.23 | E118: 320.16 | H118: od100rho1.2zeta1.5_C101 | I118: 299.39 | J118: 295.72 | K118: 362.23 | L118: 320.16
A119: od100rho1.2zeta1.5_C201.txt | B119: 404.57 | C119: 394.65 | D119: 422.55 | E119: 398.84 | H119: od100rho1.2zeta1.5_C201 | I119: 404.57 | J119: 394.65 | K119: 422.55 | L119: 398.84
A120: od100rho1.2zeta1.5_R101.txt | B120: 390.62 | C120: 385.08 | D120: 399.47 | E120: 387.57 | H120: od100rho1.2zeta1.5_R101 | I120: 390.62 | J120: 385.08 | K120: 399.47 | L120: 387.57
A121: od100rho1.2zeta1.5_R201.txt | B121: 356.81 | C121: 356.32 | D121: 358.15 | E121: 356.37 | H121: od100rho1.2zeta1.5_R201 | I121: 356.81 | J121: 356.32 | K121: 358.15 | L121: 356.37
A122: od100rho1.2zeta1.5_RC101.txt | B122: 589.80 | C122: 571.96 | D122: 624.64 | E122: 589.72 | H122: od100rho1.2zeta1.5_RC101 | I122: 589.80 | J122: 571.96 | K122: 624.64 | L122: 589.72
A123: od100rho1.2zeta1.5_RC201.txt | B123: 437.46 | C123: 434.48 | D123: 434.87 | E123: 434.48 | H123: od100rho1.2zeta1.5_RC201 | I123: 437.46 | J123: 434.48 | K123: 434.87 | L123: 434.48
A124: od100rho1.4zeta1.1_C101.txt | B124: 419.46 | C124: 412.46 | D124: 431.02 | E124: 416.51 | H124: od100rho1.4zeta1.1_C101 | I124: 419.46 | J124: 412.46 | K124: 431.02 | L124: 416.51
A125: od100rho1.4zeta1.1_C201.txt | B125: 433.46 | C125: 426.62 | D125: 446.06 | E125: 427.01 | H125: od100rho1.4zeta1.1_C201 | I125: 433.46 | J125: 426.62 | K125: 446.06 | L125: 427.01
A126: od100rho1.4zeta1.1_R101.txt | B126: 465.42 | C126: 444.14 | D126: 474.22 | E126: 453.85 | H126: od100rho1.4zeta1.1_R101 | I126: 465.42 | J126: 444.14 | K126: 474.22 | L126: 453.85
A127: od100rho1.4zeta1.1_R201.txt | B127: 394.66 | C127: 393.05 | D127: 394.63 | E127: 393.37 | H127: od100rho1.4zeta1.1_R201 | I127: 394.66 | J127: 393.05 | K127: 394.63 | L127: 393.37
A128: od100rho1.4zeta1.1_RC101.txt | B128: 645.05 | C128: 620.73 | D128: 650.88 | E128: 623.82 | H128: od100rho1.4zeta1.1_RC101 | I128: 645.05 | J128: 620.73 | K128: 650.88 | L128: 623.82
A129: od100rho1.4zeta1.1_RC201.txt | B129: 440.06 | C129: 437.41 | D129: 438.18 | E129: 437.41 | H129: od100rho1.4zeta1.1_RC201 | I129: 440.06 | J129: 437.41 | K129: 438.18 | L129: 437.41
A130: od100rho1.4zeta1.2_C101.txt | B130: 380.88 | C130: 371.94 | D130: 409.96 | E130: 393.84 | H130: od100rho1.4zeta1.2_C101 | I130: 380.88 | J130: 371.94 | K130: 409.96 | L130: 393.84
A131: od100rho1.4zeta1.2_C201.txt | B131: 426.59 | C131: 425.05 | D131: 445.22 | E131: 428.78 | H131: od100rho1.4zeta1.2_C201 | I131: 426.59 | J131: 425.05 | K131: 445.22 | L131: 428.78
A132: od100rho1.4zeta1.2_R101.txt | B132: 445.64 | C132: 437.66 | D132: 461.93 | E132: 446.57 | H132: od100rho1.4zeta1.2_R101 | I132: 445.64 | J132: 437.66 | K132: 461.93 | L132: 446.57
A133: od100rho1.4zeta1.2_R201.txt | B133: 389.43 | C133: 387.11 | D133: 388.59 | E133: 387.11 | H133: od100rho1.4zeta1.2_R201 | I133: 389.43 | J133: 387.11 | K133: 388.59 | L133: 387.11
A134: od100rho1.4zeta1.2_RC101.txt | B134: 622.02 | C134: 591.57 | D134: 638.33 | E134: 598.36 | H134: od100rho1.4zeta1.2_RC101 | I134: 622.02 | J134: 591.57 | K134: 638.33 | L134: 598.36
A135: od100rho1.4zeta1.2_RC201.txt | B135: 442.04 | C135: 437.41 | D135: 437.85 | E135: 437.41 | H135: od100rho1.4zeta1.2_RC201 | I135: 442.04 | J135: 437.41 | K135: 437.85 | L135: 437.41
A136: od100rho1.4zeta1.3_C101.txt | B136: 330.85 | C136: 321.40 | D136: 382.78 | E136: 356.16 | H136: od100rho1.4zeta1.3_C101 | I136: 330.85 | J136: 321.40 | K136: 382.78 | L136: 356.16
A137: od100rho1.4zeta1.3_C201.txt | B137: 418.51 | C137: 406.67 | D137: 433.94 | E137: 425.19 | H137: od100rho1.4zeta1.3_C201 | I137: 418.51 | J137: 406.67 | K137: 433.94 | L137: 425.19
A138: od100rho1.4zeta1.3_R101.txt | B138: 406.71 | C138: 402.60 | D138: 420.37 | E138: 407.30 | H138: od100rho1.4zeta1.3_R101 | I138: 406.71 | J138: 402.60 | K138: 420.37 | L138: 407.30
A139: od100rho1.4zeta1.3_R201.txt | B139: 369.20 | C139: 368.69 | D139: 372.61 | E139: 369.08 | H139: od100rho1.4zeta1.3_R201 | I139: 369.20 | J139: 368.69 | K139: 372.61 | L139: 369.08
A140: od100rho1.4zeta1.3_RC101.txt | B140: 604.21 | C140: 593.33 | D140: 631.02 | E140: 599.90 | H140: od100rho1.4zeta1.3_RC101 | I140: 604.21 | J140: 593.33 | K140: 631.02 | L140: 599.90
A141: od100rho1.4zeta1.3_RC201.txt | B141: 441.76 | C141: 437.41 | D141: 439.56 | E141: 437.41 | H141: od100rho1.4zeta1.3_RC201 | I141: 441.76 | J141: 437.41 | K141: 439.56 | L141: 437.41
A142: od100rho1.4zeta1.4_C101.txt | B142: 326.04 | C142: 321.57 | D142: 378.11 | E142: 355.84 | H142: od100rho1.4zeta1.4_C101 | I142: 326.04 | J142: 321.57 | K142: 378.11 | L142: 355.84
A143: od100rho1.4zeta1.4_C201.txt | B143: 418.16 | C143: 406.67 | D143: 433.99 | E143: 423.03 | H143: od100rho1.4zeta1.4_C201 | I143: 418.16 | J143: 406.67 | K143: 433.99 | L143: 423.03
A144: od100rho1.4zeta1.4_R101.txt | B144: 405.90 | C144: 401.55 | D144: 421.53 | E144: 403.81 | H144: od100rho1.4zeta1.4_R101 | I144: 405.90 | J144: 401.55 | K144: 421.53 | L144: 403.81
A145: od100rho1.4zeta1.4_R201.txt | B145: 368.57 | C145: 367.65 | D145: 371.59 | E145: 367.91 | H145: od100rho1.4zeta1.4_R201 | I145: 368.57 | J145: 367.65 | K145: 371.59 | L145: 367.91
A146: od100rho1.4zeta1.4_RC101.txt | B146: 611.60 | C146: 597.35 | D146: 622.49 | E146: 599.73 | H146: od100rho1.4zeta1.4_RC101 | I146: 611.60 | J146: 597.35 | K146: 622.49 | L146: 599.73
A147: od100rho1.4zeta1.4_RC201.txt | B147: 440.38 | C147: 437.41 | D147: 438.69 | E147: 437.41 | H147: od100rho1.4zeta1.4_RC201 | I147: 440.38 | J147: 437.41 | K147: 438.69 | L147: 437.41
A148: od100rho1.4zeta1.5_C101.txt | B148: 328.00 | C148: 321.40 | D148: 385.54 | E148: 356.91 | H148: od100rho1.4zeta1.5_C101 | I148: 328.00 | J148: 321.40 | K148: 385.54 | L148: 356.91
A149: od100rho1.4zeta1.5_C201.txt | B149: 418.47 | C149: 406.67 | D149: 434.24 | E149: 413.30 | H149: od100rho1.4zeta1.5_C201 | I149: 418.47 | J149: 406.67 | K149: 434.24 | L149: 413.30
A150: od100rho1.4zeta1.5_R101.txt | B150: 408.71 | C150: 401.55 | D150: 421.66 | E150: 407.13 | H150: od100rho1.4zeta1.5_R101 | I150: 408.71 | J150: 401.55 | K150: 421.66 | L150: 407.13
A151: od100rho1.4zeta1.5_R201.txt | B151: 368.27 | C151: 367.65 | D151: 370.36 | E151: 367.65 | H151: od100rho1.4zeta1.5_R201 | I151: 368.27 | J151: 367.65 | K151: 370.36 | L151: 367.65
A152: od100rho1.4zeta1.5_RC101.txt | B152: 608.07 | C152: 597.35 | D152: 635.03 | E152: 599.73 | H152: od100rho1.4zeta1.5_RC101 | I152: 608.07 | J152: 597.35 | K152: 635.03 | L152: 599.73
A153: od100rho1.4zeta1.5_RC201.txt | B153: 440.13 | C153: 437.41 | D153: 438.63 | E153: 437.41 | H153: od100rho1.4zeta1.5_RC201 | I153: 440.13 | J153: 437.41 | K153: 438.63 | L153: 437.41
A154: od100rho1.6zeta1.1_C101.txt | B154: 424.31 | C154: 423.54 | D154: 445.97 | E154: 424.25 | H154: od100rho1.6zeta1.1_C101 | I154: 424.31 | J154: 423.54 | K154: 445.97 | L154: 424.25
A155: od100rho1.6zeta1.1_C201.txt | B155: 439.55 | C155: 431.72 | D155: 454.44 | E155: 432.81 | H155: od100rho1.6zeta1.1_C201 | I155: 439.55 | J155: 431.72 | K155: 454.44 | L155: 432.81
A156: od100rho1.6zeta1.1_R101.txt | B156: 466.90 | C156: 451.39 | D156: 479.50 | E156: 463.67 | H156: od100rho1.6zeta1.1_R101 | I156: 466.90 | J156: 451.39 | K156: 479.50 | L156: 463.67
A157: od100rho1.6zeta1.1_R201.txt | B157: 398.44 | C157: 397.07 | D157: 398.81 | E157: 397.51 | H157: od100rho1.6zeta1.1_R201 | I157: 398.44 | J157: 397.07 | K157: 398.81 | L157: 397.51
A158: od100rho1.6zeta1.1_RC101.txt | B158: 648.97 | C158: 626.12 | D158: 663.11 | E158: 633.27 | H158: od100rho1.6zeta1.1_RC101 | I158: 648.97 | J158: 626.12 | K158: 663.11 | L158: 633.27
A159: od100rho1.6zeta1.1_RC201.txt | B159: 442.04 | C159: 439.93 | D159: 440.69 | E159: 439.93 | H159: od100rho1.6zeta1.1_RC201 | I159: 442.04 | J159: 439.93 | K159: 440.69 | L159: 439.93
A160: od100rho1.6zeta1.2_C101.txt | B160: 402.68 | C160: 394.60 | D160: 413.63 | E160: 403.58 | H160: od100rho1.6zeta1.2_C101 | I160: 402.68 | J160: 394.60 | K160: 413.63 | L160: 403.58
A161: od100rho1.6zeta1.2_C201.txt | B161: 437.47 | C161: 430.09 | D161: 445.90 | E161: 432.62 | H161: od100rho1.6zeta1.2_C201 | I161: 437.47 | J161: 430.09 | K161: 445.90 | L161: 432.62
A162: od100rho1.6zeta1.2_R101.txt | B162: 455.13 | C162: 443.58 | D162: 468.71 | E162: 448.83 | H162: od100rho1.6zeta1.2_R101 | I162: 455.13 | J162: 443.58 | K162: 468.71 | L162: 448.83
A163: od100rho1.6zeta1.2_R201.txt | B163: 392.96 | C163: 392.70 | D163: 394.26 | E163: 392.70 | H163: od100rho1.6zeta1.2_R201 | I163: 392.96 | J163: 392.70 | K163: 394.26 | L163: 392.70
A164: od100rho1.6zeta1.2_RC101.txt | B164: 630.40 | C164: 604.81 | D164: 641.05 | E164: 611.58 | H164: od100rho1.6zeta1.2_RC101 | I164: 630.40 | J164: 604.81 | K164: 641.05 | L164: 611.58
A165: od100rho1.6zeta1.2_RC201.txt | B165: 441.42 | C165: 439.93 | D165: 440.90 | E165: 439.93 | H165: od100rho1.6zeta1.2_RC201 | I165: 441.42 | J165: 439.93 | K165: 440.90 | L165: 439.93
A166: od100rho1.6zeta1.3_C101.txt | B166: 371.45 | C166: 364.25 | D166: 416.33 | E166: 371.42 | H166: od100rho1.6zeta1.3_C101 | I166: 371.45 | J166: 364.25 | K166: 416.33 | L166: 371.42
A167: od100rho1.6zeta1.3_C201.txt | B167: 436.61 | C167: 418.73 | D167: 444.29 | E167: 432.48 | H167: od100rho1.6zeta1.3_C201 | I167: 436.61 | J167: 418.73 | K167: 444.29 | L167: 432.48
A168: od100rho1.6zeta1.3_R101.txt | B168: 428.43 | C168: 421.12 | D168: 451.00 | E168: 424.45 | H168: od100rho1.6zeta1.3_R101 | I168: 428.43 | J168: 421.12 | K168: 451.00 | L168: 424.45
A169: od100rho1.6zeta1.3_R201.txt | B169: 379.22 | C169: 378.36 | D169: 385.01 | E169: 378.36 | H169: od100rho1.6zeta1.3_R201 | I169: 379.22 | J169: 378.36 | K169: 385.01 | L169: 378.36
A170: od100rho1.6zeta1.3_RC101.txt | B170: 621.96 | C170: 602.03 | D170: 644.76 | E170: 607.08 | H170: od100rho1.6zeta1.3_RC101 | I170: 621.96 | J170: 602.03 | K170: 644.76 | L170: 607.08
A171: od100rho1.6zeta1.3_RC201.txt | B171: 446.08 | C171: 439.93 | D171: 441.64 | E171: 439.93 | H171: od100rho1.6zeta1.3_RC201 | I171: 446.08 | J171: 439.93 | K171: 441.64 | L171: 439.93
A172: od100rho1.6zeta1.4_C101.txt | B172: 369.18 | C172: 354.75 | D172: 414.08 | E172: 387.96 | H172: od100rho1.6zeta1.4_C101 | I172: 369.18 | J172: 354.75 | K172: 414.08 | L172: 387.96
A173: od100rho1.6zeta1.4_C201.txt | B173: 442.64 | C173: 419.57 | D173: 442.47 | E173: 433.85 | H173: od100rho1.6zeta1.4_C201 | I173: 442.64 | J173: 419.57 | K173: 442.47 | L173: 433.85
A174: od100rho1.6zeta1.4_R101.txt | B174: 425.22 | C174: 418.16 | D174: 438.71 | E174: 420.45 | H174: od100rho1.6zeta1.4_R101 | I174: 425.22 | J174: 418.16 | K174: 438.71 | L174: 420.45
A175: od100rho1.6zeta1.4_R201.txt | B175: 377.90 | C175: 377.16 | D175: 380.80 | E175: 377.27 | H175: od100rho1.6zeta1.4_R201 | I175: 377.90 | J175: 377.16 | K175: 380.80 | L175: 377.27
A176: od100rho1.6zeta1.4_RC101.txt | B176: 624.29 | C176: 605.10 | D176: 638.99 | E176: 611.08 | H176: od100rho1.6zeta1.4_RC101 | I176: 624.29 | J176: 605.10 | K176: 638.99 | L176: 611.08
A177: od100rho1.6zeta1.4_RC201.txt | B177: 440.15 | C177: 439.93 | D177: 441.63 | E177: 439.93 | H177: od100rho1.6zeta1.4_RC201 | I177: 440.15 | J177: 439.93 | K177: 441.63 | L177: 439.93
A178: od100rho1.6zeta1.5_C101.txt | B178: 368.96 | C178: 352.15 | D178: 418.55 | E178: 376.32 | H178: od100rho1.6zeta1.5_C101 | I178: 368.96 | J178: 352.15 | K178: 418.55 | L178: 376.32
A179: od100rho1.6zeta1.5_C201.txt | B179: 441.73 | C179: 419.93 | D179: 439.99 | E179: 430.73 | H179: od100rho1.6zeta1.5_C201 | I179: 441.73 | J179: 419.93 | K179: 439.99 | L179: 430.73
A180: od100rho1.6zeta1.5_R101.txt | B180: 427.28 | C180: 419.15 | D180: 437.28 | E180: 422.25 | H180: od100rho1.6zeta1.5_R101 | I180: 427.28 | J180: 419.15 | K180: 437.28 | L180: 422.25
A181: od100rho1.6zeta1.5_R201.txt | B181: 378.00 | C181: 377.16 | D181: 383.01 | E181: 377.34 | H181: od100rho1.6zeta1.5_R201 | I181: 378.00 | J181: 377.16 | K181: 383.01 | L181: 377.34
A182: od100rho1.6zeta1.5_RC101.txt | B182: 628.31 | C182: 605.10 | D182: 656.88 | E182: 617.67 | H182: od100rho1.6zeta1.5_RC101 | I182: 628.31 | J182: 605.10 | K182: 656.88 | L182: 617.67
A183: od100rho1.6zeta1.5_RC201.txt | B183: 441.81 | C183: 439.93 | D183: 441.07 | E183: 439.93 | H183: od100rho1.6zeta1.5_RC201 | I183: 441.81 | J183: 439.93 | K183: 441.07 | L183: 439.93
A184: od13rho0.2zeta1.1_C101.txt | B184: 166.73 | C184: 166.67 | D184: 167.83 | E184: 166.67 | H184: od13rho0.2zeta1.1_C101 | I184: 166.73 | J184: 166.67 | K184: 167.83 | L184: 166.67
A185: od13rho0.2zeta1.1_C201.txt | B185: 171.41 | C185: 171.41 | D185: 171.41 | E185: 171.41 | H185: od13rho0.2zeta1.1_C201 | I185: 171.41 | J185: 171.41 | K185: 171.41 | L185: 171.41
A186: od13rho0.2zeta1.1_R101.txt | B186: 312.66 | C186: 312.66 | D186: 312.92 | E186: 312.66 | H186: od13rho0.2zeta1.1_R101 | I186: 312.66 | J186: 312.66 | K186: 312.92 | L186: 312.66
A187: od13rho0.2zeta1.1_R201.txt | B187: 282.44 | C187: 282.44 | D187: 282.44 | E187: 282.44 | H187: od13rho0.2zeta1.1_R201 | I187: 282.44 | J187: 282.44 | K187: 282.44 | L187: 282.44
A188: od13rho0.2zeta1.1_RC101.txt | B188: 299.40 | C188: 294.99 | D188: 302.38 | E188: 294.99 | H188: od13rho0.2zeta1.1_RC101 | I188: 299.40 | J188: 294.99 | K188: 302.38 | L188: 294.99
A189: od13rho0.2zeta1.1_RC201.txt | B189: 226.11 | C189: 226.11 | D189: 226.11 | E189: 226.11 | H189: od13rho0.2zeta1.1_RC201 | I189: 226.11 | J189: 226.11 | K189: 226.11 | L189: 226.11
A190: od13rho0.2zeta1.2_C101.txt | B190: 165.70 | C190: 165.70 | D190: 165.92 | E190: 165.70 | H190: od13rho0.2zeta1.2_C101 | I190: 165.70 | J190: 165.70 | K190: 165.92 | L190: 165.70
A191: od13rho0.2zeta1.2_C201.txt | B191: 171.41 | C191: 171.41 | D191: 172.37 | E191: 171.41 | H191: od13rho0.2zeta1.2_C201 | I191: 171.41 | J191: 171.41 | K191: 172.37 | L191: 171.41
A192: od13rho0.2zeta1.2_R101.txt | B192: 274.64 | C192: 274.64 | D192: 275.36 | E192: 274.64 | H192: od13rho0.2zeta1.2_R101 | I192: 274.64 | J192: 274.64 | K192: 275.36 | L192: 274.64
A193: od13rho0.2zeta1.2_R201.txt | B193: 274.64 | C193: 274.64 | D193: 275.01 | E193: 274.64 | H193: od13rho0.2zeta1.2_R201 | I193: 274.64 | J193: 274.64 | K193: 275.01 | L193: 274.64
A194: od13rho0.2zeta1.2_RC101.txt | B194: 287.76 | C194: 284.53 | D194: 287.20 | E194: 284.53 | H194: od13rho0.2zeta1.2_RC101 | I194: 287.76 | J194: 284.53 | K194: 287.20 | L194: 284.53
A195: od13rho0.2zeta1.2_RC201.txt | B195: 226.11 | C195: 226.11 | D195: 226.11 | E195: 226.11 | H195: od13rho0.2zeta1.2_RC201 | I195: 226.11 | J195: 226.11 | K195: 226.11 | L195: 226.11
A196: od13rho0.2zeta1.3_C101.txt | B196: 165.42 | C196: 165.42 | D196: 165.67 | E196: 165.42 | H196: od13rho0.2zeta1.3_C101 | I196: 165.42 | J196: 165.42 | K196: 165.67 | L196: 165.42
A197: od13rho0.2zeta1.3_C201.txt | B197: 169.52 | C197: 169.52 | D197: 169.52 | E197: 169.52 | H197: od13rho0.2zeta1.3_C201 | I197: 169.52 | J197: 169.52 | K197: 169.52 | L197: 169.52
A198: od13rho0.2zeta1.3_R101.txt | B198: 268.06 | C198: 268.06 | D198: 269.32 | E198: 268.06 | H198: od13rho0.2zeta1.3_R101 | I198: 268.06 | J198: 268.06 | K198: 269.32 | L198: 268.06
A199: od13rho0.2zeta1.3_R201.txt | B199: 268.06 | C199: 268.06 | D199: 268.57 | E199: 268.06 | H199: od13rho0.2zeta1.3_R201 | I199: 268.06 | J199: 268.06 | K199: 268.57 | L199: 268.06
A200: od13rho0.2zeta1.3_RC101.txt | B200: 296.12 | C200: 284.53 | D200: 288.86 | E200: 284.53 | H200: od13rho0.2zeta1.3_RC101 | I200: 296.12 | J200: 284.53 | K200: 288.86 | L200: 284.53
... 223 more rows

Sheet ProfileVRPOD
A1: SOTA | C1: Auto | G1: Config: solo carpeta de instancias 50 y 100
A2: 0.5 | B2: 17.57% | C2: 0.5 | D2: 22.82%
A3: 1 | B3: 13.86% | C3: 1 | D3: 16.58%
A4: 1.5 | B4: 12.16% | C4: 1.5 | D4: 13.99%
A5: 2 | B5: 11.12% | C5: 2 | D5: 11.99%
A6: 2.5 | B6: 10.39% | C6: 2.5 | D6: 10.91%
A7: 3 | B7: 9.89% | C7: 3 | D7: 10.11%
A8: 3.5 | B8: 9.46% | C8: 3.5 | D8: 9.50%
A9: 4 | B9: 9.14% | C9: 4 | D9: 9.02%
A10: 4.5 | B10: 8.87% | C10: 4.5 | D10: 8.64%
A11: 5 | B11: 8.63% | C11: 5 | D11: 8.32%
A12: 5.5 | B12: 8.41% | C12: 5.5 | D12: 8.07%
A13: 6 | B13: 8.23% | C13: 6 | D13: 7.85%
A14: 6.5 | B14: 8.08% | C14: 6.5 | D14: 7.62%
A15: 7 | B15: 7.93% | C15: 7 | D15: 7.44%
A16: 7.5 | B16: 7.80% | C16: 7.5 | D16: 7.28%
A17: 8 | B17: 7.68% | C17: 8 | D17: 7.13% | F17: s
A18: 8.5 | B18: 7.54% | C18: 8.5 | D18: 7.01%
A19: 9 | B19: 7.43% | C19: 9 | D19: 6.88%
A20: 9.5 | B20: 7.32% | C20: 9.5 | D20: 6.75%
A21: 10 | B21: 7.23% | C21: 10 | D21: 6.63%
A22: 10.5 | B22: 7.13% | C22: 10.5 | D22: 6.52%
A23: 11 | B23: 7.03% | C23: 11 | D23: 6.44%
A24: 11.5 | B24: 6.92% | C24: 11.5 | D24: 6.35%
A25: 12 | B25: 6.84% | C25: 12 | D25: 6.25%
A26: 12.5 | B26: 6.76% | C26: 12.5 | D26: 6.16%
A27: 13 | B27: 6.68% | C27: 13 | D27: 6.06%
A28: 13.5 | B28: 6.61% | C28: 13.5 | D28: 5.97%
A29: 14 | B29: 6.54% | C29: 14 | D29: 5.89%
A30: 14.5 | B30: 6.48% | C30: 14.5 | D30: 5.81%
A31: 15 | B31: 6.41% | C31: 15 | D31: 5.73%
A32: 15.5 | B32: 6.35% | C32: 15.5 | D32: 5.65%
A33: 16 | B33: 6.29% | C33: 16 | D33: 5.59%
A34: 16.5 | B34: 6.24% | C34: 16.5 | D34: 5.54%
A35: 17 | B35: 6.19% | C35: 17 | D35: 5.48%
A36: 17.5 | B36: 6.15% | C36: 17.5 | D36: 5.43%
A37: 18 | B37: 6.09% | C37: 18 | D37: 5.36%
A38: 18.5 | B38: 6.05% | C38: 18.5 | D38: 5.31%
A39: 19 | B39: 6.01% | C39: 19 | D39: 5.27%
A40: 19.5 | B40: 5.96% | C40: 19.5 | D40: 5.22%
A41: 20 | B41: 5.92% | C41: 20 | D41: 5.17%
A42: 20.5 | B42: 5.88% | C42: 20.5 | D42: 5.13%
A43: 21 | B43: 5.83% | C43: 21 | D43: 5.09%
A44: 21.5 | B44: 5.80% | C44: 21.5 | D44: 5.04%
A45: 22 | B45: 5.76% | C45: 22 | D45: 5.00%
A46: 22.5 | B46: 5.73% | C46: 22.5 | D46: 4.95%
A47: 23 | B47: 5.69% | C47: 23 | D47: 4.92%
A48: 23.5 | B48: 5.64% | C48: 23.5 | D48: 4.88%
A49: 24 | B49: 5.60% | C49: 24 | D49: 4.84%
A50: 24.5 | B50: 5.56% | C50: 24.5 | D50: 4.76%
A51: 25 | B51: 5.51% | C51: 25 | D51: 4.71%
A52: 25.5 | B52: 5.48% | C52: 25.5 | D52: 4.67%
A53: 26 | B53: 5.44% | C53: 26 | D53: 4.64%
A54: 26.5 | B54: 5.41% | C54: 26.5 | D54: 4.60%
A55: 27 | B55: 5.38% | C55: 27 | D55: 4.58%
A56: 27.5 | B56: 5.35% | C56: 27.5 | D56: 4.55%
A57: 28 | B57: 5.32% | C57: 28 | D57: 4.52%
A58: 28.5 | B58: 5.29% | C58: 28.5 | D58: 4.49%
A59: 29 | B59: 5.26% | C59: 29 | D59: 4.46%
A60: 29.5 | B60: 5.22% | C60: 29.5 | D60: 4.43%
A61: 30 | B61: 5.18% | C61: 30 | D61: 4.41%
A62: 30.5 | B62: 5.16% | C62: 30.5 | D62: 4.38%
A63: 31 | B63: 5.13% | C63: 31 | D63: 4.35%
A64: 31.5 | B64: 5.10% | C64: 31.5 | D64: 4.32%
A65: 32 | B65: 5.07% | C65: 32 | D65: 4.30%
A66: 32.5 | B66: 5.04% | C66: 32.5 | D66: 4.27%
A67: 33 | B67: 5.01% | C67: 33 | D67: 4.25%
A68: 33.5 | B68: 4.99% | C68: 33.5 | D68: 4.23%
A69: 34 | B69: 4.96% | C69: 34 | D69: 4.20%
A70: 34.5 | B70: 4.94% | C70: 34.5 | D70: 4.18%
A71: 35 | B71: 4.91% | C71: 35 | D71: 4.16%
A72: 35.5 | B72: 4.89% | C72: 35.5 | D72: 4.14%
A73: 36 | B73: 4.86% | C73: 36 | D73: 4.12%
A74: 36.5 | B74: 4.84% | C74: 36.5 | D74: 4.10%
A75: 37 | B75: 4.81% | C75: 37 | D75: 4.09%
A76: 37.5 | B76: 4.79% | C76: 37.5 | D76: 4.07%
A77: 38 | B77: 4.77% | C77: 38 | D77: 4.05%
A78: 38.5 | B78: 4.75% | C78: 38.5 | D78: 4.03%
A79: 39 | B79: 4.73% | C79: 39 | D79: 4.01%
A80: 39.5 | B80: 4.71% | C80: 39.5 | D80: 3.99%
A81: 40 | B81: 4.68% | C81: 40 | D81: 3.99%
A82: 40.5 | B82: 4.66% | C82: 40.5 | D82: 3.97%
A83: 41 | B83: 4.64% | C83: 41 | D83: 3.96%
A84: 41.5 | B84: 4.63% | C84: 41.5 | D84: 3.94%
A85: 42 | B85: 4.61% | C85: 42 | D85: 3.93%
A86: 42.5 | B86: 4.59% | C86: 42.5 | D86: 3.92%
A87: 43 | B87: 4.57% | C87: 43 | D87: 3.90%
A88: 43.5 | B88: 4.56% | C88: 43.5 | D88: 3.89%
A89: 44 | B89: 4.54% | C89: 44 | D89: 3.88%
A90: 44.5 | B90: 4.52% | C90: 44.5 | D90: 3.87%
A91: 45 | B91: 4.51% | C91: 45 | D91: 3.86%
A92: 45.5 | B92: 4.49% | C92: 45.5 | D92: 3.84%
A93: 46 | B93: 4.48% | C93: 46 | D93: 3.83%
A94: 46.5 | B94: 4.45% | C94: 46.5 | D94: 3.82%
A95: 47 | B95: 4.44% | C95: 47 | D95: 3.83%
A96: 47.5 | B96: 4.42% | C96: 47.5 | D96: 3.80%
A97: 48 | B97: 4.40% | C97: 48 | D97: 3.79%
A98: 48.5 | B98: 4.38% | C98: 48.5 | D98: 3.77%
A99: 49 | B99: 4.36% | C99: 49 | D99: 3.76%
A100: 49.5 | B100: 4.34% | C100: 49.5 | D100: 3.75%
A101: 50 | B101: 4.32% | C101: 50 | D101: 3.73%
A102: 50.5 | B102: 4.30% | C102: 50.5 | D102: 3.72%
A103: 51 | B103: 4.29% | C103: 51 | D103: 3.71%
A104: 51.5 | B104: 4.27% | C104: 51.5 | D104: 3.70%
A105: 52 | B105: 4.26% | C105: 52 | D105: 3.68%
A106: 52.5 | B106: 4.24% | C106: 52.5 | D106: 3.67%
A107: 53 | B107: 4.23% | C107: 53 | D107: 3.66%
A108: 53.5 | B108: 4.22% | C108: 53.5 | D108: 3.64%
A109: 54 | B109: 4.21% | C109: 54 | D109: 3.63%
A110: 54.5 | B110: 4.19% | C110: 54.5 | D110: 3.62%
A111: 55 | B111: 4.18% | C111: 55 | D111: 3.61%
A112: 55.5 | B112: 4.17% | C112: 55.5 | D112: 3.60%
A113: 56 | B113: 4.15% | C113: 56 | D113: 3.59%
A114: 56.5 | B114: 4.14% | C114: 56.5 | D114: 3.58%
A115: 57 | B115: 4.13% | C115: 57 | D115: 3.57%
A116: 57.5 | B116: 4.11% | C116: 57.5 | D116: 3.56%
A117: 58 | B117: 4.09% | C117: 58 | D117: 3.54%
A118: 58.5 | B118: 4.05% | C118: 58.5 | D118: 3.48%
A119: 59 | B119: 4.02% | C119: 59 | D119: 3.43%
A120: 59.5 | B120: 4.00% | C120: 59.5 | D120: 3.40%
A121: 60 | B121: 3.98% | C121: 60 | D121: 3.38%
A122: 60.5 | B122: 3.96% | C122: 60.5 | D122: 3.37%
A123: 61 | B123: 3.95% | C123: 61 | D123: 3.36%
A124: 61.5 | B124: 3.93% | C124: 61.5 | D124: 3.35%
A125: 62 | B125: 3.92% | C125: 62 | D125: 3.34%
A126: 62.5 | B126: 3.90% | C126: 62.5 | D126: 3.32%
A127: 63 | B127: 3.89% | C127: 63 | D127: 3.31%
A128: 63.5 | B128: 3.88% | C128: 63.5 | D128: 3.30%
A129: 64 | B129: 3.87% | C129: 64 | D129: 3.29%
A130: 64.5 | B130: 3.86% | C130: 64.5 | D130: 3.28%
A131: 65 | B131: 3.85% | C131: 65 | D131: 3.27%
A132: 65.5 | B132: 3.83% | C132: 65.5 | D132: 3.26%
A133: 66 | B133: 3.82% | C133: 66 | D133: 3.25%
A134: 66.5 | B134: 3.81% | C134: 66.5 | D134: 3.25%
A135: 67 | B135: 3.80% | C135: 67 | D135: 3.24%
A136: 67.5 | B136: 3.79% | C136: 67.5 | D136: 3.23%
A137: 68 | B137: 3.78% | C137: 68 | D137: 3.22%
A138: 68.5 | B138: 3.77% | C138: 68.5 | D138: 3.21%
A139: 69 | B139: 3.77% | C139: 69 | D139: 3.21%
A140: 69.5 | B140: 3.75% | C140: 69.5 | D140: 3.20%
A141: 70 | B141: 3.74% | C141: 70 | D141: 3.19%
A142: 70.5 | B142: 3.73% | C142: 70.5 | D142: 3.18%
A143: 71 | B143: 3.72% | C143: 71 | D143: 3.17%
A144: 71.5 | B144: 3.71% | C144: 71.5 | D144: 3.16%
A145: 72 | B145: 3.70% | C145: 72 | D145: 3.15%
A146: 72.5 | B146: 3.69% | C146: 72.5 | D146: 3.15%
A147: 73 | B147: 3.67% | C147: 73 | D147: 3.14%
A148: 73.5 | B148: 3.67% | C148: 73.5 | D148: 3.13%
A149: 74 | B149: 3.66% | C149: 74 | D149: 3.12%
A150: 74.5 | B150: 3.65% | C150: 74.5 | D150: 3.12%
A151: 75 | B151: 3.64% | C151: 75 | D151: 3.11%
A152: 75.5 | B152: 3.63% | C152: 75.5 | D152: 3.10%
A153: 76 | B153: 3.62% | C153: 76 | D153: 3.09%
A154: 76.5 | B154: 3.61% | C154: 76.5 | D154: 3.09%
A155: 77 | B155: 3.60% | C155: 77 | D155: 3.08%
A156: 77.5 | B156: 3.59% | C156: 77.5 | D156: 3.08%
A157: 78 | B157: 3.58% | C157: 78 | D157: 3.07%
A158: 78.5 | B158: 3.57% | C158: 78.5 | D158: 3.06%
A159: 79 | B159: 3.56% | C159: 79 | D159: 3.05%
A160: 79.5 | B160: 3.56% | C160: 79.5 | D160: 3.05%
A161: 80 | B161: 3.55% | C161: 80 | D161: 3.04%
A162: 80.5 | B162: 3.54% | C162: 80.5 | D162: 3.04%
A163: 81 | B163: 3.53% | C163: 81 | D163: 3.03%
A164: 81.5 | B164: 3.52% | C164: 81.5 | D164: 3.02%
A165: 82 | B165: 3.51% | C165: 82 | D165: 3.02%
A166: 82.5 | B166: 3.50% | C166: 82.5 | D166: 3.01%
A167: 83 | B167: 3.49% | C167: 83 | D167: 3.00%
A168: 83.5 | B168: 3.49% | C168: 83.5 | D168: 3.00%
A169: 84 | B169: 3.48% | C169: 84 | D169: 2.99%
A170: 84.5 | B170: 3.47% | C170: 84.5 | D170: 2.99%
A171: 85 | B171: 3.46% | C171: 85 | D171: 2.98%
A172: 85.5 | B172: 3.45% | C172: 85.5 | D172: 2.98%
A173: 86 | B173: 3.44% | C173: 86 | D173: 2.97%
A174: 86.5 | B174: 3.44% | C174: 86.5 | D174: 2.97%
A175: 87 | B175: 3.43% | C175: 87 | D175: 2.96%
A176: 87.5 | B176: 3.42% | C176: 87.5 | D176: 2.96%
A177: 88 | B177: 3.41% | C177: 88 | D177: 2.95%
A178: 88.5 | B178: 3.41% | C178: 88.5 | D178: 2.95%
A179: 89 | B179: 3.40% | C179: 89 | D179: 2.94%
A180: 89.5 | B180: 3.39% | C180: 89.5 | D180: 2.94%
A181: 90 | B181: 3.38% | C181: 90 | D181: 2.93%
A182: 90.5 | B182: 3.38% | C182: 90.5 | D182: 2.93%
A183: 91 | B183: 3.37% | C183: 91 | D183: 2.92%
A184: 91.5 | B184: 3.36% | C184: 91.5 | D184: 2.92%
A185: 92 | B185: 3.36% | C185: 92 | D185: 2.91%
A186: 92.5 | B186: 3.35% | C186: 92.5 | D186: 2.91%
A187: 93 | B187: 3.34% | C187: 93 | D187: 2.90%
A188: 93.5 | B188: 3.34% | C188: 93.5 | D188: 2.90%
A189: 94 | B189: 3.33% | C189: 94 | D189: 2.89%
A190: 94.5 | B190: 3.32% | C190: 94.5 | D190: 2.89%
A191: 95 | B191: 3.31% | C191: 95 | D191: 2.89%
A192: 95.5 | B192: 3.30% | C192: 95.5 | D192: 2.88%
A193: 96 | B193: 3.30% | C193: 96 | D193: 2.87%
A194: 96.5 | B194: 3.29% | C194: 96.5 | D194: 2.87%
A195: 97 | B195: 3.28% | C195: 97 | D195: 2.86%
A196: 97.5 | B196: 3.27% | C196: 97.5 | D196: 2.86%
A197: 98 | B197: 3.26% | C197: 98 | D197: 2.85%
A198: 98.5 | B198: 3.26% | C198: 98.5 | D198: 2.85%
A199: 99 | B199: 3.25% | C199: 99 | D199: 2.84%
A200: 99.5 | B200: 3.25% | C200: 99.5 | D200: 2.84%
... 400 more rows

Sheet BayesianVRPOD
A1: Instance | B1: Auto | C1: SOTA
A2: od100rho0.05zeta1.1_C101.txt | B2: 1.51% | C2: 3.61%
A3: od100rho0.05zeta1.1_C201.txt | B3: 0.01% | C3: 3.04%
A4: od100rho0.05zeta1.1_R101.txt | B4: 3.19% | C4: 3.67%
A5: od100rho0.05zeta1.1_R201.txt | B5: 0.02% | C5: 0.41%
A6: od100rho0.05zeta1.1_RC101.txt | B6: 3.17% | C6: 5.20%
A7: od100rho0.05zeta1.1_RC201.txt | B7: 0.42% | C7: 0.08%
A8: od100rho0.05zeta1.2_C101.txt | B8: 0.00% | C8: 3.62%
A9: od100rho0.05zeta1.2_C201.txt | B9: 2.77% | C9: 4.97%
A10: od100rho0.05zeta1.2_R101.txt | B10: 3.55% | C10: 6.19%
A11: od100rho0.05zeta1.2_R201.txt | B11: 0.11% | C11: 0.30%
A12: od100rho0.05zeta1.2_RC101.txt | B12: 0.59% | C12: 4.21%
A13: od100rho0.05zeta1.2_RC201.txt | B13: 0.42% | C13: 0.49%
A14: od100rho0.05zeta1.3_C101.txt | B14: 0.00% | C14: 11.11%
A15: od100rho0.05zeta1.3_C201.txt | B15: 1.94% | C15: 2.67%
A16: od100rho0.05zeta1.3_R101.txt | B16: 0.39% | C16: 0.74%
A17: od100rho0.05zeta1.3_R201.txt | B17: 0.32% | C17: 0.93%
A18: od100rho0.05zeta1.3_RC101.txt | B18: 0.13% | C18: 8.12%
A19: od100rho0.05zeta1.3_RC201.txt | B19: 0.02% | C19: 1.90%
A20: od100rho0.05zeta1.4_C101.txt | B20: 0.00% | C20: 6.07%
A21: od100rho0.05zeta1.4_C201.txt | B21: 1.38% | C21: 1.50%
A22: od100rho0.05zeta1.4_R101.txt | B22: 0.14% | C22: 0.27%
A23: od100rho0.05zeta1.4_R201.txt | B23: 0.01% | C23: 0.21%
A24: od100rho0.05zeta1.4_RC101.txt | B24: 0.60% | C24: 0.94%
A25: od100rho0.05zeta1.4_RC201.txt | B25: 0.19% | C25: 0.89%
A26: od100rho0.05zeta1.5_C101.txt | B26: 0.00% | C26: 7.12%
A27: od100rho0.05zeta1.5_C201.txt | B27: 0.00% | C27: 2.39%
A28: od100rho0.05zeta1.5_R101.txt | B28: 0.41% | C28: 4.98%
A29: od100rho0.05zeta1.5_R201.txt | B29: 0.31% | C29: 5.60%
A30: od100rho0.05zeta1.5_RC101.txt | B30: 3.40% | C30: 11.73%
A31: od100rho0.05zeta1.5_RC201.txt | B31: 7.61% | C31: 9.23%
A32: od100rho0.1zeta1.1_C101.txt | B32: 0.36% | C32: 11.21%
A33: od100rho0.1zeta1.1_C201.txt | B33: 2.22% | C33: 3.00%
A34: od100rho0.1zeta1.1_R101.txt | B34: 3.24% | C34: 5.90%
A35: od100rho0.1zeta1.1_R201.txt | B35: 0.04% | C35: 0.29%
A36: od100rho0.1zeta1.1_RC101.txt | B36: 4.49% | C36: 6.70%
A37: od100rho0.1zeta1.1_RC201.txt | B37: 0.30% | C37: 0.42%
A38: od100rho0.1zeta1.2_C101.txt | B38: 2.80% | C38: 14.62%
A39: od100rho0.1zeta1.2_C201.txt | B39: 5.07% | C39: 8.36%
A40: od100rho0.1zeta1.2_R101.txt | B40: 3.89% | C40: 5.61%
A41: od100rho0.1zeta1.2_R201.txt | B41: 0.05% | C41: 1.28%
A42: od100rho0.1zeta1.2_RC101.txt | B42: 1.46% | C42: 8.04%
A43: od100rho0.1zeta1.2_RC201.txt | B43: 2.62% | C43: 0.00%
A44: od100rho0.1zeta1.3_C201.txt | B44: 3.67% | C44: 16.21%
A45: od100rho0.1zeta1.3_R101.txt | B45: 0.10% | C45: 0.29%
A46: od100rho0.1zeta1.3_RC101.txt | B46: 4.56% | C46: 17.42%
A47: od100rho0.1zeta1.4_C101.txt | B47: 9.63% | C47: 26.50%
A48: od100rho0.1zeta1.4_C201.txt | B48: 0.87% | C48: 10.46%
A49: od100rho0.1zeta1.4_R101.txt | B49: 0.11% | C49: 0.59%
A50: od100rho0.1zeta1.4_R201.txt | B50: 0.02% | C50: 0.07%
A51: od100rho0.1zeta1.4_RC101.txt | B51: 0.80% | C51: 12.78%
A52: od100rho0.1zeta1.4_RC201.txt | B52: 0.00% | C52: 5.79%
A53: od100rho0.1zeta1.5_C101.txt | B53: 14.01% | C53: 21.45%
A54: od100rho0.1zeta1.5_C201.txt | B54: 0.01% | C54: 3.29%
A55: od100rho0.1zeta1.5_R101.txt | B55: 5.31% | C55: 8.90%
A56: od100rho0.1zeta1.5_R201.txt | B56: 4.33% | C56: 9.71%
A57: od100rho0.1zeta1.5_RC101.txt | B57: 5.27% | C57: 13.53%
A58: od100rho0.1zeta1.5_RC201.txt | B58: 0.20% | C58: 5.59%
A59: od100rho0.2zeta1.1_C101.txt | B59: 3.89% | C59: 7.11%
A60: od100rho0.2zeta1.1_C201.txt | B60: 1.17% | C60: 1.56%
A61: od100rho0.2zeta1.1_R101.txt | B61: 0.79% | C61: 1.69%
A62: od100rho0.2zeta1.1_R201.txt | B62: 0.32% | C62: 0.08%
A63: od100rho0.2zeta1.1_RC101.txt | B63: 1.59% | C63: 2.46%
A64: od100rho0.2zeta1.1_RC201.txt | B64: 1.07% | C64: 0.04%
A65: od100rho0.2zeta1.2_C101.txt | B65: 5.78% | C65: 10.62%
A66: od100rho0.2zeta1.2_C201.txt | B66: 1.35% | C66: 1.05%
A67: od100rho0.2zeta1.2_R101.txt | B67: 1.24% | C67: 2.69%
A68: od100rho0.2zeta1.2_R201.txt | B68: 0.82% | C68: 0.00%
A69: od100rho0.2zeta1.2_RC101.txt | B69: 2.98% | C69: 4.13%
A70: od100rho0.2zeta1.2_RC201.txt | B70: 1.23% | C70: 0.03%
A71: od100rho0.2zeta1.3_C201.txt | B71: 1.35% | C71: 0.83%
A72: od100rho0.2zeta1.4_C101.txt | B72: 3.76% | C72: 8.94%
A73: od100rho0.2zeta1.4_C201.txt | B73: 0.93% | C73: 1.07%
A74: od100rho0.2zeta1.4_R101.txt | B74: 0.14% | C74: 1.88%
A75: od100rho0.2zeta1.4_R201.txt | B75: 0.01% | C75: 0.72%
A76: od100rho0.2zeta1.4_RC101.txt | B76: 1.66% | C76: 3.28%
A77: od100rho0.2zeta1.4_RC201.txt | B77: 2.02% | C77: 0.00%
A78: od100rho0.2zeta1.5_C101.txt | B78: 0.15% | C78: 4.03%
A79: od100rho0.2zeta1.5_C201.txt | B79: 1.41% | C79: 2.64%
A80: od100rho0.2zeta1.5_R101.txt | B80: 0.00% | C80: 1.61%
A81: od100rho0.2zeta1.5_R201.txt | B81: 0.23% | C81: 0.13%
A82: od100rho0.2zeta1.5_RC101.txt | B82: 2.43% | C82: 4.41%
A83: od100rho0.2zeta1.5_RC201.txt | B83: 2.01% | C83: 0.04%
A84: od100rho1.2zeta1.1_C101.txt | B84: 1.99% | C84: 7.61%
A85: od100rho1.2zeta1.1_C201.txt | B85: 0.82% | C85: 4.98%
A86: od100rho1.2zeta1.1_R101.txt | B86: 3.73% | C86: 5.47%
A87: od100rho1.2zeta1.1_R201.txt | B87: 0.20% | C87: 0.79%
A88: od100rho1.2zeta1.1_RC101.txt | B88: 4.47% | C88: 5.83%
A89: od100rho1.2zeta1.1_RC201.txt | B89: 0.00% | C89: 0.30%
A90: od100rho1.2zeta1.2_C201.txt | B90: 1.54% | C90: 1.65%
A91: od100rho1.2zeta1.2_R101.txt | B91: 2.30% | C91: 4.22%
A92: od100rho1.2zeta1.2_R201.txt | B92: 0.17% | C92: 0.37%
A93: od100rho1.2zeta1.2_RC101.txt | B93: 4.58% | C93: 6.76%
A94: od100rho1.2zeta1.2_RC201.txt | B94: 0.74% | C94: 0.17%
A95: od100rho1.2zeta1.3_C201.txt | B95: 1.36% | C95: 8.32%
A96: od100rho1.2zeta1.4_C101.txt | B96: 2.83% | C96: 19.82%
A97: od100rho1.2zeta1.4_C201.txt | B97: 2.68% | C97: 6.22%
A98: od100rho1.2zeta1.4_R101.txt | B98: 2.20% | C98: 2.76%
A99: od100rho1.2zeta1.4_R201.txt | B99: 0.14% | C99: 0.49%
A100: od100rho1.2zeta1.4_RC101.txt | B100: 4.29% | C100: 8.74%
A101: od100rho1.2zeta1.4_RC201.txt | B101: 0.65% | C101: 0.15%
A102: od100rho1.2zeta1.5_C101.txt | B102: 1.24% | C102: 22.49%
A103: od100rho1.2zeta1.5_C201.txt | B103: 2.51% | C103: 7.07%
A104: od100rho1.2zeta1.5_R101.txt | B104: 1.44% | C104: 3.74%
A105: od100rho1.2zeta1.5_R201.txt | B105: 0.14% | C105: 0.51%
A106: od100rho1.2zeta1.5_RC101.txt | B106: 3.12% | C106: 9.21%
A107: od100rho1.2zeta1.5_RC201.txt | B107: 0.69% | C107: 0.09%
A108: od100rho1.4zeta1.1_C101.txt | B108: 1.70% | C108: 4.50%
A109: od100rho1.4zeta1.1_C201.txt | B109: 1.60% | C109: 4.56%
A110: od100rho1.4zeta1.1_R101.txt | B110: 4.79% | C110: 6.77%
A111: od100rho1.4zeta1.1_R201.txt | B111: 0.41% | C111: 0.40%
A112: od100rho1.4zeta1.1_RC101.txt | B112: 3.92% | C112: 4.86%
A113: od100rho1.4zeta1.1_RC201.txt | B113: 0.61% | C113: 0.18%
A114: od100rho1.4zeta1.2_C101.txt | B114: 2.40% | C114: 10.22%
A115: od100rho1.4zeta1.2_C201.txt | B115: 0.36% | C115: 4.75%
A116: od100rho1.4zeta1.2_R101.txt | B116: 1.82% | C116: 5.55%
A117: od100rho1.4zeta1.2_R201.txt | B117: 0.60% | C117: 0.38%
A118: od100rho1.4zeta1.2_RC101.txt | B118: 5.15% | C118: 7.90%
A119: od100rho1.4zeta1.2_RC201.txt | B119: 1.06% | C119: 0.10%
A120: od100rho1.4zeta1.3_C201.txt | B120: 2.91% | C120: 6.71%
A121: od100rho1.4zeta1.4_C101.txt | B121: 1.39% | C121: 17.58%
A122: od100rho1.4zeta1.4_C201.txt | B122: 2.82% | C122: 6.72%
A123: od100rho1.4zeta1.4_R101.txt | B123: 1.08% | C123: 4.97%
A124: od100rho1.4zeta1.4_R201.txt | B124: 0.25% | C124: 1.07%
A125: od100rho1.4zeta1.4_RC101.txt | B125: 2.39% | C125: 4.21%
A126: od100rho1.4zeta1.4_RC201.txt | B126: 0.68% | C126: 0.29%
A127: od100rho1.4zeta1.5_C101.txt | B127: 2.05% | C127: 19.96%
A128: od100rho1.4zeta1.5_C201.txt | B128: 2.90% | C128: 6.78%
A129: od100rho1.4zeta1.5_R101.txt | B129: 1.78% | C129: 5.01%
A130: od100rho1.4zeta1.5_R201.txt | B130: 0.17% | C130: 0.74%
A131: od100rho1.4zeta1.5_RC101.txt | B131: 1.79% | C131: 6.31%
A132: od100rho1.4zeta1.5_RC201.txt | B132: 0.62% | C132: 0.28%
A133: od100rho1.6zeta1.1_C101.txt | B133: 0.18% | C133: 5.30%
A134: od100rho1.6zeta1.1_C201.txt | B134: 1.81% | C134: 5.26%
A135: od100rho1.6zeta1.1_R101.txt | B135: 3.44% | C135: 6.23%
A136: od100rho1.6zeta1.1_R201.txt | B136: 0.35% | C136: 0.44%
A137: od100rho1.6zeta1.1_RC101.txt | B137: 3.65% | C137: 5.91%
A138: od100rho1.6zeta1.1_RC201.txt | B138: 0.48% | C138: 0.17%
A139: od100rho1.6zeta1.2_C101.txt | B139: 2.05% | C139: 4.82%
A140: od100rho1.6zeta1.2_C201.txt | B140: 1.72% | C140: 3.68%
A141: od100rho1.6zeta1.2_R101.txt | B141: 2.60% | C141: 5.67%
A142: od100rho1.6zeta1.2_R201.txt | B142: 0.07% | C142: 0.40%
A143: od100rho1.6zeta1.2_RC101.txt | B143: 4.23% | C143: 5.99%
A144: od100rho1.6zeta1.2_RC201.txt | B144: 0.34% | C144: 0.22%
A145: od100rho1.6zeta1.3_C101.txt | B145: 1.98% | C145: 14.30%
A146: od100rho1.6zeta1.3_C201.txt | B146: 4.27% | C146: 6.10%
A147: od100rho1.6zeta1.3_R101.txt | B147: 1.74% | C147: 7.09%
A148: od100rho1.6zeta1.3_R201.txt | B148: 0.23% | C148: 1.76%
A149: od100rho1.6zeta1.3_RC101.txt | B149: 3.31% | C149: 7.10%
A150: od100rho1.6zeta1.3_RC201.txt | B150: 1.40% | C150: 0.39%
A151: od100rho1.6zeta1.4_C101.txt | B151: 4.07% | C151: 16.73%
A152: od100rho1.6zeta1.4_C201.txt | B152: 5.50% | C152: 5.46%
A153: od100rho1.6zeta1.4_R101.txt | B153: 1.69% | C153: 4.91%
A154: od100rho1.6zeta1.4_R201.txt | B154: 0.20% | C154: 0.97%
A155: od100rho1.6zeta1.4_RC101.txt | B155: 3.17% | C155: 5.60%
A156: od100rho1.6zeta1.4_RC201.txt | B156: 0.05% | C156: 0.39%
A157: od100rho1.6zeta1.5_C101.txt | B157: 4.77% | C157: 18.86%
A158: od100rho1.6zeta1.5_C201.txt | B158: 5.19% | C158: 4.78%
A159: od100rho1.6zeta1.5_R101.txt | B159: 1.94% | C159: 4.33%
A160: od100rho1.6zeta1.5_R201.txt | B160: 0.22% | C160: 1.55%
A161: od100rho1.6zeta1.5_RC101.txt | B161: 3.84% | C161: 8.56%
A162: od100rho1.6zeta1.5_RC201.txt | B162: 0.43% | C162: 0.26%
A163: od13rho0.2zeta1.1_C101.txt | B163: 0.04% | C163: 0.70%
A164: od13rho0.2zeta1.1_C201.txt | B164: 0.00% | C164: 0.00%
A165: od13rho0.2zeta1.1_R101.txt | B165: 0.00% | C165: 0.08%
A166: od13rho0.2zeta1.1_R201.txt | B166: 0.00% | C166: 0.00%
A167: od13rho0.2zeta1.1_RC101.txt | B167: 1.49% | C167: 2.50%
A168: od13rho0.2zeta1.1_RC201.txt | B168: 0.00% | C168: 0.00%
A169: od13rho0.2zeta1.2_C101.txt | B169: 0.00% | C169: 0.13%
A170: od13rho0.2zeta1.2_C201.txt | B170: 0.00% | C170: 0.56%
A171: od13rho0.2zeta1.2_R101.txt | B171: 0.00% | C171: 0.26%
A172: od13rho0.2zeta1.2_R201.txt | B172: 0.00% | C172: 0.14%
A173: od13rho0.2zeta1.3_C101.txt | B173: 0.00% | C173: 0.15%
A174: od13rho0.2zeta1.4_C101.txt | B174: 0.00% | C174: 1.09%
A175: od13rho0.2zeta1.4_R201.txt | B175: 0.00% | C175: 0.50%
A176: od13rho0.2zeta1.5_C101.txt | B176: 5.30% | C176: 12.43%
A177: od13rho0.2zeta1.5_R101.txt | B177: 0.00% | C177: 1.31%
A178: od13rho0.2zeta1.5_R201.txt | B178: 0.01% | C178: 0.17%
A179: od13rho0.2zeta1.5_RC101.txt | B179: 0.00% | C179: 0.53%
A180: od13rho0.2zeta1.5_RC201.txt | B180: 0.00% | C180: 0.23%
A181: od25rho0.2zeta1.1_C101.txt | B181: 0.00% | C181: 0.03%
A182: od25rho0.2zeta1.1_C201.txt | B182: 0.00% | C182: 0.00%
A183: od25rho0.2zeta1.1_R101.txt | B183: 0.00% | C183: 0.00%
A184: od25rho0.2zeta1.1_R201.txt | B184: 0.00% | C184: 0.00%
A185: od25rho0.2zeta1.1_RC101.txt | B185: 2.25% | C185: 0.00%
A186: od25rho0.2zeta1.1_RC201.txt | B186: 0.00% | C186: 0.00%
A187: od25rho0.2zeta1.2_R101.txt | B187: 0.00% | C187: 0.00%
A188: od25rho0.2zeta1.2_R201.txt | B188: 0.00% | C188: 0.09%
A189: od25rho0.2zeta1.3_C101.txt | B189: 0.00% | C189: 0.05%
A190: od25rho0.2zeta1.3_R101.txt | B190: 0.00% | C190: 0.29%
A191: od25rho0.2zeta1.4_C101.txt | B191: 0.00% | C191: 2.78%
A192: od25rho0.2zeta1.4_R101.txt | B192: 0.00% | C192: 0.00%
A193: od25rho0.2zeta1.5_C101.txt | B193: 0.11% | C193: 1.10%
A194: od25rho0.2zeta1.5_C201.txt | B194: 0.00% | C194: 0.00%
A195: od25rho0.2zeta1.5_R101.txt | B195: 0.00% | C195: 0.18%
A196: od25rho0.2zeta1.5_R201.txt | B196: 0.00% | C196: 0.62%
A197: od25rho0.2zeta1.5_RC101.txt | B197: 1.23% | C197: 0.52%
A198: od25rho0.2zeta1.5_RC201.txt | B198: 0.00% | C198: 0.00%
A199: od50rho0.05zeta1.1_C101.txt | B199: 0.94% | C199: 2.97%
A200: od50rho0.05zeta1.1_C201.txt | B200: 3.52% | C200: 1.74%
... 158 more rows
